Workbook

Sheet CycleTime
L1: ↓ W～AQ 「表示しない」列 ↓ ↓ W～AQ 「表示しない」列 ↓ ↓ W～AQ 「表示しない」列 ↓ ↓ W～AQ 「表示しない」列 ↓ ↓ W～AQ 「表示しない」列 ↓ ↓ W～AQ 「表示しない」列 ↓ ↓ W～AQ 「表示しない」列 ↓ ↓ W～AQ 「表示しない」列 ↓ ↓ W～AQ 「表示しない」列 ↓ ↓ | AT1: 残す列 | AV1: 残す列
L2: 参考表示
L3: Vmax[㎜/s] | N3: =SQRT(D14*(2*N4*N5)/(N4+N5)) -> 700.2374597 | AB3: feedforward | AE3: 物理計算用変換係数
A4: <a> | B4: シリーズ | C4: RCP6 | L4: =IF(AE33=0,"加速度[㎜/s^2]","加速度[deg/s^2]") -> 加速度[㎜/s^2] | N4: =D20*AH5*1000 -> 9806.65 | AB4: =AF45/100 -> 0 | AE4: ﾓｰﾀ軸角速度及び角加速度 | AH4: Ｇ
L5: =IF(AE33=0,"減速度[㎜/s^2]","減速度[deg/s^2]") -> 減速度[㎜/s^2] | N5: =D22*AH5*1000 -> 9806.65 | AB5: Kf | AC5: =IF( AB4=1,1,1-EXP(-((N11/(1-AB4))-N11)*N8) ) -> 0 | AE5: =IF(AE33=0,1000,360/(2*PI())) -> 1000 | AH5: =LeadData!$A$1 -> 9.80665
A6: <b> | B6: 型式 | C6: RCP6-SA4C | L6: 最高速度[㎜/s] | N6: =IF(D18<N3,D18,N3) -> 195 | AO6: (Tkp+2Kf) | AP6: =($N$8*$N$11+2*$AB$4) -> 0.006578445775
L7: 分割数 | N7: =ROUND(3200/(AP18+AP20*10)*AP18,0) -> 1680 | AO7: (Tkp-2Kf) | AP7: =($N$8*$N$11-2*$AB$4) -> 0.006578445775
A8: <c> | B8: =IF(AE33=0,"リード","減速比") -> リード | C8: 2.5 | D8: =IF(AE33=0,"㎜","：1") -> ㎜ | L8: ⊿ｔ[s] | N8: =AT32-AT31 -> 0.0001644611444 | AO8: (2+TKp) | AP8: =(2+$N$8*$N$11) -> 2.006578446
L9: 最終時刻[s] | N9: =AT3231 -> 0.526275662 | AO9: (2-TKp) | AP9: =(2-$N$8*$N$11) -> 1.993421554
A10: <d> | B10: ストローク | C10: 50 | D10: =IF(AE33=0,"㎜","deg") -> ㎜ | L10: 最終位置[㎜] | N10: =AV3231 -> 49.99984724 | AO10: 減速時間 | AP10: =N6/N5 -> 0.01988446615 | AQ10: s
L11: 位置ｹﾞｲﾝ | N11: =AE45 -> 40 | AO11: 減速距離 | AP11: =N5*AP10*AP10/2 -> 1.93873545 | AQ11: ㎜
A12: <e> | B12: 設置姿勢 | C12: 水平 | L12: 速度制御帯域 | N12: =AG45 -> 391 | AO12: 加速時間 | AP12: =N6/N4 -> 0.01988446615 | AQ12: s
AO13: 加速距離 | AP13: =N4*AP12*AP12/2 -> 1.93873545 | AQ13: ㎜
A14: <1> | B14: =IF(AE33=0,"移動距離[㎜]","移動距離[deg]") -> 移動距離[㎜] | D14: 50 | L14: 移動可能距離[㎜] | N14: =X45+Y45 -> 50 | AO14: 等速時間 | AP14: =IF(D18<N3,(D14-AP13-AP11)/D18,0) -> 0.2365257903 | AQ14: s
AO15: 等速距離 | AP15: =AP14*N6 -> 46.1225291 | AQ15: ㎜
A16: <2> | B16: =IF(AE33=0,"搬送質量[kg]","搬送ｲﾅｰｼｬ[kgm^2]") -> 搬送質量[kg] | D16: 18 | L16: =CONCATENATE(C6,"-",C8) -> RCP6-SA4C-2.5 | AO16: 減速時刻 | AP16: =AP12+AP14 -> 0.2564102564 | AQ16: s
L17: =CONCATENATE(C6,"-",C8,"-",C10,"-",C12) -> RCP6-SA4C-2.5-50-水平 | AO17: 減速位置 | AP17: =AP13+AP15 -> 48.06126455 | AQ17: ㎜
A18: <3> | B18: =IF(AE33=0,"速度[㎜/s]","速度[deg/s]") -> 速度[㎜/s] | D18: 195 | G18: ●計算結果 | L18: 最高速度 | M18: 位置ｹﾞｲﾝ | N18: 速度ﾙｰﾌﾟ比例ｹﾞｲﾝ | O18: 速度ﾙｰﾌﾟ積分ｹﾞｲﾝ | P18: 電流制御帯域番号 | Q18: ﾄﾙｸﾌｨﾙﾀ時定数 | R18: ストローク | AO18: TotalTime | AP18: =AP14+AP12+AP10 -> 0.2762947226 | AQ18: s
L19: =AD45 -> 195 | M19: =AE45 -> 40 | N19: =AN27 -> 0 | O19: =AO27 -> 0 | P19: =AK45 -> 0 | Q19: =AI45 -> 0 | R19: =C10 -> 50 | AE19: 運転姿勢 | AF19: ←初期値 | AO19: Spdτ | AP19: =1/N12 -> 0.002557544757 | AQ19: s
A20: <4> | B20: 加速度[G] | D20: 1 | E20: ="(1G=9806" & IF(AE33=0,"mm","deg") & "/s^2)" -> (1G=9806mm/s^2) | G20: 位置決め時間 [s] | I20: =LOOKUP((D14-D24),AV31:AV3231,AT31:AT3231) -> 0.3641169737 | AE20: 水平 | AF20: 水平 | AO20: Posτ | AP20: =1/N11 -> 0.025 | AQ20: s
AE21: 垂直 | AO21: 収束時間 | AP21: =I20-AP18 -> 0.0878222511 | AQ21: s
A22: <5> | B22: 減速度[G] | D22: 1
A24: <6> | B24: =IF(AE33=0,"位置決め幅 [㎜]","位置決め幅 [deg]") -> 位置決め幅 [㎜] | D24: 0.1 | F24: =IF(N9<=I20,"位置決め時間を正しく計算できていません","※位置決め幅に到達するまでの時間を表します。") -> ※位置決め幅に到達するまでの時間を表します。
F25: =IF(N10<=I21,"","※計算結果は参考値です。 負荷状況により実際の位置決め時間とは異なる場合があります。 ※ゲイン調整により計算結果より早く位置決めできる場合があります。 詳しくは使用するコントローラーの取扱説明書をご確認ください。") -> ※計算結果は参考値です。 負荷状況により実際の位置決め時間とは異なる場合があります。 ※ゲイン調整により計算結果より早く位置決めできる場合があります。 詳しくは使用するコントローラーの取扱説明書をご確認ください。
A28: 1 | B28: =A28+1 -> 2 | C28: 3 | D28: 4 | E28: 5 | F28: 6 | G28: 7 | H28: 8 | I28: 9 | J28: 10 | K28: 11 | L28: 12 | M28: 13 | N28: 14 | O28: 15 | P28: =O28+1 -> 16 | Q28: =P28+1 -> 17 | R28: =Q28+1 -> 18 | S28: =R28+1 -> 19 | T28: =S28+1 -> 20 | U28: 21 | V28: 22 | W28: 23 | X28: 24 | Y28: 25 | Z28: 26 | AA28: 27 | AB28: 28 | AC28: 29 | AD28: 30 | AE28: 31 | AF28: 32 | AG28: 33 | AH28: 34 | AI28: 35 | AJ28: 36 | AK28: 37 | AL28: 38 | AM28: 39 | AN28: 40 | AO28: 41 | AP28: 42 | AQ28: 43 | AR28: 44 | AS28: 45 | AT28: 46 | AU28: 47 | AV28: 48
O29: ↓↓↓↓↓↓↓↓ フォント色を白にする列 O29～U193 ↓↓↓↓↓↓↓↓ | AS29: ↓↓↓↓↓↓↓↓↓↓↓↓↓↓↓ フォント色を白に、数式は非表示に、する列 A29～J3231 ↓↓↓↓↓↓↓↓↓↓↓↓↓↓↓
B30: 可搬質量 | C30: 加減速度 | D30: 最高速度 | E30: 実加速度 | F30: 到達速度 | G30: 運転時間 | H30: 三角速度 | O30: № | P30: メカ型式リスト | Q30: 絞込み | R30: ﾀｲﾌﾟﾘｽﾄ | S30: ﾘｰﾄﾞﾘｽﾄ | T30: ｽﾄﾛｰｸﾘｽﾄ | U30: 型式総数 | W30: =DataSerch!B1 -> メカ機種データレコード | AS30: № | AT30: 時刻 | AU30: 位置計画 | AV30: 位置
A31: =A30+1 -> 1 | B31: 18 | C31: 1 | D31: 195 | E31: 9806.65 | F31: 195 | G31: 0.2762947226 | H31: 700.2374597 | O31: 1 | P31: RCP4-SA5C | Q31: RCP6-SA4C | R31: RCP4 | S31: 2.5 | T31: 50 | U31: 109 | W31: ﾚｺｰﾄﾞ№ | X31: =DataSerch!$C$2 -> ｱｸﾁｭｴｰﾀ型式 | Z31: =DataSerch!$E$2 -> 0 | AA31: =DataSerch!$F$2 -> 0 | AB31: =DataSerch!$G$2 -> 0 | AC31: =DataSerch!$H$2 -> 最小ｽﾄﾛｰｸ | AD31: =DataSerch!$I$2 -> 最大ｽﾄﾛｰｸ | AE31: =DataSerch!$J$2 -> 動作種別 | AF31: =DataSerch!$K$2 -> 0 | AS31: 0 | AT31: =$AP$18/$N$7*AS31 -> 0 | AU31: 0 | AV31: 0
A32: 2 | B32: -1 | C32: -1 | D32: -1 | E32: -1 | F32: -1 | G32: -1 | H32: -1 | O32: =O31+1 -> 2 | P32: RCP4-SA6C | Q32: RCP6-SA6C | R32: ERC3 | S32: 5 | T32: 100 | U32: 絞込み数 | W32: =DataSerch!$B$3 -> 58 | X32: =DataSerch!$C$3 -> RCP6-SA4C | Z32: =DataSerch!$E$4 -> [kg] | AA32: =DataSerch!$F$4 -> [mm] | AB32: =DataSerch!$G$4 -> [mm] | AC32: =DataSerch!$H$4 -> [mm] | AD32: =DataSerch!$I$4 -> [mm] | AE32: =DataSerch!$J$4 -> 0/1 | AF32: =DataSerch!$K$4 -> [K] | AS32: =AS31+1 -> 1 | AT32: 0.0001644611444 | AU32: =IF(($N$4*AT32^2/2)<=$AP$13,($N$4*AT32^2/2), IF(($AP$13+$N$6*(AT32-$AP$12))<=$AP$17, ($AP$13+$N$6*(AT32-$AP$12)), IF(AU31<$D$14, ($AP$17+($N$6-$N$5*(AT32-$AP$16)/2)*(AT32-$AP$16)), $D$14))) -> 0.0001326225261 | AV32: =( $AP$6*AU32 + $AP$7*AU31 + $AP$9*AV31 )/$AP$8 -> 4.347949109e-07
A33: 3 | B33: -1 | C33: -1 | D33: -1 | E33: -1 | F33: -1 | G33: -1 | H33: -1 | O33: =O32+1 -> 3 | P33: RCP4-SA7C | Q33: RCP6-SA7C | R33: RCP5 | S33: 10 | T33: 150 | U33: 52 | Z33: =DataSerch!$E$5 -> 0 | AA33: =DataSerch!$F$5 -> 0 | AB33: =DataSerch!$G$5 -> 0 | AC33: =DataSerch!$H$5 -> 50 | AD33: =DataSerch!$I$5 -> 500 | AE33: =DataSerch!$J$5 -> 0 | AS33: =AS32+1 -> 2 | AT33: 0.0003289222888 | AU33: 0.0005304901044 | AV33: =( $AP$6*AU33 + $AP$7*AU32 + $AP$9*AV32 )/$AP$8 -> 2.605918568e-06
A34: 4 | B34: -1 | C34: -1 | D34: -1 | E34: -1 | F34: -1 | G34: -1 | H34: -1 | O34: 4 | P34: RCP4-RA5C | Q34: RCP6-SA4R | R34: RCP6 | S34: 16 | T34: 200 | AS34: 3 | AT34: 0.0004933834331 | AU34: 0.001193602735 | AV34: 8.241165717e-06
A35: 5 | B35: -1 | C35: -1 | D35: -1 | E35: -1 | F35: -1 | G35: -1 | H35: -1 | O35: 5 | P35: RCP4-RA6C | Q35: RCP6-SA6R | R35: RCP6-SA | S35: - - - | T35: 250 | U35: ﾘｰﾄﾞ総数 | W35: リードデータレコード | AS35: 4 | AT35: 0.0006578445775 | AU35: 0.002121960417 | AV35: 1.905700216e-05
A36: 6 | B36: -1 | C36: -1 | D36: -1 | E36: -1 | F36: -1 | G36: -1 | H36: -1 | O36: 6 | P36: ERC3-SA5 | Q36: RCP6-SA7R | R36: RCP6-WSA | S36: - - - | T36: 300 | U36: 4 | W36: リスト№ | X36: =DataSerch!$F$24 -> ﾘｰﾄﾞ長 | Y36: =DataSerch!$G$24 -> 0 | Z36: =DataSerch!$H$24 -> 水平定格加速度 | AA36: =DataSerch!$I$24 -> 垂直定格加速度 | AB36: =DataSerch!$J$24 -> 水平最大加速度 | AC36: =DataSerch!$K$24 -> 垂直最大加速度 | AD36: =DataSerch!$L$24 -> 0 | AE36: =DataSerch!$M$24 -> 0 | AF36: =DataSerch!$N$24 -> 0 | AG36: =DataSerch!$O$24 -> ｷﾞｱ比分子 | AH36: =DataSerch!$P$24 -> ｷﾞｱ比分母 | AI36: =DataSerch!$Q$24 -> 0 | AJ36: =DataSerch!$R$24 -> ｽﾄﾛｰｸ刻み | AK36: =DataSerch!$S$24 -> 位置決め幅 初期値 | AS36: 5 | AT36: 0.0008223057219 | AU36: 0.003315563152 | AV36: 3.675863906e-05
A37: 7 | B37: -1 | C37: -1 | D37: -1 | E37: -1 | F37: -1 | G37: -1 | H37: -1 | O37: 7 | P37: ERC3-SA7 | Q37: RCP6-WSA10C | R37: RCP6-RA | S37: - - - | T37: 350 | AS37: 6 | AT37: 0.0009867668663 | AU37: 0.004774410939 | AV37: 6.304010668e-05
A38: 8 | B38: -1 | C38: -1 | D38: -1 | E38: -1 | F38: -1 | G38: -1 | H38: -1 | O38: 8 | P38: ERC3-RA4 | Q38: RCP6-WSA12C | R38: RCP6-RRA | S38: - - - | T38: 400 | U38: ｽﾄﾛｰｸ総数 | W38: =DataSerch!$D$35 -> 1 | X38: =DataSerch!$F$25 -> [mm] | Y38: =DataSerch!$G$25 -> [kgm^2] | Z38: =DataSerch!$H$25 -> [m/s^2] | AA38: =DataSerch!$I$25 -> [m/s^2] | AB38: =DataSerch!$J$25 -> [m/s^2] | AC38: =DataSerch!$K$25 -> [m/s^2] | AD38: =DataSerch!$L$25 -> [Nm] | AE38: =DataSerch!$M$25 -> [Nms] | AF38: =DataSerch!$N$25 -> [Nm] | AG38: =DataSerch!$O$25 -> 0 | AH38: =DataSerch!$P$25 -> 0 | AI38: =DataSerch!$Q$25 -> 0 | AJ38: =DataSerch!$R$25 -> [mm] | AK38: =DataSerch!$S$25 -> [mm] | AS38: 7 | AT38: 0.001151228011 | AU38: 0.006498503778 | AV38: 9.958432777e-05
A39: 9 | B39: -1 | C39: -1 | D39: -1 | E39: -1 | F39: -1 | G39: -1 | H39: -1 | O39: 9 | P39: ERC3-RA6 | Q39: RCP6-WSA14C | R39: RCP6-WRA | T39: 450 | U39: 10 | X39: =LOOKUP(W38,DataSerch!$B$26:$B$33,DataSerch!$F$26:$F$33) -> 2.5 | Y39: =LOOKUP(W38,DataSerch!$B$26:$B$33,DataSerch!$G$26:$G$33) -> 0 | Z39: =LOOKUP(W38,DataSerch!$B$26:$B$33,DataSerch!$H$26:$H$33) -> 2.941995 | AA39: =LOOKUP(W38,DataSerch!$B$26:$B$33,DataSerch!$I$26:$I$33) -> 2.941995 | AB39: =LOOKUP(W38,DataSerch!$B$26:$B$33,DataSerch!$J$26:$J$33) -> 9.80665 | AC39: =LOOKUP(W38,DataSerch!$B$26:$B$33,DataSerch!$K$26:$K$33) -> 4.903325 | AG39: =LOOKUP(W38,DataSerch!$B$26:$B$33,DataSerch!$O$26:$O$33) -> 1 | AH39: =LOOKUP(W38,DataSerch!$B$26:$B$33,DataSerch!$P$26:$P$33) -> 1 | AJ39: =LOOKUP(W38,DataSerch!$B$26:$B$33,DataSerch!$R$26:$R$33) -> 50 | AK39: =LOOKUP(W38,DataSerch!$B$26:$B$33,DataSerch!$S$26:$S$33) -> 0.1 | AS39: 8 | AT39: 0.001315689155 | AU39: 0.00848784167 | AV39: 0.0001480631903
A40: 10 | B40: -1 | C40: -1 | D40: -1 | E40: -1 | F40: -1 | G40: -1 | H40: -1 | O40: 10 | P40: RCP4-SA5R | Q40: RCP6-WSA10R | R40: RCP6-TA | T40: 500 | AS40: 9 | AT40: 0.001480150299 | AU40: 0.01074242461 | AV40: 0.00021013762
A41: 11 | B41: -1 | C41: -1 | D41: -1 | E41: -1 | F41: -1 | G41: -1 | H41: -1 | O41: 11 | P41: RCP4-SA6R | Q41: RCP6-WSA12R | R41: RCP6CR | T41: - - - | W41: ストロークデータレコード | AS41: 10 | AT41: 0.001644611444 | AU41: 0.01326225261 | AV41: 0.000287457652
A42: 12 | B42: -1 | C42: -1 | D42: -1 | E42: -1 | F42: -1 | G42: -1 | H42: -1 | O42: 12 | P42: RCP4-SA7R | Q42: RCP6-WSA14R | T42: - - - | W42: リスト№ | X42: =DataSerch!$E$58 -> ｽﾄﾛｰｸ長 | Y42: =DataSerch!$G$58 -> 有効ｽﾄﾛｰｸ補正 | Z42: =DataSerch!$H$58 -> 0 | AA42: =DataSerch!$I$58 -> 基準ｹﾞｲﾝ用搬送質量 | AB42: =DataSerch!$J$58 -> 水平可搬質量 | AC42: =DataSerch!$K$58 -> 垂直可搬質量 | AD42: =DataSerch!$L$58 -> 最大速度 | AE42: =DataSerch!$M$58 -> 位置ｹﾞｲﾝ | AF42: =DataSerch!$N$58 -> FFｹﾞｲﾝ | AG42: =DataSerch!$O$58 -> 速度制御帯域 | AH42: =DataSerch!$P$58 -> 0 | AI42: =DataSerch!$Q$58 -> 0 | AJ42: =DataSerch!$R$58 -> 0 | AK42: =DataSerch!$S$58 -> 0 | AL42: =DataSerch!$T$58 -> 0 | AS42: 11 | AT42: 0.001809072588 | AU42: 0.01604732566 | AV42: 0.0003816625023
A43: 13 | B43: -1 | C43: -1 | D43: -1 | E43: -1 | F43: -1 | G43: -1 | H43: -1 | O43: 13 | P43: RCP4-RA5R | Q43: RCP6-RA4C | T43: - - - | AS43: 12 | AT43: 0.001973533733 | AU43: 0.01909764376 | AV43: 0.000494380639
A44: 14 | B44: -1 | C44: -1 | D44: -1 | E44: -1 | F44: -1 | G44: -1 | H44: -1 | O44: 14 | P44: RCP4-RA6R | Q44: RCP6-RA6C | T44: - - - | W44: =MATCH(C10,DataSerch!$E$60:$E$109,0) -> 1 | X44: =DataSerch!$E$59 -> [mm] | Y44: =DataSerch!$G$59 -> [mm] | Z44: =DataSerch!$H$59 -> [kg/mm] | AA44: =DataSerch!$I$59 -> [kg] | AB44: =DataSerch!$J$59 -> [kg] | AC44: =DataSerch!$K$59 -> [kg] | AD44: =DataSerch!$L$59 -> [mm/s] | AE44: =DataSerch!$M$59 -> [1/s] | AF44: =DataSerch!$N$59 -> [%] | AG44: =DataSerch!$O$59 -> [rad/s] | AH44: =DataSerch!$P$59 -> 0 | AI44: =DataSerch!$Q$59 -> [s] | AJ44: =DataSerch!$R$59 -> 0 | AK44: =DataSerch!$S$59 -> 0 | AL44: =DataSerch!$T$59 -> [Nm/rad] | AS44: 13 | AT44: 0.002137994877 | AU44: 0.02241320691 | AV44: 0.0006272298522
A45: 15 | B45: -1 | C45: -1 | D45: -1 | E45: -1 | F45: -1 | G45: -1 | H45: -1 | O45: 15 | P45: ERC3D-SA5 | Q45: RCP6-RA7C | T45: - - - | X45: =LOOKUP(W44,DataSerch!$D$60:$D$109,DataSerch!$E$60:$E$109) -> 50 | Y45: =LOOKUP(W44,DataSerch!$D$60:$D$109,DataSerch!$G$60:$G$109) -> 0 | Z45: =LOOKUP(W44,DataSerch!$D$60:$D$109,DataSerch!$H$60:$H$109) -> 0 | AA45: =LOOKUP(W44,DataSerch!$D$60:$D$109,DataSerch!$I$60:$I$109) -> 18 | AB45: =LOOKUP(W44,DataSerch!$D$60:$D$109,DataSerch!$J$60:$J$109) -> 18 | AC45: =LOOKUP(W44,DataSerch!$D$60:$D$109,DataSerch!$K$60:$K$109) -> 12 | AD45: =LOOKUP(W44,DataSerch!$D$60:$D$109,DataSerch!$L$60:$L$109) -> 195 | AE45: =LOOKUP(W44,DataSerch!$D$60:$D$109,DataSerch!$M$60:$M$109) -> 40 | AF45: =LOOKUP(W44,DataSerch!$D$60:$D$109,DataSerch!$N$60:$N$109) -> 0 | AG45: =LOOKUP(W44,DataSerch!$D$60:$D$109,DataSerch!$O$60:$O$109) -> 391 | AH45: =LOOKUP(W44,DataSerch!$D$60:$D$109,DataSerch!$P$60:$P$109) -> 0 | AI45: =LOOKUP(W44,DataSerch!$D$60:$D$109,DataSerch!$Q$60:$Q$109) -> 0 | AJ45: =LOOKUP(W44,DataSerch!$D$60:$D$109,DataSerch!$R$60:$R$109) -> 0 | AK45: =LOOKUP(W44,DataSerch!$D$60:$D$109,DataSerch!$S$60:$S$109) -> 0 | AL45: =LOOKUP(W44,DataSerch!$D$60:$D$109,DataSerch!$T$60:$T$109) -> 0 | AS45: 14 | AT45: 0.002302456021 | AU45: 0.02599401511 | AV45: 0.0007818173245
A46: 16 | B46: -1 | C46: -1 | D46: -1 | E46: -1 | F46: -1 | G46: -1 | H46: -1 | O46: 16 | P46: ERC3D-SA7 | Q46: RCP6-RA4R | T46: - - - | AS46: 15 | AT46: 0.002466917166 | AU46: 0.02984006837 | AV46: 0.0009597397006
A47: 17 | B47: -1 | C47: -1 | D47: -1 | E47: -1 | F47: -1 | G47: -1 | H47: -1 | O47: 17 | P47: ERC3CR-SA5 | Q47: RCP6-RA6R | T47: - - - | AS47: 16 | AT47: 0.00263137831 | AU47: 0.03395136668 | AV47: 0.001162583156
A48: 18 | B48: -1 | C48: -1 | D48: -1 | E48: -1 | F48: -1 | G48: -1 | H48: -1 | O48: 18 | P48: ERC3CR-SA7 | Q48: RCP6-RA7R | T48: - - - | AS48: 17 | AT48: 0.002795839455 | AU48: 0.03832791004 | AV48: 0.001391923466
A49: 19 | B49: -1 | C49: -1 | D49: -1 | E49: -1 | F49: -1 | G49: -1 | H49: -1 | O49: 19 | P49: RCP5-SA4C | Q49: RCP6-RRA4C | T49: - - - | AS49: 18 | AT49: 0.002960300599 | AU49: 0.04296969845 | AV49: 0.001649326073
A50: 20 | B50: -1 | C50: -1 | D50: -1 | E50: -1 | F50: -1 | G50: -1 | H50: -1 | O50: 20 | P50: RCP5-SA6C | Q50: RCP6-RRA6C | T50: - - - | U50: リンクリスト総数 | AS50: 19 | AT50: 0.003124761743 | AU50: 0.04787673192 | AV50: 0.001936346155
A51: 21 | B51: -1 | C51: -1 | D51: -1 | E51: -1 | F51: -1 | G51: -1 | H51: -1 | O51: 21 | P51: RCP5-SA7C | Q51: RCP6-RRA7C | T51: - - - | U51: 1 | AS51: 20 | AT51: 0.003289222888 | AU51: 0.05304901044 | AV51: 0.002254528696
A52: 22 | B52: -1 | C52: -1 | D52: -1 | E52: -1 | F52: -1 | G52: -1 | H52: -1 | O52: 22 | P52: RCP5-RA4C | Q52: RCP6-RRA4R | T52: - - - | AS52: 21 | AT52: 0.003453684032 | AU52: 0.05848653401 | AV52: 0.002605408544
A53: 23 | B53: -1 | C53: -1 | D53: -1 | E53: -1 | F53: -1 | G53: -1 | H53: -1 | O53: 23 | P53: RCP5-RA6C | Q53: RCP6-RRA6R | T53: - - - | AS53: 22 | AT53: 0.003618145176 | AU53: 0.06418930263 | AV53: 0.002990510489
A54: 24 | B54: -1 | C54: -1 | D54: -1 | E54: -1 | F54: -1 | G54: -1 | H54: -1 | O54: 24 | P54: RCP5-RA7C | Q54: RCP6-RRA7R | T54: - - - | AS54: 23 | AT54: 0.003782606321 | AU54: 0.0701573163 | AV54: 0.003411349319
A55: 25 | B55: -1 | C55: -1 | D55: -1 | E55: -1 | F55: -1 | G55: -1 | H55: -1 | O55: 25 | P55: RCP4W-SA5C(両端支持) | Q55: RCP6-WRA10C | T55: - - - | AS55: 24 | AT55: 0.003947067465 | AU55: 0.07639057503 | AV55: 0.003869429892
A56: 26 | B56: -1 | C56: -1 | D56: -1 | E56: -1 | F56: -1 | G56: -1 | H56: -1 | O56: 26 | P56: RCP4W-SA6C(両端支持) | Q56: RCP6-WRA12C | T56: - - - | AS56: 25 | AT56: 0.00411152861 | AU56: 0.08288907881 | AV56: 0.004366247197
A57: 27 | B57: -1 | C57: -1 | D57: -1 | E57: -1 | F57: -1 | G57: -1 | H57: -1 | O57: 27 | P57: RCP4W-SA7C(両端支持) | Q57: RCP6-WRA14C | T57: - - - | AS57: 26 | AT57: 0.004275989754 | AU57: 0.08965282764 | AV57: 0.004903286423
A58: 28 | B58: -1 | C58: -1 | D58: -1 | E58: -1 | F58: -1 | G58: -1 | H58: -1 | O58: 28 | P58: RCP4W-SA5C(片持ち支持) | Q58: RCP6-WRA10R | T58: - - - | AS58: 27 | AT58: 0.004440450898 | AU58: 0.09668182152 | AV58: 0.005482023018
A59: 29 | B59: -1 | C59: -1 | D59: -1 | E59: -1 | F59: -1 | G59: -1 | H59: -1 | O59: 29 | P59: RCP4W-SA6C(片持ち支持) | Q59: RCP6-WRA12R | T59: - - - | AS59: 28 | AT59: 0.004604912043 | AU59: 0.1039760605 | AV59: 0.006103922758
A60: 30 | B60: -1 | C60: -1 | D60: -1 | E60: -1 | F60: -1 | G60: -1 | H60: -1 | O60: 30 | P60: RCP4W-SA7C(片持ち支持) | Q60: RCP6-WRA14R | T60: - - - | AS60: 29 | AT60: 0.004769373187 | AU60: 0.1115355444 | AV60: 0.006770441807
A61: 31 | B61: -1 | C61: -1 | D61: -1 | E61: -1 | F61: -1 | G61: -1 | H61: -1 | O61: 31 | P61: RCP4W-RA6C | Q61: RCP6-TA4C(SB) | T61: - - - | AS61: 30 | AT61: 0.004933834331 | AU61: 0.1193602735 | AV61: 0.007483026781
A62: 32 | B62: -1 | C62: -1 | D62: -1 | E62: -1 | F62: -1 | G62: -1 | H62: -1 | O62: 32 | P62: RCP4W-RA6C(高推力) | Q62: RCP6-TA6C(SB) | T62: - - - | AS62: 31 | AT62: 0.005098295476 | AU62: 0.1274502476 | AV62: 0.00824311481
A63: 33 | B63: -1 | C63: -1 | D63: -1 | E63: -1 | F63: -1 | G63: -1 | H63: -1 | O63: 33 | P63: RCP4W-RA7C | Q63: RCP6-TA7C(SB) | T63: - - - | AS63: 32 | AT63: 0.00526275662 | AU63: 0.1358054667 | AV63: 0.009052133604
A64: 34 | B64: -1 | C64: -1 | D64: -1 | E64: -1 | F64: -1 | G64: -1 | H64: -1 | O64: 34 | P64: RCP4-SA3C | Q64: RCP6-TA4R(SB) | T64: - - - | AS64: 33 | AT64: 0.005427217765 | AU64: 0.1444259309 | AV64: 0.009911501509
A65: 35 | B65: -1 | C65: -1 | D65: -1 | E65: -1 | F65: -1 | G65: -1 | H65: -1 | O65: 35 | P65: RCP4-RA3C | Q65: RCP6-TA6R(SB) | T65: - - - | AS65: 34 | AT65: 0.005591678909 | AU65: 0.1533116402 | AV65: 0.01082262757
A66: 36 | B66: -1 | C66: -1 | D66: -1 | E66: -1 | F66: -1 | G66: -1 | H66: -1 | O66: 36 | P66: RCP4-SA3R | Q66: RCP6-TA7R(SB) | T66: - - - | AS66: 35 | AT66: 0.005756140053 | AU66: 0.1624625945 | AV66: 0.0117869116
A67: 37 | B67: -1 | C67: -1 | D67: -1 | E67: -1 | F67: -1 | G67: -1 | H67: -1 | O67: 37 | P67: RCP4-RA3R | Q67: RCP6-TA4C(DB) | T67: - - - | AS67: 36 | AT67: 0.005920601198 | AU67: 0.1718787938 | AV67: 0.01280574422
A68: 38 | B68: -1 | C68: -1 | D68: -1 | E68: -1 | F68: -1 | G68: -1 | H68: -1 | O68: 38 | P68: RCP4-RA5C(高推力) | Q68: RCP6-TA6C(DB) | T68: - - - | AS68: 37 | AT68: 0.006085062342 | AU68: 0.1815602382 | AV68: 0.01388050694
A69: 39 | B69: -1 | C69: -1 | D69: -1 | E69: -1 | F69: -1 | G69: -1 | H69: -1 | O69: 39 | P69: RCP4CR-SA3C | Q69: RCP6-TA7C(DB) | T69: - - - | AS69: 38 | AT69: 0.006249523487 | AU69: 0.1915069277 | AV69: 0.01501257223
A70: 40 | B70: -1 | C70: -1 | D70: -1 | E70: -1 | F70: -1 | G70: -1 | H70: -1 | O70: 40 | P70: RCP4CR-SA5C | Q70: RCP6-TA4R(DB) | T70: - - - | AS70: 39 | AT70: 0.006413984631 | AU70: 0.2017188622 | AV70: 0.01620330352
A71: 41 | B71: -1 | C71: -1 | D71: -1 | E71: -1 | F71: -1 | G71: -1 | H71: -1 | O71: 41 | P71: RCP4CR-SA6C | Q71: RCP6-TA6R(DB) | T71: - - - | AS71: 40 | AT71: 0.006578445775 | AU71: 0.2121960417 | AV71: 0.01745405534
A72: 42 | B72: -1 | C72: -1 | D72: -1 | E72: -1 | F72: -1 | G72: -1 | H72: -1 | O72: 42 | P72: RCP4CR-SA7C | Q72: RCP6-TA7R(DB) | T72: - - - | AS72: 41 | AT72: 0.00674290692 | AU72: 0.2229384664 | AV72: 0.01876617332
A73: 43 | B73: -1 | C73: -1 | D73: -1 | E73: -1 | F73: -1 | G73: -1 | H73: -1 | O73: 43 | P73: RCP5CR-SA4C | Q73: RCP6CR-SA4C | T73: - - - | AS73: 42 | AT73: 0.006907368064 | AU73: 0.233946136 | AV73: 0.02014099426
A74: 44 | B74: -1 | C74: -1 | D74: -1 | E74: -1 | F74: -1 | G74: -1 | H74: -1 | O74: 44 | P74: RCP5CR-SA6C | Q74: RCP6CR-SA6C | T74: - - - | AS74: 43 | AT74: 0.007071829208 | AU74: 0.2452190507 | AV74: 0.02157984622
A75: 45 | B75: -1 | C75: -1 | D75: -1 | E75: -1 | F75: -1 | G75: -1 | H75: -1 | O75: 45 | P75: RCP5CR-SA7C | Q75: RCP6CR-SA7C | T75: - - - | AS75: 44 | AT75: 0.007236290353 | AU75: 0.2567572105 | AV75: 0.02308404852
A76: 46 | B76: -1 | C76: -1 | D76: -1 | E76: -1 | F76: -1 | G76: -1 | H76: -1 | O76: 46 | P76: RCP5-BA4 | Q76: RCP6CR-WSA10C | T76: - - - | AS76: 45 | AT76: 0.007400751497 | AU76: 0.2685606153 | AV76: 0.02465491186
A77: 47 | B77: -1 | C77: -1 | D77: -1 | E77: -1 | F77: -1 | G77: -1 | H77: -1 | O77: 47 | P77: RCP5-BA6 | Q77: RCP6CR-WSA12C | T77: - - - | AS77: 46 | AT77: 0.007565212642 | AU77: 0.2806292652 | AV77: 0.02629373832
A78: 48 | B78: -1 | C78: -1 | D78: -1 | E78: -1 | F78: -1 | G78: -1 | H78: -1 | O78: 48 | P78: RCP5-BA7 | Q78: RCP6CR-WSA14C | T78: - - - | AS78: 47 | AT78: 0.007729673786 | AU78: 0.2929631601 | AV78: 0.02800182145
A79: 49 | B79: -1 | C79: -1 | D79: -1 | E79: -1 | F79: -1 | G79: -1 | H79: -1 | O79: 49 | P79: RCP5-SA4R | Q79: RCP6-HSA6C | T79: - - - | AS79: 48 | AT79: 0.00789413493 | AU79: 0.3055623001 | AV79: 0.02978044634
A80: 50 | B80: -1 | C80: -1 | D80: -1 | E80: -1 | F80: -1 | G80: -1 | H80: -1 | O80: 50 | P80: RCP5-SA6R | Q80: RCP6-HSA7C | T80: - - - | AS80: 49 | AT80: 0.008058596075 | AU80: 0.3184266851 | AV80: 0.03163088962
A81: 51 | B81: -1 | C81: -1 | D81: -1 | E81: -1 | F81: -1 | G81: -1 | H81: -1 | O81: 51 | P81: RCP5-SA7R | Q81: RCP6-HSA6C-W | AS81: 50 | AT81: 0.008223057219 | AU81: 0.3315563152 | AV81: 0.03355441957
A82: 52 | B82: -1 | C82: -1 | D82: -1 | E82: -1 | F82: -1 | G82: -1 | H82: -1 | O82: 52 | P82: RCP5-RA4R | Q82: RCP6-HSA7C-W | AS82: 51 | AT82: 0.008387518364 | AU82: 0.3449511904 | AV82: 0.03555229615
A83: 53 | B83: -1 | C83: -1 | D83: -1 | E83: -1 | F83: -1 | G83: -1 | H83: -1 | O83: 53 | P83: RCP5-RA6R | Q83: - - - | AS83: 52 | AT83: 0.008551979508 | AU83: 0.3586113105 | AV83: 0.03762577105
A84: 54 | B84: -1 | C84: -1 | D84: -1 | E84: -1 | F84: -1 | G84: -1 | H84: -1 | O84: 54 | P84: RCP5-RA7R | Q84: - - - | AS84: 53 | AT84: 0.008716440652 | AU84: 0.3725366758 | AV84: 0.03977608778
A85: 55 | B85: -1 | C85: -1 | D85: -1 | E85: -1 | F85: -1 | G85: -1 | H85: -1 | O85: 55 | P85: RCP5W-RA6C | Q85: - - - | AS85: 54 | AT85: 0.008880901797 | AU85: 0.3867272861 | AV85: 0.04200448166
A86: 56 | B86: -1 | C86: -1 | D86: -1 | E86: -1 | F86: -1 | G86: -1 | H86: -1 | O86: 56 | P86: RCP5W-RA6C(高推力) | Q86: - - - | AS86: 55 | AT86: 0.009045362941 | AU86: 0.4011831414 | AV86: 0.04431217993
A87: 57 | B87: -1 | C87: -1 | D87: -1 | E87: -1 | F87: -1 | G87: -1 | H87: -1 | O87: 57 | P87: RCP5W-RA7C | Q87: - - - | AS87: 56 | AT87: 0.009209824085 | AU87: 0.4159042418 | AV87: 0.04670040179
A88: 58 | B88: -1 | C88: -1 | D88: -1 | E88: -1 | F88: -1 | G88: -1 | H88: -1 | O88: 58 | P88: RCP6-SA4C | Q88: - - - | AS88: 57 | AT88: 0.00937428523 | AU88: 0.4308905873 | AV88: 0.04917035842
A89: 59 | B89: -1 | C89: -1 | D89: -1 | E89: -1 | F89: -1 | G89: -1 | H89: -1 | O89: 59 | P89: RCP6-SA6C | Q89: - - - | AS89: 58 | AT89: 0.009538746374 | AU89: 0.4461421778 | AV89: 0.05172325309
A90: 60 | B90: -1 | C90: -1 | D90: -1 | E90: -1 | F90: -1 | G90: -1 | H90: -1 | O90: 60 | P90: RCP6-SA7C | Q90: - - - | AS90: 59 | AT90: 0.009703207519 | AU90: 0.4616590133 | AV90: 0.05436028116
A91: 61 | B91: -1 | C91: -1 | D91: -1 | E91: -1 | F91: -1 | G91: -1 | H91: -1 | O91: 61 | P91: RCP6-SA4R | Q91: - - - | AS91: 60 | AT91: 0.009867668663 | AU91: 0.4774410939 | AV91: 0.05708263015
A92: 62 | B92: -1 | C92: -1 | D92: -1 | E92: -1 | F92: -1 | G92: -1 | H92: -1 | O92: 62 | P92: RCP6-SA6R | Q92: - - - | AS92: 61 | AT92: 0.01003212981 | AU92: 0.4934884196 | AV92: 0.05989147981
A93: 63 | B93: -1 | C93: -1 | D93: -1 | E93: -1 | F93: -1 | G93: -1 | H93: -1 | O93: 63 | P93: RCP6-SA7R | Q93: - - - | AS93: 62 | AT93: 0.01019659095 | AU93: 0.5098009903 | AV93: 0.06278800214
A94: 64 | B94: -1 | C94: -1 | D94: -1 | E94: -1 | F94: -1 | G94: -1 | H94: -1 | O94: 64 | P94: RCP6-WSA10C | Q94: - - - | AS94: 63 | AT94: 0.0103610521 | AU94: 0.526378806 | AV94: 0.06577336146
A95: =A94+1 -> 65 | B95: -1 | C95: -1 | D95: -1 | E95: -1 | F95: -1 | G95: -1 | H95: -1 | O95: 65 | P95: RCP6-WSA12C | Q95: - - - | AS95: 64 | AT95: =$AP$18/$N$7*AS95 -> 0.01052551324 | AU95: 0.5432218669 | AV95: 0.06884871446
A96: 66 | B96: -1 | C96: -1 | D96: -1 | E96: -1 | F96: -1 | G96: -1 | H96: -1 | O96: 66 | P96: RCP6-WSA14C | Q96: - - - | AS96: 65 | AT96: 0.01068997438 | AU96: =IF(($N$4*AT96^2/2)<=$AP$13,($N$4*AT96^2/2), IF(($AP$13+$N$6*(AT96-$AP$12))<=$AP$17, ($AP$13+$N$6*(AT96-$AP$12)), IF(AU95<$D$14, ($AP$17+($N$6-$N$5*(AT96-$AP$16)/2)*(AT96-$AP$16)), $D$14))) -> 0.5603301727 | AV96: 0.07201521024
A97: 67 | B97: -1 | C97: -1 | D97: -1 | E97: -1 | F97: -1 | G97: -1 | H97: -1 | O97: =O96+1 -> 67 | P97: RCP6-WSA10R | Q97: - - - | AS97: =AS96+1 -> 66 | AT97: 0.01085443553 | AU97: 0.5777037236 | AV97: =( $AP$6*AU97 + $AP$7*AU96 + $AP$9*AV96 )/$AP$8 -> 0.07527399037
A98: 68 | B98: -1 | C98: -1 | D98: -1 | E98: -1 | F98: -1 | G98: -1 | H98: -1 | O98: 68 | P98: RCP6-WSA12R | Q98: - - - | AS98: 67 | AT98: 0.01101889667 | AU98: 0.5953425196 | AV98: 0.07862618893
A99: 69 | B99: -1 | C99: -1 | D99: -1 | E99: -1 | F99: -1 | G99: -1 | H99: -1 | O99: 69 | P99: RCP6-WSA14R | Q99: - - - | AS99: 68 | AT99: 0.01118335782 | AU99: 0.6132465606 | AV99: 0.08207293257
A100: 70 | B100: -1 | C100: -1 | D100: -1 | E100: -1 | F100: -1 | G100: -1 | H100: -1 | O100: 70 | P100: RCP6-RA4C | Q100: - - - | AS100: 69 | AT100: 0.01134781896 | AU100: 0.6314158467 | AV100: 0.08561534054
A101: 71 | B101: -1 | C101: -1 | D101: -1 | E101: -1 | F101: -1 | G101: -1 | H101: -1 | O101: 71 | P101: RCP6-RA6C | Q101: - - - | AS101: 70 | AT101: 0.01151228011 | AU101: 0.6498503778 | AV101: 0.08925452476
A102: 72 | B102: -1 | C102: -1 | D102: -1 | E102: -1 | F102: -1 | G102: -1 | H102: -1 | O102: 72 | P102: RCP6-RA7C | Q102: - - - | AS102: 71 | AT102: 0.01167674125 | AU102: 0.668550154 | AV102: 0.09299158988
A103: 73 | B103: -1 | C103: -1 | D103: -1 | E103: -1 | F103: -1 | G103: -1 | H103: -1 | O103: 73 | P103: RCP6-RA4R | Q103: - - - | AS103: 72 | AT103: 0.0118412024 | AU103: 0.6875151752 | AV103: 0.09682763326
A104: 74 | B104: -1 | C104: -1 | D104: -1 | E104: -1 | F104: -1 | G104: -1 | H104: -1 | O104: 74 | P104: RCP6-RA6R | Q104: - - - | AS104: 73 | AT104: 0.01200566354 | AU104: 0.7067454415 | AV104: 0.1007637451
A105: 75 | B105: -1 | C105: -1 | D105: -1 | E105: -1 | F105: -1 | G105: -1 | H105: -1 | O105: 75 | P105: RCP6-RA7R | Q105: - - - | AS105: 74 | AT105: 0.01217012468 | AU105: 0.7262409529 | AV105: 0.1048010085
A106: 76 | B106: -1 | C106: -1 | D106: -1 | E106: -1 | F106: -1 | G106: -1 | H106: -1 | O106: 76 | P106: RCP6-RRA4C | Q106: - - - | AS106: 75 | AT106: 0.01233458583 | AU106: 0.7460017092 | AV106: 0.1089404993
A107: 77 | B107: -1 | C107: -1 | D107: -1 | E107: -1 | F107: -1 | G107: -1 | H107: -1 | O107: 77 | P107: RCP6-RRA6C | Q107: - - - | AS107: 76 | AT107: 0.01249904697 | AU107: 0.7660277107 | AV107: 0.1131832864
A108: 78 | B108: -1 | C108: -1 | D108: -1 | E108: -1 | F108: -1 | G108: -1 | H108: -1 | O108: 78 | P108: RCP6-RRA7C | Q108: - - - | AS108: 77 | AT108: 0.01266350812 | AU108: 0.7863189572 | AV108: 0.1175304317
A109: 79 | B109: -1 | C109: -1 | D109: -1 | E109: -1 | F109: -1 | G109: -1 | H109: -1 | O109: 79 | P109: RCP6-RRA4R | Q109: - - - | AS109: 78 | AT109: 0.01282796926 | AU109: 0.8068754487 | AV109: 0.1219829902
A110: 80 | B110: -1 | C110: -1 | D110: -1 | E110: -1 | F110: -1 | G110: -1 | H110: -1 | O110: 80 | P110: RCP6-RRA6R | Q110: - - - | AS110: 79 | AT110: 0.01299243041 | AU110: 0.8276971853 | AV110: 0.1265420098
A111: 81 | B111: -1 | C111: -1 | D111: -1 | E111: -1 | F111: -1 | G111: -1 | H111: -1 | O111: 81 | P111: RCP6-RRA7R | Q111: - - - | AS111: 80 | AT111: 0.01315689155 | AU111: 0.848784167 | AV111: 0.1312085317
A112: 82 | B112: -1 | C112: -1 | D112: -1 | E112: -1 | F112: -1 | G112: -1 | H112: -1 | O112: 82 | P112: RCP6-WRA10C | Q112: - - - | AS112: 81 | AT112: 0.0133213527 | AU112: 0.8701363937 | AV112: 0.1359835901
A113: 83 | B113: -1 | C113: -1 | D113: -1 | E113: -1 | F113: -1 | G113: -1 | H113: -1 | O113: 83 | P113: RCP6-WRA12C | Q113: - - - | AS113: 82 | AT113: 0.01348581384 | AU113: 0.8917538654 | AV113: 0.1408682126
A114: 84 | B114: -1 | C114: -1 | D114: -1 | E114: -1 | F114: -1 | G114: -1 | H114: -1 | O114: 84 | P114: RCP6-WRA14C | Q114: - - - | AS114: 83 | AT114: 0.01365027498 | AU114: 0.9136365822 | AV114: 0.1458634199
A115: 85 | B115: -1 | C115: -1 | D115: -1 | E115: -1 | F115: -1 | G115: -1 | H115: -1 | O115: 85 | P115: RCP6-WRA10R | Q115: - - - | AS115: 84 | AT115: 0.01381473613 | AU115: 0.9357845441 | AV115: 0.1509702262
A116: 86 | B116: -1 | C116: -1 | D116: -1 | E116: -1 | F116: -1 | G116: -1 | H116: -1 | O116: 86 | P116: RCP6-WRA12R | Q116: - - - | AS116: 85 | AT116: 0.01397919727 | AU116: 0.958197751 | AV116: 0.1561896388
A117: 87 | B117: -1 | C117: -1 | D117: -1 | E117: -1 | F117: -1 | G117: -1 | H117: -1 | O117: 87 | P117: RCP6-WRA14R | Q117: - - - | AS117: 86 | AT117: 0.01414365842 | AU117: 0.980876203 | AV117: 0.1615226587
A118: 88 | B118: -1 | C118: -1 | D118: -1 | E118: -1 | F118: -1 | G118: -1 | H118: -1 | O118: 88 | P118: RCP6-TA4C(SB) | Q118: - - - | AS118: 87 | AT118: 0.01430811956 | AU118: 1.0038199 | AV118: 0.1669702801
A119: 89 | B119: -1 | C119: -1 | D119: -1 | E119: -1 | F119: -1 | G119: -1 | H119: -1 | O119: 89 | P119: RCP6-TA6C(SB) | Q119: - - - | AS119: 88 | AT119: 0.01447258071 | AU119: 1.027028842 | AV119: 0.1725334906
A120: 90 | B120: -1 | C120: -1 | D120: -1 | E120: -1 | F120: -1 | G120: -1 | H120: -1 | O120: 90 | P120: RCP6-TA7C(SB) | Q120: - - - | AS120: 89 | AT120: 0.01463704185 | AU120: 1.050503029 | AV120: 0.1782132717
A121: 91 | B121: -1 | C121: -1 | D121: -1 | E121: -1 | F121: -1 | G121: -1 | H121: -1 | O121: 91 | P121: RCP6-TA4R(SB) | Q121: - - - | AS121: 90 | AT121: 0.01480150299 | AU121: 1.074242461 | AV121: 0.1840105982
A122: 92 | B122: -1 | C122: -1 | D122: -1 | E122: -1 | F122: -1 | G122: -1 | H122: -1 | O122: 92 | P122: RCP6-TA6R(SB) | Q122: - - - | AS122: 91 | AT122: 0.01496596414 | AU122: 1.098247139 | AV122: 0.1899264385
A123: 93 | B123: -1 | C123: -1 | D123: -1 | E123: -1 | F123: -1 | G123: -1 | H123: -1 | O123: 93 | P123: RCP6-TA7R(SB) | Q123: - - - | AS123: 92 | AT123: 0.01513042528 | AU123: 1.122517061 | AV123: 0.1959617546
A124: 94 | B124: -1 | C124: -1 | D124: -1 | E124: -1 | F124: -1 | G124: -1 | H124: -1 | O124: 94 | P124: RCP6-TA4C(DB) | Q124: - - - | AS124: 93 | AT124: 0.01529488643 | AU124: 1.147052228 | AV124: 0.2021175025
A125: 95 | B125: -1 | C125: -1 | D125: -1 | E125: -1 | F125: -1 | G125: -1 | H125: -1 | O125: 95 | P125: RCP6-TA6C(DB) | Q125: - - - | AS125: 94 | AT125: 0.01545934757 | AU125: 1.171852641 | AV125: 0.2083946315
A126: 96 | B126: -1 | C126: -1 | D126: -1 | E126: -1 | F126: -1 | G126: -1 | H126: -1 | O126: 96 | P126: RCP6-TA7C(DB) | Q126: - - - | AS126: 95 | AT126: 0.01562380872 | AU126: 1.196918298 | AV126: 0.2147940851
A127: 97 | B127: -1 | C127: -1 | D127: -1 | E127: -1 | F127: -1 | G127: -1 | H127: -1 | O127: 97 | P127: RCP6-TA4R(DB) | Q127: - - - | AS127: 96 | AT127: 0.01578826986 | AU127: 1.2222492 | AV127: 0.2213168003
A128: 98 | B128: -1 | C128: -1 | D128: -1 | E128: -1 | F128: -1 | G128: -1 | H128: -1 | O128: 98 | P128: RCP6-TA6R(DB) | Q128: - - - | AS128: 97 | AT128: 0.01595273101 | AU128: 1.247845348 | AV128: 0.2279637081
A129: 99 | B129: -1 | C129: -1 | D129: -1 | E129: -1 | F129: -1 | G129: -1 | H129: -1 | O129: 99 | P129: RCP6-TA7R(DB) | Q129: - - - | AS129: 98 | AT129: 0.01611719215 | AU129: 1.273706741 | AV129: 0.2347357333
A130: 100 | B130: -1 | C130: -1 | D130: -1 | E130: -1 | F130: -1 | G130: -1 | H130: -1 | O130: 100 | P130: RCP6CR-SA4C | Q130: - - - | AS130: 99 | AT130: 0.01628165329 | AU130: 1.299833378 | AV130: 0.2416337948
A131: 101 | B131: -1 | C131: -1 | D131: -1 | E131: -1 | F131: -1 | G131: -1 | H131: -1 | O131: 101 | P131: RCP6CR-SA6C | Q131: - - - | AS131: 100 | AT131: 0.01644611444 | AU131: 1.326225261 | AV131: 0.2486588054
A132: 102 | B132: -1 | C132: -1 | D132: -1 | E132: -1 | F132: -1 | G132: -1 | H132: -1 | O132: 102 | P132: RCP6CR-SA7C | Q132: - - - | AS132: =AS131+1 -> 101 | AT132: 0.01661057558 | AU132: 1.352882389 | AV132: 0.2558116717
A133: 103 | B133: -1 | C133: -1 | D133: -1 | E133: -1 | F133: -1 | G133: -1 | H133: -1 | O133: 103 | P133: RCP6CR-WSA10C | Q133: - - - | AS133: 102 | AT133: 0.01677503673 | AU133: 1.379804761 | AV133: 0.2630932948
A134: 104 | B134: -1 | C134: -1 | D134: -1 | E134: -1 | F134: -1 | G134: -1 | H134: -1 | O134: 104 | P134: RCP6CR-WSA12C | Q134: - - - | AS134: 103 | AT134: 0.01693949787 | AU134: 1.406992379 | AV134: 0.2705045694
A135: 105 | B135: -1 | C135: -1 | D135: -1 | E135: -1 | F135: -1 | G135: -1 | H135: -1 | O135: 105 | P135: RCP6CR-WSA14C | Q135: - - - | AS135: 104 | AT135: 0.01710395902 | AU135: 1.434445242 | AV135: 0.2780463847
A136: 106 | B136: -1 | C136: -1 | D136: -1 | E136: -1 | F136: -1 | G136: -1 | H136: -1 | O136: 106 | P136: RCP6-HSA6C | Q136: - - - | AS136: 105 | AT136: 0.01726842016 | AU136: 1.46216335 | AV136: 0.2857196239
A137: 107 | B137: -1 | C137: -1 | D137: -1 | E137: -1 | F137: -1 | G137: -1 | H137: -1 | O137: 107 | P137: RCP6-HSA7C | Q137: - - - | AS137: 106 | AT137: 0.0174328813 | AU137: 1.490146703 | AV137: 0.2935251645
A138: 108 | B138: -1 | C138: -1 | D138: -1 | E138: -1 | F138: -1 | G138: -1 | H138: -1 | O138: 108 | P138: RCP6-HSA6C-W | Q138: - - - | AS138: 107 | AT138: 0.01759734245 | AU138: 1.518395301 | AV138: 0.3014638781
A139: 109 | B139: -1 | C139: -1 | D139: -1 | E139: -1 | F139: -1 | G139: -1 | H139: -1 | O139: 109 | P139: RCP6-HSA7C-W | Q139: - - - | AS139: 108 | AT139: 0.01776180359 | AU139: 1.546909144 | AV139: 0.3095366308
A140: 110 | B140: -1 | C140: -1 | D140: -1 | E140: -1 | F140: -1 | G140: -1 | H140: -1 | AS140: 109 | AT140: 0.01792626474 | AU140: 1.575688232 | AV140: 0.3177442828
A141: 111 | B141: -1 | C141: -1 | D141: -1 | E141: -1 | F141: -1 | G141: -1 | H141: -1 | AS141: 110 | AT141: 0.01809072588 | AU141: 1.604732566 | AV141: 0.3260876889
A142: 112 | B142: -1 | C142: -1 | D142: -1 | E142: -1 | F142: -1 | G142: -1 | H142: -1 | AS142: 111 | AT142: 0.01825518703 | AU142: 1.634042144 | AV142: 0.334567698
A143: 113 | B143: -1 | C143: -1 | D143: -1 | E143: -1 | F143: -1 | G143: -1 | H143: -1 | AS143: 112 | AT143: 0.01841964817 | AU143: 1.663616967 | AV143: 0.3431851536
A144: 114 | B144: -1 | C144: -1 | D144: -1 | E144: -1 | F144: -1 | G144: -1 | H144: -1 | AS144: 113 | AT144: 0.01858410932 | AU144: 1.693457036 | AV144: 0.3519408937
A145: 115 | B145: -1 | C145: -1 | D145: -1 | E145: -1 | F145: -1 | G145: -1 | H145: -1 | AS145: 114 | AT145: 0.01874857046 | AU145: 1.723562349 | AV145: 0.3608357508
A146: 116 | B146: -1 | C146: -1 | D146: -1 | E146: -1 | F146: -1 | G146: -1 | H146: -1 | AS146: 115 | AT146: 0.0189130316 | AU146: 1.753932908 | AV146: 0.3698705519
A147: 117 | B147: -1 | C147: -1 | D147: -1 | E147: -1 | F147: -1 | G147: -1 | H147: -1 | AS147: 116 | AT147: 0.01907749275 | AU147: 1.784568711 | AV147: 0.3790461186
A148: 118 | B148: -1 | C148: -1 | D148: -1 | E148: -1 | F148: -1 | G148: -1 | H148: -1 | AS148: 117 | AT148: 0.01924195389 | AU148: 1.81546976 | AV148: 0.388363267
A149: 119 | B149: -1 | C149: -1 | D149: -1 | E149: -1 | F149: -1 | G149: -1 | H149: -1 | AS149: 118 | AT149: 0.01940641504 | AU149: 1.846636053 | AV149: 0.397822808
A150: 120 | B150: -1 | C150: -1 | D150: -1 | E150: -1 | F150: -1 | G150: -1 | H150: -1 | AS150: 119 | AT150: 0.01957087618 | AU150: 1.878067592 | AV150: 0.4074255472
A151: 121 | B151: -1 | C151: -1 | D151: -1 | E151: -1 | F151: -1 | G151: -1 | H151: -1 | AS151: 120 | AT151: 0.01973533733 | AU151: 1.909764376 | AV151: 0.4171722847
A152: 122 | B152: -1 | C152: -1 | D152: -1 | E152: -1 | F152: -1 | G152: -1 | H152: -1 | AS152: 121 | AT152: 0.01989979847 | AU152: 1.941725252 | AV152: 0.4270638119
A153: 123 | B153: -1 | C153: -1 | D153: -1 | E153: -1 | F153: -1 | G153: -1 | H153: -1 | AS153: 122 | AT153: 0.02006425961 | AU153: 1.973795175 | AV153: 0.4371004026
A154: 124 | B154: -1 | C154: -1 | D154: -1 | E154: -1 | F154: -1 | G154: -1 | H154: -1 | AS154: 123 | AT154: 0.02022872076 | AU154: 2.005865098 | AV154: 0.4472814632
A155: 125 | B155: -1 | C155: -1 | D155: -1 | E155: -1 | F155: -1 | G155: -1 | H155: -1 | AS155: 124 | AT155: 0.0203931819 | AU155: 2.037935021 | AV155: 0.4576060464
A156: 126 | B156: -1 | C156: -1 | D156: -1 | E156: -1 | F156: -1 | G156: -1 | H156: -1 | AS156: 125 | AT156: 0.02055764305 | AU156: 2.070004944 | AV156: 0.4680732111
A157: 127 | B157: -1 | C157: -1 | D157: -1 | E157: -1 | F157: -1 | G157: -1 | H157: -1 | AS157: 126 | AT157: 0.02072210419 | AU157: 2.102074868 | AV157: 0.4786820225
A158: 128 | B158: -1 | C158: -1 | D158: -1 | E158: -1 | F158: -1 | G158: -1 | H158: -1 | AS158: 127 | AT158: 0.02088656534 | AU158: 2.134144791 | AV158: 0.4894315519
A159: =A158+1 -> 129 | B159: -1 | C159: -1 | D159: -1 | E159: -1 | F159: -1 | G159: -1 | H159: -1 | AS159: 128 | AT159: =$AP$18/$N$7*AS159 -> 0.02105102648 | AU159: 2.166214714 | AV159: 0.5003208764
A160: 130 | B160: -1 | C160: -1 | D160: -1 | E160: -1 | F160: -1 | G160: -1 | H160: -1 | AS160: 129 | AT160: 0.02121548763 | AU160: =IF(($N$4*AT160^2/2)<=$AP$13,($N$4*AT160^2/2), IF(($AP$13+$N$6*(AT160-$AP$12))<=$AP$17, ($AP$13+$N$6*(AT160-$AP$12)), IF(AU159<$D$14, ($AP$17+($N$6-$N$5*(AT160-$AP$16)/2)*(AT160-$AP$16)), $D$14))) -> 2.198284637 | AV160: 0.5113490796
A161: 131 | B161: -1 | C161: -1 | D161: -1 | E161: -1 | F161: -1 | G161: -1 | H161: -1 | AS161: 130 | AT161: 0.02137994877 | AU161: 2.23035456 | AV161: =( $AP$6*AU161 + $AP$7*AU160 + $AP$9*AV160 )/$AP$8 -> 0.5225152508
A162: 132 | B162: -1 | C162: -1 | D162: -1 | E162: -1 | F162: -1 | G162: -1 | H162: -1 | AS162: 131 | AT162: 0.02154440991 | AU162: 2.262424483 | AV162: 0.5338184854
A163: 133 | B163: -1 | C163: -1 | D163: -1 | E163: -1 | F163: -1 | G163: -1 | H163: -1 | AS163: 132 | AT163: 0.02170887106 | AU163: 2.294494406 | AV163: 0.5452578846
A164: 134 | B164: -1 | C164: -1 | D164: -1 | E164: -1 | F164: -1 | G164: -1 | H164: -1 | AS164: 133 | AT164: 0.0218733322 | AU164: 2.32656433 | AV164: 0.5568325556
A165: 135 | B165: -1 | C165: -1 | D165: -1 | E165: -1 | F165: -1 | G165: -1 | H165: -1 | AS165: 134 | AT165: 0.02203779335 | AU165: 2.358634253 | AV165: 0.5685416116
A166: 136 | B166: -1 | C166: -1 | D166: -1 | E166: -1 | F166: -1 | G166: -1 | H166: -1 | AS166: 135 | AT166: 0.02220225449 | AU166: 2.390704176 | AV166: 0.5803841713
A167: 137 | B167: -1 | C167: -1 | D167: -1 | E167: -1 | F167: -1 | G167: -1 | H167: -1 | AS167: 136 | AT167: 0.02236671564 | AU167: 2.422774099 | AV167: 0.5923593593
A168: 138 | B168: -1 | C168: -1 | D168: -1 | E168: -1 | F168: -1 | G168: -1 | H168: -1 | AS168: 137 | AT168: 0.02253117678 | AU168: 2.454844022 | AV168: 0.6044663061
A169: 139 | B169: -1 | C169: -1 | D169: -1 | E169: -1 | F169: -1 | G169: -1 | H169: -1 | AS169: 138 | AT169: 0.02269563792 | AU169: 2.486913945 | AV169: 0.6167041477
A170: 140 | B170: -1 | C170: -1 | D170: -1 | E170: -1 | F170: -1 | G170: -1 | H170: -1 | AS170: 139 | AT170: 0.02286009907 | AU170: 2.518983869 | AV170: 0.6290720259
A171: 141 | B171: -1 | C171: -1 | D171: -1 | E171: -1 | F171: -1 | G171: -1 | H171: -1 | AS171: 140 | AT171: 0.02302456021 | AU171: 2.551053792 | AV171: 0.6415690879
A172: 142 | B172: -1 | C172: -1 | D172: -1 | E172: -1 | F172: -1 | G172: -1 | H172: -1 | AS172: 141 | AT172: 0.02318902136 | AU172: 2.583123715 | AV172: 0.6541944869
A173: 143 | B173: -1 | C173: -1 | D173: -1 | E173: -1 | F173: -1 | G173: -1 | H173: -1 | AS173: 142 | AT173: 0.0233534825 | AU173: 2.615193638 | AV173: 0.6669473812
A174: 144 | B174: -1 | C174: -1 | D174: -1 | E174: -1 | F174: -1 | G174: -1 | H174: -1 | AS174: 143 | AT174: 0.02351794365 | AU174: 2.647263561 | AV174: 0.679826935
A175: 145 | B175: -1 | C175: -1 | D175: -1 | E175: -1 | F175: -1 | G175: -1 | H175: -1 | AS175: 144 | AT175: 0.02368240479 | AU175: 2.679333484 | AV175: 0.6928323177
A176: 146 | B176: -1 | C176: -1 | D176: -1 | E176: -1 | F176: -1 | G176: -1 | H176: -1 | AS176: 145 | AT176: 0.02384686594 | AU176: 2.711403408 | AV176: 0.7059627043
A177: 147 | B177: -1 | C177: -1 | D177: -1 | E177: -1 | F177: -1 | G177: -1 | H177: -1 | AS177: 146 | AT177: 0.02401132708 | AU177: 2.743473331 | AV177: 0.7192172751
A178: 148 | B178: -1 | C178: -1 | D178: -1 | E178: -1 | F178: -1 | G178: -1 | H178: -1 | AS178: 147 | AT178: 0.02417578822 | AU178: 2.775543254 | AV178: 0.7325952159
A179: 149 | B179: -1 | C179: -1 | D179: -1 | E179: -1 | F179: -1 | G179: -1 | H179: -1 | AS179: 148 | AT179: 0.02434024937 | AU179: 2.807613177 | AV179: 0.7460957177
A180: 150 | B180: -1 | C180: -1 | D180: -1 | E180: -1 | F180: -1 | G180: -1 | H180: -1 | AS180: 149 | AT180: 0.02450471051 | AU180: 2.8396831 | AV180: 0.759717977
A181: 151 | B181: -1 | C181: -1 | D181: -1 | E181: -1 | F181: -1 | G181: -1 | H181: -1 | AS181: 150 | AT181: 0.02466917166 | AU181: 2.871753023 | AV181: 0.7734611954
A182: 152 | B182: -1 | C182: -1 | D182: -1 | E182: -1 | F182: -1 | G182: -1 | H182: -1 | AS182: 151 | AT182: 0.0248336328 | AU182: 2.903822946 | AV182: 0.7873245798
A183: 153 | B183: -1 | C183: -1 | D183: -1 | E183: -1 | F183: -1 | G183: -1 | H183: -1 | AS183: =AS182+1 -> 152 | AT183: 0.02499809395 | AU183: 2.93589287 | AV183: 0.8013073422
A184: 154 | B184: -1 | C184: -1 | D184: -1 | E184: -1 | F184: -1 | G184: -1 | H184: -1 | AS184: 153 | AT184: 0.02516255509 | AU184: 2.967962793 | AV184: 0.8154087
A185: 155 | B185: -1 | C185: -1 | D185: -1 | E185: -1 | F185: -1 | G185: -1 | H185: -1 | AS185: 154 | AT185: 0.02532701623 | AU185: 3.000032716 | AV185: 0.8296278755
A186: 156 | B186: -1 | C186: -1 | D186: -1 | E186: -1 | F186: -1 | G186: -1 | H186: -1 | AS186: 155 | AT186: 0.02549147738 | AU186: 3.032102639 | AV186: 0.8439640961
A187: 157 | B187: -1 | C187: -1 | D187: -1 | E187: -1 | F187: -1 | G187: -1 | H187: -1 | AS187: 156 | AT187: 0.02565593852 | AU187: 3.064172562 | AV187: 0.8584165945
A188: 158 | B188: -1 | C188: -1 | D188: -1 | E188: -1 | F188: -1 | G188: -1 | H188: -1 | AS188: 157 | AT188: 0.02582039967 | AU188: 3.096242485 | AV188: 0.8729846082
A189: 159 | B189: -1 | C189: -1 | D189: -1 | E189: -1 | F189: -1 | G189: -1 | H189: -1 | AS189: 158 | AT189: 0.02598486081 | AU189: 3.128312409 | AV189: 0.8876673798
A190: 160 | B190: -1 | C190: -1 | D190: -1 | E190: -1 | F190: -1 | G190: -1 | H190: -1 | AS190: 159 | AT190: 0.02614932196 | AU190: 3.160382332 | AV190: 0.9024641569
A191: 161 | B191: -1 | C191: -1 | D191: -1 | E191: -1 | F191: -1 | G191: -1 | H191: -1 | AS191: 160 | AT191: 0.0263137831 | AU191: 3.192452255 | AV191: 0.9173741918
A192: 162 | B192: -1 | C192: -1 | D192: -1 | E192: -1 | F192: -1 | G192: -1 | H192: -1 | AS192: 161 | AT192: 0.02647824425 | AU192: 3.224522178 | AV192: 0.9323967421
A193: 163 | B193: -1 | C193: -1 | D193: -1 | E193: -1 | F193: -1 | G193: -1 | H193: -1 | AS193: 162 | AT193: 0.02664270539 | AU193: 3.256592101 | AV193: 0.94753107
A194: 164 | B194: -1 | C194: -1 | D194: -1 | E194: -1 | F194: -1 | G194: -1 | H194: -1 | AS194: 163 | AT194: 0.02680716653 | AU194: 3.288662024 | AV194: 0.9627764424
A195: 165 | B195: -1 | C195: -1 | D195: -1 | E195: -1 | F195: -1 | G195: -1 | H195: -1 | AS195: 164 | AT195: 0.02697162768 | AU195: 3.320731947 | AV195: 0.9781321315
A196: 166 | B196: -1 | C196: -1 | D196: -1 | E196: -1 | F196: -1 | G196: -1 | H196: -1 | AS196: 165 | AT196: 0.02713608882 | AU196: 3.352801871 | AV196: 0.9935974137
A197: 167 | B197: -1 | C197: -1 | D197: -1 | E197: -1 | F197: -1 | G197: -1 | H197: -1 | AS197: 166 | AT197: 0.02730054997 | AU197: 3.384871794 | AV197: 1.009171571
A198: 168 | B198: -1 | C198: -1 | D198: -1 | E198: -1 | F198: -1 | G198: -1 | H198: -1 | AS198: 167 | AT198: 0.02746501111 | AU198: 3.416941717 | AV198: 1.024853888
A199: 169 | B199: -1 | C199: -1 | D199: -1 | E199: -1 | F199: -1 | G199: -1 | H199: -1 | AS199: 168 | AT199: 0.02762947226 | AU199: 3.44901164 | AV199: 1.040643657
A200: 170 | B200: -1 | C200: -1 | D200: -1 | E200: -1 | F200: -1 | G200: -1 | H200: -1 | AS200: 169 | AT200: 0.0277939334 | AU200: 3.481081563 | AV200: 1.056540173
A201: 171 | B201: -1 | C201: -1 | D201: -1 | E201: -1 | F201: -1 | G201: -1 | H201: -1 | AS201: 170 | AT201: 0.02795839455 | AU201: 3.513151486 | AV201: 1.072542737
A202: 172 | B202: -1 | C202: -1 | D202: -1 | E202: -1 | F202: -1 | G202: -1 | H202: -1 | AS202: 171 | AT202: 0.02812285569 | AU202: 3.54522141 | AV202: 1.088650651
A203: 173 | B203: -1 | C203: -1 | D203: -1 | E203: -1 | F203: -1 | G203: -1 | H203: -1 | AS203: 172 | AT203: 0.02828731683 | AU203: 3.577291333 | AV203: 1.104863227
... 922 more rows

Sheet DataSerch (hidden)
A1: 選択型式 | B1: メカ機種データレコード | M1: :$112 | N1: ：「メカ機種データ」範囲検索 | R1: 112 | S1: ➡➡➡ | T1: 112
A2: =CycleTime!C6 -> RCP6-SA4C | B2: № | C2: =ModelData!$B$2 -> ｱｸﾁｭｴｰﾀ型式 | H2: =ModelData!$C$2 -> 最小ｽﾄﾛｰｸ | I2: =ModelData!$D$2 -> 最大ｽﾄﾛｰｸ | J2: =ModelData!$E$2 -> 動作種別 | M2: :$43 | N2: ：「モータ機種データ」範囲検索 | R2: $43 | S2: ➡➡➡ | T2: $43
B3: =MATCH(A2,ModelData!$B$4:$B$112,0) -> 58 | C3: =LOOKUP(B3,ModelData!$A$4:$A$112,ModelData!$B$4:$B$112) -> RCP6-SA4C | H3: =LOOKUP(B3,ModelData!$A$4:$A$112,ModelData!$C$4:$C$112) -> 50 | I3: =LOOKUP(B3,ModelData!$A$4:$A$112,ModelData!$D$4:$D$112) -> 500 | J3: =LOOKUP(B3,ModelData!$A$4:$A$112,ModelData!$E$4:$E$112) -> 0 | M3: :$336 | N3: ：「リードデータ」範囲検索 | R3: 336 | S3: ➡➡➡ | T3: 336
A4: リード | E4: [kg] | F4: [mm] | G4: [mm] | H4: [mm] | I4: [mm] | J4: 0/1 | K4: [K] | M4: :$1008 | N4: ：「ストロークデータ」範囲検索 | R4: $1008 | S4: ➡➡➡ | T4: $1008
A5: =CycleTime!C8 -> 2.5 | E5: =E3/10 -> 0 | F5: =F3/10 -> 0 | G5: =G3 -> 0 | H5: =H3 -> 50 | I5: =I3 -> 500 | J5: =J3 -> 0 | M5: :$5618 | N5: ：「搬送負荷データ」範囲検索 | R5: 5618 | S5: ➡➡➡ | T5: 5618
M6: :$8947 | N6: ：「加減速・速度データ」範囲検索 | R6: 8947 | S6: ➡➡➡ | T6: 8947
A7: ストローク | B7: モータ機種レコード
A8: =CycleTime!C10 -> 50
A10: 設置姿勢 | D10: [Nm/A] | E10: [A] | F10: [kgm^2] | G10: [Nm] | H10: [Nm] | I10: [rad/s] | J10: [rad/s] | K10: [rad/s] | L10: [Nm/(rad/s)] | M10: [K] | N10: [K] | O10: [s]
A11: =IF(CycleTime!C12=CycleTime!AE20,0,1) -> 0 | D11: =D9/10000 -> 0 | E11: =E9/1000 -> 0 | F11: =F9*0.000000001 -> 0 | G11: =G9/1000 -> 0 | H11: =H9/1000 -> 0 | I11: =I9/1000 -> 0 | J11: =J9/1000 -> 0 | K11: =K9/1000 -> 0 | L11: =L9*0.000001 -> 0 | M11: =M9/10 -> 0 | N11: =N9/10 -> 0 | O11: =O9/100 -> 0
A13: 搬送負荷質量 | B13: リレーション | F13: リードデータレコード | I13: =LOOKUP(C15,LeadData!$A$4:$A$336,LeadData!$J$4:$J$336) -> 0.1
A14: =CycleTime!B31 -> 18 | C14: ﾘｰﾄﾞ№ | D14: ｽﾄﾛｰｸ№ | E14: 負荷№ | F14: =LeadData!$B$2 -> ﾘｰﾄﾞ長 | H14: =LeadData!$C$2 -> 水平定格加速度 | I14: =LeadData!$D$2 -> 垂直定格加速度 | J14: =LeadData!$E$2 -> 水平最大加速度 | K14: =LeadData!$F$2 -> 垂直最大加速度 | O14: =LeadData!$G$2 -> ｷﾞｱ比分子 | P14: =LeadData!$H$2 -> ｷﾞｱ比分母 | R14: =LeadData!$I$2 -> ｽﾄﾛｰｸ刻み | S14: =LeadData!$J$2 -> 位置決め幅 初期値
B15: =ModelData!$F$2 -> リンク[0] | C15: =LOOKUP(B3,ModelData!$A$4:$A$112,ModelData!$F$4:$F$112) -> 158 | D15: =LOOKUP(B3,ModelData!$A$4:$A$112,ModelData!$G$4:$G$112) -> 561 | E15: =LOOKUP(B3,ModelData!$A$4:$A$112,ModelData!$H$4:$H$112) -> 2478 | F15: =LOOKUP(C15,LeadData!$A$4:$A$336,LeadData!$B$4:$B$336) -> 2500 | H15: =LOOKUP(C15,LeadData!$A$4:$A$336,LeadData!$C$4:$C$336) -> 2941995 | I15: =LOOKUP(C15,LeadData!$A$4:$A$336,LeadData!$D$4:$D$336) -> 2941995 | J15: =LOOKUP(C15,LeadData!$A$4:$A$336,LeadData!$E$4:$E$336) -> 9806650 | K15: =LOOKUP(C15,LeadData!$A$4:$A$336,LeadData!$F$4:$F$336) -> 4903325 | O15: =LOOKUP(C15,LeadData!$A$4:$A$336,LeadData!$G$4:$G$336) -> 1 | P15: =LOOKUP(C15,LeadData!$A$4:$A$336,LeadData!$H$4:$H$336) -> 1 | R15: =LOOKUP(C15,LeadData!$A$4:$A$336,LeadData!$I$4:$I$336) -> 50 | S15: =LOOKUP(C15,LeadData!$A$4:$A$336,LeadData!$J$4:$J$336) -> 0.1
B16: =ModelData!$I$2 -> リンク[1] | C16: =LOOKUP(B3,ModelData!$A$4:$A$112,ModelData!$I$4:$I$112) -> 159 | D16: =LOOKUP(B3,ModelData!$A$4:$A$112,ModelData!$J$4:$J$112) -> 564 | E16: =LOOKUP(B3,ModelData!$A$4:$A$112,ModelData!$K$4:$K$112) -> 2484 | F16: =LOOKUP(C16,LeadData!$A$4:$A$336,LeadData!$B$4:$B$336) -> 5000 | H16: =LOOKUP(C16,LeadData!$A$4:$A$336,LeadData!$C$4:$C$336) -> 2941995 | I16: =LOOKUP(C16,LeadData!$A$4:$A$336,LeadData!$D$4:$D$336) -> 2941995 | J16: =LOOKUP(C16,LeadData!$A$4:$A$336,LeadData!$E$4:$E$336) -> 9806650 | K16: =LOOKUP(C16,LeadData!$A$4:$A$336,LeadData!$F$4:$F$336) -> 4903325 | O16: =LOOKUP(C16,LeadData!$A$4:$A$336,LeadData!$G$4:$G$336) -> 1 | P16: =LOOKUP(C16,LeadData!$A$4:$A$336,LeadData!$H$4:$H$336) -> 1 | R16: =LOOKUP(C16,LeadData!$A$4:$A$336,LeadData!$I$4:$I$336) -> 50 | S16: =LOOKUP(C16,LeadData!$A$4:$A$336,LeadData!$J$4:$J$336) -> 0.1
B17: =ModelData!$L$2 -> リンク[2] | C17: =LOOKUP(B3,ModelData!$A$4:$A$112,ModelData!$L$4:$L$112) -> 160 | D17: =LOOKUP(B3,ModelData!$A$4:$A$112,ModelData!$M$4:$M$112) -> 567 | E17: =LOOKUP(B3,ModelData!$A$4:$A$112,ModelData!$N$4:$N$112) -> 2493 | F17: =LOOKUP(C17,LeadData!$A$4:$A$336,LeadData!$B$4:$B$336) -> 10000 | H17: =LOOKUP(C17,LeadData!$A$4:$A$336,LeadData!$C$4:$C$336) -> 2941995 | I17: =LOOKUP(C17,LeadData!$A$4:$A$336,LeadData!$D$4:$D$336) -> 2941995 | J17: =LOOKUP(C17,LeadData!$A$4:$A$336,LeadData!$E$4:$E$336) -> 9806650 | K17: =LOOKUP(C17,LeadData!$A$4:$A$336,LeadData!$F$4:$F$336) -> 4903325 | O17: =LOOKUP(C17,LeadData!$A$4:$A$336,LeadData!$G$4:$G$336) -> 1 | P17: =LOOKUP(C17,LeadData!$A$4:$A$336,LeadData!$H$4:$H$336) -> 1 | R17: =LOOKUP(C17,LeadData!$A$4:$A$336,LeadData!$I$4:$I$336) -> 50 | S17: =LOOKUP(C17,LeadData!$A$4:$A$336,LeadData!$J$4:$J$336) -> 0.1
B18: =ModelData!$O$2 -> リンク[3] | C18: =LOOKUP(B3,ModelData!$A$4:$A$112,ModelData!$O$4:$O$112) -> 161 | D18: =LOOKUP(B3,ModelData!$A$4:$A$112,ModelData!$P$4:$P$112) -> 570 | E18: =LOOKUP(B3,ModelData!$A$4:$A$112,ModelData!$Q$4:$Q$112) -> 2509 | F18: =LOOKUP(C18,LeadData!$A$4:$A$336,LeadData!$B$4:$B$336) -> 16000 | H18: =LOOKUP(C18,LeadData!$A$4:$A$336,LeadData!$C$4:$C$336) -> 2941995 | I18: =LOOKUP(C18,LeadData!$A$4:$A$336,LeadData!$D$4:$D$336) -> 2941995 | J18: =LOOKUP(C18,LeadData!$A$4:$A$336,LeadData!$E$4:$E$336) -> 9806650 | K18: =LOOKUP(C18,LeadData!$A$4:$A$336,LeadData!$F$4:$F$336) -> 4903325 | O18: =LOOKUP(C18,LeadData!$A$4:$A$336,LeadData!$G$4:$G$336) -> 1 | P18: =LOOKUP(C18,LeadData!$A$4:$A$336,LeadData!$H$4:$H$336) -> 1 | R18: =LOOKUP(C18,LeadData!$A$4:$A$336,LeadData!$I$4:$I$336) -> 50 | S18: =LOOKUP(C18,LeadData!$A$4:$A$336,LeadData!$J$4:$J$336) -> 0.1
B19: =ModelData!$R$2 -> リンク[4] | C19: =LOOKUP(B3,ModelData!$A$4:$A$112,ModelData!$R$4:$R$112) -> -1 | D19: =LOOKUP(B3,ModelData!$A$4:$A$112,ModelData!$S$4:$S$112) -> -1 | E19: =LOOKUP(B3,ModelData!$A$4:$A$112,ModelData!$T$4:$T$112) -> -1 | F19: =LOOKUP(C19,LeadData!$A$4:$A$336,LeadData!$B$4:$B$336) ->  | H19: =LOOKUP(C19,LeadData!$A$4:$A$336,LeadData!$C$4:$C$336) ->  | I19: =LOOKUP(C19,LeadData!$A$4:$A$336,LeadData!$D$4:$D$336) ->  | J19: =LOOKUP(C19,LeadData!$A$4:$A$336,LeadData!$E$4:$E$336) ->  | K19: =LOOKUP(C19,LeadData!$A$4:$A$336,LeadData!$F$4:$F$336) ->  | O19: =LOOKUP(C19,LeadData!$A$4:$A$336,LeadData!$G$4:$G$336) ->  | P19: =LOOKUP(C19,LeadData!$A$4:$A$336,LeadData!$H$4:$H$336) ->  | R19: =LOOKUP(C19,LeadData!$A$4:$A$336,LeadData!$I$4:$I$336) ->  | S19: =LOOKUP(C19,LeadData!$A$4:$A$336,LeadData!$J$4:$J$336) -> 
B20: =ModelData!$U$2 -> リンク[5] | C20: =LOOKUP(B3,ModelData!$A$4:$A$112,ModelData!$U$4:$U$112) -> -1 | D20: =LOOKUP(B3,ModelData!$A$4:$A$112,ModelData!$V$4:$V$112) -> -1 | E20: =LOOKUP(B3,ModelData!$A$4:$A$112,ModelData!$W$4:$W$112) -> -1 | F20: =LOOKUP(C20,LeadData!$A$4:$A$336,LeadData!$B$4:$B$336) ->  | H20: =LOOKUP(C20,LeadData!$A$4:$A$336,LeadData!$C$4:$C$336) ->  | I20: =LOOKUP(C20,LeadData!$A$4:$A$336,LeadData!$D$4:$D$336) ->  | J20: =LOOKUP(C20,LeadData!$A$4:$A$336,LeadData!$E$4:$E$336) ->  | K20: =LOOKUP(C20,LeadData!$A$4:$A$336,LeadData!$F$4:$F$336) ->  | O20: =LOOKUP(C20,LeadData!$A$4:$A$336,LeadData!$G$4:$G$336) ->  | P20: =LOOKUP(C20,LeadData!$A$4:$A$336,LeadData!$H$4:$H$336) ->  | R20: =LOOKUP(C20,LeadData!$A$4:$A$336,LeadData!$I$4:$I$336) ->  | S20: =LOOKUP(C20,LeadData!$A$4:$A$336,LeadData!$J$4:$J$336) -> 
B21: =ModelData!$X$2 -> リンク[6] | C21: =LOOKUP(B3,ModelData!$A$4:$A$112,ModelData!$X$4:$X$112) -> -1 | D21: =LOOKUP(B3,ModelData!$A$4:$A$112,ModelData!$Y$4:$Y$112) -> -1 | E21: =LOOKUP(B3,ModelData!$A$4:$A$112,ModelData!$Z$4:$Z$112) -> -1 | F21: =LOOKUP(C21,LeadData!$A$4:$A$336,LeadData!$B$4:$B$336) ->  | H21: =LOOKUP(C21,LeadData!$A$4:$A$336,LeadData!$C$4:$C$336) ->  | I21: =LOOKUP(C21,LeadData!$A$4:$A$336,LeadData!$D$4:$D$336) ->  | J21: =LOOKUP(C21,LeadData!$A$4:$A$336,LeadData!$E$4:$E$336) ->  | K21: =LOOKUP(C21,LeadData!$A$4:$A$336,LeadData!$F$4:$F$336) ->  | O21: =LOOKUP(C21,LeadData!$A$4:$A$336,LeadData!$G$4:$G$336) ->  | P21: =LOOKUP(C21,LeadData!$A$4:$A$336,LeadData!$H$4:$H$336) ->  | R21: =LOOKUP(C21,LeadData!$A$4:$A$336,LeadData!$I$4:$I$336) ->  | S21: =LOOKUP(C21,LeadData!$A$4:$A$336,LeadData!$J$4:$J$336) -> 
B22: =ModelData!$AA$2 -> リンク[7] | C22: =LOOKUP(B3,ModelData!$A$4:$A$112,ModelData!$AA$4:$AA$112) -> -1 | D22: =LOOKUP(B3,ModelData!$A$4:$A$112,ModelData!$AB$4:$AB$112) -> -1 | E22: =LOOKUP(B3,ModelData!$A$4:$A$112,ModelData!$AC$4:$AC$112) -> -1 | F22: =LOOKUP(C22,LeadData!$A$4:$A$336,LeadData!$B$4:$B$336) ->  | H22: =LOOKUP(C22,LeadData!$A$4:$A$336,LeadData!$C$4:$C$336) ->  | I22: =LOOKUP(C22,LeadData!$A$4:$A$336,LeadData!$D$4:$D$336) ->  | J22: =LOOKUP(C22,LeadData!$A$4:$A$336,LeadData!$E$4:$E$336) ->  | K22: =LOOKUP(C22,LeadData!$A$4:$A$336,LeadData!$F$4:$F$336) ->  | O22: =LOOKUP(C22,LeadData!$A$4:$A$336,LeadData!$G$4:$G$336) ->  | P22: =LOOKUP(C22,LeadData!$A$4:$A$336,LeadData!$H$4:$H$336) ->  | R22: =LOOKUP(C22,LeadData!$A$4:$A$336,LeadData!$I$4:$I$336) ->  | S22: =LOOKUP(C22,LeadData!$A$4:$A$336,LeadData!$J$4:$J$336) -> 
B23: リードリストとリレーション | F23: リードデータレコードの物理量変換
B24: ﾘｰﾄﾞﾘｽﾄ | D24: リンク | F24: =LeadData!$B$2 -> ﾘｰﾄﾞ長 | H24: =LeadData!$C$2 -> 水平定格加速度 | I24: =LeadData!$D$2 -> 垂直定格加速度 | J24: =LeadData!$E$2 -> 水平最大加速度 | K24: =LeadData!$F$2 -> 垂直最大加速度 | O24: =LeadData!$G$2 -> ｷﾞｱ比分子 | P24: =LeadData!$H$2 -> ｷﾞｱ比分母 | R24: =LeadData!$I$2 -> ｽﾄﾛｰｸ刻み | S24: =LeadData!$J$2 -> 位置決め幅 初期値
B25: № | C25: ﾃﾞｰﾀ | D25: =D14 -> ｽﾄﾛｰｸ№ | E25: =E14 -> 負荷№ | F25: [mm] | G25: [kgm^2] | H25: [m/s^2] | I25: [m/s^2] | J25: [m/s^2] | K25: [m/s^2] | L25: [Nm] | M25: [Nms] | N25: [Nm] | R25: [mm] | S25: [mm]
B26: 1 | C26: =IF(C15=-1,"- - -",IF(F26<=0,P26/O26,F26)) -> 2.5 | D26: =D15 -> 561 | E26: 2478 | F26: =F15/1000 -> 2.5 | G26: =G15*0.000000001 -> 0 | H26: =H15*0.000001 -> 2.941995 | I26: 2.941995 | J26: 9.80665 | K26: 4.903325 | O26: =O15 -> 1 | P26: =P15 -> 1 | R26: =R15 -> 50 | S26: =S15 -> 0.1
B27: =B26+1 -> 2 | C27: 5 | D27: 564 | E27: 2484 | F27: 5 | G27: 0 | H27: 2.941995 | I27: 2.941995 | J27: 9.80665 | K27: 4.903325 | O27: =O16 -> 1 | P27: 1 | R27: =R16 -> 50 | S27: =S16 -> 0.1
B28: =B27+1 -> 3 | C28: 10 | D28: 567 | E28: 2493 | F28: 10 | G28: 0 | H28: 2.941995 | I28: 2.941995 | J28: 9.80665 | K28: 4.903325 | O28: 1 | P28: 1 | R28: 50 | S28: =S17 -> 0.1
B29: 4 | C29: 16 | D29: 570 | E29: 2509 | F29: 16 | G29: 0 | H29: 2.941995 | I29: 2.941995 | J29: 9.80665 | K29: 4.903325 | O29: 1 | P29: 1 | R29: 50 | S29: =S18 -> 0.1
B30: 5 | C30: - - - | D30: -1 | E30: -1 | G30: 0
B31: 6 | C31: - - - | D31: -1 | E31: -1 | G31: 0
B32: 7 | C32: - - - | D32: -1 | E32: -1 | G32: 0
B33: 8 | C33: - - - | D33: -1 | E33: -1 | G33: 0
B35: リードリスト選択№ | D35: =MATCH(A5,C26:C33,0) -> 1 | E35: ストロークデータレコード | H35: =LOOKUP(C37,StrokeData!$A$4:$A$1119,StrokeData!$M$4:$M$1119) -> RCP6-SA4C-2.5
B36: № | C36: stﾚｺｰﾄﾞ№ | D36: =StrokeData!$B$2 -> ｽﾄﾛｰｸ長 | E36: =StrokeData!$C$2 -> 有効ｽﾄﾛｰｸ補正 | G36: =StrokeData!$D$2 -> 基準ｹﾞｲﾝ用搬送質量 | H36: =StrokeData!$E$2 -> 水平可搬質量 | I36: =StrokeData!$F$2 -> 垂直可搬質量 | J36: =StrokeData!$G$2 -> 最大速度 | K36: =StrokeData!$H$2 -> 位置ｹﾞｲﾝ | L36: =StrokeData!$I$2 -> FFｹﾞｲﾝ | M36: =StrokeData!$J$2 -> 速度制御帯域 | S36: =StrokeData!$K$2 -> 前ﾃﾞｰﾀ№ | T36: =StrokeData!$L$2 -> 次ﾃﾞｰﾀ№
B37: 1 | C37: =LOOKUP(D35,B26:B33,D26:D33) -> 561 | D37: =LOOKUP(C37,StrokeData!$A$4:$A$1119,StrokeData!$B$4:$B$1119) -> 400 | E37: =LOOKUP(C37,StrokeData!$A$4:$A$1119,StrokeData!$C$4:$C$1119) -> 0 | G37: =LOOKUP(C37,StrokeData!$A$4:$A$1119,StrokeData!$D$4:$D$1119) -> 18000 | H37: =LOOKUP(C37,StrokeData!$A$4:$A$1119,StrokeData!$E$4:$E$1119) -> 18000 | I37: =LOOKUP(C37,StrokeData!$A$4:$A$1119,StrokeData!$F$4:$F$1119) -> 12000 | J37: =LOOKUP(C37,StrokeData!$A$4:$A$1119,StrokeData!$G$4:$G$1119) -> 195 | K37: =LOOKUP(C37,StrokeData!$A$4:$A$1119,StrokeData!$H$4:$H$1119) -> 40 | L37: =LOOKUP(C37,StrokeData!$A$4:$A$1119,StrokeData!$I$4:$I$1119) -> 0 | M37: =LOOKUP(C37,StrokeData!$A$4:$A$1119,StrokeData!$J$4:$J$1119) -> 391 | S37: =LOOKUP(C37,StrokeData!$A$4:$A$1119,StrokeData!$K$4:$K$1119) -> -1 | T37: =LOOKUP(C37,StrokeData!$A$4:$A$1119,StrokeData!$L$4:$L$1119) -> 562
B38: =B37+1 -> 2 | C38: =IF(C37=-1,-1,LOOKUP(C37,StrokeData!$A$4:$A$1119,StrokeData!$L$4:$L$1119)) -> 562 | D38: =LOOKUP(C38,StrokeData!$A$4:$A$1119,StrokeData!$B$4:$B$1119) -> 450 | E38: =LOOKUP(C38,StrokeData!$A$4:$A$1119,StrokeData!$C$4:$C$1119) -> 0 | G38: =LOOKUP(C38,StrokeData!$A$4:$A$1119,StrokeData!$D$4:$D$1119) -> 18000 | H38: =LOOKUP(C38,StrokeData!$A$4:$A$1119,StrokeData!$E$4:$E$1119) -> 18000 | I38: =LOOKUP(C38,StrokeData!$A$4:$A$1119,StrokeData!$F$4:$F$1119) -> 12000 | J38: =LOOKUP(C38,StrokeData!$A$4:$A$1119,StrokeData!$G$4:$G$1119) -> 165 | K38: =LOOKUP(C38,StrokeData!$A$4:$A$1119,StrokeData!$H$4:$H$1119) -> 40 | L38: =LOOKUP(C38,StrokeData!$A$4:$A$1119,StrokeData!$I$4:$I$1119) -> 0 | M38: =LOOKUP(C38,StrokeData!$A$4:$A$1119,StrokeData!$J$4:$J$1119) -> 391 | S38: =LOOKUP(C38,StrokeData!$A$4:$A$1119,StrokeData!$K$4:$K$1119) -> 561 | T38: =LOOKUP(C38,StrokeData!$A$4:$A$1119,StrokeData!$L$4:$L$1119) -> 563
B39: =B38+1 -> 3 | C39: =IF(C38=-1,-1,LOOKUP(C38,StrokeData!$A$4:$A$1119,StrokeData!$L$4:$L$1119)) -> 563 | D39: =LOOKUP(C39,StrokeData!$A$4:$A$1119,StrokeData!$B$4:$B$1119) -> 500 | E39: =LOOKUP(C39,StrokeData!$A$4:$A$1119,StrokeData!$C$4:$C$1119) -> 0 | G39: =LOOKUP(C39,StrokeData!$A$4:$A$1119,StrokeData!$D$4:$D$1119) -> 18000 | H39: =LOOKUP(C39,StrokeData!$A$4:$A$1119,StrokeData!$E$4:$E$1119) -> 18000 | I39: =LOOKUP(C39,StrokeData!$A$4:$A$1119,StrokeData!$F$4:$F$1119) -> 12000 | J39: =LOOKUP(C39,StrokeData!$A$4:$A$1119,StrokeData!$G$4:$G$1119) -> 135 | K39: =LOOKUP(C39,StrokeData!$A$4:$A$1119,StrokeData!$H$4:$H$1119) -> 40 | L39: =LOOKUP(C39,StrokeData!$A$4:$A$1119,StrokeData!$I$4:$I$1119) -> 0 | M39: =LOOKUP(C39,StrokeData!$A$4:$A$1119,StrokeData!$J$4:$J$1119) -> 391 | S39: =LOOKUP(C39,StrokeData!$A$4:$A$1119,StrokeData!$K$4:$K$1119) -> 562 | T39: =LOOKUP(C39,StrokeData!$A$4:$A$1119,StrokeData!$L$4:$L$1119) -> -1
B40: 4 | C40: =IF(C39=-1,-1,LOOKUP(C39,StrokeData!$A$4:$A$1119,StrokeData!$L$4:$L$1119)) -> -1 | D40: =LOOKUP(C40,StrokeData!$A$4:$A$1119,StrokeData!$B$4:$B$1119) ->  | E40: =LOOKUP(C40,StrokeData!$A$4:$A$1119,StrokeData!$C$4:$C$1119) ->  | G40: =LOOKUP(C40,StrokeData!$A$4:$A$1119,StrokeData!$D$4:$D$1119) ->  | H40: =LOOKUP(C40,StrokeData!$A$4:$A$1119,StrokeData!$E$4:$E$1119) ->  | I40: =LOOKUP(C40,StrokeData!$A$4:$A$1119,StrokeData!$F$4:$F$1119) ->  | J40: =LOOKUP(C40,StrokeData!$A$4:$A$1119,StrokeData!$G$4:$G$1119) ->  | K40: =LOOKUP(C40,StrokeData!$A$4:$A$1119,StrokeData!$H$4:$H$1119) ->  | L40: =LOOKUP(C40,StrokeData!$A$4:$A$1119,StrokeData!$I$4:$I$1119) ->  | M40: =LOOKUP(C40,StrokeData!$A$4:$A$1119,StrokeData!$J$4:$J$1119) ->  | S40: =LOOKUP(C40,StrokeData!$A$4:$A$1119,StrokeData!$K$4:$K$1119) ->  | T40: =LOOKUP(C40,StrokeData!$A$4:$A$1119,StrokeData!$L$4:$L$1119) -> 
B41: 5 | C41: =IF(C40=-1,-1,LOOKUP(C40,StrokeData!$A$4:$A$1119,StrokeData!$L$4:$L$1119)) -> -1 | D41: =LOOKUP(C41,StrokeData!$A$4:$A$1119,StrokeData!$B$4:$B$1119) ->  | E41: =LOOKUP(C41,StrokeData!$A$4:$A$1119,StrokeData!$C$4:$C$1119) ->  | G41: =LOOKUP(C41,StrokeData!$A$4:$A$1119,StrokeData!$D$4:$D$1119) ->  | H41: =LOOKUP(C41,StrokeData!$A$4:$A$1119,StrokeData!$E$4:$E$1119) ->  | I41: =LOOKUP(C41,StrokeData!$A$4:$A$1119,StrokeData!$F$4:$F$1119) ->  | J41: =LOOKUP(C41,StrokeData!$A$4:$A$1119,StrokeData!$G$4:$G$1119) ->  | K41: =LOOKUP(C41,StrokeData!$A$4:$A$1119,StrokeData!$H$4:$H$1119) ->  | L41: =LOOKUP(C41,StrokeData!$A$4:$A$1119,StrokeData!$I$4:$I$1119) ->  | M41: =LOOKUP(C41,StrokeData!$A$4:$A$1119,StrokeData!$J$4:$J$1119) ->  | S41: =LOOKUP(C41,StrokeData!$A$4:$A$1119,StrokeData!$K$4:$K$1119) ->  | T41: =LOOKUP(C41,StrokeData!$A$4:$A$1119,StrokeData!$L$4:$L$1119) -> 
B42: 6 | C42: =IF(C41=-1,-1,LOOKUP(C41,StrokeData!$A$4:$A$1119,StrokeData!$L$4:$L$1119)) -> -1 | D42: =LOOKUP(C42,StrokeData!$A$4:$A$1119,StrokeData!$B$4:$B$1119) ->  | E42: =LOOKUP(C42,StrokeData!$A$4:$A$1119,StrokeData!$C$4:$C$1119) ->  | G42: =LOOKUP(C42,StrokeData!$A$4:$A$1119,StrokeData!$D$4:$D$1119) ->  | H42: =LOOKUP(C42,StrokeData!$A$4:$A$1119,StrokeData!$E$4:$E$1119) ->  | I42: =LOOKUP(C42,StrokeData!$A$4:$A$1119,StrokeData!$F$4:$F$1119) ->  | J42: =LOOKUP(C42,StrokeData!$A$4:$A$1119,StrokeData!$G$4:$G$1119) ->  | K42: =LOOKUP(C42,StrokeData!$A$4:$A$1119,StrokeData!$H$4:$H$1119) ->  | L42: =LOOKUP(C42,StrokeData!$A$4:$A$1119,StrokeData!$I$4:$I$1119) ->  | M42: =LOOKUP(C42,StrokeData!$A$4:$A$1119,StrokeData!$J$4:$J$1119) ->  | S42: =LOOKUP(C42,StrokeData!$A$4:$A$1119,StrokeData!$K$4:$K$1119) ->  | T42: =LOOKUP(C42,StrokeData!$A$4:$A$1119,StrokeData!$L$4:$L$1119) -> 
B43: 7 | C43: =IF(C42=-1,-1,LOOKUP(C42,StrokeData!$A$4:$A$1119,StrokeData!$L$4:$L$1119)) -> -1 | D43: =LOOKUP(C43,StrokeData!$A$4:$A$1119,StrokeData!$B$4:$B$1119) ->  | E43: =LOOKUP(C43,StrokeData!$A$4:$A$1119,StrokeData!$C$4:$C$1119) ->  | G43: =LOOKUP(C43,StrokeData!$A$4:$A$1119,StrokeData!$D$4:$D$1119) ->  | H43: =LOOKUP(C43,StrokeData!$A$4:$A$1119,StrokeData!$E$4:$E$1119) ->  | I43: =LOOKUP(C43,StrokeData!$A$4:$A$1119,StrokeData!$F$4:$F$1119) ->  | J43: =LOOKUP(C43,StrokeData!$A$4:$A$1119,StrokeData!$G$4:$G$1119) ->  | K43: =LOOKUP(C43,StrokeData!$A$4:$A$1119,StrokeData!$H$4:$H$1119) ->  | L43: =LOOKUP(C43,StrokeData!$A$4:$A$1119,StrokeData!$I$4:$I$1119) ->  | M43: =LOOKUP(C43,StrokeData!$A$4:$A$1119,StrokeData!$J$4:$J$1119) ->  | S43: =LOOKUP(C43,StrokeData!$A$4:$A$1119,StrokeData!$K$4:$K$1119) ->  | T43: =LOOKUP(C43,StrokeData!$A$4:$A$1119,StrokeData!$L$4:$L$1119) -> 
B44: 8 | C44: =IF(C43=-1,-1,LOOKUP(C43,StrokeData!$A$4:$A$1119,StrokeData!$L$4:$L$1119)) -> -1 | D44: =LOOKUP(C44,StrokeData!$A$4:$A$1119,StrokeData!$B$4:$B$1119) ->  | E44: =LOOKUP(C44,StrokeData!$A$4:$A$1119,StrokeData!$C$4:$C$1119) ->  | G44: =LOOKUP(C44,StrokeData!$A$4:$A$1119,StrokeData!$D$4:$D$1119) ->  | H44: =LOOKUP(C44,StrokeData!$A$4:$A$1119,StrokeData!$E$4:$E$1119) ->  | I44: =LOOKUP(C44,StrokeData!$A$4:$A$1119,StrokeData!$F$4:$F$1119) ->  | J44: =LOOKUP(C44,StrokeData!$A$4:$A$1119,StrokeData!$G$4:$G$1119) ->  | K44: =LOOKUP(C44,StrokeData!$A$4:$A$1119,StrokeData!$H$4:$H$1119) ->  | L44: =LOOKUP(C44,StrokeData!$A$4:$A$1119,StrokeData!$I$4:$I$1119) ->  | M44: =LOOKUP(C44,StrokeData!$A$4:$A$1119,StrokeData!$J$4:$J$1119) ->  | S44: =LOOKUP(C44,StrokeData!$A$4:$A$1119,StrokeData!$K$4:$K$1119) ->  | T44: =LOOKUP(C44,StrokeData!$A$4:$A$1119,StrokeData!$L$4:$L$1119) -> 
B45: 9 | C45: =IF(C44=-1,-1,LOOKUP(C44,StrokeData!$A$4:$A$1119,StrokeData!$L$4:$L$1119)) -> -1 | D45: =LOOKUP(C45,StrokeData!$A$4:$A$1119,StrokeData!$B$4:$B$1119) ->  | E45: =LOOKUP(C45,StrokeData!$A$4:$A$1119,StrokeData!$C$4:$C$1119) ->  | G45: =LOOKUP(C45,StrokeData!$A$4:$A$1119,StrokeData!$D$4:$D$1119) ->  | H45: =LOOKUP(C45,StrokeData!$A$4:$A$1119,StrokeData!$E$4:$E$1119) ->  | I45: =LOOKUP(C45,StrokeData!$A$4:$A$1119,StrokeData!$F$4:$F$1119) ->  | J45: =LOOKUP(C45,StrokeData!$A$4:$A$1119,StrokeData!$G$4:$G$1119) ->  | K45: =LOOKUP(C45,StrokeData!$A$4:$A$1119,StrokeData!$H$4:$H$1119) ->  | L45: =LOOKUP(C45,StrokeData!$A$4:$A$1119,StrokeData!$I$4:$I$1119) ->  | M45: =LOOKUP(C45,StrokeData!$A$4:$A$1119,StrokeData!$J$4:$J$1119) ->  | S45: =LOOKUP(C45,StrokeData!$A$4:$A$1119,StrokeData!$K$4:$K$1119) ->  | T45: =LOOKUP(C45,StrokeData!$A$4:$A$1119,StrokeData!$L$4:$L$1119) -> 
B46: 10 | C46: =IF(C45=-1,-1,LOOKUP(C45,StrokeData!$A$4:$A$1119,StrokeData!$L$4:$L$1119)) -> -1 | D46: =LOOKUP(C46,StrokeData!$A$4:$A$1119,StrokeData!$B$4:$B$1119) ->  | E46: =LOOKUP(C46,StrokeData!$A$4:$A$1119,StrokeData!$C$4:$C$1119) ->  | G46: =LOOKUP(C46,StrokeData!$A$4:$A$1119,StrokeData!$D$4:$D$1119) ->  | H46: =LOOKUP(C46,StrokeData!$A$4:$A$1119,StrokeData!$E$4:$E$1119) ->  | I46: =LOOKUP(C46,StrokeData!$A$4:$A$1119,StrokeData!$F$4:$F$1119) ->  | J46: =LOOKUP(C46,StrokeData!$A$4:$A$1119,StrokeData!$G$4:$G$1119) ->  | K46: =LOOKUP(C46,StrokeData!$A$4:$A$1119,StrokeData!$H$4:$H$1119) ->  | L46: =LOOKUP(C46,StrokeData!$A$4:$A$1119,StrokeData!$I$4:$I$1119) ->  | M46: =LOOKUP(C46,StrokeData!$A$4:$A$1119,StrokeData!$J$4:$J$1119) ->  | S46: =LOOKUP(C46,StrokeData!$A$4:$A$1119,StrokeData!$K$4:$K$1119) ->  | T46: =LOOKUP(C46,StrokeData!$A$4:$A$1119,StrokeData!$L$4:$L$1119) -> 
B47: 11 | C47: =IF(C46=-1,-1,LOOKUP(C46,StrokeData!$A$4:$A$1119,StrokeData!$L$4:$L$1119)) -> -1 | D47: =LOOKUP(C47,StrokeData!$A$4:$A$1119,StrokeData!$B$4:$B$1119) ->  | E47: =LOOKUP(C47,StrokeData!$A$4:$A$1119,StrokeData!$C$4:$C$1119) ->  | G47: =LOOKUP(C47,StrokeData!$A$4:$A$1119,StrokeData!$D$4:$D$1119) ->  | H47: =LOOKUP(C47,StrokeData!$A$4:$A$1119,StrokeData!$E$4:$E$1119) ->  | I47: =LOOKUP(C47,StrokeData!$A$4:$A$1119,StrokeData!$F$4:$F$1119) ->  | J47: =LOOKUP(C47,StrokeData!$A$4:$A$1119,StrokeData!$G$4:$G$1119) ->  | K47: =LOOKUP(C47,StrokeData!$A$4:$A$1119,StrokeData!$H$4:$H$1119) ->  | L47: =LOOKUP(C47,StrokeData!$A$4:$A$1119,StrokeData!$I$4:$I$1119) ->  | M47: =LOOKUP(C47,StrokeData!$A$4:$A$1119,StrokeData!$J$4:$J$1119) ->  | S47: =LOOKUP(C47,StrokeData!$A$4:$A$1119,StrokeData!$K$4:$K$1119) ->  | T47: =LOOKUP(C47,StrokeData!$A$4:$A$1119,StrokeData!$L$4:$L$1119) -> 
B48: 12 | C48: =IF(C47=-1,-1,LOOKUP(C47,StrokeData!$A$4:$A$1119,StrokeData!$L$4:$L$1119)) -> -1 | D48: =LOOKUP(C48,StrokeData!$A$4:$A$1119,StrokeData!$B$4:$B$1119) ->  | E48: =LOOKUP(C48,StrokeData!$A$4:$A$1119,StrokeData!$C$4:$C$1119) ->  | G48: =LOOKUP(C48,StrokeData!$A$4:$A$1119,StrokeData!$D$4:$D$1119) ->  | H48: =LOOKUP(C48,StrokeData!$A$4:$A$1119,StrokeData!$E$4:$E$1119) ->  | I48: =LOOKUP(C48,StrokeData!$A$4:$A$1119,StrokeData!$F$4:$F$1119) ->  | J48: =LOOKUP(C48,StrokeData!$A$4:$A$1119,StrokeData!$G$4:$G$1119) ->  | K48: =LOOKUP(C48,StrokeData!$A$4:$A$1119,StrokeData!$H$4:$H$1119) ->  | L48: =LOOKUP(C48,StrokeData!$A$4:$A$1119,StrokeData!$I$4:$I$1119) ->  | M48: =LOOKUP(C48,StrokeData!$A$4:$A$1119,StrokeData!$J$4:$J$1119) ->  | S48: =LOOKUP(C48,StrokeData!$A$4:$A$1119,StrokeData!$K$4:$K$1119) ->  | T48: =LOOKUP(C48,StrokeData!$A$4:$A$1119,StrokeData!$L$4:$L$1119) -> 
B49: 13 | C49: =IF(C48=-1,-1,LOOKUP(C48,StrokeData!$A$4:$A$1119,StrokeData!$L$4:$L$1119)) -> -1 | D49: =LOOKUP(C49,StrokeData!$A$4:$A$1119,StrokeData!$B$4:$B$1119) ->  | E49: =LOOKUP(C49,StrokeData!$A$4:$A$1119,StrokeData!$C$4:$C$1119) ->  | G49: =LOOKUP(C49,StrokeData!$A$4:$A$1119,StrokeData!$D$4:$D$1119) ->  | H49: =LOOKUP(C49,StrokeData!$A$4:$A$1119,StrokeData!$E$4:$E$1119) ->  | I49: =LOOKUP(C49,StrokeData!$A$4:$A$1119,StrokeData!$F$4:$F$1119) ->  | J49: =LOOKUP(C49,StrokeData!$A$4:$A$1119,StrokeData!$G$4:$G$1119) ->  | K49: =LOOKUP(C49,StrokeData!$A$4:$A$1119,StrokeData!$H$4:$H$1119) ->  | L49: =LOOKUP(C49,StrokeData!$A$4:$A$1119,StrokeData!$I$4:$I$1119) ->  | M49: =LOOKUP(C49,StrokeData!$A$4:$A$1119,StrokeData!$J$4:$J$1119) ->  | S49: =LOOKUP(C49,StrokeData!$A$4:$A$1119,StrokeData!$K$4:$K$1119) ->  | T49: =LOOKUP(C49,StrokeData!$A$4:$A$1119,StrokeData!$L$4:$L$1119) -> 
B50: 14 | C50: =IF(C49=-1,-1,LOOKUP(C49,StrokeData!$A$4:$A$1119,StrokeData!$L$4:$L$1119)) -> -1 | D50: =LOOKUP(C50,StrokeData!$A$4:$A$1119,StrokeData!$B$4:$B$1119) ->  | E50: =LOOKUP(C50,StrokeData!$A$4:$A$1119,StrokeData!$C$4:$C$1119) ->  | G50: =LOOKUP(C50,StrokeData!$A$4:$A$1119,StrokeData!$D$4:$D$1119) ->  | H50: =LOOKUP(C50,StrokeData!$A$4:$A$1119,StrokeData!$E$4:$E$1119) ->  | I50: =LOOKUP(C50,StrokeData!$A$4:$A$1119,StrokeData!$F$4:$F$1119) ->  | J50: =LOOKUP(C50,StrokeData!$A$4:$A$1119,StrokeData!$G$4:$G$1119) ->  | K50: =LOOKUP(C50,StrokeData!$A$4:$A$1119,StrokeData!$H$4:$H$1119) ->  | L50: =LOOKUP(C50,StrokeData!$A$4:$A$1119,StrokeData!$I$4:$I$1119) ->  | M50: =LOOKUP(C50,StrokeData!$A$4:$A$1119,StrokeData!$J$4:$J$1119) ->  | S50: =LOOKUP(C50,StrokeData!$A$4:$A$1119,StrokeData!$K$4:$K$1119) ->  | T50: =LOOKUP(C50,StrokeData!$A$4:$A$1119,StrokeData!$L$4:$L$1119) -> 
B51: 15 | C51: =IF(C50=-1,-1,LOOKUP(C50,StrokeData!$A$4:$A$1119,StrokeData!$L$4:$L$1119)) -> -1 | D51: =LOOKUP(C51,StrokeData!$A$4:$A$1119,StrokeData!$B$4:$B$1119) ->  | E51: =LOOKUP(C51,StrokeData!$A$4:$A$1119,StrokeData!$C$4:$C$1119) ->  | G51: =LOOKUP(C51,StrokeData!$A$4:$A$1119,StrokeData!$D$4:$D$1119) ->  | H51: =LOOKUP(C51,StrokeData!$A$4:$A$1119,StrokeData!$E$4:$E$1119) ->  | I51: =LOOKUP(C51,StrokeData!$A$4:$A$1119,StrokeData!$F$4:$F$1119) ->  | J51: =LOOKUP(C51,StrokeData!$A$4:$A$1119,StrokeData!$G$4:$G$1119) ->  | K51: =LOOKUP(C51,StrokeData!$A$4:$A$1119,StrokeData!$H$4:$H$1119) ->  | L51: =LOOKUP(C51,StrokeData!$A$4:$A$1119,StrokeData!$I$4:$I$1119) ->  | M51: =LOOKUP(C51,StrokeData!$A$4:$A$1119,StrokeData!$J$4:$J$1119) ->  | S51: =LOOKUP(C51,StrokeData!$A$4:$A$1119,StrokeData!$K$4:$K$1119) ->  | T51: =LOOKUP(C51,StrokeData!$A$4:$A$1119,StrokeData!$L$4:$L$1119) -> 
B52: 16 | C52: =IF(C51=-1,-1,LOOKUP(C51,StrokeData!$A$4:$A$1119,StrokeData!$L$4:$L$1119)) -> -1 | D52: =LOOKUP(C52,StrokeData!$A$4:$A$1119,StrokeData!$B$4:$B$1119) ->  | E52: =LOOKUP(C52,StrokeData!$A$4:$A$1119,StrokeData!$C$4:$C$1119) ->  | G52: =LOOKUP(C52,StrokeData!$A$4:$A$1119,StrokeData!$D$4:$D$1119) ->  | H52: =LOOKUP(C52,StrokeData!$A$4:$A$1119,StrokeData!$E$4:$E$1119) ->  | I52: =LOOKUP(C52,StrokeData!$A$4:$A$1119,StrokeData!$F$4:$F$1119) ->  | J52: =LOOKUP(C52,StrokeData!$A$4:$A$1119,StrokeData!$G$4:$G$1119) ->  | K52: =LOOKUP(C52,StrokeData!$A$4:$A$1119,StrokeData!$H$4:$H$1119) ->  | L52: =LOOKUP(C52,StrokeData!$A$4:$A$1119,StrokeData!$I$4:$I$1119) ->  | M52: =LOOKUP(C52,StrokeData!$A$4:$A$1119,StrokeData!$J$4:$J$1119) ->  | S52: =LOOKUP(C52,StrokeData!$A$4:$A$1119,StrokeData!$K$4:$K$1119) ->  | T52: =LOOKUP(C52,StrokeData!$A$4:$A$1119,StrokeData!$L$4:$L$1119) -> 
B53: 17 | C53: =IF(C52=-1,-1,LOOKUP(C52,StrokeData!$A$4:$A$1119,StrokeData!$L$4:$L$1119)) -> -1 | D53: =LOOKUP(C53,StrokeData!$A$4:$A$1119,StrokeData!$B$4:$B$1119) ->  | E53: =LOOKUP(C53,StrokeData!$A$4:$A$1119,StrokeData!$C$4:$C$1119) ->  | G53: =LOOKUP(C53,StrokeData!$A$4:$A$1119,StrokeData!$D$4:$D$1119) ->  | H53: =LOOKUP(C53,StrokeData!$A$4:$A$1119,StrokeData!$E$4:$E$1119) ->  | I53: =LOOKUP(C53,StrokeData!$A$4:$A$1119,StrokeData!$F$4:$F$1119) ->  | J53: =LOOKUP(C53,StrokeData!$A$4:$A$1119,StrokeData!$G$4:$G$1119) ->  | K53: =LOOKUP(C53,StrokeData!$A$4:$A$1119,StrokeData!$H$4:$H$1119) ->  | L53: =LOOKUP(C53,StrokeData!$A$4:$A$1119,StrokeData!$I$4:$I$1119) ->  | M53: =LOOKUP(C53,StrokeData!$A$4:$A$1119,StrokeData!$J$4:$J$1119) ->  | S53: =LOOKUP(C53,StrokeData!$A$4:$A$1119,StrokeData!$K$4:$K$1119) ->  | T53: =LOOKUP(C53,StrokeData!$A$4:$A$1119,StrokeData!$L$4:$L$1119) -> 
B54: 18 | C54: =IF(C53=-1,-1,LOOKUP(C53,StrokeData!$A$4:$A$1119,StrokeData!$L$4:$L$1119)) -> -1 | D54: =LOOKUP(C54,StrokeData!$A$4:$A$1119,StrokeData!$B$4:$B$1119) ->  | E54: =LOOKUP(C54,StrokeData!$A$4:$A$1119,StrokeData!$C$4:$C$1119) ->  | G54: =LOOKUP(C54,StrokeData!$A$4:$A$1119,StrokeData!$D$4:$D$1119) ->  | H54: =LOOKUP(C54,StrokeData!$A$4:$A$1119,StrokeData!$E$4:$E$1119) ->  | I54: =LOOKUP(C54,StrokeData!$A$4:$A$1119,StrokeData!$F$4:$F$1119) ->  | J54: =LOOKUP(C54,StrokeData!$A$4:$A$1119,StrokeData!$G$4:$G$1119) ->  | K54: =LOOKUP(C54,StrokeData!$A$4:$A$1119,StrokeData!$H$4:$H$1119) ->  | L54: =LOOKUP(C54,StrokeData!$A$4:$A$1119,StrokeData!$I$4:$I$1119) ->  | M54: =LOOKUP(C54,StrokeData!$A$4:$A$1119,StrokeData!$J$4:$J$1119) ->  | S54: =LOOKUP(C54,StrokeData!$A$4:$A$1119,StrokeData!$K$4:$K$1119) ->  | T54: =LOOKUP(C54,StrokeData!$A$4:$A$1119,StrokeData!$L$4:$L$1119) -> 
B55: 19 | C55: =IF(C54=-1,-1,LOOKUP(C54,StrokeData!$A$4:$A$1119,StrokeData!$L$4:$L$1119)) -> -1 | D55: =LOOKUP(C55,StrokeData!$A$4:$A$1119,StrokeData!$B$4:$B$1119) ->  | E55: =LOOKUP(C55,StrokeData!$A$4:$A$1119,StrokeData!$C$4:$C$1119) ->  | G55: =LOOKUP(C55,StrokeData!$A$4:$A$1119,StrokeData!$D$4:$D$1119) ->  | H55: =LOOKUP(C55,StrokeData!$A$4:$A$1119,StrokeData!$E$4:$E$1119) ->  | I55: =LOOKUP(C55,StrokeData!$A$4:$A$1119,StrokeData!$F$4:$F$1119) ->  | J55: =LOOKUP(C55,StrokeData!$A$4:$A$1119,StrokeData!$G$4:$G$1119) ->  | K55: =LOOKUP(C55,StrokeData!$A$4:$A$1119,StrokeData!$H$4:$H$1119) ->  | L55: =LOOKUP(C55,StrokeData!$A$4:$A$1119,StrokeData!$I$4:$I$1119) ->  | M55: =LOOKUP(C55,StrokeData!$A$4:$A$1119,StrokeData!$J$4:$J$1119) ->  | S55: =LOOKUP(C55,StrokeData!$A$4:$A$1119,StrokeData!$K$4:$K$1119) ->  | T55: =LOOKUP(C55,StrokeData!$A$4:$A$1119,StrokeData!$L$4:$L$1119) -> 
B56: 20 | C56: =IF(C55=-1,-1,LOOKUP(C55,StrokeData!$A$4:$A$1119,StrokeData!$L$4:$L$1119)) -> -1 | D56: =LOOKUP(C56,StrokeData!$A$4:$A$1119,StrokeData!$B$4:$B$1119) ->  | E56: =LOOKUP(C56,StrokeData!$A$4:$A$1119,StrokeData!$C$4:$C$1119) ->  | G56: =LOOKUP(C56,StrokeData!$A$4:$A$1119,StrokeData!$D$4:$D$1119) ->  | H56: =LOOKUP(C56,StrokeData!$A$4:$A$1119,StrokeData!$E$4:$E$1119) ->  | I56: =LOOKUP(C56,StrokeData!$A$4:$A$1119,StrokeData!$F$4:$F$1119) ->  | J56: =LOOKUP(C56,StrokeData!$A$4:$A$1119,StrokeData!$G$4:$G$1119) ->  | K56: =LOOKUP(C56,StrokeData!$A$4:$A$1119,StrokeData!$H$4:$H$1119) ->  | L56: =LOOKUP(C56,StrokeData!$A$4:$A$1119,StrokeData!$I$4:$I$1119) ->  | M56: =LOOKUP(C56,StrokeData!$A$4:$A$1119,StrokeData!$J$4:$J$1119) ->  | S56: =LOOKUP(C56,StrokeData!$A$4:$A$1119,StrokeData!$K$4:$K$1119) ->  | T56: =LOOKUP(C56,StrokeData!$A$4:$A$1119,StrokeData!$L$4:$L$1119) -> 
D57: ストローク | E57: =H5 -> 50 | F57: mm | G57: ～ | H57: =I5 -> 500 | I57: mm | K57: 刻み | L57: =LOOKUP(D35,B26:B33,R26:R33) -> 50 | M57: mm | O57: 慣性係数 | P57: =IF($J$5=1,0.000001,0.001) -> 0.001 | Q57: 有効桁数 | R57: =IF($J$5=1,6,3) -> 3
B58: stﾘｽﾄ検索用(降順) | D58: № | E58: =StrokeData!$B$2 -> ｽﾄﾛｰｸ長 | F58: stﾘｽﾄ№ | G58: =StrokeData!$C$2 -> 有効ｽﾄﾛｰｸ補正 | I58: =StrokeData!$D$2 -> 基準ｹﾞｲﾝ用搬送質量 | J58: =StrokeData!$E$2 -> 水平可搬質量 | K58: =StrokeData!$F$2 -> 垂直可搬質量 | L58: =StrokeData!$G$2 -> 最大速度 | M58: =StrokeData!$H$2 -> 位置ｹﾞｲﾝ | N58: =StrokeData!$I$2 -> FFｹﾞｲﾝ | O58: =StrokeData!$J$2 -> 速度制御帯域
B59: =B36 -> № | C59: =D36 -> ｽﾄﾛｰｸ長 | D59: 0 | E59: =H4 -> [mm] | G59: [mm] | H59: [kg/mm] | I59: =IF(J5=1,"[kgm^2]","[kg]") -> [kg] | J59: =IF(J5=1,"[kgm^2]","[kg]") -> [kg] | K59: =IF(J5=1,"[kgm^2]","[kg]") -> [kg] | L59: [mm/s] | M59: [1/s] | N59: [%] | O59: [rad/s] | Q59: [s] | T59: [Nm/rad]
B60: =B56 -> 20 | C60: =D56 ->  | D60: 1 | E60: =IF( (E57+L57*D59)<=H57,(E57+L57*D59),"- - -") -> 50 | F60: =(B60+1)-MATCH(E60,C60:C79,-1) -> 1 | G60: =LOOKUP(F60,B37:B56,E37:E56) -> 0 | H60: =LOOKUP(F60,$B$37:$B$56,$F$37:$F$56)*0.001 -> 0 | I60: =LOOKUP(F60,B37:B56,G37:G56)*$P$57 -> 18 | J60: =LOOKUP(F60,B37:B56,H37:H56)*$P$57 -> 18 | K60: =LOOKUP(F60,B37:B56,I37:I56)*$P$57 -> 12 | L60: =LOOKUP(F60,B37:B56,J37:J56) -> 195 | M60: =LOOKUP(F60,B37:B56,K37:K56) -> 40 | N60: =LOOKUP(F60,B37:B56,L37:L56) -> 0 | O60: =LOOKUP(F60,B37:B56,M37:M56) -> 391 | P60: =LOOKUP(F60,$B$37:$B$56,$N$37:$N$56) -> 0 | Q60: =LOOKUP(F60,$B$37:$B$56,$O$37:$O$56) -> 0 | R60: =LOOKUP(F60,$B$37:$B$56,$P$37:$P$56) -> 0 | S60: =LOOKUP(F60,$B$37:$B$56,$Q$37:$Q$56) -> 0 | T60: =LOOKUP(F60,$B$37:$B$56,$R$37:$R$56) -> 0
B61: =B55 -> 19 | C61: =D55 ->  | D61: =D60+1 -> 2 | E61: =IF( (E57+L57*D60)<=H57,(E57+L57*D60),"- - -") -> 100 | F61: =(B60+1)-MATCH(E61,C60:C79,-1) -> 1 | G61: =LOOKUP(F61,B37:B56,E37:E56) -> 0 | H61: 0 | I61: =LOOKUP(F61,B37:B56,G37:G56)*$P$57 -> 18 | J61: =LOOKUP(F61,B37:B56,H37:H56)*$P$57 -> 18 | K61: =LOOKUP(F61,B37:B56,I37:I56)*$P$57 -> 12 | L61: =LOOKUP(F61,B37:B56,J37:J56) -> 195 | M61: =LOOKUP(F61,B37:B56,K37:K56) -> 40 | N61: =LOOKUP(F61,B37:B56,L37:L56) -> 0 | O61: =LOOKUP(F61,B37:B56,M37:M56) -> 391 | P61: 0 | Q61: 0 | R61: 0 | S61: 0 | T61: 0
B62: =B54 -> 18 | C62: =D54 ->  | D62: =D61+1 -> 3 | E62: =IF( (E57+L57*D61)<=H57,(E57+L57*D61),"- - -") -> 150 | F62: =(B60+1)-MATCH(E62,C60:C79,-1) -> 1 | G62: =LOOKUP(F62,B37:B56,E37:E56) -> 0 | H62: 0 | I62: =LOOKUP(F62,B37:B56,G37:G56)*$P$57 -> 18 | J62: =LOOKUP(F62,B37:B56,H37:H56)*$P$57 -> 18 | K62: =LOOKUP(F62,B37:B56,I37:I56)*$P$57 -> 12 | L62: =LOOKUP(F62,B37:B56,J37:J56) -> 195 | M62: =LOOKUP(F62,B37:B56,K37:K56) -> 40 | N62: =LOOKUP(F62,B37:B56,L37:L56) -> 0 | O62: =LOOKUP(F62,B37:B56,M37:M56) -> 391 | P62: 0 | Q62: 0 | R62: 0 | S62: 0 | T62: 0
B63: =B53 -> 17 | C63: =D53 ->  | D63: 4 | E63: =IF( (E57+L57*D62)<=H57,(E57+L57*D62),"- - -") -> 200 | F63: =(B60+1)-MATCH(E63,C60:C79,-1) -> 1 | G63: =LOOKUP(F63,B37:B56,E37:E56) -> 0 | H63: 0 | I63: =LOOKUP(F63,B37:B56,G37:G56)*$P$57 -> 18 | J63: =LOOKUP(F63,B37:B56,H37:H56)*$P$57 -> 18 | K63: =LOOKUP(F63,B37:B56,I37:I56)*$P$57 -> 12 | L63: =LOOKUP(F63,B37:B56,J37:J56) -> 195 | M63: =LOOKUP(F63,B37:B56,K37:K56) -> 40 | N63: =LOOKUP(F63,B37:B56,L37:L56) -> 0 | O63: =LOOKUP(F63,B37:B56,M37:M56) -> 391 | P63: 0 | Q63: 0 | R63: 0 | S63: 0 | T63: 0
B64: =B52 -> 16 | C64: =D52 ->  | D64: 5 | E64: =IF( (E57+L57*D63)<=H57,(E57+L57*D63),"- - -") -> 250 | F64: =(B60+1)-MATCH(E64,C60:C79,-1) -> 1 | G64: =LOOKUP(F64,B37:B56,E37:E56) -> 0 | H64: 0 | I64: =LOOKUP(F64,B37:B56,G37:G56)*$P$57 -> 18 | J64: =LOOKUP(F64,B37:B56,H37:H56)*$P$57 -> 18 | K64: =LOOKUP(F64,B37:B56,I37:I56)*$P$57 -> 12 | L64: =LOOKUP(F64,B37:B56,J37:J56) -> 195 | M64: =LOOKUP(F64,B37:B56,K37:K56) -> 40 | N64: =LOOKUP(F64,B37:B56,L37:L56) -> 0 | O64: =LOOKUP(F64,B37:B56,M37:M56) -> 391 | P64: 0 | Q64: 0 | R64: 0 | S64: 0 | T64: 0
B65: =B51 -> 15 | C65: =D51 ->  | D65: 6 | E65: =IF( (E57+L57*D64)<=H57,(E57+L57*D64),"- - -") -> 300 | F65: =(B60+1)-MATCH(E65,C60:C79,-1) -> 1 | G65: =LOOKUP(F65,B37:B56,E37:E56) -> 0 | H65: 0 | I65: =LOOKUP(F65,B37:B56,G37:G56)*$P$57 -> 18 | J65: =LOOKUP(F65,B37:B56,H37:H56)*$P$57 -> 18 | K65: =LOOKUP(F65,B37:B56,I37:I56)*$P$57 -> 12 | L65: =LOOKUP(F65,B37:B56,J37:J56) -> 195 | M65: =LOOKUP(F65,B37:B56,K37:K56) -> 40 | N65: =LOOKUP(F65,B37:B56,L37:L56) -> 0 | O65: =LOOKUP(F65,B37:B56,M37:M56) -> 391 | P65: 0 | Q65: 0 | R65: 0 | S65: 0 | T65: 0
B66: =B50 -> 14 | C66: =D50 ->  | D66: 7 | E66: =IF( (E57+L57*D65)<=H57,(E57+L57*D65),"- - -") -> 350 | F66: =(B60+1)-MATCH(E66,C60:C79,-1) -> 1 | G66: =LOOKUP(F66,B37:B56,E37:E56) -> 0 | H66: 0 | I66: =LOOKUP(F66,B37:B56,G37:G56)*$P$57 -> 18 | J66: =LOOKUP(F66,B37:B56,H37:H56)*$P$57 -> 18 | K66: =LOOKUP(F66,B37:B56,I37:I56)*$P$57 -> 12 | L66: =LOOKUP(F66,B37:B56,J37:J56) -> 195 | M66: =LOOKUP(F66,B37:B56,K37:K56) -> 40 | N66: =LOOKUP(F66,B37:B56,L37:L56) -> 0 | O66: =LOOKUP(F66,B37:B56,M37:M56) -> 391 | P66: 0 | Q66: 0 | R66: 0 | S66: 0 | T66: 0
B67: =B49 -> 13 | C67: =D49 ->  | D67: 8 | E67: =IF( (E57+L57*D66)<=H57,(E57+L57*D66),"- - -") -> 400 | F67: =(B60+1)-MATCH(E67,C60:C79,-1) -> 1 | G67: =LOOKUP(F67,B37:B56,E37:E56) -> 0 | H67: 0 | I67: =LOOKUP(F67,B37:B56,G37:G56)*$P$57 -> 18 | J67: =LOOKUP(F67,B37:B56,H37:H56)*$P$57 -> 18 | K67: =LOOKUP(F67,B37:B56,I37:I56)*$P$57 -> 12 | L67: =LOOKUP(F67,B37:B56,J37:J56) -> 195 | M67: =LOOKUP(F67,B37:B56,K37:K56) -> 40 | N67: =LOOKUP(F67,B37:B56,L37:L56) -> 0 | O67: =LOOKUP(F67,B37:B56,M37:M56) -> 391 | P67: 0 | Q67: 0 | R67: 0 | S67: 0 | T67: 0
B68: =B48 -> 12 | C68: =D48 ->  | D68: 9 | E68: =IF( (E57+L57*D67)<=H57,(E57+L57*D67),"- - -") -> 450 | F68: =(B60+1)-MATCH(E68,C60:C79,-1) -> 2 | G68: =LOOKUP(F68,B37:B56,E37:E56) -> 0 | H68: 0 | I68: =LOOKUP(F68,B37:B56,G37:G56)*$P$57 -> 18 | J68: =LOOKUP(F68,B37:B56,H37:H56)*$P$57 -> 18 | K68: =LOOKUP(F68,B37:B56,I37:I56)*$P$57 -> 12 | L68: =LOOKUP(F68,B37:B56,J37:J56) -> 165 | M68: =LOOKUP(F68,B37:B56,K37:K56) -> 40 | N68: =LOOKUP(F68,B37:B56,L37:L56) -> 0 | O68: =LOOKUP(F68,B37:B56,M37:M56) -> 391 | P68: 0 | Q68: 0 | R68: 0 | S68: 0 | T68: 0
B69: =B47 -> 11 | C69: =D47 ->  | D69: 10 | E69: =IF( (E57+L57*D68)<=H57,(E57+L57*D68),"- - -") -> 500 | F69: =(B60+1)-MATCH(E69,C60:C79,-1) -> 3 | G69: =LOOKUP(F69,B37:B56,E37:E56) -> 0 | H69: 0 | I69: =LOOKUP(F69,B37:B56,G37:G56)*$P$57 -> 18 | J69: =LOOKUP(F69,B37:B56,H37:H56)*$P$57 -> 18 | K69: =LOOKUP(F69,B37:B56,I37:I56)*$P$57 -> 12 | L69: =LOOKUP(F69,B37:B56,J37:J56) -> 135 | M69: =LOOKUP(F69,B37:B56,K37:K56) -> 40 | N69: =LOOKUP(F69,B37:B56,L37:L56) -> 0 | O69: =LOOKUP(F69,B37:B56,M37:M56) -> 391 | P69: 0 | Q69: 0 | R69: 0 | S69: 0 | T69: 0
B70: =B46 -> 10 | C70: =D46 ->  | D70: 11 | E70: =IF( (E57+L57*D69)<=H57,(E57+L57*D69),"- - -") -> - - - | F70: =(B60+1)-MATCH(E70,C60:C79,-1) ->  | G70: =LOOKUP(F70,B37:B56,E37:E56) ->  | I70: =LOOKUP(F70,B37:B56,G37:G56)*$P$57 ->  | J70: =LOOKUP(F70,B37:B56,H37:H56)*$P$57 ->  | K70: =LOOKUP(F70,B37:B56,I37:I56)*$P$57 ->  | L70: =LOOKUP(F70,B37:B56,J37:J56) ->  | M70: =LOOKUP(F70,B37:B56,K37:K56) ->  | N70: =LOOKUP(F70,B37:B56,L37:L56) ->  | O70: =LOOKUP(F70,B37:B56,M37:M56) -> 
B71: =B45 -> 9 | C71: =D45 ->  | D71: 12 | E71: =IF( (E57+L57*D70)<=H57,(E57+L57*D70),"- - -") -> - - - | F71: =(B60+1)-MATCH(E71,C60:C79,-1) ->  | G71: =LOOKUP(F71,B37:B56,E37:E56) ->  | I71: =LOOKUP(F71,B37:B56,G37:G56)*$P$57 ->  | J71: =LOOKUP(F71,B37:B56,H37:H56)*$P$57 ->  | K71: =LOOKUP(F71,B37:B56,I37:I56)*$P$57 ->  | L71: =LOOKUP(F71,B37:B56,J37:J56) ->  | M71: =LOOKUP(F71,B37:B56,K37:K56) ->  | N71: =LOOKUP(F71,B37:B56,L37:L56) ->  | O71: =LOOKUP(F71,B37:B56,M37:M56) -> 
B72: =B44 -> 8 | C72: =D44 ->  | D72: 13 | E72: =IF( (E57+L57*D71)<=H57,(E57+L57*D71),"- - -") -> - - - | F72: =(B60+1)-MATCH(E72,C60:C79,-1) ->  | G72: =LOOKUP(F72,B37:B56,E37:E56) ->  | I72: =LOOKUP(F72,B37:B56,G37:G56)*$P$57 ->  | J72: =LOOKUP(F72,B37:B56,H37:H56)*$P$57 ->  | K72: =LOOKUP(F72,B37:B56,I37:I56)*$P$57 ->  | L72: =LOOKUP(F72,B37:B56,J37:J56) ->  | M72: =LOOKUP(F72,B37:B56,K37:K56) ->  | N72: =LOOKUP(F72,B37:B56,L37:L56) ->  | O72: =LOOKUP(F72,B37:B56,M37:M56) -> 
B73: =B43 -> 7 | C73: =D43 ->  | D73: 14 | E73: =IF( (E57+L57*D72)<=H57,(E57+L57*D72),"- - -") -> - - - | F73: =(B60+1)-MATCH(E73,C60:C79,-1) ->  | G73: =LOOKUP(F73,B37:B56,E37:E56) ->  | I73: =LOOKUP(F73,B37:B56,G37:G56)*$P$57 ->  | J73: =LOOKUP(F73,B37:B56,H37:H56)*$P$57 ->  | K73: =LOOKUP(F73,B37:B56,I37:I56)*$P$57 ->  | L73: =LOOKUP(F73,B37:B56,J37:J56) ->  | M73: =LOOKUP(F73,B37:B56,K37:K56) ->  | N73: =LOOKUP(F73,B37:B56,L37:L56) ->  | O73: =LOOKUP(F73,B37:B56,M37:M56) -> 
B74: =B42 -> 6 | C74: =D42 ->  | D74: 15 | E74: =IF( (E57+L57*D73)<=H57,(E57+L57*D73),"- - -") -> - - - | F74: =(B60+1)-MATCH(E74,C60:C79,-1) ->  | G74: =LOOKUP(F74,B37:B56,E37:E56) ->  | I74: =LOOKUP(F74,B37:B56,G37:G56)*$P$57 ->  | J74: =LOOKUP(F74,B37:B56,H37:H56)*$P$57 ->  | K74: =LOOKUP(F74,B37:B56,I37:I56)*$P$57 ->  | L74: =LOOKUP(F74,B37:B56,J37:J56) ->  | M74: =LOOKUP(F74,B37:B56,K37:K56) ->  | N74: =LOOKUP(F74,B37:B56,L37:L56) ->  | O74: =LOOKUP(F74,B37:B56,M37:M56) -> 
B75: =B41 -> 5 | C75: =D41 ->  | D75: 16 | E75: =IF( (E57+L57*D74)<=H57,(E57+L57*D74),"- - -") -> - - - | F75: =(B60+1)-MATCH(E75,C60:C79,-1) ->  | G75: =LOOKUP(F75,B37:B56,E37:E56) ->  | I75: =LOOKUP(F75,B37:B56,G37:G56)*$P$57 ->  | J75: =LOOKUP(F75,B37:B56,H37:H56)*$P$57 ->  | K75: =LOOKUP(F75,B37:B56,I37:I56)*$P$57 ->  | L75: =LOOKUP(F75,B37:B56,J37:J56) ->  | M75: =LOOKUP(F75,B37:B56,K37:K56) ->  | N75: =LOOKUP(F75,B37:B56,L37:L56) ->  | O75: =LOOKUP(F75,B37:B56,M37:M56) -> 
B76: =B40 -> 4 | C76: =D40 ->  | D76: 17 | E76: =IF( (E57+L57*D75)<=H57,(E57+L57*D75),"- - -") -> - - - | F76: =(B60+1)-MATCH(E76,C60:C79,-1) ->  | G76: =LOOKUP(F76,B37:B56,E37:E56) ->  | I76: =LOOKUP(F76,B37:B56,G37:G56)*$P$57 ->  | J76: =LOOKUP(F76,B37:B56,H37:H56)*$P$57 ->  | K76: =LOOKUP(F76,B37:B56,I37:I56)*$P$57 ->  | L76: =LOOKUP(F76,B37:B56,J37:J56) ->  | M76: =LOOKUP(F76,B37:B56,K37:K56) ->  | N76: =LOOKUP(F76,B37:B56,L37:L56) ->  | O76: =LOOKUP(F76,B37:B56,M37:M56) -> 
B77: =B39 -> 3 | C77: =D39 -> 500 | D77: 18 | E77: =IF( (E57+L57*D76)<=H57,(E57+L57*D76),"- - -") -> - - - | F77: =(B60+1)-MATCH(E77,C60:C79,-1) ->  | G77: =LOOKUP(F77,B37:B56,E37:E56) ->  | I77: =LOOKUP(F77,B37:B56,G37:G56)*$P$57 ->  | J77: =LOOKUP(F77,B37:B56,H37:H56)*$P$57 ->  | K77: =LOOKUP(F77,B37:B56,I37:I56)*$P$57 ->  | L77: =LOOKUP(F77,B37:B56,J37:J56) ->  | M77: =LOOKUP(F77,B37:B56,K37:K56) ->  | N77: =LOOKUP(F77,B37:B56,L37:L56) ->  | O77: =LOOKUP(F77,B37:B56,M37:M56) -> 
B78: =B38 -> 2 | C78: =D38 -> 450 | D78: 19 | E78: =IF( (E57+L57*D77)<=H57,(E57+L57*D77),"- - -") -> - - - | F78: =(B60+1)-MATCH(E78,C60:C79,-1) ->  | G78: =LOOKUP(F78,B37:B56,E37:E56) ->  | I78: =LOOKUP(F78,B37:B56,G37:G56)*$P$57 ->  | J78: =LOOKUP(F78,B37:B56,H37:H56)*$P$57 ->  | K78: =LOOKUP(F78,B37:B56,I37:I56)*$P$57 ->  | L78: =LOOKUP(F78,B37:B56,J37:J56) ->  | M78: =LOOKUP(F78,B37:B56,K37:K56) ->  | N78: =LOOKUP(F78,B37:B56,L37:L56) ->  | O78: =LOOKUP(F78,B37:B56,M37:M56) -> 
B79: =B37 -> 1 | C79: =D37 -> 400 | D79: 20 | E79: =IF( (E57+L57*D78)<=H57,(E57+L57*D78),"- - -") -> - - - | F79: =(B60+1)-MATCH(E79,C60:C79,-1) ->  | G79: =LOOKUP(F79,B37:B56,E37:E56) ->  | I79: =LOOKUP(F79,B37:B56,G37:G56)*$P$57 ->  | J79: =LOOKUP(F79,B37:B56,H37:H56)*$P$57 ->  | K79: =LOOKUP(F79,B37:B56,I37:I56)*$P$57 ->  | L79: =LOOKUP(F79,B37:B56,J37:J56) ->  | M79: =LOOKUP(F79,B37:B56,K37:K56) ->  | N79: =LOOKUP(F79,B37:B56,L37:L56) ->  | O79: =LOOKUP(F79,B37:B56,M37:M56) -> 
D80: 21 | E80: =IF( (E57+L57*D79)<=H57,(E57+L57*D79),"- - -") -> - - - | F80: =(B60+1)-MATCH(E80,C60:C79,-1) ->  | G80: =LOOKUP(F80,B37:B56,E37:E56) ->  | I80: =LOOKUP(F80,B37:B56,G37:G56)*$P$57 ->  | J80: =LOOKUP(F80,B37:B56,H37:H56)*$P$57 ->  | K80: =LOOKUP(F80,B37:B56,I37:I56)*$P$57 ->  | L80: =LOOKUP(F80,B37:B56,J37:J56) ->  | M80: =LOOKUP(F80,B37:B56,K37:K56) ->  | N80: =LOOKUP(F80,B37:B56,L37:L56) ->  | O80: =LOOKUP(F80,B37:B56,M37:M56) -> 
D81: 22 | E81: =IF( (E57+L57*D80)<=H57,(E57+L57*D80),"- - -") -> - - - | F81: =(B60+1)-MATCH(E81,C60:C79,-1) ->  | G81: =LOOKUP(F81,B37:B56,E37:E56) ->  | I81: =LOOKUP(F81,B37:B56,G37:G56)*$P$57 ->  | J81: =LOOKUP(F81,B37:B56,H37:H56)*$P$57 ->  | K81: =LOOKUP(F81,B37:B56,I37:I56)*$P$57 ->  | L81: =LOOKUP(F81,B37:B56,J37:J56) ->  | M81: =LOOKUP(F81,B37:B56,K37:K56) ->  | N81: =LOOKUP(F81,B37:B56,L37:L56) ->  | O81: =LOOKUP(F81,B37:B56,M37:M56) -> 
D82: 23 | E82: =IF( (E57+L57*D81)<=H57,(E57+L57*D81),"- - -") -> - - - | F82: =(B60+1)-MATCH(E82,C60:C79,-1) ->  | G82: =LOOKUP(F82,B37:B56,E37:E56) ->  | I82: =LOOKUP(F82,B37:B56,G37:G56)*$P$57 ->  | J82: =LOOKUP(F82,B37:B56,H37:H56)*$P$57 ->  | K82: =LOOKUP(F82,B37:B56,I37:I56)*$P$57 ->  | L82: =LOOKUP(F82,B37:B56,J37:J56) ->  | M82: =LOOKUP(F82,B37:B56,K37:K56) ->  | N82: =LOOKUP(F82,B37:B56,L37:L56) ->  | O82: =LOOKUP(F82,B37:B56,M37:M56) -> 
D83: 24 | E83: =IF( (E57+L57*D82)<=H57,(E57+L57*D82),"- - -") -> - - - | F83: =(B60+1)-MATCH(E83,C60:C79,-1) ->  | G83: =LOOKUP(F83,B37:B56,E37:E56) ->  | I83: =LOOKUP(F83,B37:B56,G37:G56)*$P$57 ->  | J83: =LOOKUP(F83,B37:B56,H37:H56)*$P$57 ->  | K83: =LOOKUP(F83,B37:B56,I37:I56)*$P$57 ->  | L83: =LOOKUP(F83,B37:B56,J37:J56) ->  | M83: =LOOKUP(F83,B37:B56,K37:K56) ->  | N83: =LOOKUP(F83,B37:B56,L37:L56) ->  | O83: =LOOKUP(F83,B37:B56,M37:M56) -> 
D84: 25 | E84: =IF( (E57+L57*D83)<=H57,(E57+L57*D83),"- - -") -> - - - | F84: =(B60+1)-MATCH(E84,C60:C79,-1) ->  | G84: =LOOKUP(F84,B37:B56,E37:E56) ->  | I84: =LOOKUP(F84,B37:B56,G37:G56)*$P$57 ->  | J84: =LOOKUP(F84,B37:B56,H37:H56)*$P$57 ->  | K84: =LOOKUP(F84,B37:B56,I37:I56)*$P$57 ->  | L84: =LOOKUP(F84,B37:B56,J37:J56) ->  | M84: =LOOKUP(F84,B37:B56,K37:K56) ->  | N84: =LOOKUP(F84,B37:B56,L37:L56) ->  | O84: =LOOKUP(F84,B37:B56,M37:M56) -> 
D85: 26 | E85: =IF( (E57+L57*D84)<=H57,(E57+L57*D84),"- - -") -> - - - | F85: =(B60+1)-MATCH(E85,C60:C79,-1) ->  | G85: =LOOKUP(F85,B37:B56,E37:E56) ->  | I85: =LOOKUP(F85,B37:B56,G37:G56)*$P$57 ->  | J85: =LOOKUP(F85,B37:B56,H37:H56)*$P$57 ->  | K85: =LOOKUP(F85,B37:B56,I37:I56)*$P$57 ->  | L85: =LOOKUP(F85,B37:B56,J37:J56) ->  | M85: =LOOKUP(F85,B37:B56,K37:K56) ->  | N85: =LOOKUP(F85,B37:B56,L37:L56) ->  | O85: =LOOKUP(F85,B37:B56,M37:M56) -> 
D86: 27 | E86: =IF( (E57+L57*D85)<=H57,(E57+L57*D85),"- - -") -> - - - | F86: =(B60+1)-MATCH(E86,C60:C79,-1) ->  | G86: =LOOKUP(F86,B37:B56,E37:E56) ->  | I86: =LOOKUP(F86,B37:B56,G37:G56)*$P$57 ->  | J86: =LOOKUP(F86,B37:B56,H37:H56)*$P$57 ->  | K86: =LOOKUP(F86,B37:B56,I37:I56)*$P$57 ->  | L86: =LOOKUP(F86,B37:B56,J37:J56) ->  | M86: =LOOKUP(F86,B37:B56,K37:K56) ->  | N86: =LOOKUP(F86,B37:B56,L37:L56) ->  | O86: =LOOKUP(F86,B37:B56,M37:M56) -> 
D87: 28 | E87: =IF( (E57+L57*D86)<=H57,(E57+L57*D86),"- - -") -> - - - | F87: =(B60+1)-MATCH(E87,C60:C79,-1) ->  | G87: =LOOKUP(F87,B37:B56,E37:E56) ->  | I87: =LOOKUP(F87,B37:B56,G37:G56)*$P$57 ->  | J87: =LOOKUP(F87,B37:B56,H37:H56)*$P$57 ->  | K87: =LOOKUP(F87,B37:B56,I37:I56)*$P$57 ->  | L87: =LOOKUP(F87,B37:B56,J37:J56) ->  | M87: =LOOKUP(F87,B37:B56,K37:K56) ->  | N87: =LOOKUP(F87,B37:B56,L37:L56) ->  | O87: =LOOKUP(F87,B37:B56,M37:M56) -> 
D88: 29 | E88: =IF( (E57+L57*D87)<=H57,(E57+L57*D87),"- - -") -> - - - | F88: =(B60+1)-MATCH(E88,C60:C79,-1) ->  | G88: =LOOKUP(F88,B37:B56,E37:E56) ->  | I88: =LOOKUP(F88,B37:B56,G37:G56)*$P$57 ->  | J88: =LOOKUP(F88,B37:B56,H37:H56)*$P$57 ->  | K88: =LOOKUP(F88,B37:B56,I37:I56)*$P$57 ->  | L88: =LOOKUP(F88,B37:B56,J37:J56) ->  | M88: =LOOKUP(F88,B37:B56,K37:K56) ->  | N88: =LOOKUP(F88,B37:B56,L37:L56) ->  | O88: =LOOKUP(F88,B37:B56,M37:M56) -> 
D89: 30 | E89: =IF( (E57+L57*D88)<=H57,(E57+L57*D88),"- - -") -> - - - | F89: =(B60+1)-MATCH(E89,C60:C79,-1) ->  | G89: =LOOKUP(F89,B37:B56,E37:E56) ->  | I89: =LOOKUP(F89,B37:B56,G37:G56)*$P$57 ->  | J89: =LOOKUP(F89,B37:B56,H37:H56)*$P$57 ->  | K89: =LOOKUP(F89,B37:B56,I37:I56)*$P$57 ->  | L89: =LOOKUP(F89,B37:B56,J37:J56) ->  | M89: =LOOKUP(F89,B37:B56,K37:K56) ->  | N89: =LOOKUP(F89,B37:B56,L37:L56) ->  | O89: =LOOKUP(F89,B37:B56,M37:M56) -> 
D90: =D89+1 -> 31 | E90: =IF( (E57+L57*D89)<=H57,(E57+L57*D89),"- - -") -> - - - | F90: =(B60+1)-MATCH(E90,C60:C79,-1) ->  | G90: =LOOKUP(F90,B37:B56,E37:E56) ->  | I90: =LOOKUP(F90,B37:B56,G37:G56)*$P$57 ->  | J90: =LOOKUP(F90,B37:B56,H37:H56)*$P$57 ->  | K90: =LOOKUP(F90,B37:B56,I37:I56)*$P$57 ->  | L90: =LOOKUP(F90,B37:B56,J37:J56) ->  | M90: =LOOKUP(F90,B37:B56,K37:K56) ->  | N90: =LOOKUP(F90,B37:B56,L37:L56) ->  | O90: =LOOKUP(F90,B37:B56,M37:M56) -> 
D91: 32 | E91: =IF( (E57+L57*D90)<=H57,(E57+L57*D90),"- - -") -> - - - | F91: =(B60+1)-MATCH(E91,C60:C79,-1) ->  | G91: =LOOKUP(F91,B37:B56,E37:E56) ->  | I91: =LOOKUP(F91,B37:B56,G37:G56)*$P$57 ->  | J91: =LOOKUP(F91,B37:B56,H37:H56)*$P$57 ->  | K91: =LOOKUP(F91,B37:B56,I37:I56)*$P$57 ->  | L91: =LOOKUP(F91,B37:B56,J37:J56) ->  | M91: =LOOKUP(F91,B37:B56,K37:K56) ->  | N91: =LOOKUP(F91,B37:B56,L37:L56) ->  | O91: =LOOKUP(F91,B37:B56,M37:M56) -> 
D92: 33 | E92: =IF( (E57+L57*D91)<=H57,(E57+L57*D91),"- - -") -> - - - | F92: =(B60+1)-MATCH(E92,C60:C79,-1) ->  | G92: =LOOKUP(F92,B37:B56,E37:E56) ->  | H92: =LOOKUP(F92,$B$37:$B$56,$F$37:$F$56)*0.001 ->  | I92: =LOOKUP(F92,B37:B56,G37:G56)*$P$57 ->  | J92: =LOOKUP(F92,B37:B56,H37:H56)*$P$57 ->  | K92: =LOOKUP(F92,B37:B56,I37:I56)*$P$57 ->  | L92: =LOOKUP(F92,B37:B56,J37:J56) ->  | M92: =LOOKUP(F92,B37:B56,K37:K56) ->  | N92: =LOOKUP(F92,B37:B56,L37:L56) ->  | O92: =LOOKUP(F92,B37:B56,M37:M56) ->  | P92: =LOOKUP(F92,$B$37:$B$56,$N$37:$N$56) ->  | Q92: =LOOKUP(F92,$B$37:$B$56,$O$37:$O$56) ->  | R92: =LOOKUP(F92,$B$37:$B$56,$P$37:$P$56) ->  | S92: =LOOKUP(F92,$B$37:$B$56,$Q$37:$Q$56) ->  | T92: =LOOKUP(F92,$B$37:$B$56,$R$37:$R$56) -> 
D93: 34 | E93: =IF( (E57+L57*D92)<=H57,(E57+L57*D92),"- - -") -> - - - | F93: =(B60+1)-MATCH(E93,C60:C79,-1) ->  | G93: =LOOKUP(F93,B37:B56,E37:E56) ->  | I93: =LOOKUP(F93,B37:B56,G37:G56)*$P$57 ->  | J93: =LOOKUP(F93,B37:B56,H37:H56)*$P$57 ->  | K93: =LOOKUP(F93,B37:B56,I37:I56)*$P$57 ->  | L93: =LOOKUP(F93,B37:B56,J37:J56) ->  | M93: =LOOKUP(F93,B37:B56,K37:K56) ->  | N93: =LOOKUP(F93,B37:B56,L37:L56) ->  | O93: =LOOKUP(F93,B37:B56,M37:M56) -> 
D94: 35 | E94: =IF( (E57+L57*D93)<=H57,(E57+L57*D93),"- - -") -> - - - | F94: =(B60+1)-MATCH(E94,C60:C79,-1) ->  | G94: =LOOKUP(F94,B37:B56,E37:E56) ->  | I94: =LOOKUP(F94,B37:B56,G37:G56)*$P$57 ->  | J94: =LOOKUP(F94,B37:B56,H37:H56)*$P$57 ->  | K94: =LOOKUP(F94,B37:B56,I37:I56)*$P$57 ->  | L94: =LOOKUP(F94,B37:B56,J37:J56) ->  | M94: =LOOKUP(F94,B37:B56,K37:K56) ->  | N94: =LOOKUP(F94,B37:B56,L37:L56) ->  | O94: =LOOKUP(F94,B37:B56,M37:M56) -> 
D95: 36 | E95: =IF( (E57+L57*D94)<=H57,(E57+L57*D94),"- - -") -> - - - | F95: =(B60+1)-MATCH(E95,C60:C79,-1) ->  | G95: =LOOKUP(F95,B37:B56,E37:E56) ->  | I95: =LOOKUP(F95,B37:B56,G37:G56)*$P$57 ->  | J95: =LOOKUP(F95,B37:B56,H37:H56)*$P$57 ->  | K95: =LOOKUP(F95,B37:B56,I37:I56)*$P$57 ->  | L95: =LOOKUP(F95,B37:B56,J37:J56) ->  | M95: =LOOKUP(F95,B37:B56,K37:K56) ->  | N95: =LOOKUP(F95,B37:B56,L37:L56) ->  | O95: =LOOKUP(F95,B37:B56,M37:M56) -> 
D96: 37 | E96: =IF( (E57+L57*D95)<=H57,(E57+L57*D95),"- - -") -> - - - | F96: =(B60+1)-MATCH(E96,C60:C79,-1) ->  | G96: =LOOKUP(F96,B37:B56,E37:E56) ->  | I96: =LOOKUP(F96,B37:B56,G37:G56)*$P$57 ->  | J96: =LOOKUP(F96,B37:B56,H37:H56)*$P$57 ->  | K96: =LOOKUP(F96,B37:B56,I37:I56)*$P$57 ->  | L96: =LOOKUP(F96,B37:B56,J37:J56) ->  | M96: =LOOKUP(F96,B37:B56,K37:K56) ->  | N96: =LOOKUP(F96,B37:B56,L37:L56) ->  | O96: =LOOKUP(F96,B37:B56,M37:M56) -> 
D97: 38 | E97: =IF( (E57+L57*D96)<=H57,(E57+L57*D96),"- - -") -> - - - | F97: =(B60+1)-MATCH(E97,C60:C79,-1) ->  | G97: =LOOKUP(F97,B37:B56,E37:E56) ->  | I97: =LOOKUP(F97,B37:B56,G37:G56)*$P$57 ->  | J97: =LOOKUP(F97,B37:B56,H37:H56)*$P$57 ->  | K97: =LOOKUP(F97,B37:B56,I37:I56)*$P$57 ->  | L97: =LOOKUP(F97,B37:B56,J37:J56) ->  | M97: =LOOKUP(F97,B37:B56,K37:K56) ->  | N97: =LOOKUP(F97,B37:B56,L37:L56) ->  | O97: =LOOKUP(F97,B37:B56,M37:M56) -> 
D98: 39 | E98: =IF( (E57+L57*D97)<=H57,(E57+L57*D97),"- - -") -> - - - | F98: =(B60+1)-MATCH(E98,C60:C79,-1) ->  | G98: =LOOKUP(F98,B37:B56,E37:E56) ->  | I98: =LOOKUP(F98,B37:B56,G37:G56)*$P$57 ->  | J98: =LOOKUP(F98,B37:B56,H37:H56)*$P$57 ->  | K98: =LOOKUP(F98,B37:B56,I37:I56)*$P$57 ->  | L98: =LOOKUP(F98,B37:B56,J37:J56) ->  | M98: =LOOKUP(F98,B37:B56,K37:K56) ->  | N98: =LOOKUP(F98,B37:B56,L37:L56) ->  | O98: =LOOKUP(F98,B37:B56,M37:M56) -> 
D99: 40 | E99: =IF( (E57+L57*D98)<=H57,(E57+L57*D98),"- - -") -> - - - | F99: =(B60+1)-MATCH(E99,C60:C79,-1) ->  | G99: =LOOKUP(F99,B37:B56,E37:E56) ->  | I99: =LOOKUP(F99,B37:B56,G37:G56)*$P$57 ->  | J99: =LOOKUP(F99,B37:B56,H37:H56)*$P$57 ->  | K99: =LOOKUP(F99,B37:B56,I37:I56)*$P$57 ->  | L99: =LOOKUP(F99,B37:B56,J37:J56) ->  | M99: =LOOKUP(F99,B37:B56,K37:K56) ->  | N99: =LOOKUP(F99,B37:B56,L37:L56) ->  | O99: =LOOKUP(F99,B37:B56,M37:M56) -> 
D100: 41 | E100: =IF( (E57+L57*D99)<=H57,(E57+L57*D99),"- - -") -> - - - | F100: =(B60+1)-MATCH(E100,C60:C79,-1) ->  | G100: =LOOKUP(F100,B37:B56,E37:E56) ->  | I100: =LOOKUP(F100,B37:B56,G37:G56)*$P$57 ->  | J100: =LOOKUP(F100,B37:B56,H37:H56)*$P$57 ->  | K100: =LOOKUP(F100,B37:B56,I37:I56)*$P$57 ->  | L100: =LOOKUP(F100,B37:B56,J37:J56) ->  | M100: =LOOKUP(F100,B37:B56,K37:K56) ->  | N100: =LOOKUP(F100,B37:B56,L37:L56) ->  | O100: =LOOKUP(F100,B37:B56,M37:M56) -> 
D101: 42 | E101: =IF( (E57+L57*D100)<=H57,(E57+L57*D100),"- - -") -> - - - | F101: =(B60+1)-MATCH(E101,C60:C79,-1) ->  | G101: =LOOKUP(F101,B37:B56,E37:E56) ->  | I101: =LOOKUP(F101,B37:B56,G37:G56)*$P$57 ->  | J101: =LOOKUP(F101,B37:B56,H37:H56)*$P$57 ->  | K101: =LOOKUP(F101,B37:B56,I37:I56)*$P$57 ->  | L101: =LOOKUP(F101,B37:B56,J37:J56) ->  | M101: =LOOKUP(F101,B37:B56,K37:K56) ->  | N101: =LOOKUP(F101,B37:B56,L37:L56) ->  | O101: =LOOKUP(F101,B37:B56,M37:M56) -> 
D102: 43 | E102: =IF( (E57+L57*D101)<=H57,(E57+L57*D101),"- - -") -> - - - | F102: =(B60+1)-MATCH(E102,C60:C79,-1) ->  | G102: =LOOKUP(F102,B37:B56,E37:E56) ->  | I102: =LOOKUP(F102,B37:B56,G37:G56)*$P$57 ->  | J102: =LOOKUP(F102,B37:B56,H37:H56)*$P$57 ->  | K102: =LOOKUP(F102,B37:B56,I37:I56)*$P$57 ->  | L102: =LOOKUP(F102,B37:B56,J37:J56) ->  | M102: =LOOKUP(F102,B37:B56,K37:K56) ->  | N102: =LOOKUP(F102,B37:B56,L37:L56) ->  | O102: =LOOKUP(F102,B37:B56,M37:M56) -> 
D103: 44 | E103: =IF( (E57+L57*D102)<=H57,(E57+L57*D102),"- - -") -> - - - | F103: =(B60+1)-MATCH(E103,C60:C79,-1) ->  | G103: =LOOKUP(F103,B37:B56,E37:E56) ->  | I103: =LOOKUP(F103,B37:B56,G37:G56)*$P$57 ->  | J103: =LOOKUP(F103,B37:B56,H37:H56)*$P$57 ->  | K103: =LOOKUP(F103,B37:B56,I37:I56)*$P$57 ->  | L103: =LOOKUP(F103,B37:B56,J37:J56) ->  | M103: =LOOKUP(F103,B37:B56,K37:K56) ->  | N103: =LOOKUP(F103,B37:B56,L37:L56) ->  | O103: =LOOKUP(F103,B37:B56,M37:M56) -> 
D104: 45 | E104: =IF( (E57+L57*D103)<=H57,(E57+L57*D103),"- - -") -> - - - | F104: =(B60+1)-MATCH(E104,C60:C79,-1) ->  | G104: =LOOKUP(F104,B37:B56,E37:E56) ->  | I104: =LOOKUP(F104,B37:B56,G37:G56)*$P$57 ->  | J104: =LOOKUP(F104,B37:B56,H37:H56)*$P$57 ->  | K104: =LOOKUP(F104,B37:B56,I37:I56)*$P$57 ->  | L104: =LOOKUP(F104,B37:B56,J37:J56) ->  | M104: =LOOKUP(F104,B37:B56,K37:K56) ->  | N104: =LOOKUP(F104,B37:B56,L37:L56) ->  | O104: =LOOKUP(F104,B37:B56,M37:M56) -> 
D105: 46 | E105: =IF( (E57+L57*D104)<=H57,(E57+L57*D104),"- - -") -> - - - | F105: =(B60+1)-MATCH(E105,C60:C79,-1) ->  | G105: =LOOKUP(F105,B37:B56,E37:E56) ->  | I105: =LOOKUP(F105,B37:B56,G37:G56)*$P$57 ->  | J105: =LOOKUP(F105,B37:B56,H37:H56)*$P$57 ->  | K105: =LOOKUP(F105,B37:B56,I37:I56)*$P$57 ->  | L105: =LOOKUP(F105,B37:B56,J37:J56) ->  | M105: =LOOKUP(F105,B37:B56,K37:K56) ->  | N105: =LOOKUP(F105,B37:B56,L37:L56) ->  | O105: =LOOKUP(F105,B37:B56,M37:M56) -> 
D106: 47 | E106: =IF( (E57+L57*D105)<=H57,(E57+L57*D105),"- - -") -> - - - | F106: =(B60+1)-MATCH(E106,C60:C79,-1) ->  | G106: =LOOKUP(F106,B37:B56,E37:E56) ->  | I106: =LOOKUP(F106,B37:B56,G37:G56)*$P$57 ->  | J106: =LOOKUP(F106,B37:B56,H37:H56)*$P$57 ->  | K106: =LOOKUP(F106,B37:B56,I37:I56)*$P$57 ->  | L106: =LOOKUP(F106,B37:B56,J37:J56) ->  | M106: =LOOKUP(F106,B37:B56,K37:K56) ->  | N106: =LOOKUP(F106,B37:B56,L37:L56) ->  | O106: =LOOKUP(F106,B37:B56,M37:M56) -> 
D107: 48 | E107: =IF( (E57+L57*D106)<=H57,(E57+L57*D106),"- - -") -> - - - | F107: =(B60+1)-MATCH(E107,C60:C79,-1) ->  | G107: =LOOKUP(F107,B37:B56,E37:E56) ->  | I107: =LOOKUP(F107,B37:B56,G37:G56)*$P$57 ->  | J107: =LOOKUP(F107,B37:B56,H37:H56)*$P$57 ->  | K107: =LOOKUP(F107,B37:B56,I37:I56)*$P$57 ->  | L107: =LOOKUP(F107,B37:B56,J37:J56) ->  | M107: =LOOKUP(F107,B37:B56,K37:K56) ->  | N107: =LOOKUP(F107,B37:B56,L37:L56) ->  | O107: =LOOKUP(F107,B37:B56,M37:M56) -> 
D108: 49 | E108: =IF( (E57+L57*D107)<=H57,(E57+L57*D107),"- - -") -> - - - | F108: =(B60+1)-MATCH(E108,C60:C79,-1) ->  | G108: =LOOKUP(F108,B37:B56,E37:E56) ->  | I108: =LOOKUP(F108,B37:B56,G37:G56)*$P$57 ->  | J108: =LOOKUP(F108,B37:B56,H37:H56)*$P$57 ->  | K108: =LOOKUP(F108,B37:B56,I37:I56)*$P$57 ->  | L108: =LOOKUP(F108,B37:B56,J37:J56) ->  | M108: =LOOKUP(F108,B37:B56,K37:K56) ->  | N108: =LOOKUP(F108,B37:B56,L37:L56) ->  | O108: =LOOKUP(F108,B37:B56,M37:M56) -> 
D109: 50 | E109: =IF( (E57+L57*D108)<=H57,(E57+L57*D108),"- - -") -> - - - | F109: =(B60+1)-MATCH(E109,C60:C79,-1) ->  | G109: =LOOKUP(F109,B37:B56,E37:E56) ->  | I109: =LOOKUP(F109,B37:B56,G37:G56)*$P$57 ->  | J109: =LOOKUP(F109,B37:B56,H37:H56)*$P$57 ->  | K109: =LOOKUP(F109,B37:B56,I37:I56)*$P$57 ->  | L109: =LOOKUP(F109,B37:B56,J37:J56) ->  | M109: =LOOKUP(F109,B37:B56,K37:K56) ->  | N109: =LOOKUP(F109,B37:B56,L37:L56) ->  | O109: =LOOKUP(F109,B37:B56,M37:M56) -> 
B112: 搬送負荷データレコード | E112: =LOOKUP(C114,MassDataLink!$A$4:$A$5618,MassDataLink!$G$4:$G$5618) -> RCP6-SA4C-2.5-水平 | J112: 設置姿勢で絞込み | L112: - - - | N112: 加減速・速度データレコード
B113: № | C113: Ldﾚｺｰﾄﾞ№ | D113: =MassDataLink!B2 -> ｱｸﾁｭｴｰﾀ姿勢 | E113: =MassDataLink!C2 -> 搬送負荷質量 | F113: =MassDataLink!D2 -> 加減速・速度ﾃﾞｰﾀ | G113: =MassDataLink!E2 -> 前ﾃﾞｰﾀ№ | H113: =MassDataLink!F2 -> 次ﾃﾞｰﾀ№ | J113: № | K113: 搬送負荷質量 | L113: avﾚｺｰﾄﾞ№ | N113: 備考 | O113: =LOOKUP(O115,AccVelDataLink!$A$4:$A$8947,AccVelDataLink!$F$4:$F$8947) -> RCP6-SA4C-2.5-水平
B114: 1 | C114: =LOOKUP(D35,B26:B33,E26:E33) -> 2478 | D114: =LOOKUP(C114,MassDataLink!$A$4:$A$5618,MassDataLink!$B$4:$B$5618) -> 0 | E114: =LOOKUP(C114,MassDataLink!$A$4:$A$5618,MassDataLink!$C$4:$C$5618) -> 18000 | F114: =LOOKUP(C114,MassDataLink!$A$4:$A$5618,MassDataLink!$D$4:$D$5618) -> 3531 | G114: =LOOKUP(C114,MassDataLink!$A$4:$A$5618,MassDataLink!$E$4:$E$5618) -> -1 | H114: =LOOKUP(C114,MassDataLink!$A$4:$A$5618,MassDataLink!$F$4:$F$5618) -> 2479 | J114: 1 | K114: =IF(C114=-1,$L$112,IF($A$11=D114,ROUND((E114*$P$57),$R$57),$L$112)) -> 18 | L114: =IF(K114=$L$112,$L$112,F114) -> 3531 | N114: № | O114: avﾚｺｰﾄﾞ№ | P114: 加速度 | Q114: 速度 | R114: 前ﾃﾞｰﾀ | S114: 次ﾃﾞｰﾀ
B115: =B114+1 -> 2 | C115: =IF(C114=-1,-1,H114) -> 2479 | D115: =LOOKUP(C115,MassDataLink!$A$4:$A$5618,MassDataLink!$B$4:$B$5618) -> 1 | E115: =LOOKUP(C115,MassDataLink!$A$4:$A$5618,MassDataLink!$C$4:$C$5618) -> 8000 | F115: =LOOKUP(C115,MassDataLink!$A$4:$A$5618,MassDataLink!$D$4:$D$5618) -> 3532 | G115: =LOOKUP(C115,MassDataLink!$A$4:$A$5618,MassDataLink!$E$4:$E$5618) -> 2478 | H115: =LOOKUP(C115,MassDataLink!$A$4:$A$5618,MassDataLink!$F$4:$F$5618) -> 2480 | J115: =J114+1 -> 2 | K115: =IF(C115=-1,$L$112,IF($A$11=D115,ROUND((E115*$P$57),$R$57),$L$112)) -> - - - | L115: =IF(K115=$L$112,$L$112,F115) -> - - - | N115: 1 | O115: =LOOKUP(A14,K114:K163,L114:L163) -> 3531 | P115: =LOOKUP(O115,AccVelDataLink!$A$4:$A$8947,AccVelDataLink!$B$4:$B$8947) -> 9806650 | Q115: =LOOKUP(O115,AccVelDataLink!$A$4:$A$8947,AccVelDataLink!$C$4:$C$8947) -> 195 | R115: =LOOKUP(O115,AccVelDataLink!$A$4:$A$8947,AccVelDataLink!$D$4:$D$8947) -> -1 | S115: =LOOKUP(O115,AccVelDataLink!$A$4:$A$8947,AccVelDataLink!$E$4:$E$8947) -> -1
B116: =B115+1 -> 3 | C116: =IF(C115=-1,-1,H115) -> 2480 | D116: =LOOKUP(C116,MassDataLink!$A$4:$A$5618,MassDataLink!$B$4:$B$5618) -> 1 | E116: =LOOKUP(C116,MassDataLink!$A$4:$A$5618,MassDataLink!$C$4:$C$5618) -> 9000 | F116: =LOOKUP(C116,MassDataLink!$A$4:$A$5618,MassDataLink!$D$4:$D$5618) -> 3533 | G116: =LOOKUP(C116,MassDataLink!$A$4:$A$5618,MassDataLink!$E$4:$E$5618) -> 2479 | H116: =LOOKUP(C116,MassDataLink!$A$4:$A$5618,MassDataLink!$F$4:$F$5618) -> 2481 | J116: =J115+1 -> 3 | K116: - - - | L116: - - - | N116: =N115+1 -> 2 | O116: =IF(O115=-1,-1,S115) -> -1 | P116: =LOOKUP(O116,AccVelDataLink!$A$4:$A$8947,AccVelDataLink!$B$4:$B$8947) ->  | Q116: =LOOKUP(O116,AccVelDataLink!$A$4:$A$8947,AccVelDataLink!$C$4:$C$8947) ->  | R116: =LOOKUP(O116,AccVelDataLink!$A$4:$A$8947,AccVelDataLink!$D$4:$D$8947) ->  | S116: =LOOKUP(O116,AccVelDataLink!$A$4:$A$8947,AccVelDataLink!$E$4:$E$8947) -> 
B117: =B116+1 -> 4 | C117: =IF(C116=-1,-1,H116) -> 2481 | D117: =LOOKUP(C117,MassDataLink!$A$4:$A$5618,MassDataLink!$B$4:$B$5618) -> 1 | E117: =LOOKUP(C117,MassDataLink!$A$4:$A$5618,MassDataLink!$C$4:$C$5618) -> 10000 | F117: =LOOKUP(C117,MassDataLink!$A$4:$A$5618,MassDataLink!$D$4:$D$5618) -> 3534 | G117: =LOOKUP(C117,MassDataLink!$A$4:$A$5618,MassDataLink!$E$4:$E$5618) -> 2480 | H117: =LOOKUP(C117,MassDataLink!$A$4:$A$5618,MassDataLink!$F$4:$F$5618) -> 2482 | J117: =J116+1 -> 4 | K117: - - - | L117: - - - | N117: 3 | O117: =IF(O116=-1,-1,S116) -> -1 | P117: =LOOKUP(O117,AccVelDataLink!$A$4:$A$8947,AccVelDataLink!$B$4:$B$8947) ->  | Q117: =LOOKUP(O117,AccVelDataLink!$A$4:$A$8947,AccVelDataLink!$C$4:$C$8947) ->  | R117: =LOOKUP(O117,AccVelDataLink!$A$4:$A$8947,AccVelDataLink!$D$4:$D$8947) ->  | S117: =LOOKUP(O117,AccVelDataLink!$A$4:$A$8947,AccVelDataLink!$E$4:$E$8947) -> 
B118: =B117+1 -> 5 | C118: =IF(C117=-1,-1,H117) -> 2482 | D118: =LOOKUP(C118,MassDataLink!$A$4:$A$5618,MassDataLink!$B$4:$B$5618) -> 1 | E118: =LOOKUP(C118,MassDataLink!$A$4:$A$5618,MassDataLink!$C$4:$C$5618) -> 11000 | F118: =LOOKUP(C118,MassDataLink!$A$4:$A$5618,MassDataLink!$D$4:$D$5618) -> 3535 | G118: =LOOKUP(C118,MassDataLink!$A$4:$A$5618,MassDataLink!$E$4:$E$5618) -> 2481 | H118: =LOOKUP(C118,MassDataLink!$A$4:$A$5618,MassDataLink!$F$4:$F$5618) -> 2483 | J118: =J117+1 -> 5 | K118: - - - | L118: - - - | N118: 4 | O118: -1 | P118: =LOOKUP(O118,AccVelDataLink!$A$4:$A$8947,AccVelDataLink!$B$4:$B$8947) ->  | Q118: =LOOKUP(O118,AccVelDataLink!$A$4:$A$8947,AccVelDataLink!$C$4:$C$8947) ->  | R118: =LOOKUP(O118,AccVelDataLink!$A$4:$A$8947,AccVelDataLink!$D$4:$D$8947) ->  | S118: =LOOKUP(O118,AccVelDataLink!$A$4:$A$8947,AccVelDataLink!$E$4:$E$8947) -> 
B119: =B118+1 -> 6 | C119: =IF(C118=-1,-1,H118) -> 2483 | D119: =LOOKUP(C119,MassDataLink!$A$4:$A$5618,MassDataLink!$B$4:$B$5618) -> 1 | E119: =LOOKUP(C119,MassDataLink!$A$4:$A$5618,MassDataLink!$C$4:$C$5618) -> 12000 | F119: =LOOKUP(C119,MassDataLink!$A$4:$A$5618,MassDataLink!$D$4:$D$5618) -> 3536 | G119: =LOOKUP(C119,MassDataLink!$A$4:$A$5618,MassDataLink!$E$4:$E$5618) -> 2482 | H119: =LOOKUP(C119,MassDataLink!$A$4:$A$5618,MassDataLink!$F$4:$F$5618) -> -1 | J119: =J118+1 -> 6 | K119: - - - | L119: - - - | N119: 5 | O119: -1 | P119: =LOOKUP(O119,AccVelDataLink!$A$4:$A$8947,AccVelDataLink!$B$4:$B$8947) ->  | Q119: =LOOKUP(O119,AccVelDataLink!$A$4:$A$8947,AccVelDataLink!$C$4:$C$8947) ->  | R119: =LOOKUP(O119,AccVelDataLink!$A$4:$A$8947,AccVelDataLink!$D$4:$D$8947) ->  | S119: =LOOKUP(O119,AccVelDataLink!$A$4:$A$8947,AccVelDataLink!$E$4:$E$8947) -> 
B120: 7 | C120: -1 | D120: =LOOKUP(C120,MassDataLink!$A$4:$A$5618,MassDataLink!$B$4:$B$5618) ->  | E120: =LOOKUP(C120,MassDataLink!$A$4:$A$5618,MassDataLink!$C$4:$C$5618) ->  | F120: =LOOKUP(C120,MassDataLink!$A$4:$A$5618,MassDataLink!$D$4:$D$5618) ->  | G120: =LOOKUP(C120,MassDataLink!$A$4:$A$5618,MassDataLink!$E$4:$E$5618) ->  | H120: =LOOKUP(C120,MassDataLink!$A$4:$A$5618,MassDataLink!$F$4:$F$5618) ->  | J120: 7 | K120: - - - | L120: - - - | N120: 6 | O120: -1 | P120: =LOOKUP(O120,AccVelDataLink!$A$4:$A$8947,AccVelDataLink!$B$4:$B$8947) ->  | Q120: =LOOKUP(O120,AccVelDataLink!$A$4:$A$8947,AccVelDataLink!$C$4:$C$8947) ->  | R120: =LOOKUP(O120,AccVelDataLink!$A$4:$A$8947,AccVelDataLink!$D$4:$D$8947) ->  | S120: =LOOKUP(O120,AccVelDataLink!$A$4:$A$8947,AccVelDataLink!$E$4:$E$8947) -> 
B121: 8 | C121: -1 | D121: =LOOKUP(C121,MassDataLink!$A$4:$A$5618,MassDataLink!$B$4:$B$5618) ->  | E121: =LOOKUP(C121,MassDataLink!$A$4:$A$5618,MassDataLink!$C$4:$C$5618) ->  | F121: =LOOKUP(C121,MassDataLink!$A$4:$A$5618,MassDataLink!$D$4:$D$5618) ->  | G121: =LOOKUP(C121,MassDataLink!$A$4:$A$5618,MassDataLink!$E$4:$E$5618) ->  | H121: =LOOKUP(C121,MassDataLink!$A$4:$A$5618,MassDataLink!$F$4:$F$5618) ->  | J121: 8 | K121: - - - | L121: - - - | N121: 7 | O121: -1 | P121: =LOOKUP(O121,AccVelDataLink!$A$4:$A$8947,AccVelDataLink!$B$4:$B$8947) ->  | Q121: =LOOKUP(O121,AccVelDataLink!$A$4:$A$8947,AccVelDataLink!$C$4:$C$8947) ->  | R121: =LOOKUP(O121,AccVelDataLink!$A$4:$A$8947,AccVelDataLink!$D$4:$D$8947) ->  | S121: =LOOKUP(O121,AccVelDataLink!$A$4:$A$8947,AccVelDataLink!$E$4:$E$8947) -> 
B122: 9 | C122: -1 | D122: =LOOKUP(C122,MassDataLink!$A$4:$A$5618,MassDataLink!$B$4:$B$5618) ->  | E122: =LOOKUP(C122,MassDataLink!$A$4:$A$5618,MassDataLink!$C$4:$C$5618) ->  | F122: =LOOKUP(C122,MassDataLink!$A$4:$A$5618,MassDataLink!$D$4:$D$5618) ->  | G122: =LOOKUP(C122,MassDataLink!$A$4:$A$5618,MassDataLink!$E$4:$E$5618) ->  | H122: =LOOKUP(C122,MassDataLink!$A$4:$A$5618,MassDataLink!$F$4:$F$5618) ->  | J122: 9 | K122: - - - | L122: - - - | N122: 8 | O122: -1 | P122: =LOOKUP(O122,AccVelDataLink!$A$4:$A$8947,AccVelDataLink!$B$4:$B$8947) ->  | Q122: =LOOKUP(O122,AccVelDataLink!$A$4:$A$8947,AccVelDataLink!$C$4:$C$8947) ->  | R122: =LOOKUP(O122,AccVelDataLink!$A$4:$A$8947,AccVelDataLink!$D$4:$D$8947) ->  | S122: =LOOKUP(O122,AccVelDataLink!$A$4:$A$8947,AccVelDataLink!$E$4:$E$8947) -> 
B123: 10 | C123: -1 | D123: =LOOKUP(C123,MassDataLink!$A$4:$A$5618,MassDataLink!$B$4:$B$5618) ->  | E123: =LOOKUP(C123,MassDataLink!$A$4:$A$5618,MassDataLink!$C$4:$C$5618) ->  | F123: =LOOKUP(C123,MassDataLink!$A$4:$A$5618,MassDataLink!$D$4:$D$5618) ->  | G123: =LOOKUP(C123,MassDataLink!$A$4:$A$5618,MassDataLink!$E$4:$E$5618) ->  | H123: =LOOKUP(C123,MassDataLink!$A$4:$A$5618,MassDataLink!$F$4:$F$5618) ->  | J123: 10 | K123: - - - | L123: - - - | N123: 9 | O123: -1 | P123: =LOOKUP(O123,AccVelDataLink!$A$4:$A$8947,AccVelDataLink!$B$4:$B$8947) ->  | Q123: =LOOKUP(O123,AccVelDataLink!$A$4:$A$8947,AccVelDataLink!$C$4:$C$8947) ->  | R123: =LOOKUP(O123,AccVelDataLink!$A$4:$A$8947,AccVelDataLink!$D$4:$D$8947) ->  | S123: =LOOKUP(O123,AccVelDataLink!$A$4:$A$8947,AccVelDataLink!$E$4:$E$8947) -> 
B124: 11 | C124: -1 | D124: =LOOKUP(C124,MassDataLink!$A$4:$A$5618,MassDataLink!$B$4:$B$5618) ->  | E124: =LOOKUP(C124,MassDataLink!$A$4:$A$5618,MassDataLink!$C$4:$C$5618) ->  | F124: =LOOKUP(C124,MassDataLink!$A$4:$A$5618,MassDataLink!$D$4:$D$5618) ->  | G124: =LOOKUP(C124,MassDataLink!$A$4:$A$5618,MassDataLink!$E$4:$E$5618) ->  | H124: =LOOKUP(C124,MassDataLink!$A$4:$A$5618,MassDataLink!$F$4:$F$5618) ->  | J124: 11 | K124: - - - | L124: - - - | N124: 10 | O124: -1 | P124: =LOOKUP(O124,AccVelDataLink!$A$4:$A$8947,AccVelDataLink!$B$4:$B$8947) ->  | Q124: =LOOKUP(O124,AccVelDataLink!$A$4:$A$8947,AccVelDataLink!$C$4:$C$8947) ->  | R124: =LOOKUP(O124,AccVelDataLink!$A$4:$A$8947,AccVelDataLink!$D$4:$D$8947) ->  | S124: =LOOKUP(O124,AccVelDataLink!$A$4:$A$8947,AccVelDataLink!$E$4:$E$8947) -> 
B125: 12 | C125: -1 | D125: =LOOKUP(C125,MassDataLink!$A$4:$A$5618,MassDataLink!$B$4:$B$5618) ->  | E125: =LOOKUP(C125,MassDataLink!$A$4:$A$5618,MassDataLink!$C$4:$C$5618) ->  | F125: =LOOKUP(C125,MassDataLink!$A$4:$A$5618,MassDataLink!$D$4:$D$5618) ->  | G125: =LOOKUP(C125,MassDataLink!$A$4:$A$5618,MassDataLink!$E$4:$E$5618) ->  | H125: =LOOKUP(C125,MassDataLink!$A$4:$A$5618,MassDataLink!$F$4:$F$5618) ->  | J125: 12 | K125: - - - | L125: - - - | O125: 加速度系数 | P125: 1e-06
B126: 13 | C126: -1 | D126: =LOOKUP(C126,MassDataLink!$A$4:$A$5618,MassDataLink!$B$4:$B$5618) ->  | E126: =LOOKUP(C126,MassDataLink!$A$4:$A$5618,MassDataLink!$C$4:$C$5618) ->  | F126: =LOOKUP(C126,MassDataLink!$A$4:$A$5618,MassDataLink!$D$4:$D$5618) ->  | G126: =LOOKUP(C126,MassDataLink!$A$4:$A$5618,MassDataLink!$E$4:$E$5618) ->  | H126: =LOOKUP(C126,MassDataLink!$A$4:$A$5618,MassDataLink!$F$4:$F$5618) ->  | J126: 13 | K126: - - - | L126: - - - | N126: G | O126: № | P126: 加速度 | Q126: 速度
B127: 14 | C127: -1 | D127: =LOOKUP(C127,MassDataLink!$A$4:$A$5618,MassDataLink!$B$4:$B$5618) ->  | E127: =LOOKUP(C127,MassDataLink!$A$4:$A$5618,MassDataLink!$C$4:$C$5618) ->  | F127: =LOOKUP(C127,MassDataLink!$A$4:$A$5618,MassDataLink!$D$4:$D$5618) ->  | G127: =LOOKUP(C127,MassDataLink!$A$4:$A$5618,MassDataLink!$E$4:$E$5618) ->  | H127: =LOOKUP(C127,MassDataLink!$A$4:$A$5618,MassDataLink!$F$4:$F$5618) ->  | J127: 14 | K127: - - - | L127: - - - | N127: =LeadData!A1 -> 9.80665 | O127: 1 | P127: =IF(O115=-1,$L$112,(P115/$N$127)*$P$125) -> 1 | Q127: =IF(O115=-1,$L$112,Q115) -> 195
B128: 15 | C128: -1 | D128: =LOOKUP(C128,MassDataLink!$A$4:$A$5618,MassDataLink!$B$4:$B$5618) ->  | E128: =LOOKUP(C128,MassDataLink!$A$4:$A$5618,MassDataLink!$C$4:$C$5618) ->  | F128: =LOOKUP(C128,MassDataLink!$A$4:$A$5618,MassDataLink!$D$4:$D$5618) ->  | G128: =LOOKUP(C128,MassDataLink!$A$4:$A$5618,MassDataLink!$E$4:$E$5618) ->  | H128: =LOOKUP(C128,MassDataLink!$A$4:$A$5618,MassDataLink!$F$4:$F$5618) ->  | J128: 15 | K128: - - - | L128: - - - | O128: =O127+1 -> 2 | P128: =IF(O116=-1,$L$112,(P116/$N$127)*$P$125) -> - - - | Q128: =IF(O116=-1,$L$112,Q116) -> - - -
B129: 16 | C129: -1 | D129: =LOOKUP(C129,MassDataLink!$A$4:$A$5618,MassDataLink!$B$4:$B$5618) ->  | E129: =LOOKUP(C129,MassDataLink!$A$4:$A$5618,MassDataLink!$C$4:$C$5618) ->  | F129: =LOOKUP(C129,MassDataLink!$A$4:$A$5618,MassDataLink!$D$4:$D$5618) ->  | G129: =LOOKUP(C129,MassDataLink!$A$4:$A$5618,MassDataLink!$E$4:$E$5618) ->  | H129: =LOOKUP(C129,MassDataLink!$A$4:$A$5618,MassDataLink!$F$4:$F$5618) ->  | J129: 16 | K129: - - - | L129: - - - | O129: 3 | P129: - - - | Q129: - - -
B130: 17 | C130: -1 | D130: =LOOKUP(C130,MassDataLink!$A$4:$A$5618,MassDataLink!$B$4:$B$5618) ->  | E130: =LOOKUP(C130,MassDataLink!$A$4:$A$5618,MassDataLink!$C$4:$C$5618) ->  | F130: =LOOKUP(C130,MassDataLink!$A$4:$A$5618,MassDataLink!$D$4:$D$5618) ->  | G130: =LOOKUP(C130,MassDataLink!$A$4:$A$5618,MassDataLink!$E$4:$E$5618) ->  | H130: =LOOKUP(C130,MassDataLink!$A$4:$A$5618,MassDataLink!$F$4:$F$5618) ->  | J130: 17 | K130: - - - | L130: - - - | O130: 4 | P130: - - - | Q130: - - -
B131: 18 | C131: -1 | D131: =LOOKUP(C131,MassDataLink!$A$4:$A$5618,MassDataLink!$B$4:$B$5618) ->  | E131: =LOOKUP(C131,MassDataLink!$A$4:$A$5618,MassDataLink!$C$4:$C$5618) ->  | F131: =LOOKUP(C131,MassDataLink!$A$4:$A$5618,MassDataLink!$D$4:$D$5618) ->  | G131: =LOOKUP(C131,MassDataLink!$A$4:$A$5618,MassDataLink!$E$4:$E$5618) ->  | H131: =LOOKUP(C131,MassDataLink!$A$4:$A$5618,MassDataLink!$F$4:$F$5618) ->  | J131: 18 | K131: - - - | L131: - - - | O131: 5 | P131: - - - | Q131: - - -
B132: 19 | C132: -1 | D132: =LOOKUP(C132,MassDataLink!$A$4:$A$5618,MassDataLink!$B$4:$B$5618) ->  | E132: =LOOKUP(C132,MassDataLink!$A$4:$A$5618,MassDataLink!$C$4:$C$5618) ->  | F132: =LOOKUP(C132,MassDataLink!$A$4:$A$5618,MassDataLink!$D$4:$D$5618) ->  | G132: =LOOKUP(C132,MassDataLink!$A$4:$A$5618,MassDataLink!$E$4:$E$5618) ->  | H132: =LOOKUP(C132,MassDataLink!$A$4:$A$5618,MassDataLink!$F$4:$F$5618) ->  | J132: 19 | K132: - - - | L132: - - - | O132: 6 | P132: - - - | Q132: - - -
B133: 20 | C133: -1 | D133: =LOOKUP(C133,MassDataLink!$A$4:$A$5618,MassDataLink!$B$4:$B$5618) ->  | E133: =LOOKUP(C133,MassDataLink!$A$4:$A$5618,MassDataLink!$C$4:$C$5618) ->  | F133: =LOOKUP(C133,MassDataLink!$A$4:$A$5618,MassDataLink!$D$4:$D$5618) ->  | G133: =LOOKUP(C133,MassDataLink!$A$4:$A$5618,MassDataLink!$E$4:$E$5618) ->  | H133: =LOOKUP(C133,MassDataLink!$A$4:$A$5618,MassDataLink!$F$4:$F$5618) ->  | J133: 20 | K133: - - - | L133: - - - | O133: 7 | P133: - - - | Q133: - - -
B134: 21 | C134: -1 | D134: =LOOKUP(C134,MassDataLink!$A$4:$A$5618,MassDataLink!$B$4:$B$5618) ->  | E134: =LOOKUP(C134,MassDataLink!$A$4:$A$5618,MassDataLink!$C$4:$C$5618) ->  | F134: =LOOKUP(C134,MassDataLink!$A$4:$A$5618,MassDataLink!$D$4:$D$5618) ->  | G134: =LOOKUP(C134,MassDataLink!$A$4:$A$5618,MassDataLink!$E$4:$E$5618) ->  | H134: =LOOKUP(C134,MassDataLink!$A$4:$A$5618,MassDataLink!$F$4:$F$5618) ->  | J134: 21 | K134: - - - | L134: - - - | O134: 8 | P134: - - - | Q134: - - -
B135: 22 | C135: -1 | D135: =LOOKUP(C135,MassDataLink!$A$4:$A$5618,MassDataLink!$B$4:$B$5618) ->  | E135: =LOOKUP(C135,MassDataLink!$A$4:$A$5618,MassDataLink!$C$4:$C$5618) ->  | F135: =LOOKUP(C135,MassDataLink!$A$4:$A$5618,MassDataLink!$D$4:$D$5618) ->  | G135: =LOOKUP(C135,MassDataLink!$A$4:$A$5618,MassDataLink!$E$4:$E$5618) ->  | H135: =LOOKUP(C135,MassDataLink!$A$4:$A$5618,MassDataLink!$F$4:$F$5618) ->  | J135: 22 | K135: - - - | L135: - - - | O135: 9 | P135: - - - | Q135: - - -
B136: 23 | C136: -1 | D136: =LOOKUP(C136,MassDataLink!$A$4:$A$5618,MassDataLink!$B$4:$B$5618) ->  | E136: =LOOKUP(C136,MassDataLink!$A$4:$A$5618,MassDataLink!$C$4:$C$5618) ->  | F136: =LOOKUP(C136,MassDataLink!$A$4:$A$5618,MassDataLink!$D$4:$D$5618) ->  | G136: =LOOKUP(C136,MassDataLink!$A$4:$A$5618,MassDataLink!$E$4:$E$5618) ->  | H136: =LOOKUP(C136,MassDataLink!$A$4:$A$5618,MassDataLink!$F$4:$F$5618) ->  | J136: 23 | K136: - - - | L136: - - - | O136: 10 | P136: - - - | Q136: - - -
B137: =B136+1 -> 24 | C137: =IF(C136=-1,-1,H136) -> -1 | D137: =LOOKUP(C137,MassDataLink!$A$4:$A$5618,MassDataLink!$B$4:$B$5618) ->  | E137: =LOOKUP(C137,MassDataLink!$A$4:$A$5618,MassDataLink!$C$4:$C$5618) ->  | F137: =LOOKUP(C137,MassDataLink!$A$4:$A$5618,MassDataLink!$D$4:$D$5618) ->  | G137: =LOOKUP(C137,MassDataLink!$A$4:$A$5618,MassDataLink!$E$4:$E$5618) ->  | H137: =LOOKUP(C137,MassDataLink!$A$4:$A$5618,MassDataLink!$F$4:$F$5618) ->  | J137: 24 | K137: - - - | L137: - - -
B138: 25 | C138: -1 | D138: =LOOKUP(C138,MassDataLink!$A$4:$A$5618,MassDataLink!$B$4:$B$5618) ->  | E138: =LOOKUP(C138,MassDataLink!$A$4:$A$5618,MassDataLink!$C$4:$C$5618) ->  | F138: =LOOKUP(C138,MassDataLink!$A$4:$A$5618,MassDataLink!$D$4:$D$5618) ->  | G138: =LOOKUP(C138,MassDataLink!$A$4:$A$5618,MassDataLink!$E$4:$E$5618) ->  | H138: =LOOKUP(C138,MassDataLink!$A$4:$A$5618,MassDataLink!$F$4:$F$5618) ->  | J138: 25 | K138: - - - | L138: - - -
B139: 26 | C139: -1 | D139: =LOOKUP(C139,MassDataLink!$A$4:$A$5618,MassDataLink!$B$4:$B$5618) ->  | E139: =LOOKUP(C139,MassDataLink!$A$4:$A$5618,MassDataLink!$C$4:$C$5618) ->  | F139: =LOOKUP(C139,MassDataLink!$A$4:$A$5618,MassDataLink!$D$4:$D$5618) ->  | G139: =LOOKUP(C139,MassDataLink!$A$4:$A$5618,MassDataLink!$E$4:$E$5618) ->  | H139: =LOOKUP(C139,MassDataLink!$A$4:$A$5618,MassDataLink!$F$4:$F$5618) ->  | J139: 26 | K139: - - - | L139: - - -
B140: 27 | C140: -1 | D140: =LOOKUP(C140,MassDataLink!$A$4:$A$5618,MassDataLink!$B$4:$B$5618) ->  | E140: =LOOKUP(C140,MassDataLink!$A$4:$A$5618,MassDataLink!$C$4:$C$5618) ->  | F140: =LOOKUP(C140,MassDataLink!$A$4:$A$5618,MassDataLink!$D$4:$D$5618) ->  | G140: =LOOKUP(C140,MassDataLink!$A$4:$A$5618,MassDataLink!$E$4:$E$5618) ->  | H140: =LOOKUP(C140,MassDataLink!$A$4:$A$5618,MassDataLink!$F$4:$F$5618) ->  | J140: 27 | K140: - - - | L140: - - -
B141: 28 | C141: -1 | D141: =LOOKUP(C141,MassDataLink!$A$4:$A$5618,MassDataLink!$B$4:$B$5618) ->  | E141: =LOOKUP(C141,MassDataLink!$A$4:$A$5618,MassDataLink!$C$4:$C$5618) ->  | F141: =LOOKUP(C141,MassDataLink!$A$4:$A$5618,MassDataLink!$D$4:$D$5618) ->  | G141: =LOOKUP(C141,MassDataLink!$A$4:$A$5618,MassDataLink!$E$4:$E$5618) ->  | H141: =LOOKUP(C141,MassDataLink!$A$4:$A$5618,MassDataLink!$F$4:$F$5618) ->  | J141: 28 | K141: - - - | L141: - - -
B142: 29 | C142: -1 | D142: =LOOKUP(C142,MassDataLink!$A$4:$A$5618,MassDataLink!$B$4:$B$5618) ->  | E142: =LOOKUP(C142,MassDataLink!$A$4:$A$5618,MassDataLink!$C$4:$C$5618) ->  | F142: =LOOKUP(C142,MassDataLink!$A$4:$A$5618,MassDataLink!$D$4:$D$5618) ->  | G142: =LOOKUP(C142,MassDataLink!$A$4:$A$5618,MassDataLink!$E$4:$E$5618) ->  | H142: =LOOKUP(C142,MassDataLink!$A$4:$A$5618,MassDataLink!$F$4:$F$5618) ->  | J142: 29 | K142: - - - | L142: - - -
B143: 30 | C143: -1 | D143: =LOOKUP(C143,MassDataLink!$A$4:$A$5618,MassDataLink!$B$4:$B$5618) ->  | E143: =LOOKUP(C143,MassDataLink!$A$4:$A$5618,MassDataLink!$C$4:$C$5618) ->  | F143: =LOOKUP(C143,MassDataLink!$A$4:$A$5618,MassDataLink!$D$4:$D$5618) ->  | G143: =LOOKUP(C143,MassDataLink!$A$4:$A$5618,MassDataLink!$E$4:$E$5618) ->  | H143: =LOOKUP(C143,MassDataLink!$A$4:$A$5618,MassDataLink!$F$4:$F$5618) ->  | J143: 30 | K143: - - - | L143: - - -
B144: =B143+1 -> 31 | C144: =IF(C143=-1,-1,H143) -> -1 | D144: =LOOKUP(C144,MassDataLink!$A$4:$A$5618,MassDataLink!$B$4:$B$5618) ->  | E144: =LOOKUP(C144,MassDataLink!$A$4:$A$5618,MassDataLink!$C$4:$C$5618) ->  | F144: =LOOKUP(C144,MassDataLink!$A$4:$A$5618,MassDataLink!$D$4:$D$5618) ->  | G144: =LOOKUP(C144,MassDataLink!$A$4:$A$5618,MassDataLink!$E$4:$E$5618) ->  | H144: =LOOKUP(C144,MassDataLink!$A$4:$A$5618,MassDataLink!$F$4:$F$5618) ->  | J144: 31 | K144: - - - | L144: - - -
B145: 32 | C145: -1 | D145: =LOOKUP(C145,MassDataLink!$A$4:$A$5618,MassDataLink!$B$4:$B$5618) ->  | E145: =LOOKUP(C145,MassDataLink!$A$4:$A$5618,MassDataLink!$C$4:$C$5618) ->  | F145: =LOOKUP(C145,MassDataLink!$A$4:$A$5618,MassDataLink!$D$4:$D$5618) ->  | G145: =LOOKUP(C145,MassDataLink!$A$4:$A$5618,MassDataLink!$E$4:$E$5618) ->  | H145: =LOOKUP(C145,MassDataLink!$A$4:$A$5618,MassDataLink!$F$4:$F$5618) ->  | J145: 32 | K145: - - - | L145: - - -
B146: 33 | C146: -1 | D146: =LOOKUP(C146,MassDataLink!$A$4:$A$5618,MassDataLink!$B$4:$B$5618) ->  | E146: =LOOKUP(C146,MassDataLink!$A$4:$A$5618,MassDataLink!$C$4:$C$5618) ->  | F146: =LOOKUP(C146,MassDataLink!$A$4:$A$5618,MassDataLink!$D$4:$D$5618) ->  | G146: =LOOKUP(C146,MassDataLink!$A$4:$A$5618,MassDataLink!$E$4:$E$5618) ->  | H146: =LOOKUP(C146,MassDataLink!$A$4:$A$5618,MassDataLink!$F$4:$F$5618) ->  | J146: 33 | K146: - - - | L146: - - -
B147: 34 | C147: -1 | D147: =LOOKUP(C147,MassDataLink!$A$4:$A$5618,MassDataLink!$B$4:$B$5618) ->  | E147: =LOOKUP(C147,MassDataLink!$A$4:$A$5618,MassDataLink!$C$4:$C$5618) ->  | F147: =LOOKUP(C147,MassDataLink!$A$4:$A$5618,MassDataLink!$D$4:$D$5618) ->  | G147: =LOOKUP(C147,MassDataLink!$A$4:$A$5618,MassDataLink!$E$4:$E$5618) ->  | H147: =LOOKUP(C147,MassDataLink!$A$4:$A$5618,MassDataLink!$F$4:$F$5618) ->  | J147: 34 | K147: - - - | L147: - - -
B148: 35 | C148: -1 | D148: =LOOKUP(C148,MassDataLink!$A$4:$A$5618,MassDataLink!$B$4:$B$5618) ->  | E148: =LOOKUP(C148,MassDataLink!$A$4:$A$5618,MassDataLink!$C$4:$C$5618) ->  | F148: =LOOKUP(C148,MassDataLink!$A$4:$A$5618,MassDataLink!$D$4:$D$5618) ->  | G148: =LOOKUP(C148,MassDataLink!$A$4:$A$5618,MassDataLink!$E$4:$E$5618) ->  | H148: =LOOKUP(C148,MassDataLink!$A$4:$A$5618,MassDataLink!$F$4:$F$5618) ->  | J148: 35 | K148: - - - | L148: - - -
B149: 36 | C149: -1 | D149: =LOOKUP(C149,MassDataLink!$A$4:$A$5618,MassDataLink!$B$4:$B$5618) ->  | E149: =LOOKUP(C149,MassDataLink!$A$4:$A$5618,MassDataLink!$C$4:$C$5618) ->  | F149: =LOOKUP(C149,MassDataLink!$A$4:$A$5618,MassDataLink!$D$4:$D$5618) ->  | G149: =LOOKUP(C149,MassDataLink!$A$4:$A$5618,MassDataLink!$E$4:$E$5618) ->  | H149: =LOOKUP(C149,MassDataLink!$A$4:$A$5618,MassDataLink!$F$4:$F$5618) ->  | J149: 36 | K149: - - - | L149: - - -
B150: 37 | C150: -1 | D150: =LOOKUP(C150,MassDataLink!$A$4:$A$5618,MassDataLink!$B$4:$B$5618) ->  | E150: =LOOKUP(C150,MassDataLink!$A$4:$A$5618,MassDataLink!$C$4:$C$5618) ->  | F150: =LOOKUP(C150,MassDataLink!$A$4:$A$5618,MassDataLink!$D$4:$D$5618) ->  | G150: =LOOKUP(C150,MassDataLink!$A$4:$A$5618,MassDataLink!$E$4:$E$5618) ->  | H150: =LOOKUP(C150,MassDataLink!$A$4:$A$5618,MassDataLink!$F$4:$F$5618) ->  | J150: 37 | K150: - - - | L150: - - -
B151: 38 | C151: -1 | D151: =LOOKUP(C151,MassDataLink!$A$4:$A$5618,MassDataLink!$B$4:$B$5618) ->  | E151: =LOOKUP(C151,MassDataLink!$A$4:$A$5618,MassDataLink!$C$4:$C$5618) ->  | F151: =LOOKUP(C151,MassDataLink!$A$4:$A$5618,MassDataLink!$D$4:$D$5618) ->  | G151: =LOOKUP(C151,MassDataLink!$A$4:$A$5618,MassDataLink!$E$4:$E$5618) ->  | H151: =LOOKUP(C151,MassDataLink!$A$4:$A$5618,MassDataLink!$F$4:$F$5618) ->  | J151: 38 | K151: - - - | L151: - - -
B152: 39 | C152: -1 | D152: =LOOKUP(C152,MassDataLink!$A$4:$A$5618,MassDataLink!$B$4:$B$5618) ->  | E152: =LOOKUP(C152,MassDataLink!$A$4:$A$5618,MassDataLink!$C$4:$C$5618) ->  | F152: =LOOKUP(C152,MassDataLink!$A$4:$A$5618,MassDataLink!$D$4:$D$5618) ->  | G152: =LOOKUP(C152,MassDataLink!$A$4:$A$5618,MassDataLink!$E$4:$E$5618) ->  | H152: =LOOKUP(C152,MassDataLink!$A$4:$A$5618,MassDataLink!$F$4:$F$5618) ->  | J152: 39 | K152: - - - | L152: - - -
B153: 40 | C153: -1 | D153: =LOOKUP(C153,MassDataLink!$A$4:$A$5618,MassDataLink!$B$4:$B$5618) ->  | E153: =LOOKUP(C153,MassDataLink!$A$4:$A$5618,MassDataLink!$C$4:$C$5618) ->  | F153: =LOOKUP(C153,MassDataLink!$A$4:$A$5618,MassDataLink!$D$4:$D$5618) ->  | G153: =LOOKUP(C153,MassDataLink!$A$4:$A$5618,MassDataLink!$E$4:$E$5618) ->  | H153: =LOOKUP(C153,MassDataLink!$A$4:$A$5618,MassDataLink!$F$4:$F$5618) ->  | J153: 40 | K153: - - - | L153: - - -
B154: 41 | C154: -1 | D154: =LOOKUP(C154,MassDataLink!$A$4:$A$5618,MassDataLink!$B$4:$B$5618) ->  | E154: =LOOKUP(C154,MassDataLink!$A$4:$A$5618,MassDataLink!$C$4:$C$5618) ->  | F154: =LOOKUP(C154,MassDataLink!$A$4:$A$5618,MassDataLink!$D$4:$D$5618) ->  | G154: =LOOKUP(C154,MassDataLink!$A$4:$A$5618,MassDataLink!$E$4:$E$5618) ->  | H154: =LOOKUP(C154,MassDataLink!$A$4:$A$5618,MassDataLink!$F$4:$F$5618) ->  | J154: 41 | K154: - - - | L154: - - -
B155: 42 | C155: -1 | D155: =LOOKUP(C155,MassDataLink!$A$4:$A$5618,MassDataLink!$B$4:$B$5618) ->  | E155: =LOOKUP(C155,MassDataLink!$A$4:$A$5618,MassDataLink!$C$4:$C$5618) ->  | F155: =LOOKUP(C155,MassDataLink!$A$4:$A$5618,MassDataLink!$D$4:$D$5618) ->  | G155: =LOOKUP(C155,MassDataLink!$A$4:$A$5618,MassDataLink!$E$4:$E$5618) ->  | H155: =LOOKUP(C155,MassDataLink!$A$4:$A$5618,MassDataLink!$F$4:$F$5618) ->  | J155: 42 | K155: - - - | L155: - - -
B156: 43 | C156: -1 | D156: =LOOKUP(C156,MassDataLink!$A$4:$A$5618,MassDataLink!$B$4:$B$5618) ->  | E156: =LOOKUP(C156,MassDataLink!$A$4:$A$5618,MassDataLink!$C$4:$C$5618) ->  | F156: =LOOKUP(C156,MassDataLink!$A$4:$A$5618,MassDataLink!$D$4:$D$5618) ->  | G156: =LOOKUP(C156,MassDataLink!$A$4:$A$5618,MassDataLink!$E$4:$E$5618) ->  | H156: =LOOKUP(C156,MassDataLink!$A$4:$A$5618,MassDataLink!$F$4:$F$5618) ->  | J156: 43 | K156: - - - | L156: - - -
B157: 44 | C157: -1 | D157: =LOOKUP(C157,MassDataLink!$A$4:$A$5618,MassDataLink!$B$4:$B$5618) ->  | E157: =LOOKUP(C157,MassDataLink!$A$4:$A$5618,MassDataLink!$C$4:$C$5618) ->  | F157: =LOOKUP(C157,MassDataLink!$A$4:$A$5618,MassDataLink!$D$4:$D$5618) ->  | G157: =LOOKUP(C157,MassDataLink!$A$4:$A$5618,MassDataLink!$E$4:$E$5618) ->  | H157: =LOOKUP(C157,MassDataLink!$A$4:$A$5618,MassDataLink!$F$4:$F$5618) ->  | J157: 44 | K157: - - - | L157: - - -
B158: 45 | C158: -1 | D158: =LOOKUP(C158,MassDataLink!$A$4:$A$5618,MassDataLink!$B$4:$B$5618) ->  | E158: =LOOKUP(C158,MassDataLink!$A$4:$A$5618,MassDataLink!$C$4:$C$5618) ->  | F158: =LOOKUP(C158,MassDataLink!$A$4:$A$5618,MassDataLink!$D$4:$D$5618) ->  | G158: =LOOKUP(C158,MassDataLink!$A$4:$A$5618,MassDataLink!$E$4:$E$5618) ->  | H158: =LOOKUP(C158,MassDataLink!$A$4:$A$5618,MassDataLink!$F$4:$F$5618) ->  | J158: 45 | K158: - - - | L158: - - -
B159: 46 | C159: -1 | D159: =LOOKUP(C159,MassDataLink!$A$4:$A$5618,MassDataLink!$B$4:$B$5618) ->  | E159: =LOOKUP(C159,MassDataLink!$A$4:$A$5618,MassDataLink!$C$4:$C$5618) ->  | F159: =LOOKUP(C159,MassDataLink!$A$4:$A$5618,MassDataLink!$D$4:$D$5618) ->  | G159: =LOOKUP(C159,MassDataLink!$A$4:$A$5618,MassDataLink!$E$4:$E$5618) ->  | H159: =LOOKUP(C159,MassDataLink!$A$4:$A$5618,MassDataLink!$F$4:$F$5618) ->  | J159: 46 | K159: - - - | L159: - - -
B160: 47 | C160: -1 | D160: =LOOKUP(C160,MassDataLink!$A$4:$A$5618,MassDataLink!$B$4:$B$5618) ->  | E160: =LOOKUP(C160,MassDataLink!$A$4:$A$5618,MassDataLink!$C$4:$C$5618) ->  | F160: =LOOKUP(C160,MassDataLink!$A$4:$A$5618,MassDataLink!$D$4:$D$5618) ->  | G160: =LOOKUP(C160,MassDataLink!$A$4:$A$5618,MassDataLink!$E$4:$E$5618) ->  | H160: =LOOKUP(C160,MassDataLink!$A$4:$A$5618,MassDataLink!$F$4:$F$5618) ->  | J160: 47 | K160: - - - | L160: - - -
B161: 48 | C161: -1 | D161: =LOOKUP(C161,MassDataLink!$A$4:$A$5618,MassDataLink!$B$4:$B$5618) ->  | E161: =LOOKUP(C161,MassDataLink!$A$4:$A$5618,MassDataLink!$C$4:$C$5618) ->  | F161: =LOOKUP(C161,MassDataLink!$A$4:$A$5618,MassDataLink!$D$4:$D$5618) ->  | G161: =LOOKUP(C161,MassDataLink!$A$4:$A$5618,MassDataLink!$E$4:$E$5618) ->  | H161: =LOOKUP(C161,MassDataLink!$A$4:$A$5618,MassDataLink!$F$4:$F$5618) ->  | J161: 48 | K161: - - - | L161: - - -
B162: 49 | C162: -1 | D162: =LOOKUP(C162,MassDataLink!$A$4:$A$5618,MassDataLink!$B$4:$B$5618) ->  | E162: =LOOKUP(C162,MassDataLink!$A$4:$A$5618,MassDataLink!$C$4:$C$5618) ->  | F162: =LOOKUP(C162,MassDataLink!$A$4:$A$5618,MassDataLink!$D$4:$D$5618) ->  | G162: =LOOKUP(C162,MassDataLink!$A$4:$A$5618,MassDataLink!$E$4:$E$5618) ->  | H162: =LOOKUP(C162,MassDataLink!$A$4:$A$5618,MassDataLink!$F$4:$F$5618) ->  | J162: 49 | K162: - - - | L162: - - -
B163: 50 | C163: -1 | D163: =LOOKUP(C163,MassDataLink!$A$4:$A$5618,MassDataLink!$B$4:$B$5618) ->  | E163: =LOOKUP(C163,MassDataLink!$A$4:$A$5618,MassDataLink!$C$4:$C$5618) ->  | F163: =LOOKUP(C163,MassDataLink!$A$4:$A$5618,MassDataLink!$D$4:$D$5618) ->  | G163: =LOOKUP(C163,MassDataLink!$A$4:$A$5618,MassDataLink!$E$4:$E$5618) ->  | H163: =LOOKUP(C163,MassDataLink!$A$4:$A$5618,MassDataLink!$F$4:$F$5618) ->  | J163: 50 | K163: - - - | L163: - - -
B164: =B163+1 -> 51 | C164: =IF(C163=-1,-1,H163) -> -1 | D164: =LOOKUP(C164,MassDataLink!$A$4:$A$5618,MassDataLink!$B$4:$B$5618) ->  | E164: =LOOKUP(C164,MassDataLink!$A$4:$A$5618,MassDataLink!$C$4:$C$5618) ->  | F164: =LOOKUP(C164,MassDataLink!$A$4:$A$5618,MassDataLink!$D$4:$D$5618) ->  | G164: =LOOKUP(C164,MassDataLink!$A$4:$A$5618,MassDataLink!$E$4:$E$5618) ->  | H164: =LOOKUP(C164,MassDataLink!$A$4:$A$5618,MassDataLink!$F$4:$F$5618) ->  | J164: =J163+1 -> 51 | K164: =IF(C164=-1,$L$112,IF($A$11=D164,ROUND((E164*$P$57),$R$57),$L$112)) -> - - - | L164: =IF(K164=$L$112,$L$112,F164) -> - - -
B165: 52 | C165: -1 | D165: =LOOKUP(C165,MassDataLink!$A$4:$A$5618,MassDataLink!$B$4:$B$5618) ->  | E165: =LOOKUP(C165,MassDataLink!$A$4:$A$5618,MassDataLink!$C$4:$C$5618) ->  | F165: =LOOKUP(C165,MassDataLink!$A$4:$A$5618,MassDataLink!$D$4:$D$5618) ->  | G165: =LOOKUP(C165,MassDataLink!$A$4:$A$5618,MassDataLink!$E$4:$E$5618) ->  | H165: =LOOKUP(C165,MassDataLink!$A$4:$A$5618,MassDataLink!$F$4:$F$5618) ->  | J165: 52 | K165: - - - | L165: - - -
B166: 53 | C166: -1 | D166: =LOOKUP(C166,MassDataLink!$A$4:$A$5618,MassDataLink!$B$4:$B$5618) ->  | E166: =LOOKUP(C166,MassDataLink!$A$4:$A$5618,MassDataLink!$C$4:$C$5618) ->  | F166: =LOOKUP(C166,MassDataLink!$A$4:$A$5618,MassDataLink!$D$4:$D$5618) ->  | G166: =LOOKUP(C166,MassDataLink!$A$4:$A$5618,MassDataLink!$E$4:$E$5618) ->  | H166: =LOOKUP(C166,MassDataLink!$A$4:$A$5618,MassDataLink!$F$4:$F$5618) ->  | J166: 53 | K166: - - - | L166: - - -
B167: 54 | C167: -1 | D167: =LOOKUP(C167,MassDataLink!$A$4:$A$5618,MassDataLink!$B$4:$B$5618) ->  | E167: =LOOKUP(C167,MassDataLink!$A$4:$A$5618,MassDataLink!$C$4:$C$5618) ->  | F167: =LOOKUP(C167,MassDataLink!$A$4:$A$5618,MassDataLink!$D$4:$D$5618) ->  | G167: =LOOKUP(C167,MassDataLink!$A$4:$A$5618,MassDataLink!$E$4:$E$5618) ->  | H167: =LOOKUP(C167,MassDataLink!$A$4:$A$5618,MassDataLink!$F$4:$F$5618) ->  | J167: 54 | K167: - - - | L167: - - -
B168: 55 | C168: -1 | D168: =LOOKUP(C168,MassDataLink!$A$4:$A$5618,MassDataLink!$B$4:$B$5618) ->  | E168: =LOOKUP(C168,MassDataLink!$A$4:$A$5618,MassDataLink!$C$4:$C$5618) ->  | F168: =LOOKUP(C168,MassDataLink!$A$4:$A$5618,MassDataLink!$D$4:$D$5618) ->  | G168: =LOOKUP(C168,MassDataLink!$A$4:$A$5618,MassDataLink!$E$4:$E$5618) ->  | H168: =LOOKUP(C168,MassDataLink!$A$4:$A$5618,MassDataLink!$F$4:$F$5618) ->  | J168: 55 | K168: - - - | L168: - - -
B169: 56 | C169: -1 | D169: =LOOKUP(C169,MassDataLink!$A$4:$A$5618,MassDataLink!$B$4:$B$5618) ->  | E169: =LOOKUP(C169,MassDataLink!$A$4:$A$5618,MassDataLink!$C$4:$C$5618) ->  | F169: =LOOKUP(C169,MassDataLink!$A$4:$A$5618,MassDataLink!$D$4:$D$5618) ->  | G169: =LOOKUP(C169,MassDataLink!$A$4:$A$5618,MassDataLink!$E$4:$E$5618) ->  | H169: =LOOKUP(C169,MassDataLink!$A$4:$A$5618,MassDataLink!$F$4:$F$5618) ->  | J169: 56 | K169: - - - | L169: - - -
B170: 57 | C170: -1 | D170: =LOOKUP(C170,MassDataLink!$A$4:$A$5618,MassDataLink!$B$4:$B$5618) ->  | E170: =LOOKUP(C170,MassDataLink!$A$4:$A$5618,MassDataLink!$C$4:$C$5618) ->  | F170: =LOOKUP(C170,MassDataLink!$A$4:$A$5618,MassDataLink!$D$4:$D$5618) ->  | G170: =LOOKUP(C170,MassDataLink!$A$4:$A$5618,MassDataLink!$E$4:$E$5618) ->  | H170: =LOOKUP(C170,MassDataLink!$A$4:$A$5618,MassDataLink!$F$4:$F$5618) ->  | J170: 57 | K170: - - - | L170: - - -
B171: 58 | C171: -1 | D171: =LOOKUP(C171,MassDataLink!$A$4:$A$5618,MassDataLink!$B$4:$B$5618) ->  | E171: =LOOKUP(C171,MassDataLink!$A$4:$A$5618,MassDataLink!$C$4:$C$5618) ->  | F171: =LOOKUP(C171,MassDataLink!$A$4:$A$5618,MassDataLink!$D$4:$D$5618) ->  | G171: =LOOKUP(C171,MassDataLink!$A$4:$A$5618,MassDataLink!$E$4:$E$5618) ->  | H171: =LOOKUP(C171,MassDataLink!$A$4:$A$5618,MassDataLink!$F$4:$F$5618) ->  | J171: 58 | K171: - - - | L171: - - -
B172: 59 | C172: -1 | D172: =LOOKUP(C172,MassDataLink!$A$4:$A$5618,MassDataLink!$B$4:$B$5618) ->  | E172: =LOOKUP(C172,MassDataLink!$A$4:$A$5618,MassDataLink!$C$4:$C$5618) ->  | F172: =LOOKUP(C172,MassDataLink!$A$4:$A$5618,MassDataLink!$D$4:$D$5618) ->  | G172: =LOOKUP(C172,MassDataLink!$A$4:$A$5618,MassDataLink!$E$4:$E$5618) ->  | H172: =LOOKUP(C172,MassDataLink!$A$4:$A$5618,MassDataLink!$F$4:$F$5618) ->  | J172: 59 | K172: - - - | L172: - - -
B173: 60 | C173: -1 | D173: =LOOKUP(C173,MassDataLink!$A$4:$A$5618,MassDataLink!$B$4:$B$5618) ->  | E173: =LOOKUP(C173,MassDataLink!$A$4:$A$5618,MassDataLink!$C$4:$C$5618) ->  | F173: =LOOKUP(C173,MassDataLink!$A$4:$A$5618,MassDataLink!$D$4:$D$5618) ->  | G173: =LOOKUP(C173,MassDataLink!$A$4:$A$5618,MassDataLink!$E$4:$E$5618) ->  | H173: =LOOKUP(C173,MassDataLink!$A$4:$A$5618,MassDataLink!$F$4:$F$5618) ->  | J173: 60 | K173: - - - | L173: - - -
B174: 61 | C174: -1 | D174: =LOOKUP(C174,MassDataLink!$A$4:$A$5618,MassDataLink!$B$4:$B$5618) ->  | E174: =LOOKUP(C174,MassDataLink!$A$4:$A$5618,MassDataLink!$C$4:$C$5618) ->  | F174: =LOOKUP(C174,MassDataLink!$A$4:$A$5618,MassDataLink!$D$4:$D$5618) ->  | G174: =LOOKUP(C174,MassDataLink!$A$4:$A$5618,MassDataLink!$E$4:$E$5618) ->  | H174: =LOOKUP(C174,MassDataLink!$A$4:$A$5618,MassDataLink!$F$4:$F$5618) ->  | J174: 61 | K174: - - - | L174: - - -
B175: 62 | C175: -1 | D175: =LOOKUP(C175,MassDataLink!$A$4:$A$5618,MassDataLink!$B$4:$B$5618) ->  | E175: =LOOKUP(C175,MassDataLink!$A$4:$A$5618,MassDataLink!$C$4:$C$5618) ->  | F175: =LOOKUP(C175,MassDataLink!$A$4:$A$5618,MassDataLink!$D$4:$D$5618) ->  | G175: =LOOKUP(C175,MassDataLink!$A$4:$A$5618,MassDataLink!$E$4:$E$5618) ->  | H175: =LOOKUP(C175,MassDataLink!$A$4:$A$5618,MassDataLink!$F$4:$F$5618) ->  | J175: 62 | K175: - - - | L175: - - -
B176: 63 | C176: -1 | D176: =LOOKUP(C176,MassDataLink!$A$4:$A$5618,MassDataLink!$B$4:$B$5618) ->  | E176: =LOOKUP(C176,MassDataLink!$A$4:$A$5618,MassDataLink!$C$4:$C$5618) ->  | F176: =LOOKUP(C176,MassDataLink!$A$4:$A$5618,MassDataLink!$D$4:$D$5618) ->  | G176: =LOOKUP(C176,MassDataLink!$A$4:$A$5618,MassDataLink!$E$4:$E$5618) ->  | H176: =LOOKUP(C176,MassDataLink!$A$4:$A$5618,MassDataLink!$F$4:$F$5618) ->  | J176: 63 | K176: - - - | L176: - - -
B177: 64 | C177: -1 | D177: =LOOKUP(C177,MassDataLink!$A$4:$A$5618,MassDataLink!$B$4:$B$5618) ->  | E177: =LOOKUP(C177,MassDataLink!$A$4:$A$5618,MassDataLink!$C$4:$C$5618) ->  | F177: =LOOKUP(C177,MassDataLink!$A$4:$A$5618,MassDataLink!$D$4:$D$5618) ->  | G177: =LOOKUP(C177,MassDataLink!$A$4:$A$5618,MassDataLink!$E$4:$E$5618) ->  | H177: =LOOKUP(C177,MassDataLink!$A$4:$A$5618,MassDataLink!$F$4:$F$5618) ->  | J177: 64 | K177: - - - | L177: - - -
B178: 65 | C178: -1 | D178: =LOOKUP(C178,MassDataLink!$A$4:$A$5618,MassDataLink!$B$4:$B$5618) ->  | E178: =LOOKUP(C178,MassDataLink!$A$4:$A$5618,MassDataLink!$C$4:$C$5618) ->  | F178: =LOOKUP(C178,MassDataLink!$A$4:$A$5618,MassDataLink!$D$4:$D$5618) ->  | G178: =LOOKUP(C178,MassDataLink!$A$4:$A$5618,MassDataLink!$E$4:$E$5618) ->  | H178: =LOOKUP(C178,MassDataLink!$A$4:$A$5618,MassDataLink!$F$4:$F$5618) ->  | J178: 65 | K178: - - - | L178: - - -
B179: 66 | C179: -1 | D179: =LOOKUP(C179,MassDataLink!$A$4:$A$5618,MassDataLink!$B$4:$B$5618) ->  | E179: =LOOKUP(C179,MassDataLink!$A$4:$A$5618,MassDataLink!$C$4:$C$5618) ->  | F179: =LOOKUP(C179,MassDataLink!$A$4:$A$5618,MassDataLink!$D$4:$D$5618) ->  | G179: =LOOKUP(C179,MassDataLink!$A$4:$A$5618,MassDataLink!$E$4:$E$5618) ->  | H179: =LOOKUP(C179,MassDataLink!$A$4:$A$5618,MassDataLink!$F$4:$F$5618) ->  | J179: 66 | K179: - - - | L179: - - -
B180: 67 | C180: -1 | D180: =LOOKUP(C180,MassDataLink!$A$4:$A$5618,MassDataLink!$B$4:$B$5618) ->  | E180: =LOOKUP(C180,MassDataLink!$A$4:$A$5618,MassDataLink!$C$4:$C$5618) ->  | F180: =LOOKUP(C180,MassDataLink!$A$4:$A$5618,MassDataLink!$D$4:$D$5618) ->  | G180: =LOOKUP(C180,MassDataLink!$A$4:$A$5618,MassDataLink!$E$4:$E$5618) ->  | H180: =LOOKUP(C180,MassDataLink!$A$4:$A$5618,MassDataLink!$F$4:$F$5618) ->  | J180: 67 | K180: - - - | L180: - - -
B181: 68 | C181: -1 | D181: =LOOKUP(C181,MassDataLink!$A$4:$A$5618,MassDataLink!$B$4:$B$5618) ->  | E181: =LOOKUP(C181,MassDataLink!$A$4:$A$5618,MassDataLink!$C$4:$C$5618) ->  | F181: =LOOKUP(C181,MassDataLink!$A$4:$A$5618,MassDataLink!$D$4:$D$5618) ->  | G181: =LOOKUP(C181,MassDataLink!$A$4:$A$5618,MassDataLink!$E$4:$E$5618) ->  | H181: =LOOKUP(C181,MassDataLink!$A$4:$A$5618,MassDataLink!$F$4:$F$5618) ->  | J181: 68 | K181: - - - | L181: - - -
B182: 69 | C182: -1 | D182: =LOOKUP(C182,MassDataLink!$A$4:$A$5618,MassDataLink!$B$4:$B$5618) ->  | E182: =LOOKUP(C182,MassDataLink!$A$4:$A$5618,MassDataLink!$C$4:$C$5618) ->  | F182: =LOOKUP(C182,MassDataLink!$A$4:$A$5618,MassDataLink!$D$4:$D$5618) ->  | G182: =LOOKUP(C182,MassDataLink!$A$4:$A$5618,MassDataLink!$E$4:$E$5618) ->  | H182: =LOOKUP(C182,MassDataLink!$A$4:$A$5618,MassDataLink!$F$4:$F$5618) ->  | J182: 69 | K182: - - - | L182: - - -
B183: 70 | C183: -1 | D183: =LOOKUP(C183,MassDataLink!$A$4:$A$5618,MassDataLink!$B$4:$B$5618) ->  | E183: =LOOKUP(C183,MassDataLink!$A$4:$A$5618,MassDataLink!$C$4:$C$5618) ->  | F183: =LOOKUP(C183,MassDataLink!$A$4:$A$5618,MassDataLink!$D$4:$D$5618) ->  | G183: =LOOKUP(C183,MassDataLink!$A$4:$A$5618,MassDataLink!$E$4:$E$5618) ->  | H183: =LOOKUP(C183,MassDataLink!$A$4:$A$5618,MassDataLink!$F$4:$F$5618) ->  | J183: 70 | K183: - - - | L183: - - -
B184: 71 | C184: -1 | D184: =LOOKUP(C184,MassDataLink!$A$4:$A$5618,MassDataLink!$B$4:$B$5618) ->  | E184: =LOOKUP(C184,MassDataLink!$A$4:$A$5618,MassDataLink!$C$4:$C$5618) ->  | F184: =LOOKUP(C184,MassDataLink!$A$4:$A$5618,MassDataLink!$D$4:$D$5618) ->  | G184: =LOOKUP(C184,MassDataLink!$A$4:$A$5618,MassDataLink!$E$4:$E$5618) ->  | H184: =LOOKUP(C184,MassDataLink!$A$4:$A$5618,MassDataLink!$F$4:$F$5618) ->  | J184: 71 | K184: - - - | L184: - - -
B185: 72 | C185: -1 | D185: =LOOKUP(C185,MassDataLink!$A$4:$A$5618,MassDataLink!$B$4:$B$5618) ->  | E185: =LOOKUP(C185,MassDataLink!$A$4:$A$5618,MassDataLink!$C$4:$C$5618) ->  | F185: =LOOKUP(C185,MassDataLink!$A$4:$A$5618,MassDataLink!$D$4:$D$5618) ->  | G185: =LOOKUP(C185,MassDataLink!$A$4:$A$5618,MassDataLink!$E$4:$E$5618) ->  | H185: =LOOKUP(C185,MassDataLink!$A$4:$A$5618,MassDataLink!$F$4:$F$5618) ->  | J185: 72 | K185: - - - | L185: - - -
B186: 73 | C186: -1 | D186: =LOOKUP(C186,MassDataLink!$A$4:$A$5618,MassDataLink!$B$4:$B$5618) ->  | E186: =LOOKUP(C186,MassDataLink!$A$4:$A$5618,MassDataLink!$C$4:$C$5618) ->  | F186: =LOOKUP(C186,MassDataLink!$A$4:$A$5618,MassDataLink!$D$4:$D$5618) ->  | G186: =LOOKUP(C186,MassDataLink!$A$4:$A$5618,MassDataLink!$E$4:$E$5618) ->  | H186: =LOOKUP(C186,MassDataLink!$A$4:$A$5618,MassDataLink!$F$4:$F$5618) ->  | J186: 73 | K186: - - - | L186: - - -
B187: 74 | C187: -1 | D187: =LOOKUP(C187,MassDataLink!$A$4:$A$5618,MassDataLink!$B$4:$B$5618) ->  | E187: =LOOKUP(C187,MassDataLink!$A$4:$A$5618,MassDataLink!$C$4:$C$5618) ->  | F187: =LOOKUP(C187,MassDataLink!$A$4:$A$5618,MassDataLink!$D$4:$D$5618) ->  | G187: =LOOKUP(C187,MassDataLink!$A$4:$A$5618,MassDataLink!$E$4:$E$5618) ->  | H187: =LOOKUP(C187,MassDataLink!$A$4:$A$5618,MassDataLink!$F$4:$F$5618) ->  | J187: 74 | K187: - - - | L187: - - -
B188: 75 | C188: -1 | D188: =LOOKUP(C188,MassDataLink!$A$4:$A$5618,MassDataLink!$B$4:$B$5618) ->  | E188: =LOOKUP(C188,MassDataLink!$A$4:$A$5618,MassDataLink!$C$4:$C$5618) ->  | F188: =LOOKUP(C188,MassDataLink!$A$4:$A$5618,MassDataLink!$D$4:$D$5618) ->  | G188: =LOOKUP(C188,MassDataLink!$A$4:$A$5618,MassDataLink!$E$4:$E$5618) ->  | H188: =LOOKUP(C188,MassDataLink!$A$4:$A$5618,MassDataLink!$F$4:$F$5618) ->  | J188: 75 | K188: - - - | L188: - - -
B189: 76 | C189: -1 | D189: =LOOKUP(C189,MassDataLink!$A$4:$A$5618,MassDataLink!$B$4:$B$5618) ->  | E189: =LOOKUP(C189,MassDataLink!$A$4:$A$5618,MassDataLink!$C$4:$C$5618) ->  | F189: =LOOKUP(C189,MassDataLink!$A$4:$A$5618,MassDataLink!$D$4:$D$5618) ->  | G189: =LOOKUP(C189,MassDataLink!$A$4:$A$5618,MassDataLink!$E$4:$E$5618) ->  | H189: =LOOKUP(C189,MassDataLink!$A$4:$A$5618,MassDataLink!$F$4:$F$5618) ->  | J189: 76 | K189: - - - | L189: - - -
B190: 77 | C190: -1 | D190: =LOOKUP(C190,MassDataLink!$A$4:$A$5618,MassDataLink!$B$4:$B$5618) ->  | E190: =LOOKUP(C190,MassDataLink!$A$4:$A$5618,MassDataLink!$C$4:$C$5618) ->  | F190: =LOOKUP(C190,MassDataLink!$A$4:$A$5618,MassDataLink!$D$4:$D$5618) ->  | G190: =LOOKUP(C190,MassDataLink!$A$4:$A$5618,MassDataLink!$E$4:$E$5618) ->  | H190: =LOOKUP(C190,MassDataLink!$A$4:$A$5618,MassDataLink!$F$4:$F$5618) ->  | J190: 77 | K190: - - - | L190: - - -
B191: 78 | C191: -1 | D191: =LOOKUP(C191,MassDataLink!$A$4:$A$5618,MassDataLink!$B$4:$B$5618) ->  | E191: =LOOKUP(C191,MassDataLink!$A$4:$A$5618,MassDataLink!$C$4:$C$5618) ->  | F191: =LOOKUP(C191,MassDataLink!$A$4:$A$5618,MassDataLink!$D$4:$D$5618) ->  | G191: =LOOKUP(C191,MassDataLink!$A$4:$A$5618,MassDataLink!$E$4:$E$5618) ->  | H191: =LOOKUP(C191,MassDataLink!$A$4:$A$5618,MassDataLink!$F$4:$F$5618) ->  | J191: 78 | K191: - - - | L191: - - -
B192: 79 | C192: -1 | D192: =LOOKUP(C192,MassDataLink!$A$4:$A$5618,MassDataLink!$B$4:$B$5618) ->  | E192: =LOOKUP(C192,MassDataLink!$A$4:$A$5618,MassDataLink!$C$4:$C$5618) ->  | F192: =LOOKUP(C192,MassDataLink!$A$4:$A$5618,MassDataLink!$D$4:$D$5618) ->  | G192: =LOOKUP(C192,MassDataLink!$A$4:$A$5618,MassDataLink!$E$4:$E$5618) ->  | H192: =LOOKUP(C192,MassDataLink!$A$4:$A$5618,MassDataLink!$F$4:$F$5618) ->  | J192: 79 | K192: - - - | L192: - - -
B193: 80 | C193: -1 | D193: =LOOKUP(C193,MassDataLink!$A$4:$A$5618,MassDataLink!$B$4:$B$5618) ->  | E193: =LOOKUP(C193,MassDataLink!$A$4:$A$5618,MassDataLink!$C$4:$C$5618) ->  | F193: =LOOKUP(C193,MassDataLink!$A$4:$A$5618,MassDataLink!$D$4:$D$5618) ->  | G193: =LOOKUP(C193,MassDataLink!$A$4:$A$5618,MassDataLink!$E$4:$E$5618) ->  | H193: =LOOKUP(C193,MassDataLink!$A$4:$A$5618,MassDataLink!$F$4:$F$5618) ->  | J193: 80 | K193: - - - | L193: - - -
B194: 81 | C194: -1 | D194: =LOOKUP(C194,MassDataLink!$A$4:$A$5618,MassDataLink!$B$4:$B$5618) ->  | E194: =LOOKUP(C194,MassDataLink!$A$4:$A$5618,MassDataLink!$C$4:$C$5618) ->  | F194: =LOOKUP(C194,MassDataLink!$A$4:$A$5618,MassDataLink!$D$4:$D$5618) ->  | G194: =LOOKUP(C194,MassDataLink!$A$4:$A$5618,MassDataLink!$E$4:$E$5618) ->  | H194: =LOOKUP(C194,MassDataLink!$A$4:$A$5618,MassDataLink!$F$4:$F$5618) ->  | J194: 81 | K194: - - - | L194: - - -
B195: 82 | C195: -1 | D195: =LOOKUP(C195,MassDataLink!$A$4:$A$5618,MassDataLink!$B$4:$B$5618) ->  | E195: =LOOKUP(C195,MassDataLink!$A$4:$A$5618,MassDataLink!$C$4:$C$5618) ->  | F195: =LOOKUP(C195,MassDataLink!$A$4:$A$5618,MassDataLink!$D$4:$D$5618) ->  | G195: =LOOKUP(C195,MassDataLink!$A$4:$A$5618,MassDataLink!$E$4:$E$5618) ->  | H195: =LOOKUP(C195,MassDataLink!$A$4:$A$5618,MassDataLink!$F$4:$F$5618) ->  | J195: 82 | K195: - - - | L195: - - -
B196: 83 | C196: -1 | D196: =LOOKUP(C196,MassDataLink!$A$4:$A$5618,MassDataLink!$B$4:$B$5618) ->  | E196: =LOOKUP(C196,MassDataLink!$A$4:$A$5618,MassDataLink!$C$4:$C$5618) ->  | F196: =LOOKUP(C196,MassDataLink!$A$4:$A$5618,MassDataLink!$D$4:$D$5618) ->  | G196: =LOOKUP(C196,MassDataLink!$A$4:$A$5618,MassDataLink!$E$4:$E$5618) ->  | H196: =LOOKUP(C196,MassDataLink!$A$4:$A$5618,MassDataLink!$F$4:$F$5618) ->  | J196: 83 | K196: - - - | L196: - - -
B197: 84 | C197: -1 | D197: =LOOKUP(C197,MassDataLink!$A$4:$A$5618,MassDataLink!$B$4:$B$5618) ->  | E197: =LOOKUP(C197,MassDataLink!$A$4:$A$5618,MassDataLink!$C$4:$C$5618) ->  | F197: =LOOKUP(C197,MassDataLink!$A$4:$A$5618,MassDataLink!$D$4:$D$5618) ->  | G197: =LOOKUP(C197,MassDataLink!$A$4:$A$5618,MassDataLink!$E$4:$E$5618) ->  | H197: =LOOKUP(C197,MassDataLink!$A$4:$A$5618,MassDataLink!$F$4:$F$5618) ->  | J197: 84 | K197: - - - | L197: - - -
B198: 85 | C198: -1 | D198: =LOOKUP(C198,MassDataLink!$A$4:$A$5618,MassDataLink!$B$4:$B$5618) ->  | E198: =LOOKUP(C198,MassDataLink!$A$4:$A$5618,MassDataLink!$C$4:$C$5618) ->  | F198: =LOOKUP(C198,MassDataLink!$A$4:$A$5618,MassDataLink!$D$4:$D$5618) ->  | G198: =LOOKUP(C198,MassDataLink!$A$4:$A$5618,MassDataLink!$E$4:$E$5618) ->  | H198: =LOOKUP(C198,MassDataLink!$A$4:$A$5618,MassDataLink!$F$4:$F$5618) ->  | J198: 85 | K198: - - - | L198: - - -
B199: 86 | C199: -1 | D199: =LOOKUP(C199,MassDataLink!$A$4:$A$5618,MassDataLink!$B$4:$B$5618) ->  | E199: =LOOKUP(C199,MassDataLink!$A$4:$A$5618,MassDataLink!$C$4:$C$5618) ->  | F199: =LOOKUP(C199,MassDataLink!$A$4:$A$5618,MassDataLink!$D$4:$D$5618) ->  | G199: =LOOKUP(C199,MassDataLink!$A$4:$A$5618,MassDataLink!$E$4:$E$5618) ->  | H199: =LOOKUP(C199,MassDataLink!$A$4:$A$5618,MassDataLink!$F$4:$F$5618) ->  | J199: 86 | K199: - - - | L199: - - -
B200: 87 | C200: -1 | D200: =LOOKUP(C200,MassDataLink!$A$4:$A$5618,MassDataLink!$B$4:$B$5618) ->  | E200: =LOOKUP(C200,MassDataLink!$A$4:$A$5618,MassDataLink!$C$4:$C$5618) ->  | F200: =LOOKUP(C200,MassDataLink!$A$4:$A$5618,MassDataLink!$D$4:$D$5618) ->  | G200: =LOOKUP(C200,MassDataLink!$A$4:$A$5618,MassDataLink!$E$4:$E$5618) ->  | H200: =LOOKUP(C200,MassDataLink!$A$4:$A$5618,MassDataLink!$F$4:$F$5618) ->  | J200: 87 | K200: - - - | L200: - - -
B201: 88 | C201: -1 | D201: =LOOKUP(C201,MassDataLink!$A$4:$A$5618,MassDataLink!$B$4:$B$5618) ->  | E201: =LOOKUP(C201,MassDataLink!$A$4:$A$5618,MassDataLink!$C$4:$C$5618) ->  | F201: =LOOKUP(C201,MassDataLink!$A$4:$A$5618,MassDataLink!$D$4:$D$5618) ->  | G201: =LOOKUP(C201,MassDataLink!$A$4:$A$5618,MassDataLink!$E$4:$E$5618) ->  | H201: =LOOKUP(C201,MassDataLink!$A$4:$A$5618,MassDataLink!$F$4:$F$5618) ->  | J201: 88 | K201: - - - | L201: - - -
B202: 89 | C202: -1 | D202: =LOOKUP(C202,MassDataLink!$A$4:$A$5618,MassDataLink!$B$4:$B$5618) ->  | E202: =LOOKUP(C202,MassDataLink!$A$4:$A$5618,MassDataLink!$C$4:$C$5618) ->  | F202: =LOOKUP(C202,MassDataLink!$A$4:$A$5618,MassDataLink!$D$4:$D$5618) ->  | G202: =LOOKUP(C202,MassDataLink!$A$4:$A$5618,MassDataLink!$E$4:$E$5618) ->  | H202: =LOOKUP(C202,MassDataLink!$A$4:$A$5618,MassDataLink!$F$4:$F$5618) ->  | J202: 89 | K202: - - - | L202: - - -
B203: 90 | C203: -1 | D203: =LOOKUP(C203,MassDataLink!$A$4:$A$5618,MassDataLink!$B$4:$B$5618) ->  | E203: =LOOKUP(C203,MassDataLink!$A$4:$A$5618,MassDataLink!$C$4:$C$5618) ->  | F203: =LOOKUP(C203,MassDataLink!$A$4:$A$5618,MassDataLink!$D$4:$D$5618) ->  | G203: =LOOKUP(C203,MassDataLink!$A$4:$A$5618,MassDataLink!$E$4:$E$5618) ->  | H203: =LOOKUP(C203,MassDataLink!$A$4:$A$5618,MassDataLink!$F$4:$F$5618) ->  | J203: 90 | K203: - - - | L203: - - -
B204: 91 | C204: -1 | D204: =LOOKUP(C204,MassDataLink!$A$4:$A$5618,MassDataLink!$B$4:$B$5618) ->  | E204: =LOOKUP(C204,MassDataLink!$A$4:$A$5618,MassDataLink!$C$4:$C$5618) ->  | F204: =LOOKUP(C204,MassDataLink!$A$4:$A$5618,MassDataLink!$D$4:$D$5618) ->  | G204: =LOOKUP(C204,MassDataLink!$A$4:$A$5618,MassDataLink!$E$4:$E$5618) ->  | H204: =LOOKUP(C204,MassDataLink!$A$4:$A$5618,MassDataLink!$F$4:$F$5618) ->  | J204: 91 | K204: - - - | L204: - - -
B205: 92 | C205: -1 | D205: =LOOKUP(C205,MassDataLink!$A$4:$A$5618,MassDataLink!$B$4:$B$5618) ->  | E205: =LOOKUP(C205,MassDataLink!$A$4:$A$5618,MassDataLink!$C$4:$C$5618) ->  | F205: =LOOKUP(C205,MassDataLink!$A$4:$A$5618,MassDataLink!$D$4:$D$5618) ->  | G205: =LOOKUP(C205,MassDataLink!$A$4:$A$5618,MassDataLink!$E$4:$E$5618) ->  | H205: =LOOKUP(C205,MassDataLink!$A$4:$A$5618,MassDataLink!$F$4:$F$5618) ->  | J205: 92 | K205: - - - | L205: - - -
... 133 more rows

Sheet ModelData (hidden)
B1: 1 | C1: 6 | D1: 7 | E1: 8 | F1: 10 | G1: 11 | H1: 12 | I1: 13 | J1: 14 | K1: 15 | L1: 16 | M1: 17 | N1: 18 | O1: 19 | P1: 20 | Q1: 21 | R1: 22 | S1: 23 | T1: 24 | U1: 25 | V1: 26 | W1: 27 | X1: 28 | Y1: 29 | Z1: 30 | AA1: 31 | AB1: 32 | AC1: 33
A2: データ№ | B2: ｱｸﾁｭｴｰﾀ型式 | C2: 最小ｽﾄﾛｰｸ | D2: 最大ｽﾄﾛｰｸ | E2: 動作種別 | F2: リンク[0] | I2: リンク[1] | L2: リンク[2] | O2: リンク[3] | R2: リンク[4] | U2: リンク[5] | X2: リンク[6] | AA2: リンク[7]
A3: 0 | C3: ㎜ | D3: ㎜ | E3: 1/0:回/直 | F3: ﾘｰﾄﾞ | G3: ｽﾄﾛｰｸ | H3: 搬送負荷 | I3: ﾘｰﾄﾞ | J3: ｽﾄﾛｰｸ | K3: 搬送負荷 | L3: ﾘｰﾄﾞ | M3: ｽﾄﾛｰｸ | N3: 搬送負荷 | O3: ﾘｰﾄﾞ | P3: ｽﾄﾛｰｸ | Q3: 搬送負荷 | R3: ﾘｰﾄﾞ | S3: ｽﾄﾛｰｸ | T3: 搬送負荷 | U3: ﾘｰﾄﾞ | V3: ｽﾄﾛｰｸ | W3: 搬送負荷 | X3: ﾘｰﾄﾞ | Y3: ｽﾄﾛｰｸ | Z3: 搬送負荷 | AA3: ﾘｰﾄﾞ | AB3: ｽﾄﾛｰｸ | AC3: 搬送負荷
A4: =A3+1 -> 1 | B4: RCP4-SA5C | C4: 50 | D4: 800 | E4: 0 | F4: =LeadData!A4 -> 1 | G4: =StrokeData!A4 -> 1 | H4: =MassDataLink!A4 -> 1 | I4: =LeadData!A5 -> 2 | J4: =StrokeData!A12 -> 9 | K4: =MassDataLink!A20 -> 17 | L4: =LeadData!A6 -> 3 | M4: =StrokeData!A20 -> 17 | N4: =MassDataLink!A39 -> 36 | O4: =LeadData!A7 -> 4 | P4: =StrokeData!A28 -> 25 | Q4: =MassDataLink!A55 -> 52 | R4: -1 | S4: -1 | T4: -1 | U4: -1 | V4: -1 | W4: -1 | X4: -1 | Y4: -1 | Z4: -1 | AA4: -1 | AB4: -1 | AC4: -1
A5: =A4+1 -> 2 | B5: RCP4-SA6C | C5: 50 | D5: 800 | E5: 0 | F5: =LeadData!A8 -> 5 | G5: =StrokeData!A35 -> 32 | H5: =MassDataLink!A66 -> 63 | I5: =LeadData!A9 -> 6 | J5: =StrokeData!A43 -> 40 | K5: =MassDataLink!A82 -> 79 | L5: =LeadData!A10 -> 7 | M5: =StrokeData!A51 -> 48 | N5: =MassDataLink!A105 -> 102 | O5: =LeadData!A11 -> 8 | P5: =StrokeData!A59 -> 56 | Q5: =MassDataLink!A129 -> 126 | R5: -1 | S5: -1 | T5: -1 | U5: -1 | V5: -1 | W5: -1 | X5: -1 | Y5: -1 | Z5: -1 | AA5: -1 | AB5: -1 | AC5: -1
A6: =A5+1 -> 3 | B6: RCP4-SA7C | C6: 50 | D6: 800 | E6: 0 | F6: =LeadData!A12 -> 9 | G6: =StrokeData!A66 -> 63 | H6: =MassDataLink!A145 -> 142 | I6: =LeadData!A13 -> 10 | J6: =StrokeData!A72 -> 69 | K6: =MassDataLink!A163 -> 160 | L6: =LeadData!A14 -> 11 | M6: =StrokeData!A78 -> 75 | N6: =MassDataLink!A185 -> 182 | O6: =LeadData!A15 -> 12 | P6: =StrokeData!A84 -> 81 | Q6: =MassDataLink!A209 -> 206 | R6: -1 | S6: -1 | T6: -1 | U6: -1 | V6: -1 | W6: -1 | X6: -1 | Y6: -1 | Z6: -1 | AA6: -1 | AB6: -1 | AC6: -1
A7: 4 | B7: RCP4-RA5C | C7: 50 | D7: 400 | E7: 0 | F7: =LeadData!A16 -> 13 | G7: =StrokeData!A89 -> 86 | H7: =MassDataLink!A229 -> 226 | I7: =LeadData!A17 -> 14 | J7: =StrokeData!A90 -> 87 | K7: =MassDataLink!A251 -> 248 | L7: =LeadData!A18 -> 15 | M7: =StrokeData!A91 -> 88 | N7: =MassDataLink!A275 -> 272 | O7: =LeadData!A19 -> 16 | P7: =StrokeData!A92 -> 89 | Q7: =MassDataLink!A293 -> 290 | R7: -1 | S7: -1 | T7: -1 | U7: -1 | V7: -1 | W7: -1 | X7: -1 | Y7: -1 | Z7: -1 | AA7: -1 | AB7: -1 | AC7: -1
A8: =A7+1 -> 5 | B8: RCP4-RA6C | C8: 50 | D8: 500 | E8: 0 | F8: =LeadData!A20 -> 17 | G8: =StrokeData!A93 -> 90 | H8: =MassDataLink!A300 -> 297 | I8: =LeadData!A21 -> 18 | J8: =StrokeData!A94 -> 91 | K8: =MassDataLink!A319 -> 316 | L8: =LeadData!A22 -> 19 | M8: =StrokeData!A95 -> 92 | N8: =MassDataLink!A342 -> 339 | O8: =LeadData!A23 -> 20 | P8: =StrokeData!A96 -> 93 | Q8: =MassDataLink!A362 -> 359 | R8: -1 | S8: -1 | T8: -1 | U8: -1 | V8: -1 | W8: -1 | X8: -1 | Y8: -1 | Z8: -1 | AA8: -1 | AB8: -1 | AC8: -1
A9: 6 | B9: ERC3-SA5 | C9: 50 | D9: 800 | E9: 0 | F9: =LeadData!A24 -> 21 | G9: =StrokeData!A97 -> 94 | H9: =MassDataLink!A375 -> 372 | I9: =LeadData!A25 -> 22 | J9: =StrokeData!A105 -> 102 | K9: =MassDataLink!A401 -> 398 | L9: =LeadData!A26 -> 23 | M9: =StrokeData!A113 -> 110 | N9: =MassDataLink!A430 -> 427 | O9: =LeadData!A27 -> 24 | P9: =StrokeData!A121 -> 118 | Q9: =MassDataLink!A446 -> 443 | R9: -1 | S9: -1 | T9: -1 | U9: -1 | V9: -1 | W9: -1 | X9: -1 | Y9: -1 | Z9: -1 | AA9: -1 | AB9: -1 | AC9: -1
A10: 7 | B10: ERC3-SA7 | C10: 50 | D10: 800 | E10: 0 | F10: =LeadData!A28 -> 25 | G10: =StrokeData!A128 -> 125 | H10: =MassDataLink!A457 -> 454 | I10: =LeadData!A29 -> 26 | J10: =StrokeData!A133 -> 130 | K10: =MassDataLink!A474 -> 471 | L10: =LeadData!A30 -> 27 | M10: =StrokeData!A139 -> 136 | N10: =MassDataLink!A500 -> 497 | O10: =LeadData!A31 -> 28 | P10: =StrokeData!A145 -> 142 | Q10: =MassDataLink!A528 -> 525 | R10: -1 | S10: -1 | T10: -1 | U10: -1 | V10: -1 | W10: -1 | X10: -1 | Y10: -1 | Z10: -1 | AA10: -1 | AB10: -1 | AC10: -1
A11: 8 | B11: ERC3-RA4 | C11: 50 | D11: 300 | E11: 0 | F11: =LeadData!A32 -> 29 | G11: =StrokeData!A150 -> 147 | H11: =MassDataLink!A545 -> 542 | I11: =LeadData!A33 -> 30 | J11: =StrokeData!A153 -> 150 | K11: =MassDataLink!A571 -> 568 | L11: =LeadData!A34 -> 31 | M11: =StrokeData!A156 -> 153 | N11: =MassDataLink!A601 -> 598 | O11: =LeadData!A35 -> 32 | P11: =StrokeData!A159 -> 156 | Q11: =MassDataLink!A622 -> 619 | R11: -1 | S11: -1 | T11: -1 | U11: -1 | V11: -1 | W11: -1 | X11: -1 | Y11: -1 | Z11: -1 | AA11: -1 | AB11: -1 | AC11: -1
A12: 9 | B12: ERC3-RA6 | C12: 50 | D12: 300 | E12: 0 | F12: =LeadData!A36 -> 33 | G12: =StrokeData!A160 -> 157 | H12: =MassDataLink!A631 -> 628 | I12: =LeadData!A37 -> 34 | J12: =StrokeData!A162 -> 159 | K12: =MassDataLink!A647 -> 644 | L12: =LeadData!A38 -> 35 | M12: =StrokeData!A164 -> 161 | N12: =MassDataLink!A671 -> 668 | O12: =LeadData!A39 -> 36 | P12: =StrokeData!A165 -> 162 | Q12: =MassDataLink!A695 -> 692 | R12: -1 | S12: -1 | T12: -1 | U12: -1 | V12: -1 | W12: -1 | X12: -1 | Y12: -1 | Z12: -1 | AA12: -1 | AB12: -1 | AC12: -1
A13: 10 | B13: RCP4-SA5R | C13: 50 | D13: 800 | E13: 0 | F13: =LeadData!A40 -> 37 | G13: =StrokeData!A166 -> 163 | H13: =MassDataLink!A707 -> 704 | I13: =LeadData!A41 -> 38 | J13: =StrokeData!A174 -> 171 | K13: =MassDataLink!A724 -> 721 | L13: =LeadData!A42 -> 39 | M13: =StrokeData!A182 -> 179 | N13: =MassDataLink!A745 -> 742 | O13: =LeadData!A43 -> 40 | P13: =StrokeData!A190 -> 187 | Q13: =MassDataLink!A761 -> 758 | R13: -1 | S13: -1 | T13: -1 | U13: -1 | V13: -1 | W13: -1 | X13: -1 | Y13: -1 | Z13: -1 | AA13: -1 | AB13: -1 | AC13: -1
A14: 11 | B14: RCP4-SA6R | C14: 50 | D14: 800 | E14: 0 | F14: =LeadData!A44 -> 41 | G14: =StrokeData!A197 -> 194 | H14: =MassDataLink!A772 -> 769 | I14: =LeadData!A45 -> 42 | J14: =StrokeData!A205 -> 202 | K14: =MassDataLink!A789 -> 786 | L14: =LeadData!A46 -> 43 | M14: =StrokeData!A213 -> 210 | N14: =MassDataLink!A814 -> 811 | O14: =LeadData!A47 -> 44 | P14: =StrokeData!A221 -> 218 | Q14: =MassDataLink!A837 -> 834 | R14: -1 | S14: -1 | T14: -1 | U14: -1 | V14: -1 | W14: -1 | X14: -1 | Y14: -1 | Z14: -1 | AA14: -1 | AB14: -1 | AC14: -1
A15: 12 | B15: RCP4-SA7R | C15: 50 | D15: 800 | E15: 0 | F15: =LeadData!A48 -> 45 | G15: =StrokeData!A228 -> 225 | H15: =MassDataLink!A853 -> 850 | I15: =LeadData!A49 -> 46 | J15: =StrokeData!A233 -> 230 | K15: =MassDataLink!A870 -> 867 | L15: =LeadData!A50 -> 47 | M15: =StrokeData!A239 -> 236 | N15: =MassDataLink!A893 -> 890 | O15: =LeadData!A51 -> 48 | P15: =StrokeData!A244 -> 241 | Q15: =MassDataLink!A916 -> 913 | R15: -1 | S15: -1 | T15: -1 | U15: -1 | V15: -1 | W15: -1 | X15: -1 | Y15: -1 | Z15: -1 | AA15: -1 | AB15: -1 | AC15: -1
A16: 13 | B16: RCP4-RA5R | C16: 50 | D16: 400 | E16: 0 | F16: =LeadData!A52 -> 49 | G16: =StrokeData!A247 -> 244 | H16: =MassDataLink!A933 -> 930 | I16: =LeadData!A53 -> 50 | J16: =StrokeData!A248 -> 245 | K16: =MassDataLink!A955 -> 952 | L16: =LeadData!A54 -> 51 | M16: =StrokeData!A249 -> 246 | N16: =MassDataLink!A979 -> 976 | O16: =LeadData!A55 -> 52 | P16: =StrokeData!A250 -> 247 | Q16: =MassDataLink!A997 -> 994 | R16: -1 | S16: -1 | T16: -1 | U16: -1 | V16: -1 | W16: -1 | X16: -1 | Y16: -1 | Z16: -1 | AA16: -1 | AB16: -1 | AC16: -1
A17: 14 | B17: RCP4-RA6R | C17: 50 | D17: 500 | E17: 0 | F17: =LeadData!A56 -> 53 | G17: =StrokeData!A251 -> 248 | H17: =MassDataLink!A1004 -> 1001 | I17: =LeadData!A57 -> 54 | J17: =StrokeData!A252 -> 249 | K17: =MassDataLink!A1021 -> 1018 | L17: =LeadData!A58 -> 55 | M17: =StrokeData!A253 -> 250 | N17: =MassDataLink!A1042 -> 1039 | O17: =LeadData!A59 -> 56 | P17: =StrokeData!A254 -> 251 | Q17: =MassDataLink!A1061 -> 1058 | R17: -1 | S17: -1 | T17: -1 | U17: -1 | V17: -1 | W17: -1 | X17: -1 | Y17: -1 | Z17: -1 | AA17: -1 | AB17: -1 | AC17: -1
A18: 15 | B18: ERC3D-SA5 | C18: 50 | D18: 800 | E18: 0 | F18: =LeadData!A60 -> 57 | G18: =StrokeData!A255 -> 252 | H18: =MassDataLink!A1074 -> 1071 | I18: =LeadData!A61 -> 58 | J18: =StrokeData!A263 -> 260 | K18: =MassDataLink!A1100 -> 1097 | L18: =LeadData!A62 -> 59 | M18: =StrokeData!A271 -> 268 | N18: =MassDataLink!A1129 -> 1126 | O18: =LeadData!A63 -> 60 | P18: =StrokeData!A279 -> 276 | Q18: =MassDataLink!A1145 -> 1142 | R18: -1 | S18: -1 | T18: -1 | U18: -1 | V18: -1 | W18: -1 | X18: -1 | Y18: -1 | Z18: -1 | AA18: -1 | AB18: -1 | AC18: -1
A19: 16 | B19: ERC3D-SA7 | C19: 50 | D19: 800 | E19: 0 | F19: =LeadData!A64 -> 61 | G19: =StrokeData!A285 -> 282 | H19: =MassDataLink!A1156 -> 1153 | I19: =LeadData!A65 -> 62 | J19: =StrokeData!A290 -> 287 | K19: =MassDataLink!A1173 -> 1170 | L19: =LeadData!A66 -> 63 | M19: =StrokeData!A296 -> 293 | N19: =MassDataLink!A1199 -> 1196 | O19: =LeadData!A67 -> 64 | P19: =StrokeData!A302 -> 299 | Q19: =MassDataLink!A1227 -> 1224 | R19: -1 | S19: -1 | T19: -1 | U19: -1 | V19: -1 | W19: -1 | X19: -1 | Y19: -1 | Z19: -1 | AA19: -1 | AB19: -1 | AC19: -1
A20: 17 | B20: ERC3CR-SA5 | C20: 50 | D20: 800 | E20: 0 | F20: =LeadData!A68 -> 65 | G20: =StrokeData!A307 -> 304 | H20: =MassDataLink!A1244 -> 1241 | I20: =LeadData!A69 -> 66 | J20: =StrokeData!A315 -> 312 | K20: =MassDataLink!A1270 -> 1267 | L20: =LeadData!A70 -> 67 | M20: =StrokeData!A323 -> 320 | N20: =MassDataLink!A1299 -> 1296 | O20: =LeadData!A71 -> 68 | P20: =StrokeData!A331 -> 328 | Q20: =MassDataLink!A1315 -> 1312 | R20: -1 | S20: -1 | T20: -1 | U20: -1 | V20: -1 | W20: -1 | X20: -1 | Y20: -1 | Z20: -1 | AA20: -1 | AB20: -1 | AC20: -1
A21: 18 | B21: ERC3CR-SA7 | C21: 50 | D21: 800 | E21: 0 | F21: =LeadData!A72 -> 69 | G21: =StrokeData!A337 -> 334 | H21: =MassDataLink!A1326 -> 1323 | I21: =LeadData!A73 -> 70 | J21: =StrokeData!A342 -> 339 | K21: =MassDataLink!A1343 -> 1340 | L21: =LeadData!A74 -> 71 | M21: =StrokeData!A348 -> 345 | N21: =MassDataLink!A1369 -> 1366 | O21: =LeadData!A75 -> 72 | P21: =StrokeData!A354 -> 351 | Q21: =MassDataLink!A1397 -> 1394 | R21: -1 | S21: -1 | T21: -1 | U21: -1 | V21: -1 | W21: -1 | X21: -1 | Y21: -1 | Z21: -1 | AA21: -1 | AB21: -1 | AC21: -1
A22: 19 | B22: RCP5-SA4C | C22: 50 | D22: 500 | E22: 0 | F22: =LeadData!A76 -> 73 | G22: =StrokeData!A359 -> 356 | H22: =MassDataLink!A1414 -> 1411 | I22: =LeadData!A77 -> 74 | J22: =StrokeData!A362 -> 359 | K22: =MassDataLink!A1416 -> 1413 | L22: =LeadData!A78 -> 75 | M22: =StrokeData!A365 -> 362 | N22: =MassDataLink!A1420 -> 1417 | O22: =LeadData!A79 -> 76 | P22: =StrokeData!A368 -> 365 | Q22: =MassDataLink!A1431 -> 1428 | R22: -1 | S22: -1 | T22: -1 | U22: -1 | V22: -1 | W22: -1 | X22: -1 | Y22: -1 | Z22: -1 | AA22: -1 | AB22: -1 | AC22: -1
A23: 20 | B23: RCP5-SA6C | C23: 50 | D23: 800 | E23: 0 | F23: =LeadData!A80 -> 77 | G23: =StrokeData!A371 -> 368 | H23: =MassDataLink!A1440 -> 1437 | I23: =LeadData!A81 -> 78 | J23: =StrokeData!A380 -> 377 | K23: =MassDataLink!A1456 -> 1453 | L23: =LeadData!A82 -> 79 | M23: =StrokeData!A389 -> 386 | N23: =MassDataLink!A1479 -> 1476 | O23: =LeadData!A83 -> 80 | P23: =StrokeData!A398 -> 395 | Q23: =MassDataLink!A1503 -> 1500 | R23: -1 | S23: -1 | T23: -1 | U23: -1 | V23: -1 | W23: -1 | X23: -1 | Y23: -1 | Z23: -1 | AA23: -1 | AB23: -1 | AC23: -1
A24: 21 | B24: RCP5-SA7C | C24: 50 | D24: 800 | E24: 0 | F24: =LeadData!A84 -> 81 | G24: =StrokeData!A406 -> 403 | H24: =MassDataLink!A1519 -> 1516 | I24: =LeadData!A85 -> 82 | J24: =StrokeData!A412 -> 409 | K24: =MassDataLink!A1537 -> 1534 | L24: =LeadData!A86 -> 83 | M24: =StrokeData!A418 -> 415 | N24: =MassDataLink!A1559 -> 1556 | O24: =LeadData!A87 -> 84 | P24: =StrokeData!A424 -> 421 | Q24: =MassDataLink!A1583 -> 1580 | R24: -1 | S24: -1 | T24: -1 | U24: -1 | V24: -1 | W24: -1 | X24: -1 | Y24: -1 | Z24: -1 | AA24: -1 | AB24: -1 | AC24: -1
A25: 22 | B25: RCP5-RA4C | C25: 60 | D25: 410 | E25: 0 | F25: =LeadData!A88 -> 85 | G25: =StrokeData!A429 -> 426 | H25: =MassDataLink!A1603 -> 1600 | I25: =LeadData!A89 -> 86 | J25: =StrokeData!A431 -> 428 | K25: =MassDataLink!A1611 -> 1608 | L25: =LeadData!A90 -> 87 | M25: =StrokeData!A433 -> 430 | N25: =MassDataLink!A1623 -> 1620 | O25: =LeadData!A91 -> 88 | P25: =StrokeData!A435 -> 432 | Q25: =MassDataLink!A1639 -> 1636 | R25: -1 | S25: -1 | T25: -1 | U25: -1 | V25: -1 | W25: -1 | X25: -1 | Y25: -1 | Z25: -1 | AA25: -1 | AB25: -1 | AC25: -1
A26: 23 | B26: RCP5-RA6C | C26: 65 | D26: 415 | E26: 0 | F26: =LeadData!A92 -> 89 | G26: =StrokeData!A437 -> 434 | H26: =MassDataLink!A1653 -> 1650 | I26: =LeadData!A93 -> 90 | J26: =StrokeData!A439 -> 436 | K26: =MassDataLink!A1675 -> 1672 | L26: =LeadData!A94 -> 91 | M26: =StrokeData!A440 -> 437 | N26: =MassDataLink!A1699 -> 1696 | O26: =LeadData!A95 -> 92 | P26: =StrokeData!A441 -> 438 | Q26: =MassDataLink!A1717 -> 1714 | R26: -1 | S26: -1 | T26: -1 | U26: -1 | V26: -1 | W26: -1 | X26: -1 | Y26: -1 | Z26: -1 | AA26: -1 | AB26: -1 | AC26: -1
A27: 24 | B27: RCP5-RA7C | C27: 70 | D27: 520 | E27: 0 | F27: =LeadData!A96 -> 93 | G27: =StrokeData!A442 -> 439 | H27: =MassDataLink!A1724 -> 1721 | I27: =LeadData!A97 -> 94 | J27: =StrokeData!A443 -> 440 | K27: =MassDataLink!A1743 -> 1740 | L27: =LeadData!A98 -> 95 | M27: =StrokeData!A444 -> 441 | N27: =MassDataLink!A1766 -> 1763 | O27: =LeadData!A99 -> 96 | P27: =StrokeData!A445 -> 442 | Q27: =MassDataLink!A1786 -> 1783 | R27: -1 | S27: -1 | T27: -1 | U27: -1 | V27: -1 | W27: -1 | X27: -1 | Y27: -1 | Z27: -1 | AA27: -1 | AB27: -1 | AC27: -1
A28: 25 | B28: RCP4W-SA5C(両端支持) | C28: 100 | D28: 500 | E28: 0 | F28: =LeadData!A100 -> 97 | G28: =StrokeData!A446 -> 443 | H28: =MassDataLink!A1799 -> 1796 | I28: =LeadData!A101 -> 98 | J28: =StrokeData!A447 -> 444 | K28: =MassDataLink!A1803 -> 1800 | L28: -1 | M28: -1 | N28: -1 | O28: -1 | P28: -1 | Q28: -1 | R28: -1 | S28: -1 | T28: -1 | U28: -1 | V28: -1 | W28: -1 | X28: -1 | Y28: -1 | Z28: -1 | AA28: -1 | AB28: -1 | AC28: -1
A29: 26 | B29: RCP4W-SA6C(両端支持) | C29: 100 | D29: 600 | E29: 0 | F29: =LeadData!A102 -> 99 | G29: =StrokeData!A448 -> 445 | H29: =MassDataLink!A1807 -> 1804 | I29: =LeadData!A103 -> 100 | J29: =StrokeData!A449 -> 446 | K29: =MassDataLink!A1811 -> 1808 | L29: -1 | M29: -1 | N29: -1 | O29: -1 | P29: -1 | Q29: -1 | R29: -1 | S29: -1 | T29: -1 | U29: -1 | V29: -1 | W29: -1 | X29: -1 | Y29: -1 | Z29: -1 | AA29: -1 | AB29: -1 | AC29: -1
A30: 27 | B30: RCP4W-SA7C(両端支持) | C30: 100 | D30: 700 | E30: 0 | F30: =LeadData!A104 -> 101 | G30: =StrokeData!A450 -> 447 | H30: =MassDataLink!A1815 -> 1812 | I30: =LeadData!A105 -> 102 | J30: =StrokeData!A451 -> 448 | K30: =MassDataLink!A1819 -> 1816 | L30: -1 | M30: -1 | N30: -1 | O30: -1 | P30: -1 | Q30: -1 | R30: -1 | S30: -1 | T30: -1 | U30: -1 | V30: -1 | W30: -1 | X30: -1 | Y30: -1 | Z30: -1 | AA30: -1 | AB30: -1 | AC30: -1
A31: 28 | B31: RCP4W-SA5C(片持ち支持) | C31: 100 | D31: 150 | E31: 0 | F31: =LeadData!A106 -> 103 | G31: =StrokeData!A452 -> 449 | H31: =MassDataLink!A1823 -> 1820 | I31: =LeadData!A107 -> 104 | J31: =StrokeData!A453 -> 450 | K31: =MassDataLink!A1827 -> 1824 | L31: -1 | M31: -1 | N31: -1 | O31: -1 | P31: -1 | Q31: -1 | R31: -1 | S31: -1 | T31: -1 | U31: -1 | V31: -1 | W31: -1 | X31: -1 | Y31: -1 | Z31: -1 | AA31: -1 | AB31: -1 | AC31: -1
A32: 29 | B32: RCP4W-SA6C(片持ち支持) | C32: 100 | D32: 150 | E32: 0 | F32: =LeadData!A108 -> 105 | G32: =StrokeData!A454 -> 451 | H32: =MassDataLink!A1831 -> 1828 | I32: =LeadData!A109 -> 106 | J32: =StrokeData!A455 -> 452 | K32: =MassDataLink!A1835 -> 1832 | L32: -1 | M32: -1 | N32: -1 | O32: -1 | P32: -1 | Q32: -1 | R32: -1 | S32: -1 | T32: -1 | U32: -1 | V32: -1 | W32: -1 | X32: -1 | Y32: -1 | Z32: -1 | AA32: -1 | AB32: -1 | AC32: -1
A33: 30 | B33: RCP4W-SA7C(片持ち支持) | C33: 100 | D33: 150 | E33: 0 | F33: =LeadData!A110 -> 107 | G33: =StrokeData!A456 -> 453 | H33: =MassDataLink!A1839 -> 1836 | I33: =LeadData!A111 -> 108 | J33: =StrokeData!A457 -> 454 | K33: =MassDataLink!A1843 -> 1840 | L33: -1 | M33: -1 | N33: -1 | O33: -1 | P33: -1 | Q33: -1 | R33: -1 | S33: -1 | T33: -1 | U33: -1 | V33: -1 | W33: -1 | X33: -1 | Y33: -1 | Z33: -1 | AA33: -1 | AB33: -1 | AC33: -1
A34: 31 | B34: RCP4W-RA6C | C34: 50 | D34: 400 | E34: 0 | F34: =LeadData!A112 -> 109 | G34: =StrokeData!A458 -> 455 | H34: =MassDataLink!A1847 -> 1844 | I34: =LeadData!A113 -> 110 | J34: =StrokeData!A459 -> 456 | K34: =MassDataLink!A1859 -> 1856 | L34: =LeadData!A114 -> 111 | M34: =StrokeData!A461 -> 458 | N34: =MassDataLink!A1872 -> 1869 | O34: -1 | P34: -1 | Q34: -1 | R34: -1 | S34: -1 | T34: -1 | U34: -1 | V34: -1 | W34: -1 | X34: -1 | Y34: -1 | Z34: -1 | AA34: -1 | AB34: -1 | AC34: -1
A35: 32 | B35: RCP4W-RA6C(高推力) | C35: 50 | D35: 400 | E35: 0 | F35: =LeadData!A115 -> 112 | G35: =StrokeData!A462 -> 459 | H35: =MassDataLink!A1883 -> 1880 | I35: -1 | J35: -1 | K35: -1 | L35: -1 | M35: -1 | N35: -1 | O35: -1 | P35: -1 | Q35: -1 | R35: -1 | S35: -1 | T35: -1 | U35: -1 | V35: -1 | W35: -1 | X35: -1 | Y35: -1 | Z35: -1 | AA35: -1 | AB35: -1 | AC35: -1
A36: 33 | B36: RCP4W-RA7C | C36: 50 | D36: 500 | E36: 0 | F36: =LeadData!A116 -> 113 | G36: =StrokeData!A463 -> 460 | H36: =MassDataLink!A1885 -> 1882 | I36: =LeadData!A117 -> 114 | J36: =StrokeData!A464 -> 461 | K36: =MassDataLink!A1901 -> 1898 | L36: =LeadData!A118 -> 115 | M36: =StrokeData!A465 -> 462 | N36: =MassDataLink!A1916 -> 1913 | O36: -1 | P36: -1 | Q36: -1 | R36: -1 | S36: -1 | T36: -1 | U36: -1 | V36: -1 | W36: -1 | X36: -1 | Y36: -1 | Z36: -1 | AA36: -1 | AB36: -1 | AC36: -1
A37: 34 | B37: RCP4-SA3C | C37: 25 | D37: 300 | E37: 0 | F37: =LeadData!A119 -> 116 | G37: =StrokeData!A466 -> 463 | H37: =MassDataLink!A1933 -> 1930 | I37: =LeadData!A120 -> 117 | J37: =StrokeData!A467 -> 464 | K37: =MassDataLink!A1941 -> 1938 | L37: =LeadData!A121 -> 118 | M37: =StrokeData!A468 -> 465 | N37: =MassDataLink!A1946 -> 1943 | O37: -1 | P37: -1 | Q37: -1 | R37: -1 | S37: -1 | T37: -1 | U37: -1 | V37: -1 | W37: -1 | X37: -1 | Y37: -1 | Z37: -1 | AA37: -1 | AB37: -1 | AC37: -1
A38: 35 | B38: RCP4-RA3C | C38: 25 | D38: 300 | E38: 0 | F38: =LeadData!A122 -> 119 | G38: =StrokeData!A469 -> 466 | H38: =MassDataLink!A1950 -> 1947 | I38: =LeadData!A123 -> 120 | J38: =StrokeData!A470 -> 467 | K38: =MassDataLink!A1966 -> 1963 | L38: =LeadData!A124 -> 121 | M38: =StrokeData!A471 -> 468 | N38: =MassDataLink!A1980 -> 1977 | O38: =LeadData!A125 -> 122 | P38: =StrokeData!A472 -> 469 | Q38: =MassDataLink!A1995 -> 1992 | R38: -1 | S38: -1 | T38: -1 | U38: -1 | V38: -1 | W38: -1 | X38: -1 | Y38: -1 | Z38: -1 | AA38: -1 | AB38: -1 | AC38: -1
A39: 36 | B39: RCP4-SA3R | C39: 25 | D39: 300 | E39: 0 | F39: =LeadData!A126 -> 123 | G39: =StrokeData!A473 -> 470 | H39: =MassDataLink!A2009 -> 2006 | I39: =LeadData!A127 -> 124 | J39: =StrokeData!A474 -> 471 | K39: =MassDataLink!A2017 -> 2014 | L39: =LeadData!A128 -> 125 | M39: =StrokeData!A475 -> 472 | N39: =MassDataLink!A2022 -> 2019 | O39: -1 | P39: -1 | Q39: -1 | R39: -1 | S39: -1 | T39: -1 | U39: -1 | V39: -1 | W39: -1 | X39: -1 | Y39: -1 | Z39: -1 | AA39: -1 | AB39: -1 | AC39: -1
A40: 37 | B40: RCP4-RA3R | C40: 25 | D40: 300 | E40: 0 | F40: =LeadData!A129 -> 126 | G40: =StrokeData!A476 -> 473 | H40: =MassDataLink!A2025 -> 2022 | I40: =LeadData!A130 -> 127 | J40: =StrokeData!A477 -> 474 | K40: =MassDataLink!A2043 -> 2040 | L40: =LeadData!A131 -> 128 | M40: =StrokeData!A478 -> 475 | N40: =MassDataLink!A2057 -> 2054 | O40: =LeadData!A132 -> 129 | P40: =StrokeData!A479 -> 476 | Q40: =MassDataLink!A2069 -> 2066 | R40: -1 | S40: -1 | T40: -1 | U40: -1 | V40: -1 | W40: -1 | X40: -1 | Y40: -1 | Z40: -1 | AA40: -1 | AB40: -1 | AC40: -1
A41: 38 | B41: RCP4-RA5C(高推力) | C41: 50 | D41: 400 | E41: 0 | F41: =LeadData!A133 -> 130 | G41: =StrokeData!A480 -> 477 | H41: =MassDataLink!A2080 -> 2077 | I41: -1 | J41: -1 | K41: -1 | L41: -1 | M41: -1 | N41: -1 | O41: -1 | P41: -1 | Q41: -1 | R41: -1 | S41: -1 | T41: -1 | U41: -1 | V41: -1 | W41: -1 | X41: -1 | Y41: -1 | Z41: -1 | AA41: -1 | AB41: -1 | AC41: -1
A42: 39 | B42: RCP4CR-SA3C | C42: =C37 -> 25 | D42: 300 | E42: 0 | F42: 116 | G42: 463 | H42: 1930 | I42: 117 | J42: 464 | K42: 1938 | L42: 118 | M42: 465 | N42: 1943 | O42: -1 | P42: -1 | Q42: -1 | R42: -1 | S42: -1 | T42: -1 | U42: -1 | V42: -1 | W42: -1 | X42: -1 | Y42: -1 | Z42: -1 | AA42: -1 | AB42: -1 | AC42: -1
A43: 40 | B43: RCP4CR-SA5C | C43: =C4 -> 50 | D43: 800 | E43: 0 | F43: 1 | G43: 1 | H43: 1 | I43: 2 | J43: 9 | K43: 17 | L43: 3 | M43: 17 | N43: 36 | O43: 4 | P43: 25 | Q43: 52 | R43: -1 | S43: -1 | T43: -1 | U43: -1 | V43: -1 | W43: -1 | X43: -1 | Y43: -1 | Z43: -1 | AA43: -1 | AB43: -1 | AC43: -1
A44: 41 | B44: RCP4CR-SA6C | C44: =C5 -> 50 | D44: 800 | E44: 0 | F44: 5 | G44: 32 | H44: 63 | I44: 6 | J44: 40 | K44: 79 | L44: 7 | M44: 48 | N44: 102 | O44: 8 | P44: 56 | Q44: 126 | R44: -1 | S44: -1 | T44: -1 | U44: -1 | V44: -1 | W44: -1 | X44: -1 | Y44: -1 | Z44: -1 | AA44: -1 | AB44: -1 | AC44: -1
A45: 42 | B45: RCP4CR-SA7C | C45: =C6 -> 50 | D45: 800 | E45: 0 | F45: 9 | G45: 63 | H45: 142 | I45: 10 | J45: 69 | K45: 160 | L45: 11 | M45: 75 | N45: 182 | O45: 12 | P45: 81 | Q45: 206 | R45: -1 | S45: -1 | T45: -1 | U45: -1 | V45: -1 | W45: -1 | X45: -1 | Y45: -1 | Z45: -1 | AA45: -1 | AB45: -1 | AC45: -1
A46: 43 | B46: RCP5CR-SA4C | C46: =C22 -> 50 | D46: 500 | E46: 0 | F46: 73 | G46: 356 | H46: 1411 | I46: 74 | J46: 359 | K46: 1413 | L46: 75 | M46: 362 | N46: 1417 | O46: 76 | P46: 365 | Q46: 1428 | R46: -1 | S46: -1 | T46: -1 | U46: -1 | V46: -1 | W46: -1 | X46: -1 | Y46: -1 | Z46: -1 | AA46: -1 | AB46: -1 | AC46: -1
A47: 44 | B47: RCP5CR-SA6C | C47: =C23 -> 50 | D47: 800 | E47: 0 | F47: 77 | G47: 368 | H47: 1437 | I47: 78 | J47: 377 | K47: 1453 | L47: 79 | M47: 386 | N47: 1476 | O47: 80 | P47: 395 | Q47: 1500 | R47: -1 | S47: -1 | T47: -1 | U47: -1 | V47: -1 | W47: -1 | X47: -1 | Y47: -1 | Z47: -1 | AA47: -1 | AB47: -1 | AC47: -1
A48: 45 | B48: RCP5CR-SA7C | C48: =C24 -> 50 | D48: 800 | E48: 0 | F48: 81 | G48: 403 | H48: 1516 | I48: 82 | J48: 409 | K48: 1534 | L48: 83 | M48: 415 | N48: 1556 | O48: 84 | P48: 421 | Q48: =Q24 -> 1580 | R48: -1 | S48: -1 | T48: -1 | U48: -1 | V48: -1 | W48: -1 | X48: -1 | Y48: -1 | Z48: -1 | AA48: -1 | AB48: -1 | AC48: -1
A49: 46 | B49: RCP5-BA4 | C49: 300 | D49: 1200 | E49: 0 | F49: =LeadData!A134 -> 131 | G49: =StrokeData!A481 -> 478 | H49: =MassDataLink!A2083 -> 2080 | I49: -1 | J49: -1 | K49: -1 | L49: -1 | M49: -1 | N49: -1 | O49: -1 | P49: -1 | Q49: -1 | R49: -1 | S49: -1 | T49: -1 | U49: -1 | V49: -1 | W49: -1 | X49: -1 | Y49: -1 | Z49: -1 | AA49: -1 | AB49: -1 | AC49: -1
A50: 47 | B50: RCP5-BA6 | C50: 300 | D50: 2200 | E50: 0 | F50: =LeadData!A135 -> 132 | G50: =StrokeData!A482 -> 479 | H50: =MassDataLink!A2086 -> 2083 | I50: -1 | J50: -1 | K50: -1 | L50: -1 | M50: -1 | N50: -1 | O50: -1 | P50: -1 | Q50: -1 | R50: -1 | S50: -1 | T50: -1 | U50: -1 | V50: -1 | W50: -1 | X50: -1 | Y50: -1 | Z50: -1 | AA50: -1 | AB50: -1 | AC50: -1
A51: 48 | B51: RCP5-BA7 | C51: 300 | D51: 2600 | E51: 0 | F51: =LeadData!A136 -> 133 | G51: =StrokeData!A483 -> 480 | H51: =MassDataLink!A2090 -> 2087 | I51: -1 | J51: -1 | K51: -1 | L51: -1 | M51: -1 | N51: -1 | O51: -1 | P51: -1 | Q51: -1 | R51: -1 | S51: -1 | T51: -1 | U51: -1 | V51: -1 | W51: -1 | X51: -1 | Y51: -1 | Z51: -1 | AA51: -1 | AB51: -1 | AC51: -1
A52: 49 | B52: RCP5-SA4R | C52: 50 | D52: 500 | E52: 0 | F52: =LeadData!A137 -> 134 | G52: =StrokeData!A484 -> 481 | H52: =MassDataLink!A2098 -> 2095 | I52: =LeadData!A138 -> 135 | J52: =StrokeData!A487 -> 484 | K52: =MassDataLink!A2103 -> 2100 | L52: =LeadData!A139 -> 136 | M52: =StrokeData!A490 -> 487 | N52: =MassDataLink!A2113 -> 2110 | O52: =LeadData!A140 -> 137 | P52: =StrokeData!A493 -> 490 | Q52: =MassDataLink!A2126 -> 2123 | R52: -1 | S52: -1 | T52: -1 | U52: -1 | V52: -1 | W52: -1 | X52: -1 | Y52: -1 | Z52: -1 | AA52: -1 | AB52: -1 | AC52: -1
A53: 50 | B53: RCP5-SA6R | C53: 50 | D53: 800 | E53: 0 | F53: =LeadData!A141 -> 138 | G53: =StrokeData!A496 -> 493 | H53: =MassDataLink!A2135 -> 2132 | I53: =LeadData!A142 -> 139 | J53: =StrokeData!A505 -> 502 | K53: =MassDataLink!A2152 -> 2149 | L53: =LeadData!A143 -> 140 | M53: =StrokeData!A514 -> 511 | N53: =MassDataLink!A2177 -> 2174 | O53: =LeadData!A144 -> 141 | P53: =StrokeData!A523 -> 520 | Q53: =MassDataLink!A2200 -> 2197 | R53: -1 | S53: -1 | T53: -1 | U53: -1 | V53: -1 | W53: -1 | X53: -1 | Y53: -1 | Z53: -1 | AA53: -1 | AB53: -1 | AC53: -1
A54: 51 | B54: RCP5-SA7R | C54: 50 | D54: 800 | E54: 0 | F54: =LeadData!A145 -> 142 | G54: =StrokeData!A530 -> 527 | H54: =MassDataLink!A2216 -> 2213 | I54: =LeadData!A146 -> 143 | J54: =StrokeData!A535 -> 532 | K54: =MassDataLink!A2233 -> 2230 | L54: =LeadData!A147 -> 144 | M54: =StrokeData!A541 -> 538 | N54: =MassDataLink!A2256 -> 2253 | O54: =LeadData!A148 -> 145 | P54: =StrokeData!A546 -> 543 | Q54: =MassDataLink!A2279 -> 2276 | R54: -1 | S54: -1 | T54: -1 | U54: -1 | V54: -1 | W54: -1 | X54: -1 | Y54: -1 | Z54: -1 | AA54: -1 | AB54: -1 | AC54: -1
A55: 52 | B55: RCP5-RA4R | C55: 60 | D55: 410 | E55: 0 | F55: =LeadData!A149 -> 146 | G55: =StrokeData!A549 -> 546 | H55: =MassDataLink!A2296 -> 2293 | I55: =LeadData!A150 -> 147 | J55: =StrokeData!A551 -> 548 | K55: =MassDataLink!A2305 -> 2302 | L55: =LeadData!A151 -> 148 | M55: =StrokeData!A553 -> 550 | N55: =MassDataLink!A2318 -> 2315 | O55: =LeadData!A152 -> 149 | P55: =StrokeData!A554 -> 551 | Q55: =MassDataLink!A2329 -> 2326 | R55: -1 | S55: -1 | T55: -1 | U55: -1 | V55: -1 | W55: -1 | X55: -1 | Y55: -1 | Z55: -1 | AA55: -1 | AB55: -1 | AC55: -1
A56: 53 | B56: RCP5-RA6R | C56: 65 | D56: 415 | E56: 0 | F56: =LeadData!A153 -> 150 | G56: =StrokeData!A555 -> 552 | H56: =MassDataLink!A2340 -> 2337 | I56: =LeadData!A154 -> 151 | J56: =StrokeData!A557 -> 554 | K56: =MassDataLink!A2362 -> 2359 | L56: =LeadData!A155 -> 152 | M56: =StrokeData!A558 -> 555 | N56: =MassDataLink!A2386 -> 2383 | O56: =LeadData!A156 -> 153 | P56: =StrokeData!A559 -> 556 | Q56: =MassDataLink!A2404 -> 2401 | R56: -1 | S56: -1 | T56: -1 | U56: -1 | V56: -1 | W56: -1 | X56: -1 | Y56: -1 | Z56: -1 | AA56: -1 | AB56: -1 | AC56: -1
A57: 54 | B57: RCP5-RA7R | C57: 70 | D57: 520 | E57: 0 | F57: =LeadData!A157 -> 154 | G57: =StrokeData!A560 -> 557 | H57: =MassDataLink!A2411 -> 2408 | I57: =LeadData!A158 -> 155 | J57: =StrokeData!A561 -> 558 | K57: =MassDataLink!A2428 -> 2425 | L57: =LeadData!A159 -> 156 | M57: =StrokeData!A562 -> 559 | N57: =MassDataLink!A2449 -> 2446 | O57: =LeadData!A160 -> 157 | P57: =StrokeData!A563 -> 560 | Q57: =MassDataLink!A2468 -> 2465 | R57: -1 | S57: -1 | T57: -1 | U57: -1 | V57: -1 | W57: -1 | X57: -1 | Y57: -1 | Z57: -1 | AA57: -1 | AB57: -1 | AC57: -1
A58: 55 | B58: RCP5W-RA6C | C58: =C34 -> 50 | D58: 400 | E58: 0 | F58: 109 | G58: 455 | H58: 1844 | I58: 110 | J58: 456 | K58: 1856 | L58: 111 | M58: 458 | N58: 1869 | O58: -1 | P58: -1 | Q58: -1 | R58: -1 | S58: -1 | T58: -1 | U58: -1 | V58: -1 | W58: -1 | X58: -1 | Y58: -1 | Z58: -1 | AA58: -1 | AB58: -1 | AC58: -1
A59: 56 | B59: RCP5W-RA6C(高推力) | C59: =C35 -> 50 | D59: 400 | E59: 0 | F59: 112 | G59: 459 | H59: 1880 | I59: -1 | J59: -1 | K59: -1 | L59: -1 | M59: -1 | N59: -1 | O59: -1 | P59: -1 | Q59: -1 | R59: -1 | S59: -1 | T59: -1 | U59: -1 | V59: -1 | W59: -1 | X59: -1 | Y59: -1 | Z59: -1 | AA59: -1 | AB59: -1 | AC59: -1
A60: 57 | B60: RCP5W-RA7C | C60: =C36 -> 50 | D60: 500 | E60: 0 | F60: 113 | G60: 460 | H60: 1882 | I60: 114 | J60: 461 | K60: 1898 | L60: 115 | M60: 462 | N60: 1913 | O60: -1 | P60: -1 | Q60: -1 | R60: -1 | S60: -1 | T60: -1 | U60: -1 | V60: -1 | W60: -1 | X60: -1 | Y60: -1 | Z60: -1 | AA60: -1 | AB60: -1 | AC60: -1
A61: =A60+1 -> 58 | B61: RCP6-SA4C | C61: 50 | D61: 500 | E61: 0 | F61: =LeadData!A161 -> 158 | G61: =StrokeData!A564 -> 561 | H61: =MassDataLink!A2481 -> 2478 | I61: =LeadData!A162 -> 159 | J61: =StrokeData!A567 -> 564 | K61: =MassDataLink!A2487 -> 2484 | L61: =LeadData!A163 -> 160 | M61: =StrokeData!A570 -> 567 | N61: =MassDataLink!A2496 -> 2493 | O61: =LeadData!A164 -> 161 | P61: =StrokeData!A573 -> 570 | Q61: =MassDataLink!A2512 -> 2509 | R61: -1 | S61: -1 | T61: -1 | U61: -1 | V61: -1 | W61: -1 | X61: -1 | Y61: -1 | Z61: -1 | AA61: -1 | AB61: -1 | AC61: -1
A62: 59 | B62: RCP6-SA6C | C62: 50 | D62: 800 | E62: 0 | F62: =LeadData!A165 -> 162 | G62: =StrokeData!A576 -> 573 | H62: =MassDataLink!A2527 -> 2524 | I62: =LeadData!A166 -> 163 | J62: =StrokeData!A585 -> 582 | K62: =MassDataLink!A2546 -> 2543 | L62: =LeadData!A167 -> 164 | M62: =StrokeData!A594 -> 591 | N62: =MassDataLink!A2564 -> 2561 | O62: =LeadData!A168 -> 165 | P62: =StrokeData!A603 -> 600 | Q62: =MassDataLink!A2585 -> 2582 | R62: -1 | S62: -1 | T62: -1 | U62: -1 | V62: -1 | W62: -1 | X62: -1 | Y62: -1 | Z62: -1 | AA62: -1 | AB62: -1 | AC62: -1
A63: 60 | B63: RCP6-SA7C | C63: 50 | D63: 800 | E63: 0 | F63: =LeadData!A169 -> 166 | G63: =StrokeData!A611 -> 608 | H63: =MassDataLink!A2603 -> 2600 | I63: =LeadData!A170 -> 167 | J63: =StrokeData!A618 -> 615 | K63: =MassDataLink!A2623 -> 2620 | L63: =LeadData!A171 -> 168 | M63: =StrokeData!A625 -> 622 | N63: =MassDataLink!A2646 -> 2643 | O63: =LeadData!A172 -> 169 | P63: =StrokeData!A632 -> 629 | Q63: =MassDataLink!A2670 -> 2667 | R63: -1 | S63: -1 | T63: -1 | U63: -1 | V63: -1 | W63: -1 | X63: -1 | Y63: -1 | Z63: -1 | AA63: -1 | AB63: -1 | AC63: -1
A64: 61 | B64: RCP6-SA4R | C64: 50 | D64: 500 | E64: 0 | F64: =LeadData!A173 -> 170 | G64: =StrokeData!A637 -> 634 | H64: =MassDataLink!A2691 -> 2688 | I64: =LeadData!A174 -> 171 | J64: =StrokeData!A640 -> 637 | K64: =MassDataLink!A2702 -> 2699 | L64: =LeadData!A175 -> 172 | M64: =StrokeData!A643 -> 640 | N64: =MassDataLink!A2715 -> 2712 | O64: =LeadData!A176 -> 173 | P64: =StrokeData!A646 -> 643 | Q64: =MassDataLink!A2731 -> 2728 | R64: -1 | S64: -1 | T64: -1 | U64: -1 | V64: -1 | W64: -1 | X64: -1 | Y64: -1 | Z64: -1 | AA64: -1 | AB64: -1 | AC64: -1
A65: 62 | B65: RCP6-SA6R | C65: 50 | D65: 800 | E65: 0 | F65: =LeadData!A177 -> 174 | G65: =StrokeData!A649 -> 646 | H65: =MassDataLink!A2744 -> 2741 | I65: =LeadData!A178 -> 175 | J65: =StrokeData!A658 -> 655 | K65: =MassDataLink!A2762 -> 2759 | L65: =LeadData!A179 -> 176 | M65: =StrokeData!A667 -> 664 | N65: =MassDataLink!A2781 -> 2778 | O65: =LeadData!A180 -> 177 | P65: =StrokeData!A676 -> 673 | Q65: =MassDataLink!A2801 -> 2798 | R65: -1 | S65: -1 | T65: -1 | U65: -1 | V65: -1 | W65: -1 | X65: -1 | Y65: -1 | Z65: -1 | AA65: -1 | AB65: -1 | AC65: -1
A66: 63 | B66: RCP6-SA7R | C66: 50 | D66: 800 | E66: 0 | F66: =LeadData!A181 -> 178 | G66: =StrokeData!A683 -> 680 | H66: =MassDataLink!A2819 -> 2816 | I66: =LeadData!A182 -> 179 | J66: =StrokeData!A689 -> 686 | K66: =MassDataLink!A2838 -> 2835 | L66: =LeadData!A183 -> 180 | M66: =StrokeData!A695 -> 692 | N66: =MassDataLink!A2860 -> 2857 | O66: =LeadData!A184 -> 181 | P66: =StrokeData!A701 -> 698 | Q66: =MassDataLink!A2884 -> 2881 | R66: -1 | S66: -1 | T66: -1 | U66: -1 | V66: -1 | W66: -1 | X66: -1 | Y66: -1 | Z66: -1 | AA66: -1 | AB66: -1 | AC66: -1
A67: 64 | B67: RCP6-WSA10C | C67: 50 | D67: 500 | E67: 0 | F67: =LeadData!A185 -> 182 | G67: =StrokeData!A705 -> 702 | H67: =MassDataLink!A2899 -> 2896 | I67: =LeadData!A186 -> 183 | J67: =StrokeData!A710 -> 707 | K67: =MassDataLink!A2909 -> 2906 | L67: =LeadData!A187 -> 184 | M67: =StrokeData!A715 -> 712 | N67: =MassDataLink!A2926 -> 2923 | O67: =LeadData!A188 -> 185 | P67: =StrokeData!A719 -> 716 | Q67: =MassDataLink!A2937 -> 2934 | R67: -1 | S67: -1 | T67: -1 | U67: -1 | V67: -1 | W67: -1 | X67: -1 | Y67: -1 | Z67: -1 | AA67: -1 | AB67: -1 | AC67: -1
A68: 65 | B68: RCP6-WSA12C | C68: 50 | D68: 800 | E68: 0 | F68: =LeadData!A189 -> 186 | G68: =StrokeData!A722 -> 719 | H68: =MassDataLink!A2943 -> 2940 | I68: =LeadData!A190 -> 187 | J68: =StrokeData!A732 -> 729 | K68: =MassDataLink!A2968 -> 2965 | L68: =LeadData!A191 -> 188 | M68: =StrokeData!A742 -> 739 | N68: =MassDataLink!A2991 -> 2988 | O68: =LeadData!A192 -> 189 | P68: =StrokeData!A749 -> 746 | Q68: =MassDataLink!A3004 -> 3001 | R68: -1 | S68: -1 | T68: -1 | U68: -1 | V68: -1 | W68: -1 | X68: -1 | Y68: -1 | Z68: -1 | AA68: -1 | AB68: -1 | AC68: -1
A69: 66 | B69: RCP6-WSA14C | C69: 50 | D69: 800 | E69: 0 | F69: =LeadData!A193 -> 190 | G69: =StrokeData!A754 -> 751 | H69: =MassDataLink!A3009 -> 3006 | I69: =LeadData!A194 -> 191 | J69: =StrokeData!A761 -> 758 | K69: =MassDataLink!A3027 -> 3024 | L69: =LeadData!A195 -> 192 | M69: =StrokeData!A768 -> 765 | N69: =MassDataLink!A3051 -> 3048 | O69: =LeadData!A196 -> 193 | P69: =StrokeData!A772 -> 769 | Q69: =MassDataLink!A3068 -> 3065 | R69: -1 | S69: -1 | T69: -1 | U69: -1 | V69: -1 | W69: -1 | X69: -1 | Y69: -1 | Z69: -1 | AA69: -1 | AB69: -1 | AC69: -1
A70: 67 | B70: RCP6-WSA10R | C70: 50 | D70: 500 | E70: 0 | F70: =LeadData!A197 -> 194 | G70: =StrokeData!A774 -> 771 | H70: =MassDataLink!A3079 -> 3076 | I70: =LeadData!A198 -> 195 | J70: =StrokeData!A779 -> 776 | K70: =MassDataLink!A3094 -> 3091 | L70: =LeadData!A199 -> 196 | M70: =StrokeData!A784 -> 781 | N70: =MassDataLink!A3112 -> 3109 | O70: =LeadData!A200 -> 197 | P70: =StrokeData!A788 -> 785 | Q70: =MassDataLink!A3124 -> 3121 | R70: -1 | S70: -1 | T70: -1 | U70: -1 | V70: -1 | W70: -1 | X70: -1 | Y70: -1 | Z70: -1 | AA70: -1 | AB70: -1 | AC70: -1
A71: 68 | B71: RCP6-WSA12R | C71: 50 | D71: 800 | E71: 0 | F71: =LeadData!A201 -> 198 | G71: =StrokeData!A791 -> 788 | H71: =MassDataLink!A3130 -> 3127 | I71: =LeadData!A202 -> 199 | J71: =StrokeData!A801 -> 798 | K71: =MassDataLink!A3154 -> 3151 | L71: =LeadData!A203 -> 200 | M71: =StrokeData!A811 -> 808 | N71: =MassDataLink!A3176 -> 3173 | O71: =LeadData!A204 -> 201 | P71: =StrokeData!A818 -> 815 | Q71: =MassDataLink!A3189 -> 3186 | R71: -1 | S71: -1 | T71: -1 | U71: -1 | V71: -1 | W71: -1 | X71: -1 | Y71: -1 | Z71: -1 | AA71: -1 | AB71: -1 | AC71: -1
A72: 69 | B72: RCP6-WSA14R | C72: 50 | D72: 800 | E72: 0 | F72: =LeadData!A205 -> 202 | G72: =StrokeData!A823 -> 820 | H72: =MassDataLink!A3197 -> 3194 | I72: =LeadData!A206 -> 203 | J72: =StrokeData!A829 -> 826 | K72: =MassDataLink!A3214 -> 3211 | L72: =LeadData!A207 -> 204 | M72: =StrokeData!A836 -> 833 | N72: =MassDataLink!A3235 -> 3232 | O72: =LeadData!A208 -> 205 | P72: =StrokeData!A840 -> 837 | Q72: 4918 | R72: -1 | S72: -1 | T72: -1 | U72: -1 | V72: -1 | W72: -1 | X72: -1 | Y72: -1 | Z72: -1 | AA72: -1 | AB72: -1 | AC72: -1
A73: 70 | B73: RCP6-RA4C | C73: 50 | D73: 200 | E73: 0 | F73: =LeadData!A209 -> 206 | G73: =StrokeData!A842 -> 839 | H73: =MassDataLink!A3263 -> 3260 | I73: =LeadData!A210 -> 207 | J73: =StrokeData!A843 -> 840 | K73: =MassDataLink!A3277 -> 3274 | L73: =LeadData!A211 -> 208 | M73: =StrokeData!A844 -> 841 | N73: =MassDataLink!A3289 -> 3286 | O73: =LeadData!A212 -> 209 | P73: =StrokeData!A845 -> 842 | Q73: =MassDataLink!A3306 -> 3303 | R73: -1 | S73: -1 | T73: -1 | U73: -1 | V73: -1 | W73: -1 | X73: -1 | Y73: -1 | Z73: -1 | AA73: -1 | AB73: -1 | AC73: -1
A74: 71 | B74: RCP6-RA6C | C74: 50 | D74: 300 | E74: 0 | F74: =LeadData!A213 -> 210 | G74: =StrokeData!A846 -> 843 | H74: =MassDataLink!A3318 -> 3315 | I74: =LeadData!A214 -> 211 | J74: =StrokeData!A847 -> 844 | K74: =MassDataLink!A3340 -> 3337 | L74: =LeadData!A215 -> 212 | M74: =StrokeData!A848 -> 845 | N74: =MassDataLink!A3364 -> 3361 | O74: =LeadData!A216 -> 213 | P74: =StrokeData!A849 -> 846 | Q74: =MassDataLink!A3382 -> 3379 | R74: -1 | S74: -1 | T74: -1 | U74: -1 | V74: -1 | W74: -1 | X74: -1 | Y74: -1 | Z74: -1 | AA74: -1 | AB74: -1 | AC74: -1
A75: 72 | B75: RCP6-RA7C | C75: 50 | D75: 300 | E75: 0 | F75: =LeadData!A217 -> 214 | G75: =StrokeData!A850 -> 847 | H75: =MassDataLink!A3389 -> 3386 | I75: =LeadData!A218 -> 215 | J75: =StrokeData!A851 -> 848 | K75: =MassDataLink!A3406 -> 3403 | L75: =LeadData!A219 -> 216 | M75: =StrokeData!A852 -> 849 | N75: =MassDataLink!A3432 -> 3429 | O75: =LeadData!A220 -> 217 | P75: =StrokeData!A853 -> 850 | Q75: =MassDataLink!A3451 -> 3448 | R75: -1 | S75: -1 | T75: -1 | U75: -1 | V75: -1 | W75: -1 | X75: -1 | Y75: -1 | Z75: -1 | AA75: -1 | AB75: -1 | AC75: -1
A76: 73 | B76: RCP6-RA4R | C76: 50 | D76: 200 | E76: 0 | F76: =LeadData!A221 -> 218 | G76: =StrokeData!A854 -> 851 | H76: =MassDataLink!A3470 -> 3467 | I76: =LeadData!A222 -> 219 | J76: =StrokeData!A855 -> 852 | K76: =MassDataLink!A3479 -> 3476 | L76: =LeadData!A223 -> 220 | M76: =StrokeData!A856 -> 853 | N76: =MassDataLink!A3493 -> 3490 | O76: =LeadData!A224 -> 221 | P76: =StrokeData!A857 -> 854 | Q76: =MassDataLink!A3504 -> 3501 | R76: -1 | S76: -1 | T76: -1 | U76: -1 | V76: -1 | W76: -1 | X76: -1 | Y76: -1 | Z76: -1 | AA76: -1 | AB76: -1 | AC76: -1
A77: 74 | B77: RCP6-RA6R | C77: 50 | D77: 300 | E77: 0 | F77: =LeadData!A225 -> 222 | G77: =StrokeData!A858 -> 855 | H77: =MassDataLink!A3515 -> 3512 | I77: =LeadData!A226 -> 223 | J77: =StrokeData!A859 -> 856 | K77: =MassDataLink!A3537 -> 3534 | L77: =LeadData!A227 -> 224 | M77: =StrokeData!A860 -> 857 | N77: =MassDataLink!A3561 -> 3558 | O77: =LeadData!A228 -> 225 | P77: =StrokeData!A861 -> 858 | Q77: =MassDataLink!A3579 -> 3576 | R77: -1 | S77: -1 | T77: -1 | U77: -1 | V77: -1 | W77: -1 | X77: -1 | Y77: -1 | Z77: -1 | AA77: -1 | AB77: -1 | AC77: -1
A78: 75 | B78: RCP6-RA7R | C78: 50 | D78: 300 | E78: =E73 -> 0 | F78: =LeadData!A229 -> 226 | G78: =StrokeData!A862 -> 859 | H78: =MassDataLink!A3587 -> 3584 | I78: =LeadData!A230 -> 227 | J78: =StrokeData!A863 -> 860 | K78: =MassDataLink!A3604 -> 3601 | L78: =LeadData!A231 -> 228 | M78: =StrokeData!A864 -> 861 | N78: =MassDataLink!A3626 -> 3623 | O78: =LeadData!A232 -> 229 | P78: =StrokeData!A865 -> 862 | Q78: =MassDataLink!A3644 -> 3641 | R78: -1 | S78: -1 | T78: -1 | U78: -1 | V78: -1 | W78: -1 | X78: -1 | Y78: -1 | Z78: -1 | AA78: -1 | AB78: -1 | AC78: -1
A79: 76 | B79: RCP6-RRA4C | C79: 60 | D79: 410 | E79: =E40 -> 0 | F79: =LeadData!A233 -> 230 | G79: =StrokeData!A866 -> 863 | H79: =MassDataLink!A3659 -> 3656 | I79: =LeadData!A234 -> 231 | J79: =StrokeData!A868 -> 865 | K79: =MassDataLink!A3667 -> 3664 | L79: =LeadData!A235 -> 232 | M79: =StrokeData!A870 -> 867 | N79: =MassDataLink!A3679 -> 3676 | O79: =LeadData!A236 -> 233 | P79: =StrokeData!A872 -> 869 | Q79: =MassDataLink!A3700 -> 3697 | R79: -1 | S79: -1 | T79: -1 | U79: -1 | V79: -1 | W79: -1 | X79: -1 | Y79: -1 | Z79: -1 | AA79: -1 | AB79: -1 | AC79: -1
A80: 77 | B80: RCP6-RRA6C | C80: 65 | D80: 415 | E80: =E41 -> 0 | F80: =LeadData!A237 -> 234 | G80: =StrokeData!A874 -> 871 | H80: =MassDataLink!A3718 -> 3715 | I80: =LeadData!A238 -> 235 | J80: =StrokeData!A876 -> 873 | K80: =MassDataLink!A3740 -> 3737 | L80: =LeadData!A239 -> 236 | M80: =StrokeData!A877 -> 874 | N80: =MassDataLink!A3764 -> 3761 | O80: =LeadData!A240 -> 237 | P80: =StrokeData!A878 -> 875 | Q80: =MassDataLink!A3782 -> 3779 | R80: -1 | S80: -1 | T80: -1 | U80: -1 | V80: -1 | W80: -1 | X80: -1 | Y80: -1 | Z80: -1 | AA80: -1 | AB80: -1 | AC80: -1
A81: 78 | B81: RCP6-RRA7C | C81: 70 | D81: 520 | E81: =E42 -> 0 | F81: =LeadData!A241 -> 238 | G81: =StrokeData!A879 -> 876 | H81: =MassDataLink!A3789 -> 3786 | I81: =LeadData!A242 -> 239 | J81: =StrokeData!A880 -> 877 | K81: =MassDataLink!A3808 -> 3805 | L81: =LeadData!A243 -> 240 | M81: =StrokeData!A881 -> 878 | N81: =MassDataLink!A3833 -> 3830 | O81: =LeadData!A244 -> 241 | P81: =StrokeData!A882 -> 879 | Q81: =MassDataLink!A3853 -> 3850 | R81: -1 | S81: -1 | T81: -1 | U81: -1 | V81: -1 | W81: -1 | X81: -1 | Y81: -1 | Z81: -1 | AA81: -1 | AB81: -1 | AC81: -1
A82: 79 | B82: RCP6-RRA4R | C82: 60 | D82: 410 | E82: =E58 -> 0 | F82: =LeadData!A245 -> 242 | G82: =StrokeData!A883 -> 880 | H82: =MassDataLink!A3866 -> 3863 | I82: =LeadData!A246 -> 243 | J82: =StrokeData!A885 -> 882 | K82: =MassDataLink!A3875 -> 3872 | L82: =LeadData!A247 -> 244 | M82: =StrokeData!A887 -> 884 | N82: =MassDataLink!A3890 -> 3887 | O82: =LeadData!A248 -> 245 | P82: =StrokeData!A888 -> 885 | Q82: =MassDataLink!A3902 -> 3899 | R82: -1 | S82: -1 | T82: -1 | U82: -1 | V82: -1 | W82: -1 | X82: -1 | Y82: -1 | Z82: -1 | AA82: -1 | AB82: -1 | AC82: -1
A83: 80 | B83: RCP6-RRA6R | C83: 65 | D83: 415 | E83: =E59 -> 0 | F83: =LeadData!A249 -> 246 | G83: =StrokeData!A889 -> 886 | H83: =MassDataLink!A3913 -> 3910 | I83: =LeadData!A250 -> 247 | J83: =StrokeData!A891 -> 888 | K83: =MassDataLink!A3935 -> 3932 | L83: =LeadData!A251 -> 248 | M83: =StrokeData!A892 -> 889 | N83: =MassDataLink!A3959 -> 3956 | O83: =LeadData!A252 -> 249 | P83: =StrokeData!A893 -> 890 | Q83: =MassDataLink!A3977 -> 3974 | R83: -1 | S83: -1 | T83: -1 | U83: -1 | V83: -1 | W83: -1 | X83: -1 | Y83: -1 | Z83: -1 | AA83: -1 | AB83: -1 | AC83: -1
A84: 81 | B84: RCP6-RRA7R | C84: 70 | D84: 520 | E84: =E60 -> 0 | F84: =LeadData!A253 -> 250 | G84: =StrokeData!A894 -> 891 | H84: =MassDataLink!A3984 -> 3981 | I84: =LeadData!A254 -> 251 | J84: =StrokeData!A895 -> 892 | K84: =MassDataLink!A4000 -> 3997 | L84: =LeadData!A255 -> 252 | M84: =StrokeData!A896 -> 893 | N84: =MassDataLink!A4021 -> 4018 | O84: =LeadData!A256 -> 253 | P84: =StrokeData!A897 -> 894 | Q84: =MassDataLink!A4040 -> 4037 | R84: -1 | S84: -1 | T84: -1 | U84: -1 | V84: -1 | W84: -1 | X84: -1 | Y84: -1 | Z84: -1 | AA84: -1 | AB84: -1 | AC84: -1
A85: 82 | B85: RCP6-WRA10C | C85: 50 | D85: 500 | E85: 0 | F85: =LeadData!A257 -> 254 | G85: =StrokeData!A898 -> 895 | H85: =MassDataLink!A4053 -> 4050 | I85: =LeadData!A258 -> 255 | J85: =StrokeData!A901 -> 898 | K85: =MassDataLink!A4065 -> 4062 | L85: =LeadData!A259 -> 256 | M85: =StrokeData!A904 -> 901 | N85: =MassDataLink!A4082 -> 4079 | O85: =LeadData!A260 -> 257 | P85: =StrokeData!A906 -> 903 | Q85: =MassDataLink!A4096 -> 4093 | R85: -1 | S85: -1 | T85: -1 | U85: -1 | V85: -1 | W85: -1 | X85: -1 | Y85: -1 | Z85: -1 | AA85: -1 | AB85: -1 | AC85: -1
A86: 83 | B86: RCP6-WRA12C | C86: 50 | D86: 500 | E86: 0 | F86: =LeadData!A261 -> 258 | G86: =StrokeData!A907 -> 904 | H86: =MassDataLink!A4103 -> 4100 | I86: =LeadData!A262 -> 259 | J86: =StrokeData!A910 -> 907 | K86: =MassDataLink!A4121 -> 4118 | L86: =LeadData!A263 -> 260 | M86: =StrokeData!A912 -> 909 | N86: =MassDataLink!A4142 -> 4139 | O86: =LeadData!A264 -> 261 | P86: =StrokeData!A913 -> 910 | Q86: =MassDataLink!A4154 -> 4151 | R86: -1 | S86: -1 | T86: -1 | U86: -1 | V86: -1 | W86: -1 | X86: -1 | Y86: -1 | Z86: -1 | AA86: -1 | AB86: -1 | AC86: -1
A87: 84 | B87: RCP6-WRA14C | C87: 50 | D87: 600 | E87: 0 | F87: =LeadData!A265 -> 262 | G87: =StrokeData!A914 -> 911 | H87: =MassDataLink!A4161 -> 4158 | I87: =LeadData!A266 -> 263 | J87: =StrokeData!A916 -> 913 | K87: =MassDataLink!A4180 -> 4177 | L87: =LeadData!A267 -> 264 | M87: =StrokeData!A918 -> 915 | N87: =MassDataLink!A4196 -> 4193 | O87: =LeadData!A268 -> 265 | P87: =StrokeData!A919 -> 916 | Q87: =MassDataLink!A4207 -> 4204 | R87: -1 | S87: -1 | T87: -1 | U87: -1 | V87: -1 | W87: -1 | X87: -1 | Y87: -1 | Z87: -1 | AA87: -1 | AB87: -1 | AC87: -1
A88: 85 | B88: RCP6-WRA10R | C88: 50 | D88: 500 | E88: 0 | F88: =LeadData!A269 -> 266 | G88: =StrokeData!A920 -> 917 | H88: =MassDataLink!A4217 -> 4214 | I88: =LeadData!A270 -> 267 | J88: =StrokeData!A923 -> 920 | K88: =MassDataLink!A4227 -> 4224 | L88: =LeadData!A271 -> 268 | M88: =StrokeData!A926 -> 923 | N88: =MassDataLink!A4245 -> 4242 | O88: =LeadData!A272 -> 269 | P88: =StrokeData!A928 -> 925 | Q88: =MassDataLink!A4254 -> 4251 | R88: -1 | S88: -1 | T88: -1 | U88: -1 | V88: -1 | W88: -1 | X88: -1 | Y88: -1 | Z88: -1 | AA88: -1 | AB88: -1 | AC88: -1
A89: 86 | B89: RCP6-WRA12R | C89: 50 | D89: 500 | E89: 0 | F89: =LeadData!A273 -> 270 | G89: =StrokeData!A929 -> 926 | H89: =MassDataLink!A4259 -> 4256 | I89: =LeadData!A274 -> 271 | J89: =StrokeData!A932 -> 929 | K89: =MassDataLink!A4279 -> 4276 | L89: =LeadData!A275 -> 272 | M89: =StrokeData!A934 -> 931 | N89: =MassDataLink!A4299 -> 4296 | O89: =LeadData!A276 -> 273 | P89: =StrokeData!A935 -> 932 | Q89: =MassDataLink!A4311 -> 4308 | R89: -1 | S89: -1 | T89: -1 | U89: -1 | V89: -1 | W89: -1 | X89: -1 | Y89: -1 | Z89: -1 | AA89: -1 | AB89: -1 | AC89: -1
A90: 87 | B90: RCP6-WRA14R | C90: 50 | D90: 600 | E90: 0 | F90: =LeadData!A277 -> 274 | G90: =StrokeData!A936 -> 933 | H90: =MassDataLink!A4318 -> 4315 | I90: =LeadData!A278 -> 275 | J90: =StrokeData!A937 -> 934 | K90: =MassDataLink!A4334 -> 4331 | L90: =LeadData!A279 -> 276 | M90: =StrokeData!A938 -> 935 | N90: =MassDataLink!A4351 -> 4348 | O90: =LeadData!A280 -> 277 | P90: =StrokeData!A939 -> 936 | Q90: =MassDataLink!A4364 -> 4361 | R90: -1 | S90: -1 | T90: -1 | U90: -1 | V90: -1 | W90: -1 | X90: -1 | Y90: -1 | Z90: -1 | AA90: -1 | AB90: -1 | AC90: -1
A91: 88 | B91: RCP6-TA4C(SB) | C91: 25 | D91: 150 | E91: 0 | F91: =LeadData!A281 -> 278 | G91: =StrokeData!A940 -> 937 | H91: =MassDataLink!A4372 -> 4369 | I91: =LeadData!A282 -> 279 | J91: =StrokeData!A941 -> 938 | K91: =MassDataLink!A4383 -> 4380 | L91: =LeadData!A283 -> 280 | M91: =StrokeData!A942 -> 939 | N91: =MassDataLink!A4393 -> 4390 | O91: =LeadData!A284 -> 281 | P91: =StrokeData!A943 -> 940 | Q91: =MassDataLink!A4400 -> 4397 | R91: -1 | S91: -1 | T91: -1 | U91: -1 | V91: -1 | W91: -1 | X91: -1 | Y91: -1 | Z91: -1 | AA91: -1 | AB91: -1 | AC91: -1
A92: 89 | B92: RCP6-TA6C(SB) | C92: 25 | D92: 200 | E92: 0 | F92: =LeadData!A285 -> 282 | G92: =StrokeData!A944 -> 941 | H92: =MassDataLink!A4403 -> 4400 | I92: =LeadData!A286 -> 283 | J92: =StrokeData!A945 -> 942 | K92: =MassDataLink!A4412 -> 4409 | L92: =LeadData!A287 -> 284 | M92: =StrokeData!A946 -> 943 | N92: =MassDataLink!A4424 -> 4421 | O92: =LeadData!A288 -> 285 | P92: =StrokeData!A947 -> 944 | Q92: =MassDataLink!A4437 -> 4434 | R92: -1 | S92: -1 | T92: -1 | U92: -1 | V92: -1 | W92: -1 | X92: -1 | Y92: -1 | Z92: -1 | AA92: -1 | AB92: -1 | AC92: -1
A93: 90 | B93: RCP6-TA7C(SB) | C93: 50 | D93: 300 | E93: 0 | F93: =LeadData!A289 -> 286 | G93: =StrokeData!A948 -> 945 | H93: =MassDataLink!A4444 -> 4441 | I93: =LeadData!A290 -> 287 | J93: =StrokeData!A949 -> 946 | K93: =MassDataLink!A4454 -> 4451 | L93: =LeadData!A291 -> 288 | M93: =StrokeData!A950 -> 947 | N93: =MassDataLink!A4465 -> 4462 | O93: =LeadData!A292 -> 289 | P93: =StrokeData!A951 -> 948 | Q93: =MassDataLink!A4478 -> 4475 | R93: -1 | S93: -1 | T93: -1 | U93: -1 | V93: -1 | W93: -1 | X93: -1 | Y93: -1 | Z93: -1 | AA93: -1 | AB93: -1 | AC93: -1
A94: 91 | B94: RCP6-TA4R(SB) | C94: 25 | D94: 150 | E94: =E70 -> 0 | F94: =LeadData!A293 -> 290 | G94: =StrokeData!A952 -> 949 | H94: =MassDataLink!A4489 -> 4486 | I94: =LeadData!A294 -> 291 | J94: =StrokeData!A953 -> 950 | K94: =MassDataLink!A4503 -> 4500 | L94: =LeadData!A295 -> 292 | M94: =StrokeData!A954 -> 951 | N94: =MassDataLink!A4514 -> 4511 | O94: =LeadData!A296 -> 293 | P94: =StrokeData!A955 -> 952 | Q94: =MassDataLink!A4521 -> 4518 | R94: -1 | S94: -1 | T94: -1 | U94: -1 | V94: -1 | W94: -1 | X94: -1 | Y94: -1 | Z94: -1 | AA94: -1 | AB94: -1 | AC94: -1
A95: 92 | B95: RCP6-TA6R(SB) | C95: 25 | D95: 200 | E95: =E71 -> 0 | F95: =LeadData!A297 -> 294 | G95: =StrokeData!A956 -> 953 | H95: =MassDataLink!A4525 -> 4522 | I95: =LeadData!A298 -> 295 | J95: =StrokeData!A957 -> 954 | K95: =MassDataLink!A4534 -> 4531 | L95: =LeadData!A299 -> 296 | M95: =StrokeData!A958 -> 955 | N95: =MassDataLink!A4546 -> 4543 | O95: =LeadData!A300 -> 297 | P95: =StrokeData!A959 -> 956 | Q95: =MassDataLink!A4558 -> 4555 | R95: -1 | S95: -1 | T95: -1 | U95: -1 | V95: -1 | W95: -1 | X95: -1 | Y95: -1 | Z95: -1 | AA95: -1 | AB95: -1 | AC95: -1
A96: 93 | B96: RCP6-TA7R(SB) | C96: 50 | D96: 300 | E96: =E72 -> 0 | F96: =LeadData!A301 -> 298 | G96: =StrokeData!A960 -> 957 | H96: =MassDataLink!A4565 -> 4562 | I96: =LeadData!A302 -> 299 | J96: =StrokeData!A961 -> 958 | K96: =MassDataLink!A4579 -> 4576 | L96: =LeadData!A303 -> 300 | M96: =StrokeData!A962 -> 959 | N96: =MassDataLink!A4592 -> 4589 | O96: =LeadData!A304 -> 301 | P96: =StrokeData!A963 -> 960 | Q96: =MassDataLink!A4606 -> 4603 | R96: -1 | S96: -1 | T96: -1 | U96: -1 | V96: -1 | W96: -1 | X96: -1 | Y96: -1 | Z96: -1 | AA96: -1 | AB96: -1 | AC96: -1
A97: 94 | B97: RCP6-TA4C(DB) | C97: 40 | D97: 240 | E97: 0 | F97: =LeadData!A305 -> 302 | G97: =StrokeData!A964 -> 961 | H97: =MassDataLink!A4618 -> 4615 | I97: =LeadData!A306 -> 303 | J97: =StrokeData!A966 -> 963 | K97: =MassDataLink!A4634 -> 4631 | L97: =LeadData!A307 -> 304 | M97: =StrokeData!A968 -> 965 | N97: =MassDataLink!A4649 -> 4646 | O97: -1 | P97: -1 | Q97: -1 | R97: -1 | S97: -1 | T97: -1 | U97: -1 | V97: -1 | W97: -1 | X97: -1 | Y97: -1 | Z97: -1 | AA97: -1 | AB97: -1 | AC97: -1
A98: 95 | B98: RCP6-TA6C(DB) | C98: 70 | D98: 320 | E98: 0 | F98: =LeadData!A308 -> 305 | G98: =StrokeData!A970 -> 967 | H98: =MassDataLink!A4661 -> 4658 | I98: =LeadData!A309 -> 306 | J98: =StrokeData!A973 -> 970 | K98: =MassDataLink!A4672 -> 4669 | L98: =LeadData!A310 -> 307 | M98: =StrokeData!A976 -> 973 | N98: =MassDataLink!A4690 -> 4687 | O98: -1 | P98: -1 | Q98: -1 | R98: -1 | S98: -1 | T98: -1 | U98: -1 | V98: -1 | W98: -1 | X98: -1 | Y98: -1 | Z98: -1 | AA98: -1 | AB98: -1 | AC98: -1
A99: 96 | B99: RCP6-TA7C(DB) | C99: 40 | D99: 390 | E99: 0 | F99: =LeadData!A311 -> 308 | G99: =StrokeData!A979 -> 976 | H99: =MassDataLink!A4708 -> 4705 | I99: =LeadData!A312 -> 309 | J99: =StrokeData!A982 -> 979 | K99: =MassDataLink!A4730 -> 4727 | L99: =LeadData!A313 -> 310 | M99: =StrokeData!A985 -> 982 | N99: =MassDataLink!A4751 -> 4748 | O99: -1 | P99: -1 | Q99: -1 | R99: -1 | S99: -1 | T99: -1 | U99: -1 | V99: -1 | W99: -1 | X99: -1 | Y99: -1 | Z99: -1 | AA99: -1 | AB99: -1 | AC99: -1
A100: 97 | B100: RCP6-TA4R(DB) | C100: 40 | D100: 240 | E100: =E76 -> 0 | F100: =LeadData!A314 -> 311 | G100: =StrokeData!A987 -> 984 | H100: =MassDataLink!A4770 -> 4767 | I100: =LeadData!A315 -> 312 | J100: =StrokeData!A989 -> 986 | K100: =MassDataLink!A4788 -> 4785 | L100: =LeadData!A316 -> 313 | M100: =StrokeData!A991 -> 988 | N100: =MassDataLink!A4803 -> 4800 | O100: -1 | P100: -1 | Q100: -1 | R100: -1 | S100: -1 | T100: -1 | U100: -1 | V100: -1 | W100: -1 | X100: -1 | Y100: -1 | Z100: -1 | AA100: -1 | AB100: -1 | AC100: -1
A101: 98 | B101: RCP6-TA6R(DB) | C101: 70 | D101: 320 | E101: =E77 -> 0 | F101: =LeadData!A317 -> 314 | G101: =StrokeData!A993 -> 990 | H101: =MassDataLink!A4814 -> 4811 | I101: =LeadData!A318 -> 315 | J101: =StrokeData!A996 -> 993 | K101: =MassDataLink!A4826 -> 4823 | L101: =LeadData!A319 -> 316 | M101: =StrokeData!A999 -> 996 | N101: =MassDataLink!A4844 -> 4841 | O101: -1 | P101: -1 | Q101: -1 | R101: -1 | S101: -1 | T101: -1 | U101: -1 | V101: -1 | W101: -1 | X101: -1 | Y101: -1 | Z101: -1 | AA101: -1 | AB101: -1 | AC101: -1
A102: 99 | B102: RCP6-TA7R(DB) | C102: 40 | D102: 390 | E102: =E78 -> 0 | F102: =LeadData!A320 -> 317 | G102: =StrokeData!A1002 -> 999 | H102: =MassDataLink!A4861 -> 4858 | I102: =LeadData!A321 -> 318 | J102: =StrokeData!A1005 -> 1002 | K102: =MassDataLink!A4883 -> 4880 | L102: =LeadData!A322 -> 319 | M102: =StrokeData!A1008 -> 1005 | N102: =MassDataLink!A4904 -> 4901 | O102: -1 | P102: -1 | Q102: -1 | R102: -1 | S102: -1 | T102: -1 | U102: -1 | V102: -1 | W102: -1 | X102: -1 | Y102: -1 | Z102: -1 | AA102: -1 | AB102: -1 | AC102: -1
A103: =A102+1 -> 100 | B103: RCP6CR-SA4C | C103: =C61 -> 50 | D103: 500 | E103: 0 | F103: 158 | G103: 561 | H103: 2478 | I103: 159 | J103: 564 | K103: 2484 | L103: 160 | M103: 567 | N103: 2493 | O103: 161 | P103: 570 | Q103: 2509 | R103: -1 | S103: -1 | T103: -1 | U103: -1 | V103: -1 | W103: -1 | X103: -1 | Y103: -1 | Z103: -1 | AA103: -1 | AB103: -1 | AC103: -1
A104: 101 | B104: RCP6CR-SA6C | C104: =C62 -> 50 | D104: 800 | E104: 0 | F104: 162 | G104: 573 | H104: 2524 | I104: 163 | J104: 582 | K104: 2543 | L104: 164 | M104: 591 | N104: 2561 | O104: 165 | P104: 600 | Q104: 2582 | R104: -1 | S104: -1 | T104: -1 | U104: -1 | V104: -1 | W104: -1 | X104: -1 | Y104: -1 | Z104: -1 | AA104: -1 | AB104: -1 | AC104: -1
A105: 102 | B105: RCP6CR-SA7C | C105: =C63 -> 50 | D105: 800 | E105: 0 | F105: 166 | G105: 608 | H105: 2600 | I105: 167 | J105: 615 | K105: 2620 | L105: 168 | M105: 622 | N105: 2643 | O105: 169 | P105: 629 | Q105: 2667 | R105: -1 | S105: -1 | T105: -1 | U105: -1 | V105: -1 | W105: -1 | X105: -1 | Y105: -1 | Z105: -1 | AA105: -1 | AB105: -1 | AC105: -1
A106: 103 | B106: RCP6CR-WSA10C | C106: =C67 -> 50 | D106: 500 | E106: 0 | F106: 182 | G106: 702 | H106: 2896 | I106: 183 | J106: 707 | K106: 2906 | L106: 184 | M106: 712 | N106: 2923 | O106: 185 | P106: 716 | Q106: 2934 | R106: -1 | S106: -1 | T106: -1 | U106: -1 | V106: -1 | W106: -1 | X106: -1 | Y106: -1 | Z106: -1 | AA106: -1 | AB106: -1 | AC106: -1
A107: 104 | B107: RCP6CR-WSA12C | C107: =C68 -> 50 | D107: 800 | E107: 0 | F107: 186 | G107: 719 | H107: 2940 | I107: 187 | J107: 729 | K107: 2965 | L107: 188 | M107: 739 | N107: 2988 | O107: 189 | P107: 746 | Q107: 3001 | R107: -1 | S107: -1 | T107: -1 | U107: -1 | V107: -1 | W107: -1 | X107: -1 | Y107: -1 | Z107: -1 | AA107: -1 | AB107: -1 | AC107: -1
A108: 105 | B108: RCP6CR-WSA14C | C108: =C69 -> 50 | D108: 800 | E108: 0 | F108: 190 | G108: 751 | H108: 3006 | I108: 191 | J108: 758 | K108: 3024 | L108: 192 | M108: 765 | N108: 3048 | O108: 193 | P108: 769 | Q108: 3065 | R108: -1 | S108: -1 | T108: -1 | U108: -1 | V108: -1 | W108: -1 | X108: -1 | Y108: -1 | Z108: -1 | AA108: -1 | AB108: -1 | AC108: -1
A109: 106 | B109: RCP6-HSA6C | C109: 50 | D109: 800 | E109: 0 | F109: 320 | G109: 1007 | H109: 4930 | I109: 321 | J109: 1016 | K109: 4980 | L109: 322 | M109: 1025 | N109: 5041 | O109: 323 | P109: 1034 | Q109: 5075 | R109: -1 | S109: -1 | T109: -1 | U109: -1 | V109: -1 | W109: -1 | X109: -1 | Y109: -1 | Z109: -1 | AA109: -1 | AB109: -1 | AC109: -1 | AD109: ↓ Ver.3.10 追加
A110: 107 | B110: RCP6-HSA7C | C110: 50 | D110: 800 | E110: 0 | F110: 324 | G110: 1043 | H110: 5097 | I110: 325 | J110: 1050 | K110: 5159 | L110: 326 | M110: 1057 | N110: 5233 | O110: 327 | P110: 1064 | Q110: 5292 | R110: -1 | S110: -1 | T110: -1 | U110: -1 | V110: -1 | W110: -1 | X110: -1 | Y110: -1 | Z110: -1 | AA110: -1 | AB110: -1 | AC110: -1
A111: 108 | B111: RCP6-HSA6C-W | C111: 200 | D111: 800 | E111: 0 | F111: 328 | G111: 1071 | H111: 5338 | I111: 329 | J111: 1080 | K111: 5387 | L111: 330 | M111: 1089 | N111: 5421 | O111: -1 | P111: -1 | Q111: -1 | R111: -1 | S111: -1 | T111: -1 | U111: -1 | V111: -1 | W111: -1 | X111: -1 | Y111: -1 | Z111: -1 | AA111: -1 | AB111: -1 | AC111: -1
A112: 109 | B112: RCP6-HSA7C-W | C112: 200 | D112: 800 | E112: 0 | F112: 331 | G112: 1098 | H112: 5445 | I112: 332 | J112: 1104 | K112: 5510 | L112: 333 | M112: 1110 | N112: 5573 | O112: -1 | P112: -1 | Q112: -1 | R112: -1 | S112: -1 | T112: -1 | U112: -1 | V112: -1 | W112: -1 | X112: -1 | Y112: -1 | Z112: -1 | AA112: -1 | AB112: -1 | AC112: -1 | AD112: ↑ Ver.3.10 追加
A113: EOF

Sheet LeadData (hidden)
A1: 9.80665 | B1: 1 | C1: 3 | D1: 4 | E1: 5 | F1: 6 | G1: 10 | H1: 11 | I1: 14 | J1: 15
A2: データ№ | B2: ﾘｰﾄﾞ長 | C2: 水平定格加速度 | D2: 垂直定格加速度 | E2: 水平最大加速度 | F2: 垂直最大加速度 | G2: ｷﾞｱ比分子 | H2: ｷﾞｱ比分母 | I2: ｽﾄﾛｰｸ刻み | J2: 位置決め幅 初期値 | K2: 備考
A3: =ModelData!A3 -> 0 | B3: 0.001㎜ | C3: 0.001mm/s^2 | D3: 0.001mm/s^2 | E3: 0.001mm/s^2 | F3: 0.001mm/s^2 | I3: mm | J3: mm
A4: =A3+1 -> 1 | B4: 3000 | C4: =0.3*$A$1*1000000 -> 2941995 | D4: 2941995 | E4: =1*$A$1*1000000 -> 9806650 | F4: =0.5*$A$1*1000000 -> 4903325 | G4: 1 | H4: 1 | I4: 50 | J4: 0.1 | K4: RCP4-SA5C
A5: =A4+1 -> 2 | B5: 6000 | C5: 2941995 | D5: 2941995 | E5: 9806650 | F5: 4903325 | G5: 1 | H5: 1 | I5: 50 | J5: 0.1
A6: =A5+1 -> 3 | B6: 12000 | C6: 2941995 | D6: 2941995 | E6: 9806650 | F6: 4903325 | G6: 1 | H6: 1 | I6: 50 | J6: 0.1
A7: 4 | B7: 20000 | C7: 2941995 | D7: 2941995 | E7: 9806650 | F7: 4903325 | G7: 1 | H7: 1 | I7: 50 | J7: 0.1
A8: 5 | B8: 3000 | C8: 2941995 | D8: 2941995 | E8: 9806650 | F8: 4903325 | G8: 1 | H8: 1 | I8: 50 | J8: 0.1 | K8: RCP4-SA6C
A9: 6 | B9: 6000 | C9: 2941995 | D9: 2941995 | E9: 9806650 | F9: 4903325 | G9: 1 | H9: 1 | I9: 50 | J9: 0.1
A10: 7 | B10: 12000 | C10: 2941995 | D10: 2941995 | E10: 9806650 | F10: 4903325 | G10: 1 | H10: 1 | I10: 50 | J10: 0.1
A11: 8 | B11: 20000 | C11: 2941995 | D11: 2941995 | E11: 9806650 | F11: 4903325 | G11: 1 | H11: 1 | I11: 50 | J11: 0.1
A12: 9 | B12: 4000 | C12: 2941995 | D12: 2941995 | E12: 9806650 | F12: 4903325 | G12: 1 | H12: 1 | I12: 50 | J12: 0.1 | K12: RCP4-SA7C
A13: 10 | B13: 8000 | C13: 2941995 | D13: 2941995 | E13: 9806650 | F13: 4903325 | G13: 1 | H13: 1 | I13: 50 | J13: 0.1
A14: 11 | B14: 16000 | C14: 2941995 | D14: 2941995 | E14: 9806650 | F14: 4903325 | G14: 1 | H14: 1 | I14: 50 | J14: 0.1
A15: 12 | B15: 24000 | C15: 2941995 | D15: 2941995 | E15: 9806650 | F15: 4903325 | G15: 1 | H15: 1 | I15: 50 | J15: 0.1
A16: 13 | B16: 3000 | C16: 2941995 | D16: 2941995 | E16: 9806650 | F16: 4903325 | G16: 1 | H16: 1 | I16: 50 | J16: 0.1 | K16: RCP4-RA5C
A17: 14 | B17: 6000 | C17: 2941995 | D17: 2941995 | E17: 9806650 | F17: 4903325 | G17: 1 | H17: 1 | I17: 50 | J17: 0.1
A18: 15 | B18: 12000 | C18: 2941995 | D18: 2941995 | E18: 9806650 | F18: 4903325 | G18: 1 | H18: 1 | I18: 50 | J18: 0.1
A19: 16 | B19: 20000 | C19: 2941995 | D19: 2941995 | E19: 9806650 | F19: 4903325 | G19: 1 | H19: 1 | I19: 50 | J19: 0.1
A20: 17 | B20: 4000 | C20: 2941995 | D20: 2941995 | E20: 9806650 | F20: 4903325 | G20: 1 | H20: 1 | I20: 50 | J20: 0.1 | K20: RCP4-RA6C
A21: 18 | B21: 8000 | C21: 2941995 | D21: 2941995 | E21: 9806650 | F21: 4903325 | G21: 1 | H21: 1 | I21: 50 | J21: 0.1
A22: 19 | B22: 16000 | C22: 2941995 | D22: 2941995 | E22: 9806650 | F22: 4903325 | G22: 1 | H22: 1 | I22: 50 | J22: 0.1
A23: 20 | B23: 24000 | C23: 2941995 | D23: 2941995 | E23: 9806650 | F23: 4903325 | G23: 1 | H23: 1 | I23: 50 | J23: 0.1
A24: 21 | B24: 3000 | C24: =0.3*$A$1*1000000 -> 2941995 | D24: 2941995 | E24: =1*$A$1*1000000 -> 9806650 | F24: =0.5*$A$1*1000000 -> 4903325 | G24: 1 | H24: 1 | I24: 50 | J24: 0.1 | K24: ERC3-SA5
A25: 22 | B25: 6000 | C25: 2941995 | D25: 2941995 | E25: 9806650 | F25: 4903325 | G25: 1 | H25: 1 | I25: 50 | J25: 0.1
A26: 23 | B26: 12000 | C26: 2941995 | D26: 2941995 | E26: 9806650 | F26: 4903325 | G26: 1 | H26: 1 | I26: 50 | J26: 0.1
A27: 24 | B27: 20000 | C27: 2941995 | D27: =0.3*$A$1*1000000 -> 2941995 | E27: 9806650 | F27: 4903325 | G27: 1 | H27: 1 | I27: 50 | J27: 0.1
A28: 25 | B28: 4000 | C28: =0.3*$A$1*1000000 -> 2941995 | D28: 2941995 | E28: 9806650 | F28: 4903325 | G28: 1 | H28: 1 | I28: 50 | J28: 0.1 | K28: ERC3-SA7
A29: 26 | B29: 8000 | C29: 2941995 | D29: 2941995 | E29: 9806650 | F29: 4903325 | G29: 1 | H29: 1 | I29: 50 | J29: 0.1
A30: 27 | B30: 16000 | C30: 2941995 | D30: 2941995 | E30: 9806650 | F30: 4903325 | G30: 1 | H30: 1 | I30: 50 | J30: 0.1
A31: 28 | B31: 24000 | C31: 2941995 | D31: 2941995 | E31: =1*$A$1*1000000 -> 9806650 | F31: =0.5*$A$1*1000000 -> 4903325 | G31: 1 | H31: 1 | I31: 50 | J31: 0.1
A32: 29 | B32: 3000 | C32: 2941995 | D32: 2941995 | E32: 9806650 | F32: 4903325 | G32: 1 | H32: 1 | I32: 50 | J32: 0.1 | K32: ERC3-RA4
A33: 30 | B33: 6000 | C33: 2941995 | D33: 2941995 | E33: 9806650 | F33: 4903325 | G33: 1 | H33: 1 | I33: 50 | J33: 0.1
A34: 31 | B34: 12000 | C34: 2941995 | D34: 2941995 | E34: 9806650 | F34: 4903325 | G34: 1 | H34: 1 | I34: 50 | J34: 0.1
A35: 32 | B35: 20000 | C35: 2941995 | D35: 2941995 | E35: 9806650 | F35: 4903325 | G35: 1 | H35: 1 | I35: 50 | J35: 0.1
A36: 33 | B36: 4000 | C36: =0.3*$A$1*1000000 -> 2941995 | D36: 2941995 | E36: 9806650 | F36: 4903325 | G36: 1 | H36: 1 | I36: 50 | J36: 0.1 | K36: ERC3-RA6
A37: 34 | B37: 8000 | C37: 2941995 | D37: 2941995 | E37: 9806650 | F37: 4903325 | G37: 1 | H37: 1 | I37: 50 | J37: 0.1
A38: 35 | B38: 16000 | C38: 2941995 | D38: 2941995 | E38: 9806650 | F38: 4903325 | G38: 1 | H38: 1 | I38: 50 | J38: 0.1
A39: 36 | B39: 24000 | C39: 2941995 | D39: 2941995 | E39: 9806650 | F39: 4903325 | G39: 1 | H39: 1 | I39: 50 | J39: 0.1
A40: =A39+1 -> 37 | B40: 3000 | C40: 2941995 | D40: 2941995 | E40: 9806650 | F40: 4903325 | G40: 1 | H40: 1 | I40: 50 | J40: 0.1 | K40: RCP4-SA5R
A41: =A40+1 -> 38 | B41: 6000 | C41: 2941995 | D41: 2941995 | E41: 9806650 | F41: 4903325 | G41: 1 | H41: 1 | I41: 50 | J41: 0.1
A42: =A41+1 -> 39 | B42: 12000 | C42: 2941995 | D42: 2941995 | E42: 9806650 | F42: 4903325 | G42: 1 | H42: 1 | I42: 50 | J42: 0.1
A43: 40 | B43: 20000 | C43: 2941995 | D43: 2941995 | E43: 9806650 | F43: 4903325 | G43: 1 | H43: 1 | I43: 50 | J43: 0.1
A44: 41 | B44: 3000 | C44: 2941995 | D44: 2941995 | E44: 9806650 | F44: 4903325 | G44: 1 | H44: 1 | I44: 50 | J44: 0.1 | K44: RCP4-SA6R
A45: 42 | B45: 6000 | C45: 2941995 | D45: 2941995 | E45: 9806650 | F45: 4903325 | G45: 1 | H45: 1 | I45: 50 | J45: 0.1
A46: 43 | B46: 12000 | C46: 2941995 | D46: 2941995 | E46: 9806650 | F46: 4903325 | G46: 1 | H46: 1 | I46: 50 | J46: 0.1
A47: 44 | B47: 20000 | C47: 2941995 | D47: 2941995 | E47: 9806650 | F47: 4903325 | G47: 1 | H47: 1 | I47: 50 | J47: 0.1
A48: 45 | B48: 4000 | C48: 2941995 | D48: 2941995 | E48: 9806650 | F48: 4903325 | G48: 1 | H48: 1 | I48: 50 | J48: 0.1 | K48: RCP4-SA7R
A49: 46 | B49: 8000 | C49: 2941995 | D49: 2941995 | E49: 9806650 | F49: 4903325 | G49: 1 | H49: 1 | I49: 50 | J49: 0.1
A50: 47 | B50: 16000 | C50: 2941995 | D50: 2941995 | E50: 9806650 | F50: 4903325 | G50: 1 | H50: 1 | I50: 50 | J50: 0.1
A51: 48 | B51: 24000 | C51: 2941995 | D51: 2941995 | E51: 9806650 | F51: 4903325 | G51: 1 | H51: 1 | I51: 50 | J51: 0.1
A52: 49 | B52: 3000 | C52: =0.3*$A$1*1000000 -> 2941995 | D52: 2941995 | E52: 9806650 | F52: 4903325 | G52: 1 | H52: 1 | I52: 50 | J52: 0.1 | K52: RCP4-RA5R
A53: 50 | B53: 6000 | C53: 2941995 | D53: 2941995 | E53: 9806650 | F53: 4903325 | G53: 1 | H53: 1 | I53: 50 | J53: 0.1
A54: 51 | B54: 12000 | C54: 2941995 | D54: 2941995 | E54: 9806650 | F54: 4903325 | G54: 1 | H54: 1 | I54: 50 | J54: 0.1
A55: 52 | B55: 20000 | C55: 2941995 | D55: 2941995 | E55: 9806650 | F55: 4903325 | G55: 1 | H55: 1 | I55: 50 | J55: 0.1
A56: 53 | B56: 4000 | C56: 2941995 | D56: 2941995 | E56: 9806650 | F56: 4903325 | G56: 1 | H56: 1 | I56: 50 | J56: 0.1 | K56: RCP4-RA6R
A57: 54 | B57: 8000 | C57: 2941995 | D57: 2941995 | E57: 9806650 | F57: 4903325 | G57: 1 | H57: 1 | I57: 50 | J57: 0.1
A58: 55 | B58: 16000 | C58: 2941995 | D58: 2941995 | E58: 9806650 | F58: 4903325 | G58: 1 | H58: 1 | I58: 50 | J58: 0.1
A59: 56 | B59: 24000 | C59: 2941995 | D59: 2941995 | E59: 9806650 | F59: 4903325 | G59: 1 | H59: 1 | I59: 50 | J59: 0.1
A60: 57 | B60: 3000 | C60: 2941995 | D60: 2941995 | E60: =1*$A$1*1000000 -> 9806650 | F60: =0.5*$A$1*1000000 -> 4903325 | G60: 1 | H60: 1 | I60: 50 | J60: 0.1 | K60: ERC3D-SA5
A61: 58 | B61: 6000 | C61: 2941995 | D61: 2941995 | E61: =1*$A$1*1000000 -> 9806650 | F61: =0.5*$A$1*1000000 -> 4903325 | G61: 1 | H61: 1 | I61: 50 | J61: 0.1
A62: 59 | B62: 12000 | C62: 2941995 | D62: 2941995 | E62: =1*$A$1*1000000 -> 9806650 | F62: =0.5*$A$1*1000000 -> 4903325 | G62: 1 | H62: 1 | I62: 50 | J62: 0.1
A63: 60 | B63: 20000 | C63: 2941995 | D63: 2941995 | E63: =1*$A$1*1000000 -> 9806650 | F63: =0.5*$A$1*1000000 -> 4903325 | G63: 1 | H63: 1 | I63: 50 | J63: 0.1
A64: 61 | B64: 4000 | C64: 2941995 | D64: 2941995 | E64: 9806650 | F64: 4903325 | G64: 1 | H64: 1 | I64: 50 | J64: 0.1 | K64: ERC3D-SA7
A65: 62 | B65: 8000 | C65: 2941995 | D65: 2941995 | E65: 9806650 | F65: 4903325 | G65: 1 | H65: 1 | I65: 50 | J65: 0.1
A66: 63 | B66: 16000 | C66: 2941995 | D66: 2941995 | E66: 9806650 | F66: 4903325 | G66: 1 | H66: 1 | I66: 50 | J66: 0.1
A67: 64 | B67: 24000 | C67: 2941995 | D67: 2941995 | E67: 9806650 | F67: 4903325 | G67: 1 | H67: 1 | I67: 50 | J67: 0.1
A68: 65 | B68: 3000 | C68: =0.3*$A$1*1000000 -> 2941995 | D68: 2941995 | E68: 9806650 | F68: 4903325 | G68: 1 | H68: 1 | I68: 50 | J68: 0.1 | K68: ERC3CR-SA5
A69: 66 | B69: 6000 | C69: 2941995 | D69: 2941995 | E69: 9806650 | F69: 4903325 | G69: 1 | H69: 1 | I69: 50 | J69: 0.1
A70: 67 | B70: 12000 | C70: 2941995 | D70: 2941995 | E70: 9806650 | F70: 4903325 | G70: 1 | H70: 1 | I70: 50 | J70: 0.1
A71: 68 | B71: 20000 | C71: 2941995 | D71: 2941995 | E71: 9806650 | F71: 4903325 | G71: 1 | H71: 1 | I71: 50 | J71: 0.1
A72: 69 | B72: 4000 | C72: 2941995 | D72: 2941995 | E72: 9806650 | F72: 4903325 | G72: 1 | H72: 1 | I72: 50 | J72: 0.1 | K72: ERC3CR-SA7
A73: 70 | B73: 8000 | C73: 2941995 | D73: 2941995 | E73: 9806650 | F73: 4903325 | G73: 1 | H73: 1 | I73: 50 | J73: 0.1
A74: 71 | B74: 16000 | C74: 2941995 | D74: 2941995 | E74: 9806650 | F74: 4903325 | G74: 1 | H74: 1 | I74: 50 | J74: 0.1
A75: 72 | B75: 24000 | C75: 2941995 | D75: 2941995 | E75: 9806650 | F75: 4903325 | G75: 1 | H75: 1 | I75: 50 | J75: 0.1
A76: 73 | B76: 2500 | C76: 2941995 | D76: 2941995 | E76: 9806650 | F76: 4903325 | G76: 1 | H76: 1 | I76: 50 | J76: 0.1 | K76: RCP5-SA4C
A77: 74 | B77: 5000 | C77: 2941995 | D77: 2941995 | E77: 9806650 | F77: 4903325 | G77: 1 | H77: 1 | I77: 50 | J77: 0.1
A78: 75 | B78: 10000 | C78: 2941995 | D78: 2941995 | E78: 9806650 | F78: 4903325 | G78: 1 | H78: 1 | I78: 50 | J78: 0.1
A79: 76 | B79: 16000 | C79: 2941995 | D79: 2941995 | E79: 9806650 | F79: 4903325 | G79: 1 | H79: 1 | I79: 50 | J79: 0.1
A80: 77 | B80: 3000 | C80: 2941995 | D80: 2941995 | E80: 9806650 | F80: 4903325 | G80: 1 | H80: 1 | I80: 50 | J80: 0.1 | K80: RCP5-SA6C
A81: 78 | B81: 6000 | C81: 2941995 | D81: 2941995 | E81: 9806650 | F81: 4903325 | G81: 1 | H81: 1 | I81: 50 | J81: 0.1
A82: 79 | B82: 12000 | C82: 2941995 | D82: 2941995 | E82: 9806650 | F82: 4903325 | G82: 1 | H82: 1 | I82: 50 | J82: 0.1
A83: 80 | B83: 20000 | C83: 2941995 | D83: 2941995 | E83: 9806650 | F83: 4903325 | G83: 1 | H83: 1 | I83: 50 | J83: 0.1
A84: 81 | B84: 4000 | C84: =0.3*$A$1*1000000 -> 2941995 | D84: 2941995 | E84: 9806650 | F84: 4903325 | G84: 1 | H84: 1 | I84: 50 | J84: 0.1 | K84: RCP5-SA7C
A85: 82 | B85: 8000 | C85: 2941995 | D85: 2941995 | E85: 9806650 | F85: 4903325 | G85: 1 | H85: 1 | I85: 50 | J85: 0.1
A86: 83 | B86: 16000 | C86: 2941995 | D86: 2941995 | E86: 9806650 | F86: 4903325 | G86: 1 | H86: 1 | I86: 50 | J86: 0.1
A87: 84 | B87: 24000 | C87: 2941995 | D87: 2941995 | E87: 9806650 | F87: 4903325 | G87: 1 | H87: 1 | I87: 50 | J87: 0.1
A88: 85 | B88: 2500 | C88: 2941995 | D88: 2941995 | E88: 9806650 | F88: 4903325 | G88: 1 | H88: 1 | I88: 50 | J88: 0.1 | K88: RCP5-RA4C
A89: 86 | B89: 5000 | C89: 2941995 | D89: 2941995 | E89: 9806650 | F89: 4903325 | G89: 1 | H89: 1 | I89: 50 | J89: 0.1
A90: 87 | B90: 10000 | C90: 2941995 | D90: 2941995 | E90: 9806650 | F90: 4903325 | G90: 1 | H90: 1 | I90: 50 | J90: 0.1
A91: 88 | B91: 16000 | C91: 2941995 | D91: 2941995 | E91: 9806650 | F91: 4903325 | G91: 1 | H91: 1 | I91: 50 | J91: 0.1
A92: 89 | B92: 3000 | C92: 2941995 | D92: 2941995 | E92: 9806650 | F92: 4903325 | G92: 1 | H92: 1 | I92: 50 | J92: 0.1 | K92: RCP5-RA6C
A93: 90 | B93: 6000 | C93: 2941995 | D93: 2941995 | E93: 9806650 | F93: 4903325 | G93: 1 | H93: 1 | I93: 50 | J93: 0.1
A94: 91 | B94: 12000 | C94: 2941995 | D94: 2941995 | E94: 9806650 | F94: 4903325 | G94: 1 | H94: 1 | I94: 50 | J94: 0.1
A95: 92 | B95: 20000 | C95: 2941995 | D95: 2941995 | E95: =1*$A$1*1000000 -> 9806650 | F95: =0.5*$A$1*1000000 -> 4903325 | G95: 1 | H95: 1 | I95: 50 | J95: 0.1
A96: 93 | B96: 4000 | C96: 2941995 | D96: 2941995 | E96: =1*$A$1*1000000 -> 9806650 | F96: =0.5*$A$1*1000000 -> 4903325 | G96: 1 | H96: 1 | I96: 50 | J96: 0.1 | K96: RCP5-RA7C
A97: 94 | B97: 8000 | C97: 2941995 | D97: 2941995 | E97: =1*$A$1*1000000 -> 9806650 | F97: =0.5*$A$1*1000000 -> 4903325 | G97: 1 | H97: 1 | I97: 50 | J97: 0.1
A98: 95 | B98: 16000 | C98: 2941995 | D98: 2941995 | E98: =1*$A$1*1000000 -> 9806650 | F98: =0.5*$A$1*1000000 -> 4903325 | G98: 1 | H98: 1 | I98: 50 | J98: 0.1
A99: 96 | B99: 24000 | C99: 2941995 | D99: 2941995 | E99: =1*$A$1*1000000 -> 9806650 | F99: =0.5*$A$1*1000000 -> 4903325 | G99: 1 | H99: 1 | I99: 50 | J99: 0.1
A100: =A99+1 -> 97 | B100: 5000 | C100: 2941995 | D100: -1 | E100: =0.6*$A$1*1000000 -> 5883990 | F100: -1 | G100: 1 | H100: 1 | I100: 50 | J100: 0.1 | K100: RCP4W-SA5C(両端支持)
A101: 98 | B101: 10000 | C101: 2941995 | D101: -1 | E101: 5883990 | F101: -1 | G101: 1 | H101: 1 | I101: 50 | J101: 0.1
A102: 99 | B102: 6000 | C102: 2941995 | D102: -1 | E102: 5883990 | F102: -1 | G102: 1 | H102: 1 | I102: 50 | J102: 0.1 | K102: RCP4W-SA6C(両端支持)
A103: 100 | B103: 12000 | C103: =0.3*$A$1*1000000 -> 2941995 | D103: -1 | E103: 5883990 | F103: -1 | G103: 1 | H103: 1 | I103: 50 | J103: 0.1
A104: 101 | B104: 8000 | C104: 2941995 | D104: -1 | E104: 5883990 | F104: -1 | G104: 1 | H104: 1 | I104: 50 | J104: 0.1 | K104: RCP4W-SA7C(両端支持)
A105: 102 | B105: 16000 | C105: =0.3*$A$1*1000000 -> 2941995 | D105: -1 | E105: 5883990 | F105: -1 | G105: 1 | H105: 1 | I105: 50 | J105: 0.1
A106: =A105+1 -> 103 | B106: 5000 | C106: 2941995 | D106: -1 | E106: 5883990 | F106: -1 | G106: 1 | H106: 1 | I106: 50 | J106: 0.1 | K106: RCP4W-SA5C(片持ち支持)
A107: 104 | B107: 10000 | C107: =0.3*$A$1*1000000 -> 2941995 | D107: -1 | E107: 5883990 | F107: -1 | G107: 1 | H107: 1 | I107: 50 | J107: 0.1
A108: 105 | B108: 6000 | C108: =0.3*$A$1*1000000 -> 2941995 | D108: -1 | E108: 5883990 | F108: -1 | G108: 1 | H108: 1 | I108: 50 | J108: 0.1 | K108: RCP4W-SA6C(片持ち支持)
A109: 106 | B109: 12000 | C109: =0.3*$A$1*1000000 -> 2941995 | D109: -1 | E109: 5883990 | F109: -1 | G109: 1 | H109: 1 | I109: 50 | J109: 0.1
A110: 107 | B110: 8000 | C110: =0.3*$A$1*1000000 -> 2941995 | D110: -1 | E110: 5883990 | F110: -1 | G110: 1 | H110: 1 | I110: 50 | J110: 0.1 | K110: RCP4W-SA7C(片持ち支持)
A111: 108 | B111: 16000 | C111: =0.3*$A$1*1000000 -> 2941995 | D111: -1 | E111: 5883990 | F111: -1 | G111: 1 | H111: 1 | I111: 50 | J111: 0.1
A112: =A111+1 -> 109 | B112: 3000 | C112: =0.3*$A$1*1000000 -> 2941995 | D112: =0.5*$A$1*1000000 -> 4903325 | E112: =1*$A$1*1000000 -> 9806650 | F112: =0.5*$A$1*1000000 -> 4903325 | G112: 1 | H112: 1 | I112: 50 | J112: 0.1 | K112: RCP4W-RA6C
A113: 110 | B113: 6000 | C113: 2941995 | D113: 4903325 | E113: 9806650 | F113: 4903325 | G113: 1 | H113: 1 | I113: 50 | J113: 0.1
A114: 111 | B114: 12000 | C114: 2941995 | D114: 4903325 | E114: 9806650 | F114: 4903325 | G114: 1 | H114: 1 | I114: 50 | J114: 0.1
A115: 112 | B115: 3000 | C115: -1 | D115: 4903325 | E115: -1 | F115: 4903325 | G115: 1 | H115: 1 | I115: 50 | J115: 0.1 | K115: RCP4W-RA6C(高推力)
A116: 113 | B116: 4000 | C116: 2941995 | D116: 4903325 | E116: 9806650 | F116: 4903325 | G116: 1 | H116: 1 | I116: 50 | J116: 0.1 | K116: RCP4W-RA7C
A117: 114 | B117: 8000 | C117: 2941995 | D117: 4903325 | E117: 9806650 | F117: 4903325 | G117: 1 | H117: 1 | I117: 50 | J117: 0.1
A118: 115 | B118: 16000 | C118: 2941995 | D118: 4903325 | E118: 9806650 | F118: 4903325 | G118: 1 | H118: 1 | I118: 50 | J118: 0.1
A119: 116 | B119: 2000 | C119: =0.1*$A$1*1000000 -> 980665 | D119: 980665 | E119: 9806650 | F119: 4903325 | G119: 1 | H119: 1 | I119: 25 | J119: 0.1 | K119: RCP4-SA3C
A120: 117 | B120: 4000 | C120: 980665 | D120: 980665 | E120: 9806650 | F120: 4903325 | G120: 1 | H120: 1 | I120: 25 | J120: 0.1
A121: 118 | B121: 6000 | C121: 980665 | D121: 980665 | E121: 9806650 | F121: 4903325 | G121: 1 | H121: 1 | I121: 25 | J121: 0.1
A122: 119 | B122: 2500 | C122: =0.1*$A$1*1000000 -> 980665 | D122: 980665 | E122: =1*$A$1*1000000 -> 9806650 | F122: =0.5*$A$1*1000000 -> 4903325 | G122: 1 | H122: 1 | I122: 25 | J122: 0.1 | K122: RCP4-RA3C
A123: 120 | B123: 5000 | C123: 980665 | D123: 980665 | E123: 9806650 | F123: 4903325 | G123: 1 | H123: 1 | I123: 25 | J123: 0.1
A124: 121 | B124: 10000 | C124: 980665 | D124: 980665 | E124: 9806650 | F124: 4903325 | G124: 1 | H124: 1 | I124: 25 | J124: 0.1
A125: 122 | B125: 16000 | C125: 980665 | D125: 980665 | E125: 9806650 | F125: 4903325 | G125: 1 | H125: 1 | I125: 25 | J125: 0.1
A126: 123 | B126: 2000 | C126: 980665 | D126: 980665 | E126: 9806650 | F126: 4903325 | G126: 1 | H126: 1 | I126: 25 | J126: 0.1 | K126: RCP4-SA3R
A127: 124 | B127: 4000 | C127: 980665 | D127: 980665 | E127: 9806650 | F127: 4903325 | G127: 1 | H127: 1 | I127: 25 | J127: 0.1
A128: 125 | B128: 6000 | C128: 980665 | D128: 980665 | E128: 9806650 | F128: 4903325 | G128: 1 | H128: 1 | I128: 25 | J128: 0.1
A129: 126 | B129: 2500 | C129: 980665 | D129: 980665 | E129: 9806650 | F129: 4903325 | G129: 1 | H129: 1 | I129: 25 | J129: 0.1 | K129: RCP4-RA3R
A130: 127 | B130: 5000 | C130: 980665 | D130: 980665 | E130: 9806650 | F130: 4903325 | G130: 1 | H130: 1 | I130: 25 | J130: 0.1
A131: 128 | B131: 10000 | C131: 980665 | D131: 980665 | E131: 9806650 | F131: 4903325 | G131: 1 | H131: 1 | I131: 25 | J131: 0.1
A132: 129 | B132: 16000 | C132: =0.1*$A$1*1000000 -> 980665 | D132: 980665 | E132: =1*$A$1*1000000 -> 9806650 | F132: 4903325 | G132: 1 | H132: 1 | I132: 25 | J132: 0.1
A133: =A132+1 -> 130 | B133: 3000 | C133: -1 | D133: =0.3*$A$1*1000000 -> 2941995 | E133: -1 | F133: 4903325 | G133: 1 | H133: 1 | I133: 50 | J133: 0.1 | K133: RCP4-RA5C(高推力)
A134: 131 | B134: 48000 | C134: =0.5*$A$1*1000000 -> 4903325 | D134: -1 | E134: =0.5*$A$1*1000000 -> 4903325 | F134: -1 | G134: 1 | H134: 1 | I134: 100 | J134: 0.1 | K134: RCP5-BA4
A135: 132 | B135: 48000 | C135: =0.5*$A$1*1000000 -> 4903325 | D135: -1 | E135: =0.5*$A$1*1000000 -> 4903325 | F135: -1 | G135: 1 | H135: 1 | I135: 100 | J135: 0.1 | K135: RCP5-BA6
A136: 133 | B136: 48000 | C136: =0.5*$A$1*1000000 -> 4903325 | D136: -1 | E136: =0.5*$A$1*1000000 -> 4903325 | F136: -1 | G136: 1 | H136: 1 | I136: 100 | J136: 0.1 | K136: RCP5-BA7
A137: 134 | B137: 2500 | C137: =0.3*$A$1*1000000 -> 2941995 | D137: =0.3*$A$1*1000000 -> 2941995 | E137: =1*$A$1*1000000 -> 9806650 | F137: =0.5*$A$1*1000000 -> 4903325 | G137: 1 | H137: 1 | I137: 50 | J137: 0.1 | K137: RCP5-SA4R
A138: 135 | B138: 5000 | C138: 2941995 | D138: 2941995 | E138: 9806650 | F138: 4903325 | G138: 1 | H138: 1 | I138: 50 | J138: 0.1
A139: 136 | B139: 10000 | C139: 2941995 | D139: 2941995 | E139: 9806650 | F139: 4903325 | G139: 1 | H139: 1 | I139: 50 | J139: 0.1
A140: 137 | B140: 16000 | C140: 2941995 | D140: 2941995 | E140: 9806650 | F140: 4903325 | G140: 1 | H140: 1 | I140: 50 | J140: 0.1
A141: 138 | B141: 3000 | C141: 2941995 | D141: 2941995 | E141: 9806650 | F141: 4903325 | G141: 1 | H141: 1 | I141: 50 | J141: 0.1 | K141: RCP5-SA6R
A142: 139 | B142: 6000 | C142: 2941995 | D142: 2941995 | E142: 9806650 | F142: 4903325 | G142: 1 | H142: 1 | I142: 50 | J142: 0.1
A143: 140 | B143: 12000 | C143: 2941995 | D143: 2941995 | E143: 9806650 | F143: 4903325 | G143: 1 | H143: 1 | I143: 50 | J143: 0.1
A144: 141 | B144: 20000 | C144: 2941995 | D144: 2941995 | E144: 9806650 | F144: 4903325 | G144: 1 | H144: 1 | I144: 50 | J144: 0.1
A145: 142 | B145: 4000 | C145: 2941995 | D145: 2941995 | E145: 9806650 | F145: 4903325 | G145: 1 | H145: 1 | I145: 50 | J145: 0.1 | K145: RCP5-SA7R
A146: 143 | B146: 8000 | C146: 2941995 | D146: 2941995 | E146: 9806650 | F146: 4903325 | G146: 1 | H146: 1 | I146: 50 | J146: 0.1
A147: 144 | B147: 16000 | C147: 2941995 | D147: 2941995 | E147: 9806650 | F147: 4903325 | G147: 1 | H147: 1 | I147: 50 | J147: 0.1
A148: 145 | B148: 24000 | C148: 2941995 | D148: 2941995 | E148: 9806650 | F148: 4903325 | G148: 1 | H148: 1 | I148: 50 | J148: 0.1
A149: 146 | B149: 2500 | C149: 2941995 | D149: 2941995 | E149: 9806650 | F149: 4903325 | G149: 1 | H149: 1 | I149: 50 | J149: 0.1 | K149: RCP5-RA4R
A150: 147 | B150: 5000 | C150: 2941995 | D150: 2941995 | E150: 9806650 | F150: 4903325 | G150: 1 | H150: 1 | I150: 50 | J150: 0.1
A151: 148 | B151: 10000 | C151: 2941995 | D151: 2941995 | E151: 9806650 | F151: 4903325 | G151: 1 | H151: 1 | I151: 50 | J151: 0.1
A152: 149 | B152: 16000 | C152: 2941995 | D152: 2941995 | E152: 9806650 | F152: 4903325 | G152: 1 | H152: 1 | I152: 50 | J152: 0.1
A153: 150 | B153: 3000 | C153: 2941995 | D153: =0.3*$A$1*1000000 -> 2941995 | E153: 9806650 | F153: 4903325 | G153: 1 | H153: 1 | I153: 50 | J153: 0.1 | K153: RCP5-RA6R
A154: 151 | B154: 6000 | C154: 2941995 | D154: 2941995 | E154: 9806650 | F154: 4903325 | G154: 1 | H154: 1 | I154: 50 | J154: 0.1
A155: 152 | B155: 12000 | C155: 2941995 | D155: 2941995 | E155: 9806650 | F155: 4903325 | G155: 1 | H155: 1 | I155: 50 | J155: 0.1
A156: 153 | B156: 20000 | C156: 2941995 | D156: 2941995 | E156: 9806650 | F156: 4903325 | G156: 1 | H156: 1 | I156: 50 | J156: 0.1
A157: 154 | B157: 4000 | C157: 2941995 | D157: 2941995 | E157: 9806650 | F157: 4903325 | G157: 1 | H157: 1 | I157: 50 | J157: 0.1 | K157: RCP5-RA7R
A158: 155 | B158: 8000 | C158: 2941995 | D158: 2941995 | E158: 9806650 | F158: 4903325 | G158: 1 | H158: 1 | I158: 50 | J158: 0.1
A159: 156 | B159: 16000 | C159: 2941995 | D159: 2941995 | E159: 9806650 | F159: 4903325 | G159: 1 | H159: 1 | I159: 50 | J159: 0.1
A160: 157 | B160: 24000 | C160: 2941995 | D160: 2941995 | E160: 9806650 | F160: 4903325 | G160: 1 | H160: 1 | I160: 50 | J160: 0.1
A161: =A160+1 -> 158 | B161: 2500 | C161: =0.3*$A$1*1000000 -> 2941995 | D161: 2941995 | E161: =1*$A$1*1000000 -> 9806650 | F161: =0.5*$A$1*1000000 -> 4903325 | G161: 1 | H161: 1 | I161: 50 | J161: 0.1 | K161: RCP6-SA4C
A162: 159 | B162: 5000 | C162: 2941995 | D162: 2941995 | E162: 9806650 | F162: 4903325 | G162: 1 | H162: 1 | I162: 50 | J162: 0.1
A163: 160 | B163: 10000 | C163: 2941995 | D163: 2941995 | E163: 9806650 | F163: 4903325 | G163: 1 | H163: 1 | I163: 50 | J163: 0.1
A164: 161 | B164: 16000 | C164: 2941995 | D164: 2941995 | E164: 9806650 | F164: 4903325 | G164: 1 | H164: 1 | I164: 50 | J164: 0.1
A165: 162 | B165: 3000 | C165: 2941995 | D165: 2941995 | E165: 9806650 | F165: 4903325 | G165: 1 | H165: 1 | I165: 50 | J165: 0.1 | K165: RCP6-SA6C
A166: 163 | B166: 6000 | C166: 2941995 | D166: 2941995 | E166: 9806650 | F166: 4903325 | G166: 1 | H166: 1 | I166: 50 | J166: 0.1
A167: 164 | B167: 12000 | C167: 2941995 | D167: 2941995 | E167: 9806650 | F167: 4903325 | G167: 1 | H167: 1 | I167: 50 | J167: 0.1
A168: 165 | B168: 20000 | C168: 2941995 | D168: 2941995 | E168: 9806650 | F168: 4903325 | G168: 1 | H168: 1 | I168: 50 | J168: 0.1
A169: 166 | B169: 4000 | C169: =0.3*$A$1*1000000 -> 2941995 | D169: 2941995 | E169: =1*$A$1*1000000 -> 9806650 | F169: =0.5*$A$1*1000000 -> 4903325 | G169: 1 | H169: 1 | I169: 50 | J169: 0.1 | K169: RCP6-SA7C
A170: 167 | B170: 8000 | C170: 2941995 | D170: 2941995 | E170: 9806650 | F170: 4903325 | G170: 1 | H170: 1 | I170: 50 | J170: 0.1
A171: 168 | B171: 16000 | C171: 2941995 | D171: 2941995 | E171: 9806650 | F171: 4903325 | G171: 1 | H171: 1 | I171: 50 | J171: 0.1
A172: 169 | B172: 24000 | C172: 2941995 | D172: 2941995 | E172: 9806650 | F172: 4903325 | G172: 1 | H172: 1 | I172: 50 | J172: 0.1
A173: 170 | B173: 2500 | C173: 2941995 | D173: 2941995 | E173: 9806650 | F173: 4903325 | G173: 1 | H173: 1 | I173: 50 | J173: 0.1 | K173: RCP6-SA4R
A174: 171 | B174: 5000 | C174: 2941995 | D174: 2941995 | E174: 9806650 | F174: 4903325 | G174: 1 | H174: 1 | I174: 50 | J174: 0.1
A175: 172 | B175: 10000 | C175: 2941995 | D175: 2941995 | E175: 9806650 | F175: 4903325 | G175: 1 | H175: 1 | I175: 50 | J175: 0.1
A176: 173 | B176: 16000 | C176: 2941995 | D176: 2941995 | E176: 9806650 | F176: 4903325 | G176: 1 | H176: 1 | I176: 50 | J176: 0.1
A177: 174 | B177: 3000 | C177: 2941995 | D177: 2941995 | E177: 9806650 | F177: 4903325 | G177: 1 | H177: 1 | I177: 50 | J177: 0.1 | K177: RCP6-SA6R
A178: 175 | B178: 6000 | C178: 2941995 | D178: 2941995 | E178: 9806650 | F178: 4903325 | G178: 1 | H178: 1 | I178: 50 | J178: 0.1
A179: 176 | B179: 12000 | C179: 2941995 | D179: 2941995 | E179: 9806650 | F179: 4903325 | G179: 1 | H179: 1 | I179: 50 | J179: 0.1
A180: 177 | B180: 20000 | C180: 2941995 | D180: 2941995 | E180: 9806650 | F180: 4903325 | G180: 1 | H180: 1 | I180: 50 | J180: 0.1
A181: 178 | B181: 4000 | C181: 2941995 | D181: 2941995 | E181: 9806650 | F181: 4903325 | G181: 1 | H181: 1 | I181: 50 | J181: 0.1 | K181: RCP6-SA7R
A182: 179 | B182: 8000 | C182: 2941995 | D182: 2941995 | E182: 9806650 | F182: 4903325 | G182: 1 | H182: 1 | I182: 50 | J182: 0.1
A183: 180 | B183: 16000 | C183: 2941995 | D183: 2941995 | E183: 9806650 | F183: 4903325 | G183: 1 | H183: 1 | I183: 50 | J183: 0.1
A184: 181 | B184: 24000 | C184: 2941995 | D184: 2941995 | E184: 9806650 | F184: 4903325 | G184: 1 | H184: 1 | I184: 50 | J184: 0.1
A185: 182 | B185: 2500 | C185: =0.3*$A$1*1000000 -> 2941995 | D185: 2941995 | E185: =1*$A$1*1000000 -> 9806650 | F185: =0.5*$A$1*1000000 -> 4903325 | G185: 1 | H185: 1 | I185: 50 | J185: 0.1 | K185: RCP6-WSA10C
A186: 183 | B186: 5000 | C186: 2941995 | D186: 2941995 | E186: 9806650 | F186: =0.5*$A$1*1000000 -> 4903325 | G186: 1 | H186: 1 | I186: 50 | J186: 0.1
A187: 184 | B187: 10000 | C187: 2941995 | D187: -1 | E187: 9806650 | F187: -1 | G187: 1 | H187: 1 | I187: 50 | J187: 0.1
A188: 185 | B188: 16000 | C188: 2941995 | D188: -1 | E188: 9806650 | F188: -1 | G188: 1 | H188: 1 | I188: 50 | J188: 0.1
A189: 186 | B189: 3000 | C189: 2941995 | D189: 2941995 | E189: 9806650 | F189: =0.5*$A$1*1000000 -> 4903325 | G189: 1 | H189: 1 | I189: 50 | J189: 0.1 | K189: RCP6-WSA12C
A190: 187 | B190: 6000 | C190: 2941995 | D190: 2941995 | E190: 9806650 | F190: =0.5*$A$1*1000000 -> 4903325 | G190: 1 | H190: 1 | I190: 50 | J190: 0.1
A191: 188 | B191: 12000 | C191: 2941995 | D191: -1 | E191: 9806650 | F191: -1 | G191: 1 | H191: 1 | I191: 50 | J191: 0.1
A192: 189 | B192: 20000 | C192: 2941995 | D192: -1 | E192: 9806650 | F192: -1 | G192: 1 | H192: 1 | I192: 50 | J192: 0.1
A193: =A192+1 -> 190 | B193: 4000 | C193: 2941995 | D193: 2941995 | E193: 9806650 | F193: =0.5*$A$1*1000000 -> 4903325 | G193: 1 | H193: 1 | I193: 50 | J193: 0.1 | K193: RCP6-WSA14C
A194: 191 | B194: 8000 | C194: 2941995 | D194: 2941995 | E194: 9806650 | F194: =0.5*$A$1*1000000 -> 4903325 | G194: 1 | H194: 1 | I194: 50 | J194: 0.1
A195: 192 | B195: 16000 | C195: 2941995 | D195: -1 | E195: 9806650 | F195: -1 | G195: 1 | H195: 1 | I195: 50 | J195: 0.1
A196: 193 | B196: 24000 | C196: 2941995 | D196: -1 | E196: 9806650 | F196: -1 | G196: 1 | H196: 1 | I196: 50 | J196: 0.1
A197: 194 | B197: 2500 | C197: 2941995 | D197: 2941995 | E197: 9806650 | F197: =0.5*$A$1*1000000 -> 4903325 | G197: 1 | H197: 1 | I197: 50 | J197: 0.1 | K197: RCP6-WSA10R
A198: 195 | B198: 5000 | C198: 2941995 | D198: 2941995 | E198: 9806650 | F198: =0.5*$A$1*1000000 -> 4903325 | G198: 1 | H198: 1 | I198: 50 | J198: 0.1
A199: 196 | B199: 10000 | C199: 2941995 | D199: -1 | E199: 9806650 | F199: -1 | G199: 1 | H199: 1 | I199: 50 | J199: 0.1
A200: 197 | B200: 16000 | C200: 2941995 | D200: -1 | E200: 9806650 | F200: -1 | G200: 1 | H200: 1 | I200: 50 | J200: 0.1
... 137 more rows

Sheet StrokeData (hidden)
B1: 1 | C1: 2 | D1: 4 | E1: 5 | F1: 6 | G1: 7 | H1: 8 | I1: 9 | J1: 10 | K1: 17 | L1: 18
A2: ﾃﾞｰﾀ№ | B2: ｽﾄﾛｰｸ長 | C2: 有効ｽﾄﾛｰｸ補正 | D2: 基準ｹﾞｲﾝ用搬送質量 | E2: 水平可搬質量 | F2: 垂直可搬質量 | G2: 最大速度 | H2: 位置ｹﾞｲﾝ | I2: FFｹﾞｲﾝ | J2: 速度制御帯域 | K2: 前ﾃﾞｰﾀ№ | L2: 次ﾃﾞｰﾀ№ | M2: 備考
A3: =ModelData!A3 -> 0 | B3: ㎜ | C3: ㎜ | D3: 1g | E3: 1g | F3: 1g | G3: ㎜/s | H3: 1/s | I3: % | J3: rad/s
A4: =A3+1 -> 1 | B4: 450 | C4: 0 | D4: 20000 | E4: 20000 | F4: 12000 | G4: 225 | H4: 40 | I4: 0 | J4: 225 | K4: -1 | L4: =A5 -> 2 | M4: RCP4-SA5C-3
A5: 2 | B5: 500 | C5: 0 | D5: 20000 | E5: 20000 | F5: 12000 | G5: 195 | H5: 40 | I5: 0 | J5: 225 | K5: =A4 -> 1 | L5: 3
A6: 3 | B6: 550 | C6: 0 | D6: 20000 | E6: 20000 | F6: 12000 | G6: 165 | H6: 40 | I6: 0 | J6: 225 | K6: 2 | L6: 4
A7: 4 | B7: 600 | C7: 0 | D7: 20000 | E7: 20000 | F7: 12000 | G7: 140 | H7: 40 | I7: 0 | J7: 225 | K7: 3 | L7: 5
A8: 5 | B8: 650 | C8: 0 | D8: 20000 | E8: 20000 | F8: 12000 | G8: 120 | H8: 40 | I8: 0 | J8: 225 | K8: 4 | L8: 6
A9: 6 | B9: 700 | C9: 0 | D9: 20000 | E9: 20000 | F9: 12000 | G9: 105 | H9: 40 | I9: 0 | J9: 225 | K9: 5 | L9: 7
A10: 7 | B10: 750 | C10: 0 | D10: 20000 | E10: 20000 | F10: 12000 | G10: 90 | H10: 40 | I10: 0 | J10: 225 | K10: 6 | L10: 8
A11: 8 | B11: 800 | C11: 0 | D11: 20000 | E11: 20000 | F11: 12000 | G11: 80 | H11: 40 | I11: 0 | J11: 225 | K11: 7 | L11: -1
A12: 9 | B12: 450 | C12: 0 | D12: 18000 | E12: 18000 | F12: 6000 | G12: 450 | H12: 40 | I12: 0 | J12: 200 | K12: -1 | L12: =A13 -> 10 | M12: RCP4-SA5C-6
A13: 10 | B13: 500 | C13: 0 | D13: 18000 | E13: 18000 | F13: 6000 | G13: 395 | H13: 40 | I13: 0 | J13: 200 | K13: =A12 -> 9 | L13: 11
A14: 11 | B14: 550 | C14: 0 | D14: 18000 | E14: 18000 | F14: 6000 | G14: 335 | H14: 40 | I14: 0 | J14: 200 | K14: 10 | L14: 12
A15: 12 | B15: 600 | C15: 0 | D15: 18000 | E15: 18000 | F15: 6000 | G15: 285 | H15: 40 | I15: 0 | J15: 200 | K15: 11 | L15: 13
A16: 13 | B16: 650 | C16: 0 | D16: 18000 | E16: 18000 | F16: 6000 | G16: 245 | H16: 40 | I16: 0 | J16: 200 | K16: 12 | L16: 14
A17: 14 | B17: 700 | C17: 0 | D17: 18000 | E17: 18000 | F17: 6000 | G17: 215 | H17: 40 | I17: 0 | J17: 200 | K17: 13 | L17: 15
A18: 15 | B18: 750 | C18: 0 | D18: 18000 | E18: 18000 | F18: 6000 | G18: 185 | H18: 40 | I18: 0 | J18: 200 | K18: 14 | L18: 16
A19: 16 | B19: 800 | C19: 0 | D19: 18000 | E19: 18000 | F19: 6000 | G19: 165 | H19: 40 | I19: 0 | J19: 200 | K19: 15 | L19: -1
A20: 17 | B20: 450 | C20: 0 | D20: 9000 | E20: 9000 | F20: 2500 | G20: 900 | H20: 40 | I20: 0 | J20: 185 | K20: -1 | L20: =A21 -> 18 | M20: RCP4-SA5C-12
A21: 18 | B21: 500 | C21: 0 | D21: 9000 | E21: 9000 | F21: 2500 | G21: 795 | H21: 40 | I21: 0 | J21: 185 | K21: =A20 -> 17 | L21: 19
A22: 19 | B22: 550 | C22: 0 | D22: 9000 | E22: 9000 | F22: 2500 | G22: 665 | H22: 40 | I22: 0 | J22: 185 | K22: 18 | L22: 20
A23: 20 | B23: 600 | C23: 0 | D23: 9000 | E23: 9000 | F23: 2500 | G23: 570 | H23: 40 | I23: 0 | J23: 185 | K23: 19 | L23: 21
A24: 21 | B24: 650 | C24: 0 | D24: 9000 | E24: 9000 | F24: 2500 | G24: 490 | H24: 40 | I24: 0 | J24: 185 | K24: 20 | L24: 22
A25: 22 | B25: 700 | C25: 0 | D25: 9000 | E25: 9000 | F25: 2500 | G25: 425 | H25: 40 | I25: 0 | J25: 185 | K25: 21 | L25: 23
A26: 23 | B26: 750 | C26: 0 | D26: 9000 | E26: 9000 | F26: 2500 | G26: 375 | H26: 40 | I26: 0 | J26: 185 | K26: 22 | L26: 24
A27: 24 | B27: 800 | C27: 0 | D27: 9000 | E27: 9000 | F27: 2500 | G27: 330 | H27: 40 | I27: 0 | J27: 185 | K27: 23 | L27: -1
A28: 25 | B28: 500 | C28: 0 | D28: 6500 | E28: 6500 | F28: 1000 | G28: 1440 | H28: 40 | I28: 0 | J28: 165 | K28: -1 | L28: =A29 -> 26 | M28: RCP4-SA5C-20
A29: 26 | B29: 550 | C29: 0 | D29: 6500 | E29: 6500 | F29: 1000 | G29: 1225 | H29: 40 | I29: 0 | J29: 165 | K29: =A28 -> 25 | L29: 27
A30: 27 | B30: 600 | C30: 0 | D30: 6500 | E30: 6500 | F30: 1000 | G30: 1045 | H30: 40 | I30: 0 | J30: 165 | K30: 26 | L30: 28
A31: 28 | B31: 650 | C31: 0 | D31: 6500 | E31: 6500 | F31: 1000 | G31: 900 | H31: 40 | I31: 0 | J31: 165 | K31: 27 | L31: 29
A32: 29 | B32: 700 | C32: 0 | D32: 6500 | E32: 6500 | F32: 1000 | G32: 785 | H32: 40 | I32: 0 | J32: 165 | K32: 28 | L32: 30
A33: 30 | B33: 750 | C33: 0 | D33: 6500 | E33: 6500 | F33: 1000 | G33: 690 | H33: 40 | I33: 0 | J33: 165 | K33: 29 | L33: 31
A34: 31 | B34: 800 | C34: 0 | D34: 6500 | E34: 6500 | F34: 1000 | G34: 610 | H34: 40 | I34: 0 | J34: 165 | K34: 30 | L34: -1
A35: 32 | B35: 450 | C35: 0 | D35: 25000 | E35: 25000 | F35: 12000 | G35: 225 | H35: 40 | I35: 0 | J35: 220 | K35: -1 | L35: =A36 -> 33 | M35: RCP4-SA6C-3
A36: =A35+1 -> 33 | B36: 500 | C36: 0 | D36: 25000 | E36: 25000 | F36: 12000 | G36: 195 | H36: 40 | I36: 0 | J36: 220 | K36: =A35 -> 32 | L36: 34
A37: 34 | B37: 550 | C37: 0 | D37: 25000 | E37: 25000 | F37: 12000 | G37: 165 | H37: 40 | I37: 0 | J37: 220 | K37: 33 | L37: 35
A38: 35 | B38: 600 | C38: 0 | D38: 25000 | E38: 25000 | F38: 12000 | G38: 140 | H38: 40 | I38: 0 | J38: 220 | K38: 34 | L38: 36
A39: 36 | B39: 650 | C39: 0 | D39: 25000 | E39: 25000 | F39: 12000 | G39: 120 | H39: 40 | I39: 0 | J39: 220 | K39: 35 | L39: 37
A40: 37 | B40: 700 | C40: 0 | D40: 25000 | E40: 25000 | F40: 12000 | G40: 105 | H40: 40 | I40: 0 | J40: 220 | K40: 36 | L40: 38
A41: 38 | B41: 750 | C41: 0 | D41: 25000 | E41: 25000 | F41: 12000 | G41: 90 | H41: 40 | I41: 0 | J41: 220 | K41: 37 | L41: 39
A42: 39 | B42: 800 | C42: 0 | D42: 25000 | E42: 25000 | F42: 12000 | G42: 80 | H42: 40 | I42: 0 | J42: 220 | K42: 38 | L42: -1
A43: 40 | B43: 450 | C43: 0 | D43: 25000 | E43: 25000 | F43: 6000 | G43: 450 | H43: 40 | I43: 0 | J43: 180 | K43: -1 | L43: =A44 -> 41 | M43: RCP4-SA6C-6
A44: 41 | B44: 500 | C44: 0 | D44: 25000 | E44: 25000 | F44: 6000 | G44: 395 | H44: 40 | I44: 0 | J44: 180 | K44: =A43 -> 40 | L44: 42
A45: 42 | B45: 550 | C45: 0 | D45: 25000 | E45: 25000 | F45: 6000 | G45: 335 | H45: 40 | I45: 0 | J45: 180 | K45: 41 | L45: 43
A46: 43 | B46: 600 | C46: 0 | D46: 25000 | E46: 25000 | F46: 6000 | G46: 285 | H46: 40 | I46: 0 | J46: 180 | K46: 42 | L46: 44
A47: 44 | B47: 650 | C47: 0 | D47: 25000 | E47: 25000 | F47: 6000 | G47: 245 | H47: 40 | I47: 0 | J47: 180 | K47: 43 | L47: 45
A48: 45 | B48: 700 | C48: 0 | D48: 25000 | E48: 25000 | F48: 6000 | G48: 215 | H48: 40 | I48: 0 | J48: 180 | K48: 44 | L48: 46
A49: 46 | B49: 750 | C49: 0 | D49: 25000 | E49: 25000 | F49: 6000 | G49: 185 | H49: 40 | I49: 0 | J49: 180 | K49: 45 | L49: 47
A50: 47 | B50: 800 | C50: 0 | D50: 25000 | E50: 25000 | F50: 6000 | G50: 165 | H50: 40 | I50: 0 | J50: 180 | K50: 46 | L50: -1
A51: 48 | B51: 450 | C51: 0 | D51: 15000 | E51: 15000 | F51: 2500 | G51: 900 | H51: 40 | I51: 0 | J51: 160 | K51: -1 | L51: =A52 -> 49 | M51: RCP4-SA6C-12
A52: 49 | B52: 500 | C52: 0 | D52: 15000 | E52: 15000 | F52: 2500 | G52: 795 | H52: 40 | I52: 0 | J52: 160 | K52: =A51 -> 48 | L52: 50
A53: 50 | B53: 550 | C53: 0 | D53: 15000 | E53: 15000 | F53: 2500 | G53: 670 | H53: 40 | I53: 0 | J53: 160 | K53: 49 | L53: 51
A54: 51 | B54: 600 | C54: 0 | D54: 15000 | E54: 15000 | F54: 2500 | G54: 570 | H54: 40 | I54: 0 | J54: 160 | K54: 50 | L54: 52
A55: 52 | B55: 650 | C55: 0 | D55: 15000 | E55: 15000 | F55: 2500 | G55: 490 | H55: 40 | I55: 0 | J55: 160 | K55: 51 | L55: 53
A56: 53 | B56: 700 | C56: 0 | D56: 15000 | E56: 15000 | F56: 2500 | G56: 430 | H56: 40 | I56: 0 | J56: 160 | K56: 52 | L56: 54
A57: 54 | B57: 750 | C57: 0 | D57: 15000 | E57: 15000 | F57: 2500 | G57: 375 | H57: 40 | I57: 0 | J57: 160 | K57: 53 | L57: 55
A58: 55 | B58: 800 | C58: 0 | D58: 15000 | E58: 15000 | F58: 2500 | G58: 335 | H58: 40 | I58: 0 | J58: 160 | K58: 54 | L58: -1
A59: 56 | B59: 500 | C59: 0 | D59: 10000 | E59: 10000 | F59: 1000 | G59: 1440 | H59: 40 | I59: 0 | J59: 100 | K59: -1 | L59: =A60 -> 57 | M59: RCP4-SA6C-20
A60: 57 | B60: 550 | C60: 0 | D60: 10000 | E60: 10000 | F60: 1000 | G60: 1230 | H60: 40 | I60: 0 | J60: 100 | K60: =A59 -> 56 | L60: 58
A61: 58 | B61: 600 | C61: 0 | D61: 10000 | E61: 10000 | F61: 1000 | G61: 1045 | H61: 40 | I61: 0 | J61: 100 | K61: 57 | L61: 59
A62: 59 | B62: 650 | C62: 0 | D62: 10000 | E62: 10000 | F62: 1000 | G62: 905 | H62: 40 | I62: 0 | J62: 100 | K62: 58 | L62: 60
A63: 60 | B63: 700 | C63: 0 | D63: 10000 | E63: 10000 | F63: 1000 | G63: 785 | H63: 40 | I63: 0 | J63: 100 | K63: 59 | L63: 61
A64: 61 | B64: 750 | C64: 0 | D64: 10000 | E64: 10000 | F64: 1000 | G64: 690 | H64: 40 | I64: 0 | J64: 100 | K64: 60 | L64: 62
A65: 62 | B65: 800 | C65: 0 | D65: 10000 | E65: 10000 | F65: 1000 | G65: 615 | H65: 40 | I65: 0 | J65: 100 | K65: 61 | L65: -1
A66: 63 | B66: 550 | C66: 0 | D66: 45000 | E66: 45000 | F66: 25000 | G66: 245 | H66: 40 | I66: 0 | J66: 230 | K66: -1 | L66: =A67 -> 64 | M66: RCP4-SA7C-4
A67: 64 | B67: 600 | C67: 0 | D67: 45000 | E67: 45000 | F67: 25000 | G67: 215 | H67: 40 | I67: 0 | J67: 230 | K67: =A66 -> 63 | L67: =A68 -> 65
A68: =A67+1 -> 65 | B68: 650 | C68: 0 | D68: 45000 | E68: 45000 | F68: 25000 | G68: 185 | H68: 40 | I68: 0 | J68: 230 | K68: =A67 -> 64 | L68: =A69 -> 66
A69: 66 | B69: 700 | C69: 0 | D69: 45000 | E69: 45000 | F69: 25000 | G69: 160 | H69: 40 | I69: 0 | J69: 230 | K69: =A68 -> 65 | L69: =A70 -> 67
A70: 67 | B70: 750 | C70: 0 | D70: 45000 | E70: 45000 | F70: 25000 | G70: 145 | H70: 40 | I70: 0 | J70: 230 | K70: =A69 -> 66 | L70: =A71 -> 68
A71: 68 | B71: 800 | C71: 0 | D71: 45000 | E71: 45000 | F71: 25000 | G71: 125 | H71: 40 | I71: 0 | J71: 230 | K71: =A70 -> 67 | L71: -1
A72: 69 | B72: 550 | C72: 0 | D72: 45000 | E72: 45000 | F72: 16000 | G72: 490 | H72: 40 | I72: 0 | J72: 225 | K72: -1 | L72: =A73 -> 70 | M72: RCP4-SA7C-8
A73: 70 | B73: 600 | C73: 0 | D73: 45000 | E73: 45000 | F73: 16000 | G73: 430 | H73: 40 | I73: 0 | J73: 225 | K73: =A72 -> 69 | L73: =A74 -> 71
A74: 71 | B74: 650 | C74: 0 | D74: 45000 | E74: 45000 | F74: 16000 | G74: 375 | H74: 40 | I74: 0 | J74: 225 | K74: =A73 -> 70 | L74: =A75 -> 72
A75: 72 | B75: 700 | C75: 0 | D75: 45000 | E75: 45000 | F75: 16000 | G75: 325 | H75: 40 | I75: 0 | J75: 225 | K75: =A74 -> 71 | L75: =A76 -> 73
A76: 73 | B76: 750 | C76: 0 | D76: 45000 | E76: 45000 | F76: 16000 | G76: 290 | H76: 40 | I76: 0 | J76: 225 | K76: =A75 -> 72 | L76: =A77 -> 74
A77: 74 | B77: 800 | C77: 0 | D77: 45000 | E77: 45000 | F77: 16000 | G77: 255 | H77: 40 | I77: 0 | J77: 225 | K77: =A76 -> 73 | L77: -1
A78: 75 | B78: 550 | C78: 0 | D78: 40000 | E78: 40000 | F78: 8000 | G78: 980 | H78: 40 | I78: 0 | J78: 215 | K78: -1 | L78: =A79 -> 76 | M78: RCP4-SA7C-16
A79: 76 | B79: 600 | C79: 0 | D79: 40000 | E79: 40000 | F79: 8000 | G79: 865 | H79: 40 | I79: 0 | J79: 215 | K79: =A78 -> 75 | L79: =A80 -> 77
A80: 77 | B80: 650 | C80: 0 | D80: 40000 | E80: 40000 | F80: 8000 | G80: 750 | H80: 40 | I80: 0 | J80: 215 | K80: =A79 -> 76 | L80: =A81 -> 78
A81: 78 | B81: 700 | C81: 0 | D81: 40000 | E81: 40000 | F81: 8000 | G81: 655 | H81: 40 | I81: 0 | J81: 215 | K81: =A80 -> 77 | L81: =A82 -> 79
A82: 79 | B82: 750 | C82: 0 | D82: 40000 | E82: 40000 | F82: 8000 | G82: 580 | H82: 40 | I82: 0 | J82: 215 | K82: =A81 -> 78 | L82: =A83 -> 80
A83: 80 | B83: 800 | C83: 0 | D83: 40000 | E83: 40000 | F83: 8000 | G83: 515 | H83: 40 | I83: 0 | J83: 215 | K83: =A82 -> 79 | L83: -1
A84: 81 | B84: 600 | C84: 0 | D84: 20000 | E84: 20000 | F84: 3000 | G84: 1200 | H84: 40 | I84: 0 | J84: 160 | K84: -1 | L84: =A85 -> 82 | M84: RCP4-SA7C-24
A85: 82 | B85: 650 | C85: 0 | D85: 20000 | E85: 20000 | F85: 3000 | G85: 1155 | H85: 40 | I85: 0 | J85: 160 | K85: =A84 -> 81 | L85: =A86 -> 83
A86: 83 | B86: 700 | C86: 0 | D86: 20000 | E86: 20000 | F86: 3000 | G86: 1010 | H86: 40 | I86: 0 | J86: 160 | K86: =A85 -> 82 | L86: =A87 -> 84
A87: 84 | B87: 750 | C87: 0 | D87: 20000 | E87: 20000 | F87: 3000 | G87: 890 | H87: 40 | I87: 0 | J87: 160 | K87: =A86 -> 83 | L87: =A88 -> 85
A88: 85 | B88: 800 | C88: 0 | D88: 20000 | E88: 20000 | F88: 3000 | G88: 790 | H88: 40 | I88: 0 | J88: 160 | K88: =A87 -> 84 | L88: -1
A89: 86 | B89: 400 | C89: 0 | D89: 60000 | E89: 60000 | F89: 20000 | G89: 225 | H89: 40 | I89: 0 | J89: 190 | K89: -1 | L89: -1 | M89: RCP4-RA5C-3
A90: 87 | B90: 400 | C90: 0 | D90: 40000 | E90: 40000 | F90: 10000 | G90: 450 | H90: 40 | I90: 0 | J90: 240 | K90: -1 | L90: -1 | M90: RCP4-RA5C-6
A91: 88 | B91: 400 | C91: 0 | D91: 25000 | E91: 25000 | F91: 4000 | G91: 700 | H91: 40 | I91: 0 | J91: 160 | K91: -1 | L91: -1 | M91: RCP4-RA5C-12
A92: 89 | B92: 400 | C92: 0 | D92: 6000 | E92: 6000 | F92: 1500 | G92: 800 | H92: 40 | I92: 0 | J92: 260 | K92: -1 | L92: -1 | M92: RCP4-RA5C-20
A93: 90 | B93: 500 | C93: 0 | D93: 80000 | E93: 80000 | F93: 28000 | G93: 210 | H93: 40 | I93: 0 | J93: 205 | K93: -1 | L93: -1 | M93: RCP4-RA6C-4
A94: 91 | B94: 500 | C94: 0 | D94: 60000 | E94: 60000 | F94: 18000 | G94: 420 | H94: 40 | I94: 0 | J94: 210 | K94: -1 | L94: -1 | M94: RCP4-RA6C-8
A95: 92 | B95: 500 | C95: 0 | D95: 50000 | E95: 50000 | F95: 8000 | G95: 700 | H95: 40 | I95: 0 | J95: 200 | K95: -1 | L95: -1 | M95: RCP4-RA6C-16
A96: 93 | B96: 500 | C96: 0 | D96: 20000 | E96: 20000 | F96: 3000 | G96: 800 | H96: 40 | I96: 0 | J96: 200 | K96: -1 | L96: -1 | M96: RCP4-RA6C-24
A97: 94 | B97: 450 | C97: 0 | D97: 20000 | E97: 20000 | F97: 12000 | G97: 225 | H97: 40 | I97: 0 | J97: 230 | K97: -1 | L97: =A98 -> 95 | M97: ERC3-SA5-3
A98: 95 | B98: 500 | C98: 0 | D98: 20000 | E98: 20000 | F98: 12000 | G98: 200 | H98: 40 | I98: 0 | J98: 230 | K98: =A97 -> 94 | L98: 96
A99: 96 | B99: 550 | C99: 0 | D99: 20000 | E99: 20000 | F99: 12000 | G99: 165 | H99: 40 | I99: 0 | J99: 230 | K99: 95 | L99: 97
A100: =A99+1 -> 97 | B100: 600 | C100: 0 | D100: 20000 | E100: 20000 | F100: 12000 | G100: 140 | H100: 40 | I100: 0 | J100: 230 | K100: 96 | L100: 98
A101: 98 | B101: 650 | C101: 0 | D101: 20000 | E101: 20000 | F101: 12000 | G101: 115 | H101: 40 | I101: 0 | J101: 230 | K101: 97 | L101: 99
A102: 99 | B102: 700 | C102: 0 | D102: 20000 | E102: 20000 | F102: 12000 | G102: 100 | H102: 40 | I102: 0 | J102: 230 | K102: 98 | L102: 100
A103: 100 | B103: 750 | C103: 0 | D103: 20000 | E103: 20000 | F103: 12000 | G103: 85 | H103: 40 | I103: 0 | J103: 230 | K103: 99 | L103: 101
A104: 101 | B104: 800 | C104: 0 | D104: 20000 | E104: 20000 | F104: 12000 | G104: 75 | H104: 40 | I104: 0 | J104: 230 | K104: 100 | L104: -1
A105: 102 | B105: 450 | C105: 0 | D105: 18000 | E105: 18000 | F105: 6000 | G105: 450 | H105: 40 | I105: 0 | J105: 200 | K105: -1 | L105: =A106 -> 103 | M105: ERC3-SA5-6
A106: 103 | B106: 500 | C106: 0 | D106: 18000 | E106: 18000 | F106: 6000 | G106: 400 | H106: 40 | I106: 0 | J106: 200 | K106: =A105 -> 102 | L106: 104
A107: 104 | B107: 550 | C107: 0 | D107: 18000 | E107: 18000 | F107: 6000 | G107: 330 | H107: 40 | I107: 0 | J107: 200 | K107: 103 | L107: 105
A108: 105 | B108: 600 | C108: 0 | D108: 18000 | E108: 18000 | F108: 6000 | G108: 280 | H108: 40 | I108: 0 | J108: 200 | K108: 104 | L108: 106
A109: 106 | B109: 650 | C109: 0 | D109: 18000 | E109: 18000 | F109: 6000 | G109: 235 | H109: 40 | I109: 0 | J109: 200 | K109: 105 | L109: 107
A110: 107 | B110: 700 | C110: 0 | D110: 18000 | E110: 18000 | F110: 6000 | G110: 200 | H110: 40 | I110: 0 | J110: 200 | K110: 106 | L110: 108
A111: 108 | B111: 750 | C111: 0 | D111: 18000 | E111: 18000 | F111: 6000 | G111: 175 | H111: 40 | I111: 0 | J111: 200 | K111: 107 | L111: 109
A112: 109 | B112: 800 | C112: 0 | D112: 18000 | E112: 18000 | F112: 6000 | G112: 150 | H112: 40 | I112: 0 | J112: 200 | K112: 108 | L112: -1
A113: 110 | B113: 450 | C113: 0 | D113: 9000 | E113: 9000 | F113: 2500 | G113: 900 | H113: 40 | I113: 0 | J113: 220 | K113: -1 | L113: =A114 -> 111 | M113: ERC3-SA5-12
A114: 111 | B114: 500 | C114: 0 | D114: 9000 | E114: 9000 | F114: 2500 | G114: 805 | H114: 40 | I114: 0 | J114: 220 | K114: =A113 -> 110 | L114: 112
A115: 112 | B115: 550 | C115: 0 | D115: 9000 | E115: 9000 | F115: 2500 | G115: 665 | H115: 40 | I115: 0 | J115: 220 | K115: 111 | L115: 113
A116: 113 | B116: 600 | C116: 0 | D116: 9000 | E116: 9000 | F116: 2500 | G116: 560 | H116: 40 | I116: 0 | J116: 220 | K116: 112 | L116: 114
A117: 114 | B117: 650 | C117: 0 | D117: 9000 | E117: 9000 | F117: 2500 | G117: 475 | H117: 40 | I117: 0 | J117: 220 | K117: 113 | L117: 115
A118: 115 | B118: 700 | C118: 0 | D118: 9000 | E118: 9000 | F118: 2500 | G118: 405 | H118: 40 | I118: 0 | J118: 220 | K118: 114 | L118: 116
A119: 116 | B119: 750 | C119: 0 | D119: 9000 | E119: 9000 | F119: 2500 | G119: 350 | H119: 40 | I119: 0 | J119: 220 | K119: 115 | L119: 117
A120: 117 | B120: 800 | C120: 0 | D120: 9000 | E120: 9000 | F120: 2500 | G120: 300 | H120: 40 | I120: 0 | J120: 220 | K120: 116 | L120: -1
A121: 118 | B121: 500 | C121: 0 | D121: 6500 | E121: 6500 | F121: 1000 | G121: 1120 | H121: 40 | I121: 0 | J121: 195 | K121: -1 | L121: =A122 -> 119 | M121: ERC3-SA5-20
A122: 119 | B122: 550 | C122: 0 | D122: 6500 | E122: 6500 | F122: 1000 | G122: 1115 | H122: 40 | I122: 0 | J122: 195 | K122: =A121 -> 118 | L122: 120
A123: 120 | B123: 600 | C123: 0 | D123: 6500 | E123: 6500 | F123: 1000 | G123: 935 | H123: 40 | I123: 0 | J123: 195 | K123: 119 | L123: 121
A124: 121 | B124: 650 | C124: 0 | D124: 6500 | E124: 6500 | F124: 1000 | G124: 795 | H124: 40 | I124: 0 | J124: 195 | K124: 120 | L124: 122
A125: 122 | B125: 700 | C125: 0 | D125: 6500 | E125: 6500 | F125: 1000 | G125: 680 | H125: 40 | I125: 0 | J125: 195 | K125: 121 | L125: 123
A126: 123 | B126: 750 | C126: 0 | D126: 6500 | E126: 6500 | F126: 1000 | G126: 585 | H126: 40 | I126: 0 | J126: 195 | K126: 122 | L126: 124
A127: 124 | B127: 800 | C127: 0 | D127: 6500 | E127: 6500 | F127: 1000 | G127: 510 | H127: 40 | I127: 0 | J127: 195 | K127: 123 | L127: -1
A128: 125 | B128: 600 | C128: 0 | D128: 45000 | E128: 45000 | F128: 22000 | G128: 210 | H128: 40 | I128: 0 | J128: 230 | K128: -1 | L128: =A129 -> 126 | M128: ERC3-SA7-4
A129: 126 | B129: 650 | C129: 0 | D129: 45000 | E129: 45000 | F129: 22000 | G129: 185 | H129: 40 | I129: 0 | J129: 230 | K129: =A128 -> 125 | L129: =A130 -> 127
A130: 127 | B130: 700 | C130: 0 | D130: 45000 | E130: 45000 | F130: 22000 | G130: 160 | H130: 40 | I130: 0 | J130: 230 | K130: =A129 -> 126 | L130: =A131 -> 128
A131: 128 | B131: 750 | C131: 0 | D131: 45000 | E131: 45000 | F131: 22000 | G131: 140 | H131: 40 | I131: 0 | J131: 230 | K131: =A130 -> 127 | L131: =A132 -> 129
A132: =A131+1 -> 129 | B132: 800 | C132: 0 | D132: 45000 | E132: 45000 | F132: 22000 | G132: 120 | H132: 40 | I132: 0 | J132: 230 | K132: =A131 -> 128 | L132: -1
A133: 130 | B133: 550 | C133: 0 | D133: 43000 | E133: 43000 | F133: 15000 | G133: 490 | H133: 40 | I133: 0 | J133: 230 | K133: -1 | L133: =A134 -> 131 | M133: ERC3-SA7-8
A134: 131 | B134: 600 | C134: 0 | D134: 43000 | E134: 43000 | F134: 15000 | G134: 440 | H134: 40 | I134: 0 | J134: 230 | K134: =A133 -> 130 | L134: =A135 -> 132
A135: 132 | B135: 650 | C135: 0 | D135: 43000 | E135: 43000 | F135: 15000 | G135: 375 | H135: 40 | I135: 0 | J135: 230 | K135: =A134 -> 131 | L135: =A136 -> 133
A136: 133 | B136: 700 | C136: 0 | D136: 43000 | E136: 43000 | F136: 15000 | G136: 320 | H136: 40 | I136: 0 | J136: 230 | K136: =A135 -> 132 | L136: =A137 -> 134
A137: 134 | B137: 750 | C137: 0 | D137: 43000 | E137: 43000 | F137: 15000 | G137: 280 | H137: 40 | I137: 0 | J137: 230 | K137: =A136 -> 133 | L137: =A138 -> 135
A138: 135 | B138: 800 | C138: 0 | D138: 43000 | E138: 43000 | F138: 15000 | G138: 245 | H138: 40 | I138: 0 | J138: 230 | K138: =A137 -> 134 | L138: -1
A139: 136 | B139: 550 | C139: 0 | D139: 35000 | E139: 35000 | F139: 7000 | G139: 980 | H139: 40 | I139: 0 | J139: 240 | K139: -1 | L139: =A140 -> 137 | M139: ERC3-SA7-16
A140: 137 | B140: 600 | C140: 0 | D140: 35000 | E140: 35000 | F140: 7000 | G140: 880 | H140: 40 | I140: 0 | J140: 240 | K140: =A139 -> 136 | L140: =A141 -> 138
A141: 138 | B141: 650 | C141: 0 | D141: 35000 | E141: 35000 | F141: 7000 | G141: 750 | H141: 40 | I141: 0 | J141: 240 | K141: =A140 -> 137 | L141: =A142 -> 139
A142: 139 | B142: 700 | C142: 0 | D142: 35000 | E142: 35000 | F142: 7000 | G142: 645 | H142: 40 | I142: 0 | J142: 240 | K142: =A141 -> 138 | L142: =A143 -> 140
A143: 140 | B143: 750 | C143: 0 | D143: 35000 | E143: 35000 | F143: 7000 | G143: 565 | H143: 40 | I143: 0 | J143: 240 | K143: =A142 -> 139 | L143: =A144 -> 141
A144: 141 | B144: 800 | C144: 0 | D144: 35000 | E144: 35000 | F144: 7000 | G144: 495 | H144: 40 | I144: 0 | J144: 240 | K144: =A143 -> 140 | L144: -1
A145: 142 | B145: 600 | C145: 0 | D145: 20000 | E145: 20000 | F145: 3000 | G145: 1200 | H145: 40 | I145: 0 | J145: 120 | K145: -1 | L145: =A146 -> 143 | M145: ERC3-SA7-24
A146: 143 | B146: 650 | C146: 0 | D146: 20000 | E146: 20000 | F146: 3000 | G146: 1130 | H146: 40 | I146: 0 | J146: 120 | K146: =A145 -> 142 | L146: =A147 -> 144
A147: 144 | B147: 700 | C147: 0 | D147: 20000 | E147: 20000 | F147: 3000 | G147: 975 | H147: 40 | I147: 0 | J147: 120 | K147: =A146 -> 143 | L147: =A148 -> 145
A148: 145 | B148: 750 | C148: 0 | D148: 20000 | E148: 20000 | F148: 3000 | G148: 850 | H148: 40 | I148: 0 | J148: 120 | K148: =A147 -> 144 | L148: =A149 -> 146
A149: 146 | B149: 800 | C149: 0 | D149: 20000 | E149: 20000 | F149: 3000 | G149: 745 | H149: 40 | I149: 0 | J149: 120 | K149: =A148 -> 145 | L149: -1
A150: 147 | B150: 200 | C150: 0 | D150: 40000 | E150: 40000 | F150: 18000 | G150: 225 | H150: 40 | I150: 0 | J150: 220 | K150: -1 | L150: =A151 -> 148 | M150: ERC3-RA4-3
A151: 148 | B151: 250 | C151: 0 | D151: 40000 | E151: 40000 | F151: 18000 | G151: 170 | H151: 40 | I151: 0 | J151: 220 | K151: =A150 -> 147 | L151: =A152 -> 149
A152: 149 | B152: 300 | C152: 0 | D152: 40000 | E152: 40000 | F152: 18000 | G152: 120 | H152: 40 | I152: 0 | J152: 220 | K152: =A151 -> 148 | L152: -1
A153: 150 | B153: 200 | C153: 0 | D153: 40000 | E153: 40000 | F153: 12000 | G153: 450 | H153: 40 | I153: 0 | J153: 210 | K153: -1 | L153: =A154 -> 151 | M153: ERC3-RA4-6
A154: 151 | B154: 250 | C154: 0 | D154: 40000 | E154: 40000 | F154: 12000 | G154: 345 | H154: 40 | I154: 0 | J154: 210 | K154: =A153 -> 150 | L154: =A155 -> 152
A155: 152 | B155: 300 | C155: 0 | D155: 40000 | E155: 40000 | F155: 12000 | G155: 240 | H155: 40 | I155: 0 | J155: 210 | K155: =A154 -> 151 | L155: -1
A156: =A155+1 -> 153 | B156: 200 | C156: 0 | D156: 25000 | E156: 25000 | F156: 4500 | G156: 700 | H156: 40 | I156: 0 | J156: 205 | K156: -1 | L156: =A157 -> 154 | M156: ERC3-RA4-12
A157: =A156+1 -> 154 | B157: 250 | C157: 0 | D157: 25000 | E157: 25000 | F157: 4500 | G157: 695 | H157: 40 | I157: 0 | J157: 205 | K157: =A156 -> 153 | L157: =A158 -> 155
A158: =A157+1 -> 155 | B158: 300 | C158: 0 | D158: 25000 | E158: 25000 | F158: 4500 | G158: 485 | H158: 40 | I158: 0 | J158: 205 | K158: =A157 -> 154 | L158: -1
A159: 156 | B159: 300 | C159: 0 | D159: 6000 | E159: 6000 | F159: 1500 | G159: 800 | H159: 40 | I159: 0 | J159: 215 | K159: -1 | L159: -1 | M159: ERC3-RA4-20
A160: 157 | B160: 250 | C160: 0 | D160: 70000 | E160: 70000 | F160: 25000 | G160: 210 | H160: 40 | I160: 0 | J160: 220 | K160: -1 | L160: =A161 -> 158 | M160: ERC3-RA6-4
A161: 158 | B161: 300 | C161: 0 | D161: 70000 | E161: 70000 | F161: 25000 | G161: 200 | H161: 40 | I161: 0 | J161: 220 | K161: =A160 -> 157 | L161: -1
A162: 159 | B162: 250 | C162: 0 | D162: 60000 | E162: 60000 | F162: 17500 | G162: 420 | H162: 40 | I162: 0 | J162: 215 | K162: -1 | L162: =A163 -> 160 | M162: ERC3-RA6-8
A163: 160 | B163: 300 | C163: 0 | D163: 60000 | E163: 60000 | F163: 17500 | G163: 400 | H163: 40 | I163: 0 | J163: 215 | K163: =A162 -> 159 | L163: -1
A164: 161 | B164: 300 | C164: 0 | D164: 45000 | E164: 45000 | F164: 8000 | G164: 700 | H164: 40 | I164: 0 | J164: 220 | K164: -1 | L164: -1 | M164: ERC3-RA6-16
A165: 162 | B165: 300 | C165: 0 | D165: 20000 | E165: 20000 | F165: 3000 | G165: 800 | H165: 40 | I165: 0 | J165: 300 | K165: -1 | L165: -1 | M165: ERC3-RA6-24
A166: 163 | B166: 450 | C166: 0 | D166: 20000 | E166: 20000 | F166: 12000 | G166: 225 | H166: 40 | I166: 0 | J166: 225 | K166: -1 | L166: =A167 -> 164 | M166: RCP4-SA5R-3
A167: 164 | B167: 500 | C167: 0 | D167: 20000 | E167: 20000 | F167: 12000 | G167: 195 | H167: 40 | I167: 0 | J167: 225 | K167: =A166 -> 163 | L167: 165
A168: 165 | B168: 550 | C168: 0 | D168: 20000 | E168: 20000 | F168: 12000 | G168: 165 | H168: 40 | I168: 0 | J168: 225 | K168: 164 | L168: 166
A169: 166 | B169: 600 | C169: 0 | D169: 20000 | E169: 20000 | F169: 12000 | G169: 140 | H169: 40 | I169: 0 | J169: 225 | K169: 165 | L169: 167
A170: 167 | B170: 650 | C170: 0 | D170: 20000 | E170: 20000 | F170: 12000 | G170: 120 | H170: 40 | I170: 0 | J170: 225 | K170: 166 | L170: 168
A171: 168 | B171: 700 | C171: 0 | D171: 20000 | E171: 20000 | F171: 12000 | G171: 105 | H171: 40 | I171: 0 | J171: 225 | K171: 167 | L171: 169
A172: 169 | B172: 750 | C172: 0 | D172: 20000 | E172: 20000 | F172: 12000 | G172: 90 | H172: 40 | I172: 0 | J172: 225 | K172: 168 | L172: 170
A173: 170 | B173: 800 | C173: 0 | D173: 20000 | E173: 20000 | F173: 12000 | G173: 80 | H173: 40 | I173: 0 | J173: 225 | K173: 169 | L173: -1
A174: 171 | B174: 450 | C174: 0 | D174: 18000 | E174: 18000 | F174: 6000 | G174: 450 | H174: 40 | I174: 0 | J174: 200 | K174: -1 | L174: =A175 -> 172 | M174: RCP4-SA5R-6
A175: 172 | B175: 500 | C175: 0 | D175: 18000 | E175: 18000 | F175: 6000 | G175: 395 | H175: 40 | I175: 0 | J175: 200 | K175: =A174 -> 171 | L175: 173
A176: 173 | B176: 550 | C176: 0 | D176: 18000 | E176: 18000 | F176: 6000 | G176: 335 | H176: 40 | I176: 0 | J176: 200 | K176: 172 | L176: 174
A177: 174 | B177: 600 | C177: 0 | D177: 18000 | E177: 18000 | F177: 6000 | G177: 285 | H177: 40 | I177: 0 | J177: 200 | K177: 173 | L177: 175
A178: 175 | B178: 650 | C178: 0 | D178: 18000 | E178: 18000 | F178: 6000 | G178: 245 | H178: 40 | I178: 0 | J178: 200 | K178: 174 | L178: 176
A179: 176 | B179: 700 | C179: 0 | D179: 18000 | E179: 18000 | F179: 6000 | G179: 215 | H179: 40 | I179: 0 | J179: 200 | K179: 175 | L179: 177
A180: 177 | B180: 750 | C180: 0 | D180: 18000 | E180: 18000 | F180: 6000 | G180: 185 | H180: 40 | I180: 0 | J180: 200 | K180: 176 | L180: 178
A181: 178 | B181: 800 | C181: 0 | D181: 18000 | E181: 18000 | F181: 6000 | G181: 165 | H181: 40 | I181: 0 | J181: 200 | K181: 177 | L181: -1
A182: 179 | B182: 450 | C182: 0 | D182: 9000 | E182: 9000 | F182: 2500 | G182: 900 | H182: 40 | I182: 0 | J182: 185 | K182: -1 | L182: =A183 -> 180 | M182: RCP4-SA5R-12
A183: 180 | B183: 500 | C183: 0 | D183: 9000 | E183: 9000 | F183: 2500 | G183: 795 | H183: 40 | I183: 0 | J183: 185 | K183: =A182 -> 179 | L183: 181
A184: 181 | B184: 550 | C184: 0 | D184: 9000 | E184: 9000 | F184: 2500 | G184: 665 | H184: 40 | I184: 0 | J184: 185 | K184: 180 | L184: 182
A185: 182 | B185: 600 | C185: 0 | D185: 9000 | E185: 9000 | F185: 2500 | G185: 570 | H185: 40 | I185: 0 | J185: 185 | K185: 181 | L185: 183
A186: 183 | B186: 650 | C186: 0 | D186: 9000 | E186: 9000 | F186: 2500 | G186: 490 | H186: 40 | I186: 0 | J186: 185 | K186: 182 | L186: 184
A187: 184 | B187: 700 | C187: 0 | D187: 9000 | E187: 9000 | F187: 2500 | G187: 425 | H187: 40 | I187: 0 | J187: 185 | K187: 183 | L187: 185
A188: 185 | B188: 750 | C188: 0 | D188: 9000 | E188: 9000 | F188: 2500 | G188: 375 | H188: 40 | I188: 0 | J188: 185 | K188: 184 | L188: 186
A189: 186 | B189: 800 | C189: 0 | D189: 9000 | E189: 9000 | F189: 2500 | G189: 330 | H189: 40 | I189: 0 | J189: 185 | K189: 185 | L189: -1
A190: 187 | B190: 500 | C190: 0 | D190: 6500 | E190: 6500 | F190: 1000 | G190: 1440 | H190: 40 | I190: 0 | J190: 165 | K190: -1 | L190: =A191 -> 188 | M190: RCP4-SA5R-20
A191: 188 | B191: 550 | C191: 0 | D191: 6500 | E191: 6500 | F191: 1000 | G191: 1225 | H191: 40 | I191: 0 | J191: 165 | K191: =A190 -> 187 | L191: 189
A192: 189 | B192: 600 | C192: 0 | D192: 6500 | E192: 6500 | F192: 1000 | G192: 1045 | H192: 40 | I192: 0 | J192: 165 | K192: 188 | L192: 190
A193: 190 | B193: 650 | C193: 0 | D193: 6500 | E193: 6500 | F193: 1000 | G193: 900 | H193: 40 | I193: 0 | J193: 165 | K193: 189 | L193: 191
A194: 191 | B194: 700 | C194: 0 | D194: 6500 | E194: 6500 | F194: 1000 | G194: 785 | H194: 40 | I194: 0 | J194: 165 | K194: 190 | L194: 192
A195: 192 | B195: 750 | C195: 0 | D195: 6500 | E195: 6500 | F195: 1000 | G195: 690 | H195: 40 | I195: 0 | J195: 165 | K195: 191 | L195: 193
A196: =A195+1 -> 193 | B196: 800 | C196: 0 | D196: 6500 | E196: 6500 | F196: 1000 | G196: 610 | H196: 40 | I196: 0 | J196: 165 | K196: 192 | L196: -1
A197: 194 | B197: 450 | C197: 0 | D197: 25000 | E197: 25000 | F197: 12000 | G197: 225 | H197: 40 | I197: 0 | J197: 220 | K197: -1 | L197: =A198 -> 195 | M197: RCP4-SA6R-3
A198: 195 | B198: 500 | C198: 0 | D198: 25000 | E198: 25000 | F198: 12000 | G198: 195 | H198: 40 | I198: 0 | J198: 220 | K198: =A197 -> 194 | L198: 196
A199: 196 | B199: 550 | C199: 0 | D199: 25000 | E199: 25000 | F199: 12000 | G199: 165 | H199: 40 | I199: 0 | J199: 220 | K199: 195 | L199: 197
A200: 197 | B200: 600 | C200: 0 | D200: 25000 | E200: 25000 | F200: 12000 | G200: 140 | H200: 40 | I200: 0 | J200: 220 | K200: 196 | L200: 198
... 920 more rows

Sheet MassDataLink (hidden)
B1: 1 | C1: 2 | D1: 3 | E1: 4 | F1: 5 | H1: 1000 | J1: =COUNTIF(J4:J4920,"つなぎまちがい") -> 0 | K1: =COUNTIF(K4:K4920,"つなぎまちがい") -> 0
A2: ﾃﾞｰﾀ№ | B2: ｱｸﾁｭｴｰﾀ姿勢 | C2: 搬送負荷質量 | D2: 加減速・速度ﾃﾞｰﾀ | E2: 前ﾃﾞｰﾀ№ | F2: 次ﾃﾞｰﾀ№ | G2: 備考
A3: =ModelData!A3 -> 0 | B3: 0/1 | C3: 1g | D3: ﾚｺｰﾄﾞ№ | E3: ﾚｺｰﾄﾞ№ | F3: ﾚｺｰﾄﾞ№ | G3: 型式-姿勢 | H3: 質量 | I3: 先頭REC | J3: 前№ﾁｪｯｸ | K3: 後№ﾁｪｯｸ
A4: =A3+1 -> 1 | B4: 0 | C4: =H4*$H$1 -> 6000 | D4: =I4 -> 1 | E4: -1 | F4: =A5 -> 2 | G4: =AccVelDataLink!F4 -> RCP4-SA5C-3-水平 | H4: =AccVelDataLink!G4 -> 6 | I4: =AccVelDataLink!A4 -> 1 | J4: =IF(E4=A3,"○",IF(G4=0,"つなぎまちがい","先頭")) -> 先頭 | K4: =IF(F4=A5,"○",IF(F4<>E5,"つなぎまちがい","終端")) -> ○
A5: 2 | B5: 0 | C5: 8000 | D5: 3 | E5: =A4 -> 1 | F5: 3 | H5: =AccVelDataLink!G6 -> 8 | I5: =AccVelDataLink!A6 -> 3 | J5: ○ | K5: ○
A6: 3 | B6: 0 | C6: 10000 | D6: 4 | E6: 2 | F6: 4 | H6: =AccVelDataLink!G7 -> 10 | I6: =AccVelDataLink!A7 -> 4 | J6: ○ | K6: ○
A7: 4 | B7: 0 | C7: 12000 | D7: 6 | E7: 3 | F7: 5 | H7: =AccVelDataLink!G9 -> 12 | I7: =AccVelDataLink!A9 -> 6 | J7: ○ | K7: ○
A8: 5 | B8: 0 | C8: 14000 | D8: 8 | E8: 4 | F8: 6 | H8: =AccVelDataLink!G11 -> 14 | I8: =AccVelDataLink!A11 -> 8 | J8: ○ | K8: ○
A9: 6 | B9: 0 | C9: 16000 | D9: 10 | E9: 5 | F9: 7 | H9: =AccVelDataLink!G13 -> 16 | I9: =AccVelDataLink!A13 -> 10 | J9: ○ | K9: ○
A10: 7 | B10: 0 | C10: 18000 | D10: 11 | E10: 6 | F10: 8 | H10: =AccVelDataLink!G14 -> 18 | I10: =AccVelDataLink!A14 -> 11 | J10: ○ | K10: ○
A11: 8 | B11: 0 | C11: 20000 | D11: 14 | E11: 7 | F11: 9 | H11: =AccVelDataLink!G17 -> 20 | I11: =AccVelDataLink!A17 -> 14 | J11: ○ | K11: ○
A12: 9 | B12: 1 | C12: 5000 | D12: 16 | E12: 8 | F12: 10 | G12: =AccVelDataLink!F19 -> RCP4-SA5C-3-垂直 | H12: =AccVelDataLink!G19 -> 5 | I12: =AccVelDataLink!A19 -> 16 | J12: ○ | K12: ○
A13: 10 | B13: 1 | C13: 6000 | D13: 17 | E13: 9 | F13: 11 | H13: =AccVelDataLink!G20 -> 6 | I13: =AccVelDataLink!A20 -> 17 | J13: ○ | K13: ○
A14: 11 | B14: 1 | C14: 7000 | D14: 19 | E14: 10 | F14: 12 | H14: =AccVelDataLink!G22 -> 7 | I14: =AccVelDataLink!A22 -> 19 | J14: ○ | K14: ○
A15: 12 | B15: 1 | C15: 8000 | D15: 20 | E15: 11 | F15: 13 | H15: =AccVelDataLink!G23 -> 8 | I15: =AccVelDataLink!A23 -> 20 | J15: ○ | K15: ○
A16: 13 | B16: 1 | C16: 9000 | D16: 21 | E16: 12 | F16: 14 | H16: =AccVelDataLink!G24 -> 9 | I16: =AccVelDataLink!A24 -> 21 | J16: ○ | K16: ○
A17: 14 | B17: 1 | C17: 10000 | D17: 23 | E17: 13 | F17: 15 | H17: =AccVelDataLink!G26 -> 10 | I17: =AccVelDataLink!A26 -> 23 | J17: ○ | K17: ○
A18: 15 | B18: 1 | C18: 11000 | D18: 24 | E18: 14 | F18: 16 | H18: =AccVelDataLink!G27 -> 11 | I18: =AccVelDataLink!A27 -> 24 | J18: ○ | K18: ○
A19: 16 | B19: 1 | C19: 12000 | D19: 26 | E19: 15 | F19: -1 | H19: =AccVelDataLink!G29 -> 12 | I19: =AccVelDataLink!A29 -> 26 | J19: ○ | K19: 終端
A20: 17 | B20: 0 | C20: 2000 | D20: 28 | E20: -1 | F20: =A21 -> 18 | G20: =AccVelDataLink!F31 -> RCP4-SA5C-6-水平 | H20: =AccVelDataLink!G31 -> 2 | I20: =AccVelDataLink!A31 -> 28 | J20: 先頭 | K20: ○
A21: 18 | B21: 0 | C21: 4000 | D21: 29 | E21: =A20 -> 17 | F21: 19 | H21: =AccVelDataLink!G32 -> 4 | I21: =AccVelDataLink!A32 -> 29 | J21: ○ | K21: ○
A22: 19 | B22: 0 | C22: 6000 | D22: 30 | E22: 18 | F22: 20 | H22: =AccVelDataLink!G33 -> 6 | I22: =AccVelDataLink!A33 -> 30 | J22: ○ | K22: ○
A23: 20 | B23: 0 | C23: 7000 | D23: 32 | E23: 19 | F23: 21 | H23: =AccVelDataLink!G35 -> 7 | I23: =AccVelDataLink!A35 -> 32 | J23: ○ | K23: ○
A24: 21 | B24: 0 | C24: 8000 | D24: 33 | E24: 20 | F24: 22 | H24: =AccVelDataLink!G36 -> 8 | I24: =AccVelDataLink!A36 -> 33 | J24: ○ | K24: ○
A25: 22 | B25: 0 | C25: 10000 | D25: 34 | E25: 21 | F25: 23 | H25: =AccVelDataLink!G37 -> 10 | I25: =AccVelDataLink!A37 -> 34 | J25: ○ | K25: ○
A26: 23 | B26: 0 | C26: 11000 | D26: 37 | E26: 22 | F26: 24 | H26: =AccVelDataLink!G40 -> 11 | I26: =AccVelDataLink!A40 -> 37 | J26: ○ | K26: ○
A27: 24 | B27: 0 | C27: 12000 | D27: 38 | E27: 23 | F27: 25 | H27: =AccVelDataLink!G41 -> 12 | I27: =AccVelDataLink!A41 -> 38 | J27: ○ | K27: ○
A28: 25 | B28: 0 | C28: 14000 | D28: 40 | E28: 24 | F28: 26 | H28: =AccVelDataLink!G43 -> 14 | I28: =AccVelDataLink!A43 -> 40 | J28: ○ | K28: ○
A29: 26 | B29: 0 | C29: 16000 | D29: 42 | E29: 25 | F29: 27 | H29: =AccVelDataLink!G45 -> 16 | I29: =AccVelDataLink!A45 -> 42 | J29: ○ | K29: ○
A30: 27 | B30: 0 | C30: 18000 | D30: 43 | E30: 26 | F30: 28 | H30: =AccVelDataLink!G46 -> 18 | I30: =AccVelDataLink!A46 -> 43 | J30: ○ | K30: ○
A31: 28 | B31: 1 | C31: 2000 | D31: 45 | E31: 27 | F31: 29 | G31: =AccVelDataLink!F48 -> RCP4-SA5C-6-垂直 | H31: =AccVelDataLink!G48 -> 2 | I31: =AccVelDataLink!A48 -> 45 | J31: ○ | K31: ○
A32: 29 | B32: 1 | C32: 3000 | D32: 46 | E32: 28 | F32: 30 | H32: =AccVelDataLink!G49 -> 3 | I32: =AccVelDataLink!A49 -> 46 | J32: ○ | K32: ○
A33: 30 | B33: 1 | C33: 3500 | D33: 47 | E33: 29 | F33: 31 | H33: =AccVelDataLink!G50 -> 3.5 | I33: =AccVelDataLink!A50 -> 47 | J33: ○ | K33: ○
A34: 31 | B34: 1 | C34: 4000 | D34: 49 | E34: 30 | F34: 32 | H34: =AccVelDataLink!G52 -> 4 | I34: =AccVelDataLink!A52 -> 49 | J34: ○ | K34: ○
A35: 32 | B35: 1 | C35: 4500 | D35: 50 | E35: 31 | F35: 33 | H35: =AccVelDataLink!G53 -> 4.5 | I35: =AccVelDataLink!A53 -> 50 | J35: ○ | K35: ○
A36: 33 | B36: 1 | C36: 5000 | D36: 52 | E36: 32 | F36: 34 | H36: =AccVelDataLink!G55 -> 5 | I36: =AccVelDataLink!A55 -> 52 | J36: ○ | K36: ○
A37: 34 | B37: 1 | C37: 5500 | D37: 53 | E37: 33 | F37: 35 | H37: =AccVelDataLink!G56 -> 5.5 | I37: =AccVelDataLink!A56 -> 53 | J37: ○ | K37: ○
A38: 35 | B38: 1 | C38: 6000 | D38: 55 | E38: 34 | F38: -1 | H38: =AccVelDataLink!G58 -> 6 | I38: =AccVelDataLink!A58 -> 55 | J38: ○ | K38: 終端
A39: 36 | B39: 0 | C39: 1000 | D39: 58 | E39: -1 | F39: =A40 -> 37 | G39: =AccVelDataLink!F61 -> RCP4-SA5C-12-水平 | H39: =AccVelDataLink!G61 -> 1 | I39: =AccVelDataLink!A61 -> 58 | J39: 先頭 | K39: ○
A40: 37 | B40: 0 | C40: 2000 | D40: 59 | E40: =A39 -> 36 | F40: 38 | H40: =AccVelDataLink!G62 -> 2 | I40: =AccVelDataLink!A62 -> 59 | J40: ○ | K40: ○
A41: 38 | B41: 0 | C41: 2500 | D41: 60 | E41: 37 | F41: 39 | H41: =AccVelDataLink!G63 -> 2.5 | I41: =AccVelDataLink!A63 -> 60 | J41: ○ | K41: ○
A42: 39 | B42: 0 | C42: 3000 | D42: 61 | E42: 38 | F42: 40 | H42: =AccVelDataLink!G64 -> 3 | I42: =AccVelDataLink!A64 -> 61 | J42: ○ | K42: ○
A43: 40 | B43: 0 | C43: 4000 | D43: 62 | E43: 39 | F43: 41 | H43: =AccVelDataLink!G65 -> 4 | I43: =AccVelDataLink!A65 -> 62 | J43: ○ | K43: ○
A44: 41 | B44: 0 | C44: 5000 | D44: 64 | E44: 40 | F44: 42 | H44: =AccVelDataLink!G67 -> 5 | I44: =AccVelDataLink!A67 -> 64 | J44: ○ | K44: ○
A45: 42 | B45: 0 | C45: 6000 | D45: 66 | E45: 41 | F45: 43 | H45: =AccVelDataLink!G69 -> 6 | I45: =AccVelDataLink!A69 -> 66 | J45: ○ | K45: ○
A46: 43 | B46: 0 | C46: 6500 | D46: 67 | E46: 42 | F46: 44 | H46: =AccVelDataLink!G70 -> 6.5 | I46: =AccVelDataLink!A70 -> 67 | J46: ○ | K46: ○
A47: 44 | B47: 0 | C47: 7000 | D47: 68 | E47: 43 | F47: 45 | H47: =AccVelDataLink!G71 -> 7 | I47: =AccVelDataLink!A71 -> 68 | J47: ○ | K47: ○
A48: 45 | B48: 0 | C48: 8000 | D48: 69 | E48: 44 | F48: 46 | H48: =AccVelDataLink!G72 -> 8 | I48: =AccVelDataLink!A72 -> 69 | J48: ○ | K48: ○
A49: 46 | B49: 0 | C49: 9000 | D49: 72 | E49: 45 | F49: 47 | H49: =AccVelDataLink!G75 -> 9 | I49: =AccVelDataLink!A75 -> 72 | J49: ○ | K49: ○
A50: 47 | B50: 1 | C50: 500 | D50: 75 | E50: 46 | F50: 48 | G50: =AccVelDataLink!F78 -> RCP4-SA5C-12-垂直 | H50: =AccVelDataLink!G78 -> 0.5 | I50: =AccVelDataLink!A78 -> 75 | J50: ○ | K50: ○
A51: 48 | B51: 1 | C51: 1000 | D51: 76 | E51: 47 | F51: 49 | H51: =AccVelDataLink!G79 -> 1 | I51: =AccVelDataLink!A79 -> 76 | J51: ○ | K51: ○
A52: 49 | B52: 1 | C52: 1500 | D52: 77 | E52: 48 | F52: 50 | H52: =AccVelDataLink!G80 -> 1.5 | I52: =AccVelDataLink!A80 -> 77 | J52: ○ | K52: ○
A53: 50 | B53: 1 | C53: 2000 | D53: 78 | E53: 49 | F53: 51 | H53: =AccVelDataLink!G81 -> 2 | I53: =AccVelDataLink!A81 -> 78 | J53: ○ | K53: ○
A54: 51 | B54: 1 | C54: 2500 | D54: 79 | E54: 50 | F54: -1 | H54: =AccVelDataLink!G82 -> 2.5 | I54: =AccVelDataLink!A82 -> 79 | J54: ○ | K54: 終端
A55: 52 | B55: 0 | C55: 500 | D55: 81 | E55: -1 | F55: =A56 -> 53 | G55: =AccVelDataLink!F84 -> RCP4-SA5C-20-水平 | H55: =AccVelDataLink!G84 -> 0.5 | I55: =AccVelDataLink!A84 -> 81 | J55: 先頭 | K55: ○
A56: 53 | B56: 0 | C56: 1000 | D56: 82 | E56: =A55 -> 52 | F56: 54 | H56: =AccVelDataLink!G85 -> 1 | I56: =AccVelDataLink!A85 -> 82 | J56: ○ | K56: ○
A57: 54 | B57: 0 | C57: 1500 | D57: 84 | E57: 53 | F57: 55 | H57: =AccVelDataLink!G87 -> 1.5 | I57: =AccVelDataLink!A87 -> 84 | J57: ○ | K57: ○
A58: 55 | B58: 0 | C58: 2000 | D58: 85 | E58: 54 | F58: 56 | H58: =AccVelDataLink!G88 -> 2 | I58: =AccVelDataLink!A88 -> 85 | J58: ○ | K58: ○
A59: 56 | B59: 0 | C59: 3000 | D59: 87 | E59: 55 | F59: 57 | H59: =AccVelDataLink!G90 -> 3 | I59: =AccVelDataLink!A90 -> 87 | J59: ○ | K59: ○
A60: 57 | B60: 0 | C60: 4000 | D60: 90 | E60: 56 | F60: 58 | H60: =AccVelDataLink!G93 -> 4 | I60: =AccVelDataLink!A93 -> 90 | J60: ○ | K60: ○
A61: 58 | B61: 0 | C61: 5000 | D61: 92 | E61: 57 | F61: 59 | H61: =AccVelDataLink!G95 -> 5 | I61: =AccVelDataLink!A95 -> 92 | J61: ○ | K61: ○
A62: 59 | B62: 0 | C62: 6000 | D62: 94 | E62: 58 | F62: 60 | H62: =AccVelDataLink!G97 -> 6 | I62: =AccVelDataLink!A97 -> 94 | J62: ○ | K62: ○
A63: 60 | B63: 0 | C63: 6500 | D63: 95 | E63: 59 | F63: 61 | H63: =AccVelDataLink!G98 -> 6.5 | I63: =AccVelDataLink!A98 -> 95 | J63: ○ | K63: ○
A64: 61 | B64: 1 | C64: 500 | D64: 96 | E64: 60 | F64: 62 | G64: =AccVelDataLink!F99 -> RCP4-SA5C-20-垂直 | H64: =AccVelDataLink!G99 -> 0.5 | I64: =AccVelDataLink!A99 -> 96 | J64: ○ | K64: ○
A65: 62 | B65: 1 | C65: 1000 | D65: 97 | E65: 61 | F65: -1 | H65: =AccVelDataLink!G100 -> 1 | I65: =AccVelDataLink!A100 -> 97 | J65: ○ | K65: 終端
A66: 63 | B66: 0 | C66: 12000 | D66: 98 | E66: -1 | F66: =A67 -> 64 | G66: =AccVelDataLink!F101 -> RCP4-SA6C-3-水平 | H66: =AccVelDataLink!G101 -> 12 | I66: =AccVelDataLink!A101 -> 98 | J66: 先頭 | K66: ○
A67: 64 | B67: 0 | C67: 15000 | D67: 99 | E67: =A66 -> 63 | F67: 65 | H67: =AccVelDataLink!G102 -> 15 | I67: =AccVelDataLink!A102 -> 99 | J67: ○ | K67: ○
A68: =A67+1 -> 65 | B68: 0 | C68: =H68*$H$1 -> 16000 | D68: =I68 -> 100 | E68: 64 | F68: 66 | H68: =AccVelDataLink!G103 -> 16 | I68: =AccVelDataLink!A103 -> 100 | J68: =IF(E68=A67,"○",IF(G68=0,"つなぎまちがい","先頭")) -> ○ | K68: =IF(F68=A69,"○",IF(F68<>E69,"つなぎまちがい","終端")) -> ○
A69: 66 | B69: 0 | C69: 18000 | D69: 102 | E69: 65 | F69: 67 | H69: =AccVelDataLink!G105 -> 18 | I69: =AccVelDataLink!A105 -> 102 | J69: ○ | K69: ○
A70: 67 | B70: 0 | C70: 19000 | D70: 104 | E70: 66 | F70: 68 | H70: =AccVelDataLink!G107 -> 19 | I70: =AccVelDataLink!A107 -> 104 | J70: ○ | K70: ○
A71: 68 | B71: 0 | C71: 20000 | D71: 105 | E71: 67 | F71: 69 | H71: =AccVelDataLink!G108 -> 20 | I71: =AccVelDataLink!A108 -> 105 | J71: ○ | K71: ○
A72: 69 | B72: 0 | C72: 22500 | D72: 107 | E72: 68 | F72: 70 | H72: =AccVelDataLink!G110 -> 22.5 | I72: =AccVelDataLink!A110 -> 107 | J72: ○ | K72: ○
A73: 70 | B73: 0 | C73: 25000 | D73: 108 | E73: 69 | F73: 71 | H73: =AccVelDataLink!G111 -> 25 | I73: =AccVelDataLink!A111 -> 108 | J73: ○ | K73: ○
A74: 71 | B74: 1 | C74: 5000 | D74: 113 | E74: 70 | F74: 72 | G74: =AccVelDataLink!F116 -> RCP4-SA6C-3-垂直 | H74: =AccVelDataLink!G116 -> 5 | I74: =AccVelDataLink!A116 -> 113 | J74: ○ | K74: ○
A75: 72 | B75: 1 | C75: 6000 | D75: 114 | E75: 71 | F75: 73 | H75: =AccVelDataLink!G117 -> 6 | I75: =AccVelDataLink!A117 -> 114 | J75: ○ | K75: ○
A76: 73 | B76: 1 | C76: 7000 | D76: 116 | E76: 72 | F76: 74 | H76: =AccVelDataLink!G119 -> 7 | I76: =AccVelDataLink!A119 -> 116 | J76: ○ | K76: ○
A77: 74 | B77: 1 | C77: 8000 | D77: 117 | E77: 73 | F77: 75 | H77: =AccVelDataLink!G120 -> 8 | I77: =AccVelDataLink!A120 -> 117 | J77: ○ | K77: ○
A78: 75 | B78: 1 | C78: 9000 | D78: 118 | E78: 74 | F78: 76 | H78: =AccVelDataLink!G121 -> 9 | I78: =AccVelDataLink!A121 -> 118 | J78: ○ | K78: ○
A79: 76 | B79: 1 | C79: 10000 | D79: 120 | E79: 75 | F79: 77 | H79: =AccVelDataLink!G123 -> 10 | I79: =AccVelDataLink!A123 -> 120 | J79: ○ | K79: ○
A80: 77 | B80: 1 | C80: 11000 | D80: 121 | E80: 76 | F80: 78 | H80: =AccVelDataLink!G124 -> 11 | I80: =AccVelDataLink!A124 -> 121 | J80: ○ | K80: ○
A81: 78 | B81: 1 | C81: 12000 | D81: 123 | E81: 77 | F81: -1 | H81: =AccVelDataLink!G126 -> 12 | I81: =AccVelDataLink!A126 -> 123 | J81: ○ | K81: 終端
A82: 79 | B82: 0 | C82: 2500 | D82: 125 | E82: -1 | F82: =A83 -> 80 | G82: =AccVelDataLink!F128 -> RCP4-SA6C-6-水平 | H82: =AccVelDataLink!G128 -> 2.5 | I82: =AccVelDataLink!A128 -> 125 | J82: 先頭 | K82: ○
A83: 80 | B83: 0 | C83: 5000 | D83: 126 | E83: =A82 -> 79 | F83: 81 | H83: =AccVelDataLink!G129 -> 5 | I83: =AccVelDataLink!A129 -> 126 | J83: ○ | K83: ○
A84: 81 | B84: 0 | C84: 6000 | D84: 127 | E84: 80 | F84: 82 | H84: =AccVelDataLink!G130 -> 6 | I84: =AccVelDataLink!A130 -> 127 | J84: ○ | K84: ○
A85: 82 | B85: 0 | C85: 6500 | D85: 128 | E85: 81 | F85: 83 | H85: =AccVelDataLink!G131 -> 6.5 | I85: =AccVelDataLink!A131 -> 128 | J85: ○ | K85: ○
A86: 83 | B86: 0 | C86: 8000 | D86: 129 | E86: 82 | F86: 84 | H86: =AccVelDataLink!G132 -> 8 | I86: =AccVelDataLink!A132 -> 129 | J86: ○ | K86: ○
A87: 84 | B87: 0 | C87: 9000 | D87: 130 | E87: 83 | F87: 85 | H87: =AccVelDataLink!G133 -> 9 | I87: =AccVelDataLink!A133 -> 130 | J87: ○ | K87: ○
A88: 85 | B88: 0 | C88: 10000 | D88: 131 | E88: 84 | F88: 86 | H88: =AccVelDataLink!G134 -> 10 | I88: =AccVelDataLink!A134 -> 131 | J88: ○ | K88: ○
A89: 86 | B89: 0 | C89: 11000 | D89: 132 | E89: 85 | F89: 87 | H89: =AccVelDataLink!G135 -> 11 | I89: =AccVelDataLink!A135 -> 132 | J89: ○ | K89: ○
A90: 87 | B90: 0 | C90: 12000 | D90: 133 | E90: 86 | F90: 88 | H90: =AccVelDataLink!G136 -> 12 | I90: =AccVelDataLink!A136 -> 133 | J90: ○ | K90: ○
A91: 88 | B91: 0 | C91: 14000 | D91: 135 | E91: 87 | F91: 89 | H91: =AccVelDataLink!G138 -> 14 | I91: =AccVelDataLink!A138 -> 135 | J91: ○ | K91: ○
A92: 89 | B92: 0 | C92: 15000 | D92: 137 | E92: 88 | F92: 90 | H92: =AccVelDataLink!G140 -> 15 | I92: =AccVelDataLink!A140 -> 137 | J92: ○ | K92: ○
A93: 90 | B93: 0 | C93: 16000 | D93: 138 | E93: 89 | F93: 91 | H93: =AccVelDataLink!G141 -> 16 | I93: =AccVelDataLink!A141 -> 138 | J93: ○ | K93: ○
A94: 91 | B94: 0 | C94: 18000 | D94: 140 | E94: 90 | F94: 92 | H94: =AccVelDataLink!G143 -> 18 | I94: =AccVelDataLink!A143 -> 140 | J94: ○ | K94: ○
A95: 92 | B95: 0 | C95: 20000 | D95: 141 | E95: 91 | F95: 93 | H95: =AccVelDataLink!G144 -> 20 | I95: =AccVelDataLink!A144 -> 141 | J95: ○ | K95: ○
A96: 93 | B96: 0 | C96: 25000 | D96: 143 | E96: 92 | F96: 94 | H96: =AccVelDataLink!G146 -> 25 | I96: =AccVelDataLink!A146 -> 143 | J96: ○ | K96: ○
A97: 94 | B97: 1 | C97: 2000 | D97: 145 | E97: 93 | F97: 95 | G97: =AccVelDataLink!F148 -> RCP4-SA6C-6-垂直 | H97: =AccVelDataLink!G148 -> 2 | I97: =AccVelDataLink!A148 -> 145 | J97: ○ | K97: ○
A98: 95 | B98: 1 | C98: 3000 | D98: 146 | E98: 94 | F98: 96 | H98: =AccVelDataLink!G149 -> 3 | I98: =AccVelDataLink!A149 -> 146 | J98: ○ | K98: ○
A99: 96 | B99: 1 | C99: 3500 | D99: 147 | E99: 95 | F99: 97 | H99: =AccVelDataLink!G150 -> 3.5 | I99: =AccVelDataLink!A150 -> 147 | J99: ○ | K99: ○
A100: 97 | B100: 1 | C100: 4000 | D100: 149 | E100: 96 | F100: 98 | H100: =AccVelDataLink!G152 -> 4 | I100: =AccVelDataLink!A152 -> 149 | J100: ○ | K100: ○
A101: 98 | B101: 1 | C101: 4500 | D101: 150 | E101: 97 | F101: 99 | H101: =AccVelDataLink!G153 -> 4.5 | I101: =AccVelDataLink!A153 -> 150 | J101: ○ | K101: ○
A102: 99 | B102: 1 | C102: 5000 | D102: 152 | E102: 98 | F102: 100 | H102: =AccVelDataLink!G155 -> 5 | I102: =AccVelDataLink!A155 -> 152 | J102: ○ | K102: ○
A103: 100 | B103: 1 | C103: 5500 | D103: 153 | E103: 99 | F103: 101 | H103: =AccVelDataLink!G156 -> 5.5 | I103: =AccVelDataLink!A156 -> 153 | J103: ○ | K103: ○
A104: 101 | B104: 1 | C104: 6000 | D104: 155 | E104: 100 | F104: -1 | H104: =AccVelDataLink!G158 -> 6 | I104: =AccVelDataLink!A158 -> 155 | J104: ○ | K104: 終端
A105: 102 | B105: 0 | C105: 1000 | D105: 158 | E105: -1 | F105: =A106 -> 103 | G105: =AccVelDataLink!F161 -> RCP4-SA6C-12-水平 | H105: =AccVelDataLink!G161 -> 1 | I105: =AccVelDataLink!A161 -> 158 | J105: 先頭 | K105: ○
A106: 103 | B106: 0 | C106: 2000 | D106: 159 | E106: =A105 -> 102 | F106: 104 | H106: =AccVelDataLink!G162 -> 2 | I106: =AccVelDataLink!A162 -> 159 | J106: ○ | K106: ○
A107: 104 | B107: 0 | C107: 2500 | D107: 160 | E107: 103 | F107: 105 | H107: =AccVelDataLink!G163 -> 2.5 | I107: =AccVelDataLink!A163 -> 160 | J107: ○ | K107: ○
A108: 105 | B108: 0 | C108: 3000 | D108: 161 | E108: 104 | F108: 106 | H108: =AccVelDataLink!G164 -> 3 | I108: =AccVelDataLink!A164 -> 161 | J108: ○ | K108: ○
A109: 106 | B109: 0 | C109: 4000 | D109: 162 | E109: 105 | F109: 107 | H109: =AccVelDataLink!G165 -> 4 | I109: =AccVelDataLink!A165 -> 162 | J109: ○ | K109: ○
A110: 107 | B110: 0 | C110: 5000 | D110: 164 | E110: 106 | F110: 108 | H110: =AccVelDataLink!G167 -> 5 | I110: =AccVelDataLink!A167 -> 164 | J110: ○ | K110: ○
A111: 108 | B111: 0 | C111: 6000 | D111: 166 | E111: 107 | F111: 109 | H111: =AccVelDataLink!G169 -> 6 | I111: =AccVelDataLink!A169 -> 166 | J111: ○ | K111: ○
A112: 109 | B112: 0 | C112: 6500 | D112: 167 | E112: 108 | F112: 110 | H112: =AccVelDataLink!G170 -> 6.5 | I112: =AccVelDataLink!A170 -> 167 | J112: ○ | K112: ○
A113: 110 | B113: 0 | C113: 7000 | D113: 168 | E113: 109 | F113: 111 | H113: =AccVelDataLink!G171 -> 7 | I113: =AccVelDataLink!A171 -> 168 | J113: ○ | K113: ○
A114: 111 | B114: 0 | C114: 8000 | D114: 169 | E114: 110 | F114: 112 | H114: =AccVelDataLink!G172 -> 8 | I114: =AccVelDataLink!A172 -> 169 | J114: ○ | K114: ○
A115: 112 | B115: 0 | C115: 8500 | D115: 171 | E115: 111 | F115: 113 | H115: =AccVelDataLink!G174 -> 8.5 | I115: =AccVelDataLink!A174 -> 171 | J115: ○ | K115: ○
A116: 113 | B116: 0 | C116: 9000 | D116: 172 | E116: 112 | F116: 114 | H116: =AccVelDataLink!G175 -> 9 | I116: =AccVelDataLink!A175 -> 172 | J116: ○ | K116: ○
A117: 114 | B117: 0 | C117: 10000 | D117: 173 | E117: 113 | F117: 115 | H117: =AccVelDataLink!G176 -> 10 | I117: =AccVelDataLink!A176 -> 173 | J117: ○ | K117: ○
A118: 115 | B118: 0 | C118: 11000 | D118: 178 | E118: 114 | F118: 116 | H118: =AccVelDataLink!G181 -> 11 | I118: =AccVelDataLink!A181 -> 178 | J118: ○ | K118: ○
A119: 116 | B119: 0 | C119: 12000 | D119: 180 | E119: 115 | F119: 117 | H119: =AccVelDataLink!G183 -> 12 | I119: =AccVelDataLink!A183 -> 180 | J119: ○ | K119: ○
A120: 117 | B120: 0 | C120: 12500 | D120: 182 | E120: 116 | F120: 118 | H120: =AccVelDataLink!G185 -> 12.5 | I120: =AccVelDataLink!A185 -> 182 | J120: ○ | K120: ○
A121: 118 | B121: 0 | C121: 13000 | D121: 183 | E121: 117 | F121: 119 | H121: =AccVelDataLink!G186 -> 13 | I121: =AccVelDataLink!A186 -> 183 | J121: ○ | K121: ○
A122: 119 | B122: 0 | C122: 14000 | D122: 184 | E122: 118 | F122: 120 | H122: =AccVelDataLink!G187 -> 14 | I122: =AccVelDataLink!A187 -> 184 | J122: ○ | K122: ○
A123: 120 | B123: 0 | C123: 15000 | D123: 185 | E123: 119 | F123: 121 | H123: =AccVelDataLink!G188 -> 15 | I123: =AccVelDataLink!A188 -> 185 | J123: ○ | K123: ○
A124: 121 | B124: 1 | C124: 500 | D124: 187 | E124: 120 | F124: 122 | G124: =AccVelDataLink!F190 -> RCP4-SA6C-12-垂直 | H124: =AccVelDataLink!G190 -> 0.5 | I124: =AccVelDataLink!A190 -> 187 | J124: ○ | K124: ○
A125: 122 | B125: 1 | C125: 1000 | D125: 188 | E125: 121 | F125: 123 | H125: =AccVelDataLink!G191 -> 1 | I125: =AccVelDataLink!A191 -> 188 | J125: ○ | K125: ○
A126: 123 | B126: 1 | C126: 1500 | D126: 189 | E126: 122 | F126: 124 | H126: =AccVelDataLink!G192 -> 1.5 | I126: =AccVelDataLink!A192 -> 189 | J126: ○ | K126: ○
A127: 124 | B127: 1 | C127: 2000 | D127: 190 | E127: 123 | F127: 125 | H127: =AccVelDataLink!G193 -> 2 | I127: =AccVelDataLink!A193 -> 190 | J127: ○ | K127: ○
A128: 125 | B128: 1 | C128: 2500 | D128: 192 | E128: 124 | F128: -1 | H128: =AccVelDataLink!G195 -> 2.5 | I128: =AccVelDataLink!A195 -> 192 | J128: ○ | K128: 終端
A129: 126 | B129: 0 | C129: 500 | D129: 194 | E129: -1 | F129: =A130 -> 127 | G129: =AccVelDataLink!F197 -> RCP4-SA6C-20-水平 | H129: =AccVelDataLink!G197 -> 0.5 | I129: =AccVelDataLink!A197 -> 194 | J129: 先頭 | K129: ○
A130: 127 | B130: 0 | C130: 1000 | D130: 195 | E130: =A129 -> 126 | F130: 128 | H130: =AccVelDataLink!G198 -> 1 | I130: =AccVelDataLink!A198 -> 195 | J130: ○ | K130: ○
A131: 128 | B131: 0 | C131: 1500 | D131: 197 | E131: 127 | F131: 129 | H131: =AccVelDataLink!G200 -> 1.5 | I131: =AccVelDataLink!A200 -> 197 | J131: ○ | K131: ○
A132: =A131+1 -> 129 | B132: 0 | C132: =H132*$H$1 -> 2000 | D132: =I132 -> 198 | E132: 128 | F132: 130 | H132: =AccVelDataLink!G201 -> 2 | I132: =AccVelDataLink!A201 -> 198 | J132: =IF(E132=A131,"○",IF(G132=0,"つなぎまちがい","先頭")) -> ○ | K132: =IF(F132=A133,"○",IF(F132<>E133,"つなぎまちがい","終端")) -> ○
A133: 130 | B133: 0 | C133: 3000 | D133: 200 | E133: 129 | F133: 131 | H133: =AccVelDataLink!G203 -> 3 | I133: =AccVelDataLink!A203 -> 200 | J133: ○ | K133: ○
A134: 131 | B134: 0 | C134: 3500 | D134: 202 | E134: 130 | F134: 132 | H134: =AccVelDataLink!G205 -> 3.5 | I134: =AccVelDataLink!A205 -> 202 | J134: ○ | K134: ○
A135: 132 | B135: 0 | C135: 4500 | D135: 203 | E135: 131 | F135: 133 | H135: =AccVelDataLink!G206 -> 4.5 | I135: =AccVelDataLink!A206 -> 203 | J135: ○ | K135: ○
A136: 133 | B136: 0 | C136: 5000 | D136: 204 | E136: 132 | F136: 134 | H136: =AccVelDataLink!G207 -> 5 | I136: =AccVelDataLink!A207 -> 204 | J136: ○ | K136: ○
A137: 134 | B137: 0 | C137: 6000 | D137: 206 | E137: 133 | F137: 135 | H137: =AccVelDataLink!G209 -> 6 | I137: =AccVelDataLink!A209 -> 206 | J137: ○ | K137: ○
A138: 135 | B138: 0 | C138: 6500 | D138: 208 | E138: 134 | F138: 136 | H138: =AccVelDataLink!G211 -> 6.5 | I138: =AccVelDataLink!A211 -> 208 | J138: ○ | K138: ○
A139: 136 | B139: 0 | C139: 7000 | D139: 210 | E139: 135 | F139: 137 | H139: =AccVelDataLink!G213 -> 7 | I139: =AccVelDataLink!A213 -> 210 | J139: ○ | K139: ○
A140: 137 | B140: 0 | C140: 8000 | D140: 211 | E140: 136 | F140: 138 | H140: =AccVelDataLink!G214 -> 8 | I140: =AccVelDataLink!A214 -> 211 | J140: ○ | K140: ○
A141: 138 | B141: 0 | C141: 9000 | D141: 213 | E141: 137 | F141: 139 | H141: =AccVelDataLink!G216 -> 9 | I141: =AccVelDataLink!A216 -> 213 | J141: ○ | K141: ○
A142: 139 | B142: 0 | C142: 10000 | D142: 215 | E142: 138 | F142: 140 | H142: =AccVelDataLink!G218 -> 10 | I142: =AccVelDataLink!A218 -> 215 | J142: ○ | K142: ○
A143: 140 | B143: 1 | C143: 500 | D143: 217 | E143: 139 | F143: 141 | G143: =AccVelDataLink!F220 -> RCP4-SA6C-20-垂直 | H143: =AccVelDataLink!G220 -> 0.5 | I143: =AccVelDataLink!A220 -> 217 | J143: ○ | K143: ○
A144: 141 | B144: 1 | C144: 1000 | D144: 218 | E144: 140 | F144: -1 | H144: =AccVelDataLink!G221 -> 1 | I144: =AccVelDataLink!A221 -> 218 | J144: ○ | K144: 終端
A145: 142 | B145: 0 | C145: 8000 | D145: 219 | E145: -1 | F145: =A146 -> 143 | G145: =AccVelDataLink!F222 -> RCP4-SA7C-4-水平 | H145: =AccVelDataLink!G222 -> 8 | I145: =AccVelDataLink!A222 -> 219 | J145: 先頭 | K145: ○
A146: 143 | B146: 0 | C146: 18000 | D146: 220 | E146: =A145 -> 142 | F146: 144 | H146: =AccVelDataLink!G223 -> 18 | I146: =AccVelDataLink!A223 -> 220 | J146: ○ | K146: ○
A147: 144 | B147: 0 | C147: 25000 | D147: 221 | E147: 143 | F147: 145 | H147: =AccVelDataLink!G224 -> 25 | I147: =AccVelDataLink!A224 -> 221 | J147: ○ | K147: ○
A148: 145 | B148: 0 | C148: 30000 | D148: 222 | E148: 144 | F148: 146 | H148: =AccVelDataLink!G225 -> 30 | I148: =AccVelDataLink!A225 -> 222 | J148: ○ | K148: ○
A149: 146 | B149: 0 | C149: 35000 | D149: 224 | E149: 145 | F149: 147 | H149: =AccVelDataLink!G227 -> 35 | I149: =AccVelDataLink!A227 -> 224 | J149: ○ | K149: ○
A150: 147 | B150: 0 | C150: 40000 | D150: 227 | E150: 146 | F150: 148 | H150: =AccVelDataLink!G230 -> 40 | I150: =AccVelDataLink!A230 -> 227 | J150: ○ | K150: ○
A151: 148 | B151: 0 | C151: 45000 | D151: 230 | E151: 147 | F151: 149 | H151: =AccVelDataLink!G233 -> 45 | I151: =AccVelDataLink!A233 -> 230 | J151: ○ | K151: ○
A152: 149 | B152: 1 | C152: 7500 | D152: 233 | E152: 148 | F152: 150 | G152: =AccVelDataLink!F236 -> RCP4-SA7C-4-垂直 | H152: =AccVelDataLink!G236 -> 7.5 | I152: =AccVelDataLink!A236 -> 233 | J152: ○ | K152: ○
A153: 150 | B153: 1 | C153: 8000 | D153: 234 | E153: 149 | F153: 151 | H153: =AccVelDataLink!G237 -> 8 | I153: =AccVelDataLink!A237 -> 234 | J153: ○ | K153: ○
A154: 151 | B154: 1 | C154: 9000 | D154: 235 | E154: 150 | F154: 152 | H154: =AccVelDataLink!G238 -> 9 | I154: =AccVelDataLink!A238 -> 235 | J154: ○ | K154: ○
A155: 152 | B155: 1 | C155: 11000 | D155: 236 | E155: 151 | F155: 153 | H155: =AccVelDataLink!G239 -> 11 | I155: =AccVelDataLink!A239 -> 236 | J155: ○ | K155: ○
A156: 153 | B156: 1 | C156: 12000 | D156: 237 | E156: 152 | F156: 154 | H156: =AccVelDataLink!G240 -> 12 | I156: =AccVelDataLink!A240 -> 237 | J156: ○ | K156: ○
A157: 154 | B157: 1 | C157: 14000 | D157: 238 | E157: 153 | F157: 155 | H157: =AccVelDataLink!G241 -> 14 | I157: =AccVelDataLink!A241 -> 238 | J157: ○ | K157: ○
A158: 155 | B158: 1 | C158: 16000 | D158: 239 | E158: 154 | F158: 156 | H158: =AccVelDataLink!G242 -> 16 | I158: =AccVelDataLink!A242 -> 239 | J158: ○ | K158: ○
A159: 156 | B159: 1 | C159: 19000 | D159: 240 | E159: 155 | F159: 157 | H159: =AccVelDataLink!G243 -> 19 | I159: =AccVelDataLink!A243 -> 240 | J159: ○ | K159: ○
A160: 157 | B160: 1 | C160: 20000 | D160: 241 | E160: 156 | F160: 158 | H160: =AccVelDataLink!G244 -> 20 | I160: =AccVelDataLink!A244 -> 241 | J160: ○ | K160: ○
A161: 158 | B161: 1 | C161: 22000 | D161: 242 | E161: 157 | F161: 159 | H161: =AccVelDataLink!G245 -> 22 | I161: =AccVelDataLink!A245 -> 242 | J161: ○ | K161: ○
A162: 159 | B162: 1 | C162: 25000 | D162: 243 | E162: 158 | F162: -1 | H162: =AccVelDataLink!G246 -> 25 | I162: =AccVelDataLink!A246 -> 243 | J162: ○ | K162: 終端
A163: 160 | B163: 0 | C163: 4000 | D163: 244 | E163: -1 | F163: =A164 -> 161 | G163: =AccVelDataLink!F247 -> RCP4-SA7C-8-水平 | H163: =AccVelDataLink!G247 -> 4 | I163: =AccVelDataLink!A247 -> 244 | J163: 先頭 | K163: ○
A164: 161 | B164: 0 | C164: 7000 | D164: 245 | E164: =A163 -> 160 | F164: 162 | H164: =AccVelDataLink!G248 -> 7 | I164: =AccVelDataLink!A248 -> 245 | J164: ○ | K164: ○
A165: 162 | B165: 0 | C165: 9000 | D165: 246 | E165: 161 | F165: 163 | H165: =AccVelDataLink!G249 -> 9 | I165: =AccVelDataLink!A249 -> 246 | J165: ○ | K165: ○
A166: 163 | B166: 0 | C166: 15000 | D166: 247 | E166: 162 | F166: 164 | H166: =AccVelDataLink!G250 -> 15 | I166: =AccVelDataLink!A250 -> 247 | J166: ○ | K166: ○
A167: 164 | B167: 0 | C167: 20000 | D167: 249 | E167: 163 | F167: 165 | H167: =AccVelDataLink!G252 -> 20 | I167: =AccVelDataLink!A252 -> 249 | J167: ○ | K167: ○
A168: 165 | B168: 0 | C168: 24000 | D168: 251 | E168: 164 | F168: 166 | H168: =AccVelDataLink!G254 -> 24 | I168: =AccVelDataLink!A254 -> 251 | J168: ○ | K168: ○
A169: 166 | B169: 0 | C169: 25000 | D169: 252 | E169: 165 | F169: 167 | H169: =AccVelDataLink!G255 -> 25 | I169: =AccVelDataLink!A255 -> 252 | J169: ○ | K169: ○
A170: 167 | B170: 0 | C170: 30000 | D170: 254 | E170: 166 | F170: 168 | H170: =AccVelDataLink!G257 -> 30 | I170: =AccVelDataLink!A257 -> 254 | J170: ○ | K170: ○
A171: 168 | B171: 0 | C171: 35000 | D171: 256 | E171: 167 | F171: 169 | H171: =AccVelDataLink!G259 -> 35 | I171: =AccVelDataLink!A259 -> 256 | J171: ○ | K171: ○
A172: 169 | B172: 0 | C172: 38000 | D172: 259 | E172: 168 | F172: 170 | H172: =AccVelDataLink!G262 -> 38 | I172: =AccVelDataLink!A262 -> 259 | J172: ○ | K172: ○
A173: 170 | B173: 0 | C173: 40000 | D173: 260 | E173: 169 | F173: 171 | H173: =AccVelDataLink!G263 -> 40 | I173: =AccVelDataLink!A263 -> 260 | J173: ○ | K173: ○
A174: 171 | B174: 0 | C174: 45000 | D174: 264 | E174: 170 | F174: 172 | H174: =AccVelDataLink!G267 -> 45 | I174: =AccVelDataLink!A267 -> 264 | J174: ○ | K174: ○
A175: 172 | B175: 1 | C175: 2000 | D175: 267 | E175: 171 | F175: 173 | G175: =AccVelDataLink!F270 -> RCP4-SA7C-8-垂直 | H175: =AccVelDataLink!G270 -> 2 | I175: =AccVelDataLink!A270 -> 267 | J175: ○ | K175: ○
A176: 173 | B176: 1 | C176: 4000 | D176: 269 | E176: 172 | F176: 174 | H176: =AccVelDataLink!G272 -> 4 | I176: =AccVelDataLink!A272 -> 269 | J176: ○ | K176: ○
A177: 174 | B177: 1 | C177: 5000 | D177: 270 | E177: 173 | F177: 175 | H177: =AccVelDataLink!G273 -> 5 | I177: =AccVelDataLink!A273 -> 270 | J177: ○ | K177: ○
A178: 175 | B178: 1 | C178: 7000 | D178: 272 | E178: 174 | F178: 176 | H178: =AccVelDataLink!G275 -> 7 | I178: =AccVelDataLink!A275 -> 272 | J178: ○ | K178: ○
A179: 176 | B179: 1 | C179: 8000 | D179: 274 | E179: 175 | F179: 177 | H179: =AccVelDataLink!G277 -> 8 | I179: =AccVelDataLink!A277 -> 274 | J179: ○ | K179: ○
A180: 177 | B180: 1 | C180: 9000 | D180: 275 | E180: 176 | F180: 178 | H180: =AccVelDataLink!G278 -> 9 | I180: =AccVelDataLink!A278 -> 275 | J180: ○ | K180: ○
A181: 178 | B181: 1 | C181: 9500 | D181: 276 | E181: 177 | F181: 179 | H181: =AccVelDataLink!G279 -> 9.5 | I181: =AccVelDataLink!A279 -> 276 | J181: ○ | K181: ○
A182: 179 | B182: 1 | C182: 10000 | D182: 277 | E182: 178 | F182: 180 | H182: =AccVelDataLink!G280 -> 10 | I182: =AccVelDataLink!A280 -> 277 | J182: ○ | K182: ○
A183: 180 | B183: 1 | C183: 11000 | D183: 278 | E183: 179 | F183: 181 | H183: =AccVelDataLink!G281 -> 11 | I183: =AccVelDataLink!A281 -> 278 | J183: ○ | K183: ○
A184: 181 | B184: 1 | C184: 16000 | D184: 279 | E184: 180 | F184: -1 | H184: =AccVelDataLink!G282 -> 16 | I184: =AccVelDataLink!A282 -> 279 | J184: ○ | K184: 終端
A185: 182 | B185: 0 | C185: 2000 | D185: 280 | E185: -1 | F185: =A186 -> 183 | G185: =AccVelDataLink!F283 -> RCP4-SA7C-16-水平 | H185: =AccVelDataLink!G283 -> 2 | I185: =AccVelDataLink!A283 -> 280 | J185: 先頭 | K185: ○
A186: 183 | B186: 0 | C186: 3000 | D186: 281 | E186: =A185 -> 182 | F186: 184 | H186: =AccVelDataLink!G284 -> 3 | I186: =AccVelDataLink!A284 -> 281 | J186: ○ | K186: ○
A187: 184 | B187: 0 | C187: 4000 | D187: 282 | E187: 183 | F187: 185 | H187: =AccVelDataLink!G285 -> 4 | I187: =AccVelDataLink!A285 -> 282 | J187: ○ | K187: ○
A188: 185 | B188: 0 | C188: 5000 | D188: 284 | E188: 184 | F188: 186 | H188: =AccVelDataLink!G287 -> 5 | I188: =AccVelDataLink!A287 -> 284 | J188: ○ | K188: ○
A189: 186 | B189: 0 | C189: 6000 | D189: 285 | E189: 185 | F189: 187 | H189: =AccVelDataLink!G288 -> 6 | I189: =AccVelDataLink!A288 -> 285 | J189: ○ | K189: ○
A190: 187 | B190: 0 | C190: 9000 | D190: 286 | E190: 186 | F190: 188 | H190: =AccVelDataLink!G289 -> 9 | I190: =AccVelDataLink!A289 -> 286 | J190: ○ | K190: ○
A191: 188 | B191: 0 | C191: 10000 | D191: 287 | E191: 187 | F191: 189 | H191: =AccVelDataLink!G290 -> 10 | I191: =AccVelDataLink!A290 -> 287 | J191: ○ | K191: ○
A192: 189 | B192: 0 | C192: 15000 | D192: 290 | E192: 188 | F192: 190 | H192: =AccVelDataLink!G293 -> 15 | I192: =AccVelDataLink!A293 -> 290 | J192: ○ | K192: ○
A193: 190 | B193: 0 | C193: 20000 | D193: 293 | E193: 189 | F193: 191 | H193: =AccVelDataLink!G296 -> 20 | I193: =AccVelDataLink!A296 -> 293 | J193: ○ | K193: ○
A194: 191 | B194: 0 | C194: 24000 | D194: 296 | E194: 190 | F194: 192 | H194: =AccVelDataLink!G299 -> 24 | I194: =AccVelDataLink!A299 -> 296 | J194: ○ | K194: ○
A195: 192 | B195: 0 | C195: 25000 | D195: 297 | E195: 191 | F195: 193 | H195: =AccVelDataLink!G300 -> 25 | I195: =AccVelDataLink!A300 -> 297 | J195: ○ | K195: ○
A196: =A195+1 -> 193 | B196: 0 | C196: =H196*$H$1 -> 27000 | D196: =I196 -> 300 | E196: 192 | F196: 194 | H196: =AccVelDataLink!G303 -> 27 | I196: =AccVelDataLink!A303 -> 300 | J196: =IF(E196=A195,"○",IF(G196=0,"つなぎまちがい","先頭")) -> ○ | K196: =IF(F196=A197,"○",IF(F196<>E197,"つなぎまちがい","終端")) -> ○
A197: 194 | B197: 0 | C197: 28000 | D197: 301 | E197: 193 | F197: 195 | H197: =AccVelDataLink!G304 -> 28 | I197: =AccVelDataLink!A304 -> 301 | J197: ○ | K197: ○
A198: 195 | B198: 0 | C198: 35000 | D198: 302 | E198: 194 | F198: 196 | H198: =AccVelDataLink!G305 -> 35 | I198: =AccVelDataLink!A305 -> 302 | J198: ○ | K198: ○
A199: 196 | B199: 0 | C199: 38000 | D199: 304 | E199: 195 | F199: 197 | H199: =AccVelDataLink!G307 -> 38 | I199: =AccVelDataLink!A307 -> 304 | J199: ○ | K199: ○
A200: 197 | B200: 0 | C200: 40000 | D200: 305 | E200: 196 | F200: 198 | H200: =AccVelDataLink!G308 -> 40 | I200: =AccVelDataLink!A308 -> 305 | J200: ○ | K200: ○
... 5419 more rows

Sheet AccVelDataLink (hidden)
A1: =LeadData!A1 -> 9.80665 | B1: 1 | C1: 2 | D1: 3 | E1: 4
A2: ﾃﾞｰﾀ№ | B2: 水平定格加速度 | C2: 最高速度 | D2: 前ﾃﾞｰﾀ№ | E2: 次ﾃﾞｰﾀ№ | F2: 備考
A3: =ModelData!A3 -> 0 | B3: 0.001mm/s^2 | C3: ㎜/s | D3: ﾚｺｰﾄﾞ№ | E3: ﾚｺｰﾄﾞ№ | F3: 型式-姿勢 | G3: kg | H3: G | I3: mm/s | J3: 前№ﾁｪｯｸ | K3: 後№ﾁｪｯｸ
A4: =A3+1 -> 1 | B4: =H4*$A$1*1000*1000 -> 2941995 | C4: =I4 -> 225 | D4: -1 | E4: =A5 -> 2 | F4: RCP4-SA5C-3-水平 | G4: 6 | H4: 0.3 | I4: 225 | J4: =IF(G4=0,IF(D4<>A3,"ﾘﾝｸ不正","○"),"○") -> ○ | K4: =IF(D5<>-1,IF(E4<>A5,"ﾘﾝｸ不正","○"),"○") -> ○
A5: 2 | B5: 9806650 | C5: 175 | D5: =A4 -> 1 | E5: -1 | H5: 1 | I5: 175 | J5: ○ | K5: ○
A6: 3 | B6: 4903325 | C6: 200 | D6: -1 | E6: -1 | F6: RCP4-SA5C-3-水平 | G6: 8 | H6: 0.5 | I6: 200 | J6: ○ | K6: ○
A7: 4 | B7: 6864655 | C7: 175 | D7: -1 | E7: =A8 -> 5 | F7: RCP4-SA5C-3-水平 | G7: 10 | H7: 0.7 | I7: 175 | J7: ○ | K7: ○
A8: 5 | B8: 9806650 | C8: 150 | D8: =A7 -> 4 | E8: -1 | H8: 1 | I8: 150 | J8: ○ | K8: ○
A9: 6 | B9: 6864655 | C9: 150 | D9: -1 | E9: =A10 -> 7 | F9: RCP4-SA5C-3-水平 | G9: 12 | H9: 0.7 | I9: 150 | J9: ○ | K9: ○
A10: 7 | B10: 9806650 | C10: 125 | D10: =A9 -> 6 | E10: -1 | H10: 1 | I10: 125 | J10: ○ | K10: ○
A11: 8 | B11: 4903325 | C11: 175 | D11: -1 | E11: =A12 -> 9 | F11: RCP4-SA5C-3-水平 | G11: 14 | H11: 0.5 | I11: 175 | J11: ○ | K11: ○
A12: 9 | B12: 9806650 | C12: 75 | D12: =A11 -> 8 | E12: -1 | H12: 1 | I12: 75 | J12: ○ | K12: ○
A13: 10 | B13: 6864655 | C13: 125 | D13: -1 | E13: -1 | F13: RCP4-SA5C-3-水平 | G13: 16 | H13: 0.7 | I13: 125 | J13: ○ | K13: ○
A14: 11 | B14: 2941995 | C14: 200 | D14: -1 | E14: =A15 -> 12 | F14: RCP4-SA5C-3-水平 | G14: 18 | H14: 0.3 | I14: 200 | J14: ○ | K14: ○
A15: 12 | B15: 4903325 | C15: 150 | D15: =A14 -> 11 | E15: =A16 -> 13 | H15: 0.5 | I15: 150 | J15: ○ | K15: ○
A16: 13 | B16: 6864655 | C16: 75 | D16: =A15 -> 12 | E16: -1 | H16: 0.7 | I16: 75 | J16: ○ | K16: ○
A17: 14 | B17: 980665 | C17: 225 | D17: -1 | E17: =A18 -> 15 | F17: RCP4-SA5C-3-水平 | G17: 20 | H17: 0.1 | I17: 225 | J17: ○ | K17: ○
A18: 15 | B18: 2941995 | C18: 75 | D18: =A17 -> 14 | E18: -1 | H18: 0.3 | I18: 75 | J18: ○ | K18: ○
A19: 16 | B19: 2941995 | C19: 225 | D19: -1 | E19: -1 | F19: RCP4-SA5C-3-垂直 | G19: 5 | H19: 0.3 | I19: 225 | J19: ○ | K19: ○
A20: 17 | B20: 980665 | C20: 225 | D20: -1 | E20: =A21 -> 18 | F20: RCP4-SA5C-3-垂直 | G20: 6 | H20: 0.1 | I20: 225 | J20: ○ | K20: ○
A21: 18 | B21: 4903325 | C21: 200 | D21: =A20 -> 17 | E21: -1 | H21: 0.5 | I21: 200 | J21: ○ | K21: ○
A22: 19 | B22: 2941995 | C22: 200 | D22: -1 | E22: -1 | F22: RCP4-SA5C-3-垂直 | G22: 7 | H22: 0.3 | I22: 200 | J22: ○ | K22: ○
A23: 20 | B23: 4903325 | C23: 175 | D23: -1 | E23: -1 | F23: RCP4-SA5C-3-垂直 | G23: 8 | H23: 0.5 | I23: 175 | J23: ○ | K23: ○
A24: 21 | B24: 980665 | C24: 200 | D24: -1 | E24: =A25 -> 22 | F24: RCP4-SA5C-3-垂直 | G24: 9 | H24: 0.1 | I24: 200 | J24: ○ | K24: ○
A25: 22 | B25: 2941995 | C25: 175 | D25: =A24 -> 21 | E25: -1 | H25: 0.3 | I25: 175 | J25: ○ | K25: ○
A26: 23 | B26: 4903325 | C26: 150 | D26: -1 | E26: -1 | F26: RCP4-SA5C-3-垂直 | G26: 10 | H26: 0.5 | I26: 150 | J26: ○ | K26: ○
A27: 24 | B27: 980665 | C27: 175 | D27: -1 | E27: =A28 -> 25 | F27: RCP4-SA5C-3-垂直 | G27: 11 | H27: 0.1 | I27: 175 | J27: ○ | K27: ○
A28: 25 | B28: 2941995 | C28: 150 | D28: =A27 -> 24 | E28: -1 | H28: 0.3 | I28: 150 | J28: ○ | K28: ○
A29: 26 | B29: 980665 | C29: 150 | D29: -1 | E29: =A30 -> 27 | F29: RCP4-SA5C-3-垂直 | G29: 12 | H29: 0.1 | I29: 150 | J29: ○ | K29: ○
A30: 27 | B30: 4903325 | C30: 125 | D30: =A29 -> 26 | E30: -1 | H30: 0.5 | I30: 125 | J30: ○ | K30: ○
A31: 28 | B31: 9806650 | C31: 450 | D31: -1 | E31: -1 | F31: RCP4-SA5C-6-水平 | G31: 2 | H31: 1 | I31: 450 | J31: ○ | K31: ○
A32: 29 | B32: 6864655 | C32: 450 | D32: -1 | E32: -1 | F32: RCP4-SA5C-6-水平 | G32: 4 | H32: 0.7 | I32: 450 | J32: ○ | K32: ○
A33: 30 | B33: 4903325 | C33: 450 | D33: -1 | E33: =A34 -> 31 | F33: RCP4-SA5C-6-水平 | G33: 6 | H33: 0.5 | I33: 450 | J33: ○ | K33: ○
A34: 31 | B34: 9806650 | C34: 400 | D34: =A33 -> 30 | E34: -1 | H34: 1 | I34: 400 | J34: ○ | K34: ○
A35: 32 | B35: 6864655 | C35: 400 | D35: -1 | E35: -1 | F35: RCP4-SA5C-6-水平 | G35: 7 | H35: 0.7 | I35: 400 | J35: ○ | K35: ○
A36: 33 | B36: 9806650 | C36: 350 | D36: -1 | E36: -1 | F36: RCP4-SA5C-6-水平 | G36: 8 | H36: 1 | I36: 350 | J36: ○ | K36: ○
A37: 34 | B37: 2941995 | C37: 450 | D37: -1 | E37: =A38 -> 35 | F37: RCP4-SA5C-6-水平 | G37: 10 | H37: 0.3 | I37: 450 | J37: ○ | K37: ○
A38: 35 | B38: 4903325 | C38: 400 | D38: =A37 -> 34 | E38: =A39 -> 36 | H38: 0.5 | I38: 400 | J38: ○ | K38: ○
A39: 36 | B39: 9806650 | C39: 300 | D39: =A38 -> 35 | E39: -1 | H39: 1 | I39: 300 | J39: ○ | K39: ○
A40: 37 | B40: 6864655 | C40: 350 | D40: -1 | E40: -1 | F40: RCP4-SA5C-6-水平 | G40: 11 | H40: 0.7 | I40: 350 | J40: ○ | K40: ○
A41: 38 | B41: 4903325 | C41: 350 | D41: -1 | E41: =A42 -> 39 | F41: RCP4-SA5C-6-水平 | G41: 12 | H41: 0.5 | I41: 350 | J41: ○ | K41: ○
A42: 39 | B42: 9806650 | C42: 250 | D42: =A41 -> 38 | E42: -1 | H42: 1 | I42: 250 | J42: ○ | K42: ○
A43: 40 | B43: 2941995 | C43: 400 | D43: -1 | E43: =A44 -> 41 | F43: RCP4-SA5C-6-水平 | G43: 14 | H43: 0.3 | I43: 400 | J43: ○ | K43: ○
A44: 41 | B44: 6864655 | C44: 300 | D44: =A43 -> 40 | E44: -1 | H44: 0.7 | I44: 300 | J44: ○ | K44: ○
A45: 42 | B45: 980665 | C45: 450 | D45: -1 | E45: -1 | F45: RCP4-SA5C-6-水平 | G45: 16 | H45: 0.1 | I45: 450 | J45: ○ | K45: ○
A46: 43 | B46: 980665 | C46: 400 | D46: -1 | E46: =A47 -> 44 | F46: RCP4-SA5C-6-水平 | G46: 18 | H46: 0.1 | I46: 400 | J46: ○ | K46: ○
A47: 44 | B47: 2941995 | C47: 350 | D47: =A46 -> 43 | E47: -1 | H47: 0.3 | I47: 350 | J47: ○ | K47: ○
A48: 45 | B48: 4903325 | C48: 450 | D48: -1 | E48: -1 | F48: RCP4-SA5C-6-垂直 | G48: 2 | H48: 0.5 | I48: 450 | J48: ○ | K48: ○
A49: 46 | B49: 4903325 | C49: 400 | D49: -1 | E49: -1 | F49: RCP4-SA5C-6-垂直 | G49: 3 | H49: 0.5 | I49: 400 | J49: ○ | K49: ○
A50: 47 | B50: 980665 | C50: 450 | D50: -1 | E50: =A51 -> 48 | F50: RCP4-SA5C-6-垂直 | G50: 3.5 | H50: 0.1 | I50: 450 | J50: ○ | K50: ○
A51: 48 | B51: 2941995 | C51: 400 | D51: =A50 -> 47 | E51: -1 | H51: 0.3 | I51: 400 | J51: ○ | K51: ○
A52: 49 | B52: 4903325 | C52: 350 | D52: -1 | E52: -1 | F52: RCP4-SA5C-6-垂直 | G52: 4 | H52: 0.5 | I52: 350 | J52: ○ | K52: ○
A53: 50 | B53: 980665 | C53: 400 | D53: -1 | E53: =A54 -> 51 | F53: RCP4-SA5C-6-垂直 | G53: 4.5 | H53: 0.1 | I53: 400 | J53: ○ | K53: ○
A54: 51 | B54: 2941995 | C54: 350 | D54: =A53 -> 50 | E54: -1 | H54: 0.3 | I54: 350 | J54: ○ | K54: ○
A55: 52 | B55: 4903325 | C55: 300 | D55: -1 | E55: -1 | F55: RCP4-SA5C-6-垂直 | G55: 5 | H55: 0.5 | I55: 300 | J55: ○ | K55: ○
A56: 53 | B56: 2941995 | C56: 300 | D56: -1 | E56: =A57 -> 54 | F56: RCP4-SA5C-6-垂直 | G56: 5.5 | H56: 0.3 | I56: 300 | J56: ○ | K56: ○
A57: 54 | B57: 4903325 | C57: 250 | D57: =A56 -> 53 | E57: -1 | H57: 0.5 | I57: 250 | J57: ○ | K57: ○
A58: 55 | B58: 980665 | C58: 350 | D58: -1 | E58: =A59 -> 56 | F58: RCP4-SA5C-6-垂直 | G58: 6 | H58: 0.1 | I58: 350 | J58: ○ | K58: ○
A59: 56 | B59: 2941995 | C59: 250 | D59: =A58 -> 55 | E59: =A60 -> 57 | H59: 0.3 | I59: 250 | J59: ○ | K59: ○
A60: 57 | B60: 4903325 | C60: 200 | D60: =A59 -> 56 | E60: -1 | H60: 0.5 | I60: 200 | J60: ○ | K60: ○
A61: 58 | B61: 9806650 | C61: 900 | D61: -1 | E61: -1 | F61: RCP4-SA5C-12-水平 | G61: 1 | H61: 1 | I61: 900 | J61: ○ | K61: ○
A62: 59 | B62: 6864655 | C62: 800 | D62: -1 | E62: -1 | F62: RCP4-SA5C-12-水平 | G62: 2 | H62: 0.7 | I62: 800 | J62: ○ | K62: ○
A63: 60 | B63: 9806650 | C63: 700 | D63: -1 | E63: -1 | F63: RCP4-SA5C-12-水平 | G63: 2.5 | H63: 1 | I63: 700 | J63: ○ | K63: ○
A64: 61 | B64: 4903325 | C64: 900 | D64: -1 | E64: -1 | F64: RCP4-SA5C-12-水平 | G64: 3 | H64: 0.5 | I64: 900 | J64: ○ | K64: ○
A65: 62 | B65: 6864655 | C65: 700 | D65: -1 | E65: =A66 -> 63 | F65: RCP4-SA5C-12-水平 | G65: 4 | H65: 0.7 | I65: 700 | J65: ○ | K65: ○
A66: 63 | B66: 9806650 | C66: 600 | D66: =A65 -> 62 | E66: -1 | H66: 1 | I66: 600 | J66: ○ | K66: ○
A67: 64 | B67: 2941995 | C67: 900 | D67: -1 | E67: =A68 -> 65 | F67: RCP4-SA5C-12-水平 | G67: 5 | H67: 0.3 | I67: 900 | J67: ○ | K67: ○
A68: =A67+1 -> 65 | B68: =H68*$A$1*1000*1000 -> 4903325 | C68: =I68 -> 800 | D68: =A67 -> 64 | E68: -1 | H68: 0.5 | I68: 800 | J68: =IF(G68=0,IF(D68<>A67,"ﾘﾝｸ不正","○"),"○") -> ○ | K68: =IF(D69<>-1,IF(E68<>A69,"ﾘﾝｸ不正","○"),"○") -> ○
A69: 66 | B69: 6864655 | C69: 600 | D69: -1 | E69: -1 | F69: RCP4-SA5C-12-水平 | G69: 6 | H69: 0.7 | I69: 600 | J69: ○ | K69: ○
A70: 67 | B70: 9806650 | C70: 500 | D70: -1 | E70: -1 | F70: RCP4-SA5C-12-水平 | G70: 6.5 | H70: 1 | I70: 500 | J70: ○ | K70: ○
A71: 68 | B71: 2941995 | C71: 800 | D71: -1 | E71: -1 | F71: RCP4-SA5C-12-水平 | G71: 7 | H71: 0.3 | I71: 800 | J71: ○ | K71: ○
A72: 69 | B72: 4903325 | C72: 700 | D72: -1 | E72: =A73 -> 70 | F72: RCP4-SA5C-12-水平 | G72: 8 | H72: 0.5 | I72: 700 | J72: ○ | K72: ○
A73: 70 | B73: 6864655 | C73: 500 | D73: =A72 -> 69 | E73: =A74 -> 71 | H73: 0.7 | I73: 500 | J73: ○ | K73: ○
A74: 71 | B74: 9806650 | C74: 400 | D74: =A73 -> 70 | E74: -1 | H74: 1 | I74: 400 | J74: ○ | K74: ○
A75: 72 | B75: 2941995 | C75: 700 | D75: -1 | E75: =A76 -> 73 | F75: RCP4-SA5C-12-水平 | G75: 9 | H75: 0.3 | I75: 700 | J75: ○ | K75: ○
A76: 73 | B76: 4903325 | C76: 600 | D76: =A75 -> 72 | E76: =A77 -> 74 | H76: 0.5 | I76: 600 | J76: ○ | K76: ○
A77: 74 | B77: 6864655 | C77: 400 | D77: =A76 -> 73 | E77: -1 | H77: 0.7 | I77: 400 | J77: ○ | K77: ○
A78: 75 | B78: 4903325 | C78: 900 | D78: -1 | E78: -1 | F78: RCP4-SA5C-12-垂直 | G78: 0.5 | H78: 0.5 | I78: 900 | J78: ○ | K78: ○
A79: 76 | B79: 4903325 | C79: 800 | D79: -1 | E79: -1 | F79: RCP4-SA5C-12-垂直 | G79: 1 | H79: 0.5 | I79: 800 | J79: ○ | K79: ○
A80: 77 | B80: 2941995 | C80: 800 | D80: -1 | E80: -1 | F80: RCP4-SA5C-12-垂直 | G80: 1.5 | H80: 0.3 | I80: 800 | J80: ○ | K80: ○
A81: 78 | B81: 4903325 | C81: 700 | D81: -1 | E81: -1 | F81: RCP4-SA5C-12-垂直 | G81: 2 | H81: 0.5 | I81: 700 | J81: ○ | K81: ○
A82: 79 | B82: 2941995 | C82: 700 | D82: -1 | E82: =A83 -> 80 | F82: RCP4-SA5C-12-垂直 | G82: 2.5 | H82: 0.3 | I82: 700 | J82: ○ | K82: ○
A83: 80 | B83: 4903325 | C83: 600 | D83: =A82 -> 79 | E83: -1 | H83: 0.5 | I83: 600 | J83: ○ | K83: ○
A84: 81 | B84: 6864655 | C84: 1440 | D84: -1 | E84: -1 | F84: RCP4-SA5C-20-水平 | G84: 0.5 | H84: 0.7 | I84: 1440 | J84: ○ | K84: ○
A85: 82 | B85: 4903325 | C85: 1440 | D85: -1 | E85: =A86 -> 83 | F85: RCP4-SA5C-20-水平 | G85: 1 | H85: 0.5 | I85: 1440 | J85: ○ | K85: ○
A86: 83 | B86: 9806650 | C86: 1280 | D86: =A85 -> 82 | E86: -1 | H86: 1 | I86: 1280 | J86: ○ | K86: ○
A87: 84 | B87: 9806650 | C87: 1120 | D87: -1 | E87: -1 | F87: RCP4-SA5C-20-水平 | G87: 1.5 | H87: 1 | I87: 1120 | J87: ○ | K87: ○
A88: 85 | B88: 6864655 | C88: 1120 | D88: -1 | E88: =A89 -> 86 | F88: RCP4-SA5C-20-水平 | G88: 2 | H88: 0.7 | I88: 1120 | J88: ○ | K88: ○
A89: 86 | B89: 9806650 | C89: 960 | D89: =A88 -> 85 | E89: -1 | H89: 1 | I89: 960 | J89: ○ | K89: ○
A90: 87 | B90: 4903325 | C90: 1120 | D90: -1 | E90: =A91 -> 88 | F90: RCP4-SA5C-20-水平 | G90: 3 | H90: 0.5 | I90: 1120 | J90: ○ | K90: ○
A91: 88 | B91: 6864655 | C91: 960 | D91: =A90 -> 87 | E91: =A92 -> 89 | H91: 0.7 | I91: 960 | J91: ○ | K91: ○
A92: 89 | B92: 9806650 | C92: 800 | D92: =A91 -> 88 | E92: -1 | H92: 1 | I92: 800 | J92: ○ | K92: ○
A93: 90 | B93: 6864655 | C93: 800 | D93: -1 | E93: =A94 -> 91 | F93: RCP4-SA5C-20-水平 | G93: 4 | H93: 0.7 | I93: 800 | J93: ○ | K93: ○
A94: 91 | B94: 9806650 | C94: 640 | D94: =A93 -> 90 | E94: -1 | H94: 1 | I94: 640 | J94: ○ | K94: ○
A95: 92 | B95: 4903325 | C95: 960 | D95: -1 | E95: =A96 -> 93 | F95: RCP4-SA5C-20-水平 | G95: 5 | H95: 0.5 | I95: 960 | J95: ○ | K95: ○
A96: 93 | B96: 6864655 | C96: 640 | D96: =A95 -> 92 | E96: -1 | H96: 0.7 | I96: 640 | J96: ○ | K96: ○
A97: 94 | B97: 2941995 | C97: 1120 | D97: -1 | E97: -1 | F97: RCP4-SA5C-20-水平 | G97: 6 | H97: 0.3 | I97: 1120 | J97: ○ | K97: ○
